Workbook

Sheet Velkomst

Sheet Tabel 1 H
A1: Tabel 1. Forsikrede medlemmer
A3: Hovedstaden
C5: Mænd | E5: Kvinder | G5: I alt
A7: Civ. ing. | C7: 13082 | E7: 5271 | G7: 18353
A8: Diplom ing. | C8: 9966 | E8: 2564 | G8: 12530
A9: Cand. Scient. Tek. | C9: 5945 | E9: 5457 | G9: 11402
A10: MA. Hum. | C10: 6287 | E10: 14228 | G10: 20515
A11: MA. Nat. | C11: 3550 | E11: 3618 | G11: 7168
A12: MA. Ph.d. | C12: 715 | E12: 581 | G12: 1296
A13: MA. Samf. | C13: 1042 | E13: 2667 | G13: 3709
A14: Øvrige Mag. | C14: 602 | E14: 1156 | G14: 1758
A15: Agronom | C15: 389 | E15: 466 | G15: 855
A16: Landsk. Arkt. | C16: 134 | E16: 361 | G16: 495
A17: Hortonom | C17: 53 | E17: 94 | G17: 147
A18: Forstkand. | C18: 196 | E18: 68 | G18: 264
A19: Jordbrugsakad. | C19: 772 | E19: 989 | G19: 1761
A20: Mejeriing. | C20: 61 | E20: 89 | G20: 150
A21: Levn.m.kand. | C21: 54 | E21: 276 | G21: 330
A22: Dyrlæge | C22: 165 | E22: 800 | G22: 965
A23: Farmaceut | C23: 1078 | E23: 2799 | G23: 3877
A24: Læge | C24: 1633 | E24: 3892 | G24: 5525
A25: Tandlæge | C25: 135 | E25: 746 | G25: 881
A26: Arkitekt | C26: 1682 | E26: 2059 | G26: 3741
A27: Landinspek. | C27: 143 | E27: 51 | G27: 194
A28: Bibliotekar | C28: 443 | E28: 1217 | G28: 1660
A29: Musikudd. | C29: 132 | E29: 171 | G29: 303
A30: Teolog | C30: 205 | E30: 356 | G30: 561
A31: Psykolog | C31: 695 | E31: 3071 | G31: 3766
A32: Jurist | C32: 3310 | E32: 6643 | G32: 9953
A33: Økonom | C33: 3520 | E33: 2235 | G33: 5755
A34: Samf. Adm. | C34: 7100 | E34: 10558 | G34: 17658
A35: Cand. Merc. | C35: 10793 | E35: 10726 | G35: 21519
A36: HA | C36: 1521 | E36: 1285 | G36: 2806
A37: HD | C37: 1339 | E37: 1224 | G37: 2563
A38: Komm. og Sprog | C38: 627 | E38: 3345 | G38: 3972
A39: Bygningskonst. | C39: 2141 | E39: 505 | G39: 2646
A40: Cand. IT. | C40: 1575 | E40: 1371 | G40: 2946
A41: Bac. Samf. | C41: 399 | E41: 451 | G41: 850
A42: Bac. Hum. | C42: 918 | E42: 1565 | G42: 2483
A43: Bac. Nat. | C43: 1038 | E43: 748 | G43: 1786
A44: Andre | C44: 6451 | E44: 7625 | G44: 14076
A46: Total | C46: 89119 | E46: 100339 | G46: 189458
A48: Ingeniører i alt | C48: 23048 | E48: 7835 | G48: 30883
A49: Magistre i alt | C49: 12196 | E49: 22250 | G49: 34446
A50: DJØF'ere i alt | C50: 26244 | E50: 31447 | G50: 57691
A57: København
C59: Mænd | E59: Kvinder | G59: I alt
A61: Civ. ing. | C61: 4530 | E61: 1727 | G61: 6257
A62: Diplom ing. | C62: 2590 | E62: 685 | G62: 3275
A63: Cand. Scient. Tek. | C63: 3237 | E63: 2966 | G63: 6203
A64: MA. Hum. | C64: 4112 | E64: 8521 | G64: 12633
A65: MA. Nat. | C65: 1516 | E65: 1520 | G65: 3036
A66: MA. Ph.d. | C66: 373 | E66: 289 | G66: 662
A67: MA. Samf. | C67: 735 | E67: 1806 | G67: 2541
A68: Øvrige Mag. | C68: 358 | E68: 675 | G68: 1033
A69: Agronom | C69: 141 | E69: 176 | G69: 317
A70: Landsk. Arkt. | C70: 74 | E70: 184 | G70: 258
A71: Hortonom | C71: 20 | E71: 26 | G71: 46
A72: Forstkand. | C72: 68 | E72: 26 | G72: 94
A73: Jordbrugsakad. | C73: 303 | E73: 412 | G73: 715
A74: Mejeriing. | C74: 24 | E74: 38 | G74: 62
A75: Levn.m.kand. | C75: 33 | E75: 133 | G75: 166
A76: Dyrlæge | C76: 55 | E76: 263 | G76: 318
A77: Farmaceut | C77: 412 | E77: 875 | G77: 1287
A78: Læge | C78: 784 | E78: 1840 | G78: 2624
A79: Tandlæge | C79: 50 | E79: 270 | G79: 320
A80: Arkitekt | C80: 1079 | E80: 1286 | G80: 2365
A81: Landinspek. | C81: 41 | E81: 15 | G81: 56
A82: Bibliotekar | C82: 250 | E82: 537 | G82: 787
A83: Musikudd. | C83: 66 | E83: 81 | G83: 147
A84: Teolog | C84: 95 | E84: 159 | G84: 254
A85: Psykolog | C85: 444 | E85: 1690 | G85: 2134
A86: Jurist | C86: 1616 | E86: 2939 | G86: 4555
A87: Økonom | C87: 1684 | E87: 1041 | G87: 2725
A88: Samf. Adm. | C88: 4151 | E88: 6092 | G88: 10243
A89: Cand. Merc. | C89: 5285 | E89: 5210 | G89: 10495
A90: HA | C90: 717 | E90: 626 | G90: 1343
A91: HD | C91: 502 | E91: 607 | G91: 1109
A92: Komm. og Sprog | C92: 401 | E92: 1464 | G92: 1865
A93: Bygningskonst. | C93: 922 | E93: 248 | G93: 1170
A94: Cand. IT. | C94: 970 | E94: 889 | G94: 1859
A95: Bac. Samf. | C95: 249 | E95: 253 | G95: 502
A96: Bac. Hum. | C96: 628 | E96: 1036 | G96: 1664
A97: Bac. Nat. | C97: 550 | E97: 453 | G97: 1003
A98: Andre | C98: 3402 | E98: 4115 | G98: 7517
A100: Total | C100: 42164 | E100: 50761 | G100: 92925
A102: Ingeniører i alt | C102: 7120 | E102: 2412 | G102: 9532
A103: Magistre i alt | C103: 7094 | E103: 12811 | G103: 19905
A104: DJØF'ere i alt | C104: 13453 | E104: 15908 | G104: 29361
A111: Frederiksberg
C113: Mænd | E113: Kvinder | G113: I alt
A115: Civ. ing. | C115: 788 | E115: 328 | G115: 1116
A116: Diplom ing. | C116: 458 | E116: 109 | G116: 567
A117: Cand. Scient. Tek. | C117: 425 | E117: 403 | G117: 828
A118: MA. Hum. | C118: 543 | E118: 1292 | G118: 1835
A119: MA. Nat. | C119: 254 | E119: 241 | G119: 495
A120: MA. Ph.d. | C120: 62 | E120: 64 | G120: 126
A121: MA. Samf. | C121: 104 | E121: 230 | G121: 334
A122: Øvrige Mag. | C122: 45 | E122: 80 | G122: 125
A123: Agronom | C123: 42 | E123: 36 | G123: 78
A124: Landsk. Arkt. | C124: 14 | E124: 19 | G124: 33
A125: Hortonom | C125: 1 | E125: 7 | G125: 8
A126: Forstkand. | C126: 7 | E126: 6 | G126: 13
A127: Jordbrugsakad. | C127: 64 | E127: 68 | G127: 132
A128: Mejeriing. | C128: 4 | E128: 4 | G128: 8
A129: Levn.m.kand. | C129: 4 | E129: 23 | G129: 27
A130: Dyrlæge | C130: 15 | E130: 61 | G130: 76
A131: Farmaceut | C131: 68 | E131: 157 | G131: 225
A132: Læge | C132: 156 | E132: 346 | G132: 502
A133: Tandlæge | C133: 7 | E133: 59 | G133: 66
A134: Arkitekt | C134: 199 | E134: 231 | G134: 430
A135: Landinspek. | C135: 14 | E135: 4 | G135: 18
A136: Bibliotekar | C136: 29 | E136: 95 | G136: 124
A137: Musikudd. | C137: 11 | E137: 8 | G137: 19
A138: Teolog | C138: 8 | E138: 28 | G138: 36
A139: Psykolog | C139: 61 | E139: 283 | G139: 344
A140: Jurist | C140: 400 | E140: 674 | G140: 1074
A141: Økonom | C141: 356 | E141: 241 | G141: 597
A142: Samf. Adm. | C142: 690 | E142: 1054 | G142: 1744
A143: Cand. Merc. | C143: 1233 | E143: 1252 | G143: 2485
A144: HA | C144: 142 | E144: 104 | G144: 246
A145: HD | C145: 118 | E145: 88 | G145: 206
A146: Komm. og Sprog | C146: 59 | E146: 322 | G146: 381
A147: Bygningskonst. | C147: 120 | E147: 41 | G147: 161
A148: Cand. IT. | C148: 121 | E148: 101 | G148: 222
A149: Bac. Samf. | C149: 32 | E149: 50 | G149: 82
A150: Bac. Hum. | C150: 74 | E150: 142 | G150: 216
A151: Bac. Nat. | C151: 59 | E151: 65 | G151: 124
A152: Andre | C152: 566 | E152: 686 | G152: 1252
A154: Total | C154: 7289 | E154: 8934 | G154: 16223
A156: Ingeniører i alt | C156: 1246 | E156: 437 | G156: 1683
A157: Magistre i alt | C157: 1008 | E157: 1907 | G157: 2915
A158: DJØF'ere i alt | C158: 2821 | E158: 3325 | G158: 6146
A165: Ballerup
C167: Mænd | E167: Kvinder | G167: I alt
A169: Civ. ing. | C169: 392 | E169: 161 | G169: 553
A170: Diplom ing. | C170: 399 | E170: 98 | G170: 497
A171: Cand. Scient. Tek. | C171: 119 | E171: 99 | G171: 218
A172: MA. Hum. | C172: 68 | E172: 159 | G172: 227
A173: MA. Nat. | C173: 81 | E173: 86 | G173: 167
A174: MA. Ph.d. | C174: 11 | E174: 9 | G174: 20
A175: MA. Samf. | C175: 17 | E175: 18 | G175: 35
A176: Øvrige Mag. | C176: 9 | E176: 18 | G176: 27
A177: Agronom | C177: 9 | E177: 9 | G177: 18
A178: Landsk. Arkt. | C178: 3 | E178: 9 | G178: 12
A179: Hortonom | C179: 1 | E179: 2 | G179: 3
A180: Forstkand. | C180: 3 | E180: 1 | G180: 4
A181: Jordbrugsakad. | C181: 16 | E181: 21 | G181: 37
A182: Mejeriing. | C182: 1 | E182: 3 | G182: 4
A183: Levn.m.kand. | C183: 0 | E183: 4 | G183: 4
A184: Dyrlæge | C184: 3 | E184: 26 | G184: 29
A185: Farmaceut | C185: 34 | E185: 97 | G185: 131
A186: Læge | C186: 28 | E186: 54 | G186: 82
A187: Tandlæge | C187: 1 | E187: 14 | G187: 15
A188: Arkitekt | C188: 10 | E188: 11 | G188: 21
A189: Landinspek. | C189: 5 | E189: 2 | G189: 7
A190: Bibliotekar | C190: 11 | E190: 30 | G190: 41
A191: Musikudd. | C191: 3 | E191: 5 | G191: 8
A192: Teolog | C192: 3 | E192: 5 | G192: 8
A193: Psykolog | C193: 8 | E193: 41 | G193: 49
A194: Jurist | C194: 30 | E194: 85 | G194: 115
A195: Økonom | C195: 55 | E195: 24 | G195: 79
A196: Samf. Adm. | C196: 89 | E196: 118 | G196: 207
A197: Cand. Merc. | C197: 139 | E197: 140 | G197: 279
A198: HA | C198: 20 | E198: 17 | G198: 37
A199: HD | C199: 19 | E199: 18 | G199: 37
A200: Komm. og Sprog | C200: 10 | E200: 60 | G200: 70
A201: Bygningskonst. | C201: 53 | E201: 12 | G201: 65
A202: Cand. IT. | C202: 18 | E202: 21 | G202: 39
A203: Bac. Samf. | C203: 4 | E203: 5 | G203: 9
A204: Bac. Hum. | C204: 6 | E204: 12 | G204: 18
A205: Bac. Nat. | C205: 33 | E205: 7 | G205: 40
A206: Andre | C206: 105 | E206: 86 | G206: 191
A208: Total | C208: 1800 | E208: 1566 | G208: 3366
A210: Ingeniører i alt | C210: 791 | E210: 259 | G210: 1050
A211: Magistre i alt | C211: 186 | E211: 290 | G211: 476
A212: DJØF'ere i alt | C212: 333 | E212: 384 | G212: 717
A219: Brøndby
C221: Mænd | E221: Kvinder | G221: I alt
A223: Civ. ing. | C223: 92 | E223: 34 | G223: 126
A224: Diplom ing. | C224: 135 | E224: 27 | G224: 162
A225: Cand. Scient. Tek. | C225: 45 | E225: 30 | G225: 75
A226: MA. Hum. | C226: 22 | E226: 66 | G226: 88
A227: MA. Nat. | C227: 28 | E227: 27 | G227: 55
A228: MA. Ph.d. | C228: 4 | E228: 2 | G228: 6
A229: MA. Samf. | C229: 11 | E229: 14 | G229: 25
A230: Øvrige Mag. | C230: 7 | E230: 5 | G230: 12
A231: Agronom | C231: 2 | E231: 4 | G231: 6
A232: Landsk. Arkt. | C232: 0 | E232: 5 | G232: 5
A233: Hortonom | C233: 0 | E233: 2 | G233: 2
A234: Forstkand. | C234: 0 | E234: 1 | G234: 1
A235: Jordbrugsakad. | C235: 2 | E235: 12 | G235: 14
A236: Mejeriing. | C236: 0 | E236: 0 | G236: 0
A237: Levn.m.kand. | C237: 0 | E237: 1 | G237: 1
A238: Dyrlæge | C238: 2 | E238: 4 | G238: 6
A239: Farmaceut | C239: 12 | E239: 30 | G239: 42
A240: Læge | C240: 12 | E240: 27 | G240: 39
A241: Tandlæge | C241: 1 | E241: 9 | G241: 10
A242: Arkitekt | C242: 1 | E242: 3 | G242: 4
A243: Landinspek. | C243: 0 | E243: 1 | G243: 1
... 1077 more rows

Sheet Tabel 2 H
A1: Tabel 2. Antal bruttoledighedsberørte og gennemsnitlig antal ledige brutto
A3: Hovedstaden
C5: Mænd | F5: Kvinder | I5: I alt
C6: Ledigheds- berørte | D6: Gns. brutto- ledighed | F6: Ledigheds- berørte | G6: Gns. brutto- ledighed | I6: Ledigheds- berørte | J6: Gns. brutto- ledighed
A9: Civ. ing. | C9: 518 | D9: 420.7160232 | F9: 260 | G9: 201.6478513 | I9: 778 | J9: 622.3638745
A10: Diplom ing. | C10: 280 | D10: 237.0236387 | F10: 90 | G10: 73.28260463 | I10: 370 | J10: 310.3062434
A11: Cand. Scient. Tek. | C11: 465 | D11: 371.1332876 | F11: 470 | G11: 372.2728123 | I11: 935 | J11: 743.4060999
A12: MA. Hum. | C12: 635 | D12: 516.5733175 | F12: 1372 | G12: 1084.908002 | I12: 2007 | J12: 1601.48132
A13: MA. Nat. | C13: 139 | D13: 114.7090376 | F13: 170 | G13: 132.1574253 | I13: 309 | J13: 246.8664629
A14: MA. Ph.d. | C14: 22 | D14: 17.19890226 | F14: 28 | G14: 24.7820121 | I14: 50 | J14: 41.98091436
A15: MA. Samf. | C15: 160 | D15: 131.9453627 | F15: 346 | G15: 284.7957338 | I15: 506 | J15: 416.7410965
A16: Øvrige Mag. | C16: 66 | D16: 55.48181875 | F16: 156 | G16: 123.5009044 | I16: 222 | J16: 178.9827231
A17: Agronom | C17: 20 | D17: 16.94941683 | F17: 28 | G17: 22.10253851 | I17: 48 | J17: 39.05195534
A18: Landsk. Arkt. | C18: 15 | D18: 12.23164723 | F18: 24 | G18: 18.08707042 | I18: 39 | J18: 30.31871764
A19: Hortonom | C19: 0 | D19: 0 | F19: 4 | G19: 3.306929458 | I19: 4 | J19: 3.306929458
A20: Forstkand. | C20: 5 | D20: 3.488430113 | F20: 8 | G20: 6.676230275 | I20: 13 | J20: 10.16466039
A21: Jordbrugsakad. | C21: 40 | D21: 32.66949417 | F21: 64 | G21: 50.17276866 | I21: 104 | J21: 82.84226283
A22: Mejeriing. | C22: 4 | D22: 3.999251544 | F22: 8 | G22: 6.706168527 | I22: 12 | J22: 10.70542007
A23: Levn.m.kand. | C23: 11 | D23: 10.24823801 | F23: 7 | G23: 5.198652779 | I23: 18 | J23: 15.44689079
A24: Dyrlæge | C24: 3 | D24: 2.491735795 | F24: 26 | G24: 18.2791742 | I24: 29 | J24: 20.77091
A25: Farmaceut | C25: 45 | D25: 40.69419323 | F25: 83 | G25: 69.19416204 | I25: 128 | J25: 109.8883553
A26: Læge | C26: 79 | D26: 69.50851369 | F26: 152 | G26: 127.0785255 | I26: 231 | J26: 196.5870392
A27: Tandlæge | C27: 9 | D27: 6.903885736 | F27: 37 | G27: 23.42917732 | I27: 46 | J27: 30.33306306
A28: Arkitekt | C28: 126 | D28: 103.974303 | F28: 160 | G28: 127.7384145 | I28: 286 | J28: 231.7127175
A29: Landinspek. | C29: 6 | D29: 5.30655523 | F29: 2 | G29: 0.8856732988 | I29: 8 | J29: 6.192228529
A30: Bibliotekar | C30: 25 | D30: 19.72431859 | F30: 58 | G30: 46.69431797 | I30: 83 | J30: 66.41863656
A31: Musikudd. | C31: 11 | D31: 8.027193913 | F31: 11 | G31: 6.396806586 | I31: 22 | J31: 14.4240005
A32: Teolog | C32: 11 | D32: 10.96675607 | F32: 24 | G32: 16.84213809 | I32: 35 | J32: 27.80889416
A33: Psykolog | C33: 44 | D33: 38.03155991 | F33: 155 | G33: 123.961205 | I33: 199 | J33: 161.9927649
A34: Jurist | C34: 99 | D34: 84.80321836 | F34: 157 | G34: 129.7767105 | I34: 256 | J34: 214.5799289
A35: Økonom | C35: 115 | D35: 90.66862097 | F35: 57 | G35: 45.59533462 | I35: 172 | J35: 136.2639556
A36: Samf. Adm. | C36: 416 | D36: 351.7688517 | F36: 611 | G36: 485.9789185 | I36: 1027 | J36: 837.7477702
A37: Cand. Merc. | C37: 602 | D37: 491.772594 | F37: 634 | G37: 509.3843947 | I37: 1236 | J37: 1001.156989
A38: HA | C38: 115 | D38: 89.42119379 | F38: 115 | G38: 93.05432545 | I38: 230 | J38: 182.4755192
A39: HD | C39: 91 | D39: 75.0159047 | F39: 84 | G39: 71.27798915 | I39: 175 | J39: 146.2938938
A40: Komm. og Sprog | C40: 60 | D40: 49.73554544 | F40: 242 | G40: 188.9078775 | I40: 302 | J40: 238.6434229
A41: Bygningskonst. | C41: 88 | D41: 76.73286347 | F41: 41 | G41: 34.47358573 | I41: 129 | J41: 111.2064492
A42: Cand. IT. | C42: 114 | D42: 94.20133475 | F42: 143 | G42: 113.9000811 | I42: 257 | J42: 208.1014158
A43: Bac. Samf. | C43: 28 | D43: 23.30692946 | F43: 44 | G43: 32.07197655 | I43: 72 | J43: 55.37890601
A44: Bac. Hum. | C44: 101 | D44: 82.15118817 | F44: 202 | G44: 155.8498098 | I44: 303 | J44: 238.0009979
A45: Bac. Nat. | C45: 137 | D45: 112.5840454 | F45: 146 | G45: 117.7371671 | I45: 283 | J45: 230.3212125
A46: Andre | C46: 458 | D46: 374.8188112 | F46: 761 | G46: 612.0108526 | I46: 1219 | J46: 986.8296638
A48: Total | C48: 5123 | D48: 4214.308489 | F48: 6916 | G48: 5509.943554 | I48: 12039 | J48: 9724.252043
A50: Ingeniører i alt | C50: 798 | D50: 657.7396619 | F50: 350 | G50: 274.9304559 | I50: 1148 | J50: 932.6701179
A51: Magistre i alt | C51: 1022 | D51: 835.9084388 | F51: 2072 | G51: 1650.144078 | I51: 3094 | J51: 2486.052517
A52: DJØF'ere i alt | C52: 1347 | D52: 1108.434479 | F52: 1574 | G52: 1263.789684 | I52: 2921 | J52: 2372.224163
A57: København
C59: Mænd | F59: Kvinder | I59: I alt
C60: Ledigheds- berørte | D60: Gns. brutto- ledighed | F60: Ledigheds- berørte | G60: Gns. brutto- ledighed | I60: Ledigheds- berørte | J60: Gns. brutto- ledighed
A63: Civ. ing. | C63: 261 | D63: 214.656022 | F63: 128 | G63: 99.0039294 | I63: 389 | J63: 313.6599514
A64: Diplom ing. | C64: 102 | D64: 89.95259777 | F64: 32 | G64: 27.06418013 | I64: 134 | J64: 117.0167779
A65: Cand. Scient. Tek. | C65: 326 | D65: 256.5639618 | F65: 322 | G65: 253.8738851 | I65: 648 | J65: 510.4378469
A66: MA. Hum. | C66: 482 | D66: 399.2390694 | F66: 935 | G66: 734.3591343 | I66: 1417 | J66: 1133.598204
A67: MA. Nat. | C67: 85 | D67: 68.49996881 | F67: 100 | G67: 79.30268821 | I67: 185 | J67: 147.802657
A68: MA. Ph.d. | C68: 11 | D68: 9.301440778 | F68: 16 | G68: 13.33811514 | I68: 27 | J68: 22.63955592
A69: MA. Samf. | C69: 116 | D69: 96.78849872 | F69: 262 | G69: 215.5940872 | I69: 378 | J69: 312.3825859
A70: Øvrige Mag. | C70: 47 | D70: 39.78980852 | F70: 107 | G70: 84.70529533 | I70: 154 | J70: 124.4951038
A71: Agronom | C71: 13 | D71: 10.77652342 | F71: 10 | G71: 6.927586852 | I71: 23 | J71: 17.70411027
A72: Landsk. Arkt. | C72: 12 | D72: 10.14906755 | F72: 18 | G72: 14.71277989 | I72: 30 | J72: 24.86184744
A73: Hortonom | C73: 0 | D73: 0 | F73: 1 | G73: 0.9998128859 | I73: 1 | J73: 0.9998128859
A74: Forstkand. | C74: 2 | D74: 0.9505395123 | F74: 6 | G74: 5.276616977 | I74: 8 | J74: 6.22715649
A75: Jordbrugsakad. | C75: 27 | D75: 21.87613048 | F75: 35 | G75: 27.91679661 | I75: 62 | J75: 49.79292709
A76: Mejeriing. | C76: 4 | D76: 3.999251544 | F76: 6 | G76: 4.937316784 | I76: 10 | J76: 8.936568328
A77: Levn.m.kand. | C77: 5 | D77: 4.637310547 | F77: 5 | G77: 3.429801035 | I77: 10 | J77: 8.067111582
A78: Dyrlæge | C78: 2 | D78: 1.90731616 | F78: 15 | G78: 9.305806774 | I78: 17 | J78: 11.21312293
A79: Farmaceut | C79: 31 | D79: 28.18935945 | F79: 48 | G79: 39.6513441 | I79: 79 | J79: 67.84070355
A80: Læge | C80: 56 | D80: 49.74240629 | F80: 111 | G80: 94.81382149 | I80: 167 | J80: 144.5562278
A81: Tandlæge | C81: 5 | D81: 3.735420695 | F81: 19 | G81: 11.92665128 | I81: 24 | J81: 15.66207198
A82: Arkitekt | C82: 97 | D82: 78.2604628 | F82: 123 | G82: 96.63880746 | I82: 220 | J82: 174.8992703
A83: Landinspek. | C83: 4 | D83: 3.999251544 | F83: 1 | G83: 0.4397180815 | I83: 5 | J83: 4.438969625
A84: Bibliotekar | C84: 14 | D84: 11.21686522 | F84: 33 | G84: 26.23401734 | I84: 47 | J84: 37.45088255
A85: Musikudd. | C85: 7 | D85: 5.793051831 | F85: 6 | G85: 4.210066737 | I85: 13 | J85: 10.00311857
A86: Teolog | C86: 9 | D86: 8.998315973 | F86: 15 | G86: 11.05781825 | I86: 24 | J86: 20.05613422
A87: Psykolog | C87: 27 | D87: 22.62022079 | F87: 100 | G87: 80.47090376 | I87: 127 | J87: 103.0911246
A88: Jurist | C88: 68 | D88: 58.36961267 | F88: 82 | G88: 69.08438845 | I88: 150 | J88: 127.4540011
A89: Økonom | C89: 73 | D89: 56.12736232 | F89: 36 | G89: 29.78731367 | I89: 109 | J89: 85.91467598
A90: Samf. Adm. | C90: 277 | D90: 235.2672613 | F90: 409 | G90: 325.0895029 | I90: 686 | J90: 560.3567642
A91: Cand. Merc. | C91: 370 | D91: 301.4950415 | F91: 371 | G91: 295.3146635 | I91: 741 | J91: 596.809705
A92: HA | C92: 59 | D92: 45.64086571 | F92: 74 | G92: 59.25528597 | I92: 133 | J92: 104.8961517
A93: HD | C93: 53 | D93: 46.29077528 | F93: 56 | G93: 47.81138901 | I93: 109 | J93: 94.10216429
A94: Komm. og Sprog | C94: 43 | D94: 35.3601946 | F94: 136 | G94: 102.4536893 | I94: 179 | J94: 137.8138839
A95: Bygningskonst. | C95: 51 | D95: 44.19241564 | F95: 28 | G95: 24.04341047 | I95: 79 | J95: 68.23582611
A96: Cand. IT. | C96: 85 | D96: 69.36443585 | F96: 117 | G96: 91.3447265 | I96: 202 | J96: 160.7091624
A97: Bac. Samf. | C97: 19 | D97: 16.50034304 | F97: 33 | G97: 24.52129982 | I97: 52 | J97: 41.02164286
A98: Bac. Hum. | C98: 78 | D98: 62.25534834 | F98: 157 | G98: 117.652342 | I98: 235 | J98: 179.9076904
A99: Bac. Nat. | C99: 90 | D99: 74.46953159 | F99: 109 | G99: 86.31884239 | I99: 199 | J99: 160.788374
A100: Andre | C100: 306 | D100: 244.0834529 | F100: 469 | G100: 378.8030936 | I100: 775 | J100: 622.8865465
A102: Total | C102: 3290 | D102: 2709.183372 | F102: 4496 | G102: 3569.754132 | I102: 7786 | J102: 6278.937504
A104: Ingeniører i alt | C104: 363 | D104: 304.6086197 | F104: 160 | G104: 126.0681095 | I104: 523 | J104: 430.6767292
A105: Magistre i alt | C105: 741 | D105: 613.6187863 | F105: 1420 | G105: 1127.29932 | I105: 2161 | J105: 1740.918106
A106: DJØF'ere i alt | C106: 847 | D106: 696.9001435 | F106: 972 | G106: 778.5311545 | I106: 1819 | J106: 1475.431298
A111: Frederiksberg
C113: Mænd | F113: Kvinder | I113: I alt
C114: Ledigheds- berørte | D114: Gns. brutto- ledighed | F114: Ledigheds- berørte | G114: Gns. brutto- ledighed | I114: Ledigheds- berørte | J114: Gns. brutto- ledighed
A117: Civ. ing. | C117: 29 | D117: 23.96557101 | F117: 15 | G117: 12.08569825 | I117: 44 | J117: 36.05126926
A118: Diplom ing. | C118: 11 | D118: 7.839456122 | F118: 4 | G118: 3.803405476 | I118: 15 | J118: 11.6428616
A119: Cand. Scient. Tek. | C119: 28 | D119: 23.82523545 | F119: 34 | G119: 25.90095428 | I119: 62 | J119: 49.72618973
A120: MA. Hum. | C120: 50 | D120: 35.49242188 | F120: 122 | G120: 92.54350402 | I120: 172 | J120: 128.0359259
A121: MA. Nat. | C121: 15 | D121: 12.22166781 | F121: 14 | G121: 10.90500842 | I121: 29 | J121: 23.12667623
A122: MA. Ph.d. | C122: 5 | D122: 2.532277178 | F122: 3 | G122: 2.999438658 | I122: 8 | J122: 5.531715836
A123: MA. Samf. | C123: 15 | D123: 11.54618599 | F123: 27 | G123: 21.38464417 | I123: 42 | J123: 32.93083016
A124: Øvrige Mag. | C124: 3 | D124: 1.614794486 | F124: 12 | G124: 10.64803842 | I124: 15 | J124: 12.26283291
A125: Agronom | C125: 1 | D125: 0.8151936631 | F125: 3 | G125: 2.999438658 | I125: 4 | J125: 3.814632321
A126: Landsk. Arkt. | C126: 2 | D126: 1.307303686 | F126: 0 | G126: 0 | I126: 2 | J126: 1.307303686
A127: Hortonom | C127: 0 | D127: 0 | F127: 0 | G127: 0 | I127: 0 | J127: 0
A128: Forstkand. | C128: 1 | D128: 0.8151936631 | F128: 0 | G128: 0 | I128: 1 | J128: 0.8151936631
A129: Jordbrugsakad. | C129: 4 | D129: 2.937691012 | F129: 3 | G129: 2.999438658 | I129: 7 | J129: 5.93712967
A130: Mejeriing. | C130: 0 | D130: 0 | F130: 0 | G130: 0 | I130: 0 | J130: 0
A131: Levn.m.kand. | C131: 2 | D131: 1.630387326 | F131: 1 | G131: 0.9998128859 | I131: 3 | J131: 2.630200212
A132: Dyrlæge | C132: 0 | D132: 0 | F132: 2 | G132: 1.768851743 | I132: 2 | J132: 1.768851743
A133: Farmaceut | C133: 5 | D133: 3.858915986 | F133: 2 | G133: 1.999625772 | I133: 7 | J133: 5.858541758
A134: Læge | C134: 11 | D134: 9.244059128 | F134: 15 | G134: 12.74496351 | I134: 26 | J134: 21.98902264
A135: Tandlæge | C135: 0 | D135: 0 | F135: 2 | G135: 0.7546934448 | I135: 2 | J135: 0.7546934448
A136: Arkitekt | C136: 15 | D136: 13.77908065 | F136: 15 | G136: 12.01958461 | I136: 30 | J136: 25.79866525
A137: Landinspek. | C137: 2 | D137: 1.307303686 | F137: 1 | G137: 0.4459552174 | I137: 3 | J137: 1.753258904
A138: Bibliotekar | C138: 2 | D138: 1.58423252 | F138: 6 | G138: 4.41901079 | I138: 8 | J138: 6.003243311
A139: Musikudd. | C139: 1 | D139: 0.7440903137 | F139: 0 | G139: 0 | I139: 1 | J139: 0.7440903137
A140: Teolog | C140: 0 | D140: 0 | F140: 3 | G140: 2.359508514 | I140: 3 | J140: 2.359508514
A141: Psykolog | C141: 7 | D141: 5.450633069 | F141: 15 | G141: 12.37198279 | I141: 22 | J141: 17.82261585
A142: Jurist | C142: 10 | D142: 9.300817065 | F142: 16 | G142: 15.07391006 | I142: 26 | J142: 24.37472713
A143: Økonom | C143: 10 | D143: 8.705794299 | F143: 5 | G143: 3.588848001 | I143: 15 | J143: 12.2946423
A144: Samf. Adm. | C144: 38 | D144: 30.49023888 | F144: 54 | G144: 45.44190108 | I144: 92 | J144: 75.93213996
A145: Cand. Merc. | C145: 69 | D145: 56.50720389 | F145: 75 | G145: 58.89976923 | I145: 144 | J145: 115.4069731
A146: HA | C146: 17 | D146: 12.7948606 | F146: 10 | G146: 6.97062309 | I146: 27 | J146: 19.76548369
A147: HD | C147: 7 | D147: 5.849186054 | F147: 7 | G147: 6.358136344 | I147: 14 | J147: 12.2073224
A148: Komm. og Sprog | C148: 6 | D148: 5.085136905 | F148: 25 | G148: 21.65783072 | I148: 31 | J148: 26.74296763
A149: Bygningskonst. | C149: 4 | D149: 3.907690389 | F149: 4 | G149: 2.798727624 | I149: 8 | J149: 6.706418013
A150: Cand. IT. | C150: 9 | D150: 8.226782262 | F150: 9 | G150: 8.199962577 | I150: 18 | J150: 16.42674484
A151: Bac. Samf. | C151: 4 | D151: 3.214619847 | F151: 5 | G151: 4.537516372 | I151: 9 | J151: 7.752136219
A152: Bac. Hum. | C152: 8 | D152: 7.179567143 | F152: 15 | G152: 13.13540822 | I152: 23 | J152: 20.31497536
A153: Bac. Nat. | C153: 9 | D153: 7.52822304 | F153: 17 | G153: 14.07284975 | I153: 26 | J153: 21.60107279
A154: Andre | C154: 38 | D154: 30.66612611 | F154: 68 | G154: 54.65976424 | I154: 106 | J154: 85.32589035
A156: Total | C156: 434 | D156: 349.0302501 | F156: 606 | G156: 488.5493669 | I156: 1040 | J156: 837.579617
A158: Ingeniører i alt | C158: 40 | D158: 31.80502713 | F158: 19 | G158: 15.88910372 | I158: 59 | J158: 47.69413086
A159: Magistre i alt | C159: 88 | D159: 63.40734735 | F159: 178 | G159: 138.4806337 | I159: 266 | J159: 201.887981
A160: DJØF'ere i alt | C160: 144 | D160: 117.7989147 | F160: 160 | G160: 129.9750515 | I160: 304 | J160: 247.7739662
A165: Ballerup
C167: Mænd | F167: Kvinder | I167: I alt
C168: Ledigheds- berørte | D168: Gns. brutto- ledighed | F168: Ledigheds- berørte | G168: Gns. brutto- ledighed | I168: Ledigheds- berørte | J168: Gns. brutto- ledighed
A171: Civ. ing. | C171: 6 | D171: 4.98347159 | F171: 3 | G171: 1.891723321 | I171: 9 | J171: 6.87519491
A172: Diplom ing. | C172: 13 | D172: 10.67049211 | F172: 5 | G172: 3.475332127 | I172: 18 | J172: 14.14582424
A173: Cand. Scient. Tek. | C173: 3 | D173: 1.636000748 | F173: 8 | G173: 7.337366681 | I173: 11 | J173: 8.97336743
A174: MA. Hum. | C174: 2 | D174: 1.999625772 | F174: 7 | G174: 5.386390569 | I174: 9 | J174: 7.386016341
A175: MA. Nat. | C175: 0 | D175: 0 | F175: 3 | G175: 2.358261087 | I175: 3 | J175: 2.358261087
A176: MA. Ph.d. | C176: 0 | D176: 0 | F176: 0 | G176: 0 | I176: 0 | J176: 0
A177: MA. Samf. | C177: 3 | D177: 1.60668621 | F177: 2 | G177: 1.122684463 | I177: 5 | J177: 2.729370673
A178: Øvrige Mag. | C178: 0 | D178: 0 | F178: 0 | G178: 0 | I178: 0 | J178: 0
A179: Agronom | C179: 0 | D179: 0 | F179: 0 | G179: 0 | I179: 0 | J179: 0
A180: Landsk. Arkt. | C180: 0 | D180: 0 | F180: 2 | G180: 0.7072912119 | I180: 2 | J180: 0.7072912119
A181: Hortonom | C181: 0 | D181: 0 | F181: 0 | G181: 0 | I181: 0 | J181: 0
A182: Forstkand. | C182: 0 | D182: 0 | F182: 0 | G182: 0 | I182: 0 | J182: 0
A183: Jordbrugsakad. | C183: 0 | D183: 0 | F183: 2 | G183: 0.7072912119 | I183: 2 | J183: 0.7072912119
A184: Mejeriing. | C184: 0 | D184: 0 | F184: 1 | G184: 0.7690388574 | I184: 1 | J184: 0.7690388574
A185: Levn.m.kand. | C185: 0 | D185: 0 | F185: 0 | G185: 0 | I185: 0 | J185: 0
A186: Dyrlæge | C186: 0 | D186: 0 | F186: 0 | G186: 0 | I186: 0 | J186: 0
A187: Farmaceut | C187: 1 | D187: 0.9998128859 | F187: 2 | G187: 1.606062496 | I187: 3 | J187: 2.605875382
A188: Læge | C188: 0 | D188: 0 | F188: 1 | G188: 0.9998128859 | I188: 1 | J188: 0.9998128859
A189: Tandlæge | C189: 0 | D189: 0 | F189: 0 | G189: 0 | I189: 0 | J189: 0
A190: Arkitekt | C190: 1 | D190: 0.1927274995 | F190: 1 | G190: 0.9998128859 | I190: 2 | J190: 1.192540385
A191: Landinspek. | C191: 0 | D191: 0 | F191: 0 | G191: 0 | I191: 0 | J191: 0
A192: Bibliotekar | C192: 0 | D192: 0 | F192: 2 | G192: 1.249922036 | I192: 2 | J192: 1.249922036
A193: Musikudd. | C193: 1 | D193: 0.8314102164 | F193: 0 | G193: 0 | I193: 1 | J193: 0.8314102164
A194: Teolog | C194: 0 | D194: 0 | F194: 0 | G194: 0 | I194: 0 | J194: 0
A195: Psykolog | C195: 1 | D195: 0.9998128859 | F195: 5 | G195: 3.447888729 | I195: 6 | J195: 4.447701615
A196: Jurist | C196: 2 | D196: 1.999625772 | F196: 3 | G196: 2.676355018 | I196: 5 | J196: 4.67598079
A197: Økonom | C197: 2 | D197: 1.122684463 | F197: 0 | G197: 0 | I197: 2 | J197: 1.122684463
A198: Samf. Adm. | C198: 4 | D198: 3.599451132 | F198: 2 | G198: 1.768851743 | I198: 6 | J198: 5.368302875
A199: Cand. Merc. | C199: 4 | D199: 2.611488804 | F199: 7 | G199: 6.075594087 | I199: 11 | J199: 8.687082892
A200: HA | C200: 1 | D200: 0.9998128859 | F200: 1 | G200: 0.4640429115 | I200: 2 | J200: 1.463855797
A201: HD | C201: 3 | D201: 2.239755504 | F201: 0 | G201: 0 | I201: 3 | J201: 2.239755504
A202: Komm. og Sprog | C202: 0 | D202: 0 | F202: 3 | G202: 2.227281232 | I202: 3 | J202: 2.227281232
A203: Bygningskonst. | C203: 2 | D203: 1.907690389 | F203: 0 | G203: 0 | I203: 2 | J203: 1.907690389
A204: Cand. IT. | C204: 1 | D204: 0.3536456059 | F204: 0 | G204: 0 | I204: 1 | J204: 0.3536456059
A205: Bac. Samf. | C205: 0 | D205: 0 | F205: 1 | G205: 0.7690388574 | I205: 1 | J205: 0.7690388574
A206: Bac. Hum. | C206: 0 | D206: 0 | F206: 0 | G206: 0 | I206: 0 | J206: 0
A207: Bac. Nat. | C207: 3 | D207: 2.214806961 | F207: 1 | G207: 0.7228840516 | I207: 4 | J207: 2.937691012
A208: Andre | C208: 3 | D208: 2.999438658 | F208: 8 | G208: 6.640054887 | I208: 11 | J208: 9.639493545
A210: Total | C210: 56 | D210: 43.96844009 | F210: 68 | G210: 52.69569014 | I210: 124 | J210: 96.66413023
A212: Ingeniører i alt | C212: 19 | D212: 15.6539637 | F212: 8 | G212: 5.367055448 | I212: 27 | J212: 21.02101915
A213: Magistre i alt | C213: 5 | D213: 3.606311982 | F213: 12 | G213: 8.867336119 | I213: 17 | J213: 12.4736481
A214: DJØF'ere i alt | C214: 13 | D214: 10.33306306 | F214: 13 | G214: 10.98484376 | I214: 26 | J214: 21.31790682
A219: Brøndby
C221: Mænd | F221: Kvinder | I221: I alt
C222: Ledigheds- berørte | D222: Gns. brutto- ledighed | F222: Ledigheds- berørte | G222: Gns. brutto- ledighed | I222: Ledigheds- berørte | J222: Gns. brutto- ledighed
A225: Civ. ing. | C225: 6 | D225: 3.460363001 | F225: 0 | G225: 0 | I225: 6 | J225: 3.460363001
A226: Diplom ing. | C226: 3 | D226: 2.116883927 | F226: 1 | G226: 0.6349404354 | I226: 4 | J226: 2.751824362
A227: Cand. Scient. Tek. | C227: 3 | D227: 2.722509823 | F227: 1 | G227: 0.9998128859 | I227: 4 | J227: 3.722322709
A228: MA. Hum. | C228: 4 | D228: 3.693631884 | F228: 13 | G228: 10.48150689 | I228: 17 | J228: 14.17513878
A229: MA. Nat. | C229: 2 | D229: 1.893594461 | F229: 1 | G229: 0.4128983971 | I229: 3 | J229: 2.306492858
A230: MA. Ph.d. | C230: 0 | D230: 0 | F230: 0 | G230: 0 | I230: 0 | J230: 0
A231: MA. Samf. | C231: 3 | D231: 2.999438658 | F231: 1 | G231: 0.9998128859 | I231: 4 | J231: 3.999251544
A232: Øvrige Mag. | C232: 1 | D232: 0.9998128859 | F232: 1 | G232: 0.7690388574 | I232: 2 | J232: 1.768851743
A233: Agronom | C233: 0 | D233: 0 | F233: 1 | G233: 0.8644670367 | I233: 1 | J233: 0.8644670367
A234: Landsk. Arkt. | C234: 0 | D234: 0 | F234: 0 | G234: 0 | I234: 0 | J234: 0
A235: Hortonom | C235: 0 | D235: 0 | F235: 0 | G235: 0 | I235: 0 | J235: 0
A236: Forstkand. | C236: 0 | D236: 0 | F236: 0 | G236: 0 | I236: 0 | J236: 0
A237: Jordbrugsakad. | C237: 0 | D237: 0 | F237: 1 | G237: 0.8644670367 | I237: 1 | J237: 0.8644670367
A238: Mejeriing. | C238: 0 | D238: 0 | F238: 0 | G238: 0 | I238: 0 | J238: 0
A239: Levn.m.kand. | C239: 0 | D239: 0 | F239: 0 | G239: 0 | I239: 0 | J239: 0
A240: Dyrlæge | C240: 0 | D240: 0 | F240: 0 | G240: 0 | I240: 0 | J240: 0
... 1108 more rows

Sheet Tabel 3 H
A1: Tabel 3. Ledige i procent af forsikrede
A3: Hovedstaden
C5: Mænd | F5: Kvinder | I5: I alt
C6: Ledigheds- berørte | D6: Gns. brutto- ledighed | F6: Ledigheds- berørte | G6: Gns. brutto- ledighed | I6: Ledigheds- berørte | J6: Gns. brutto- ledighed
A9: Civ. ing. | C9: =IF(OR('Tabel 1 H'!C7<5,'Tabel 2 H'!C9<0.5),"-",IFERROR('Tabel 2 H'!C9/'Tabel 1 H'!C7*100,"-")) -> 3.959639199 | D9: =IF(OR('Tabel 1 H'!C7<5,'Tabel 2 H'!D9<0.5),"-",IFERROR('Tabel 2 H'!D9/'Tabel 1 H'!C7*100,"-")) -> 3.215991616 | F9: =IF(OR('Tabel 1 H'!E7<5,'Tabel 2 H'!F9<0.5),"-",IFERROR('Tabel 2 H'!F9/'Tabel 1 H'!E7*100,"-")) -> 4.932650351 | G9: =IF(OR('Tabel 1 H'!E7<5,'Tabel 2 H'!G9<0.5),"-",IFERROR('Tabel 2 H'!G9/'Tabel 1 H'!E7*100,"-")) -> 3.825609017 | I9: =IF(OR('Tabel 1 H'!G7<5,'Tabel 2 H'!I9<0.5),"-",IFERROR('Tabel 2 H'!I9/'Tabel 1 H'!G7*100,"-")) -> 4.239088977 | J9: =IF(OR('Tabel 1 H'!G7<5,'Tabel 2 H'!J9<0.5),"-",IFERROR('Tabel 2 H'!J9/'Tabel 1 H'!G7*100,"-")) -> 3.391074345
A10: Diplom ing. | C10: =IF(OR('Tabel 1 H'!C8<5,'Tabel 2 H'!C10<0.5),"-",IFERROR('Tabel 2 H'!C10/'Tabel 1 H'!C8*100,"-")) -> 2.809552478 | D10: =IF(OR('Tabel 1 H'!C8<5,'Tabel 2 H'!D10<0.5),"-",IFERROR('Tabel 2 H'!D10/'Tabel 1 H'!C8*100,"-")) -> 2.378322685 | F10: =IF(OR('Tabel 1 H'!E8<5,'Tabel 2 H'!F10<0.5),"-",IFERROR('Tabel 2 H'!F10/'Tabel 1 H'!E8*100,"-")) -> 3.510140406 | G10: =IF(OR('Tabel 1 H'!E8<5,'Tabel 2 H'!G10<0.5),"-",IFERROR('Tabel 2 H'!G10/'Tabel 1 H'!E8*100,"-")) -> 2.858135906 | I10: =IF(OR('Tabel 1 H'!G8<5,'Tabel 2 H'!I10<0.5),"-",IFERROR('Tabel 2 H'!I10/'Tabel 1 H'!G8*100,"-")) -> 2.952913009 | J10: =IF(OR('Tabel 1 H'!G8<5,'Tabel 2 H'!J10<0.5),"-",IFERROR('Tabel 2 H'!J10/'Tabel 1 H'!G8*100,"-")) -> 2.476506332
A11: Cand. Scient. Tek. | C11: =IF(OR('Tabel 1 H'!C9<5,'Tabel 2 H'!C11<0.5),"-",IFERROR('Tabel 2 H'!C11/'Tabel 1 H'!C9*100,"-")) -> 7.821698907 | D11: =IF(OR('Tabel 1 H'!C9<5,'Tabel 2 H'!D11<0.5),"-",IFERROR('Tabel 2 H'!D11/'Tabel 1 H'!C9*100,"-")) -> 6.242780279 | F11: =IF(OR('Tabel 1 H'!E9<5,'Tabel 2 H'!F11<0.5),"-",IFERROR('Tabel 2 H'!F11/'Tabel 1 H'!E9*100,"-")) -> 8.612790911 | G11: =IF(OR('Tabel 1 H'!E9<5,'Tabel 2 H'!G11<0.5),"-",IFERROR('Tabel 2 H'!G11/'Tabel 1 H'!E9*100,"-")) -> 6.82193169 | I11: =IF(OR('Tabel 1 H'!G9<5,'Tabel 2 H'!I11<0.5),"-",IFERROR('Tabel 2 H'!I11/'Tabel 1 H'!G9*100,"-")) -> 8.200315734 | J11: =IF(OR('Tabel 1 H'!G9<5,'Tabel 2 H'!J11<0.5),"-",IFERROR('Tabel 2 H'!J11/'Tabel 1 H'!G9*100,"-")) -> 6.519962287
A12: MA. Hum. | C12: =IF(OR('Tabel 1 H'!C10<5,'Tabel 2 H'!C12<0.5),"-",IFERROR('Tabel 2 H'!C12/'Tabel 1 H'!C10*100,"-")) -> 10.10020678 | D12: =IF(OR('Tabel 1 H'!C10<5,'Tabel 2 H'!D12<0.5),"-",IFERROR('Tabel 2 H'!D12/'Tabel 1 H'!C10*100,"-")) -> 8.216531216 | F12: =IF(OR('Tabel 1 H'!E10<5,'Tabel 2 H'!F12<0.5),"-",IFERROR('Tabel 2 H'!F12/'Tabel 1 H'!E10*100,"-")) -> 9.642957548 | G12: =IF(OR('Tabel 1 H'!E10<5,'Tabel 2 H'!G12<0.5),"-",IFERROR('Tabel 2 H'!G12/'Tabel 1 H'!E10*100,"-")) -> 7.625161669 | I12: =IF(OR('Tabel 1 H'!G10<5,'Tabel 2 H'!I12<0.5),"-",IFERROR('Tabel 2 H'!I12/'Tabel 1 H'!G10*100,"-")) -> 9.783085547 | J12: =IF(OR('Tabel 1 H'!G10<5,'Tabel 2 H'!J12<0.5),"-",IFERROR('Tabel 2 H'!J12/'Tabel 1 H'!G10*100,"-")) -> 7.806392005
A13: MA. Nat. | C13: =IF(OR('Tabel 1 H'!C11<5,'Tabel 2 H'!C13<0.5),"-",IFERROR('Tabel 2 H'!C13/'Tabel 1 H'!C11*100,"-")) -> 3.915492958 | D13: =IF(OR('Tabel 1 H'!C11<5,'Tabel 2 H'!D13<0.5),"-",IFERROR('Tabel 2 H'!D13/'Tabel 1 H'!C11*100,"-")) -> 3.231240496 | F13: =IF(OR('Tabel 1 H'!E11<5,'Tabel 2 H'!F13<0.5),"-",IFERROR('Tabel 2 H'!F13/'Tabel 1 H'!E11*100,"-")) -> 4.698728579 | G13: =IF(OR('Tabel 1 H'!E11<5,'Tabel 2 H'!G13<0.5),"-",IFERROR('Tabel 2 H'!G13/'Tabel 1 H'!E11*100,"-")) -> 3.652775713 | I13: =IF(OR('Tabel 1 H'!G11<5,'Tabel 2 H'!I13<0.5),"-",IFERROR('Tabel 2 H'!I13/'Tabel 1 H'!G11*100,"-")) -> 4.310825893 | J13: =IF(OR('Tabel 1 H'!G11<5,'Tabel 2 H'!J13<0.5),"-",IFERROR('Tabel 2 H'!J13/'Tabel 1 H'!G11*100,"-")) -> 3.444007574
A14: MA. Ph.d. | C14: =IF(OR('Tabel 1 H'!C12<5,'Tabel 2 H'!C14<0.5),"-",IFERROR('Tabel 2 H'!C14/'Tabel 1 H'!C12*100,"-")) -> 3.076923077 | D14: =IF(OR('Tabel 1 H'!C12<5,'Tabel 2 H'!D14<0.5),"-",IFERROR('Tabel 2 H'!D14/'Tabel 1 H'!C12*100,"-")) -> 2.405440876 | F14: =IF(OR('Tabel 1 H'!E12<5,'Tabel 2 H'!F14<0.5),"-",IFERROR('Tabel 2 H'!F14/'Tabel 1 H'!E12*100,"-")) -> 4.819277108 | G14: =IF(OR('Tabel 1 H'!E12<5,'Tabel 2 H'!G14<0.5),"-",IFERROR('Tabel 2 H'!G14/'Tabel 1 H'!E12*100,"-")) -> 4.265406558 | I14: =IF(OR('Tabel 1 H'!G12<5,'Tabel 2 H'!I14<0.5),"-",IFERROR('Tabel 2 H'!I14/'Tabel 1 H'!G12*100,"-")) -> 3.858024691 | J14: =IF(OR('Tabel 1 H'!G12<5,'Tabel 2 H'!J14<0.5),"-",IFERROR('Tabel 2 H'!J14/'Tabel 1 H'!G12*100,"-")) -> 3.239268084
A15: MA. Samf. | C15: =IF(OR('Tabel 1 H'!C13<5,'Tabel 2 H'!C15<0.5),"-",IFERROR('Tabel 2 H'!C15/'Tabel 1 H'!C13*100,"-")) -> 15.35508637 | D15: =IF(OR('Tabel 1 H'!C13<5,'Tabel 2 H'!D15<0.5),"-",IFERROR('Tabel 2 H'!D15/'Tabel 1 H'!C13*100,"-")) -> 12.66270275 | F15: =IF(OR('Tabel 1 H'!E13<5,'Tabel 2 H'!F15<0.5),"-",IFERROR('Tabel 2 H'!F15/'Tabel 1 H'!E13*100,"-")) -> 12.97337833 | G15: =IF(OR('Tabel 1 H'!E13<5,'Tabel 2 H'!G15<0.5),"-",IFERROR('Tabel 2 H'!G15/'Tabel 1 H'!E13*100,"-")) -> 10.6785052 | I15: =IF(OR('Tabel 1 H'!G13<5,'Tabel 2 H'!I15<0.5),"-",IFERROR('Tabel 2 H'!I15/'Tabel 1 H'!G13*100,"-")) -> 13.64249124 | J15: =IF(OR('Tabel 1 H'!G13<5,'Tabel 2 H'!J15<0.5),"-",IFERROR('Tabel 2 H'!J15/'Tabel 1 H'!G13*100,"-")) -> 11.23594221
A16: Øvrige Mag. | C16: =IF(OR('Tabel 1 H'!C14<5,'Tabel 2 H'!C16<0.5),"-",IFERROR('Tabel 2 H'!C16/'Tabel 1 H'!C14*100,"-")) -> 10.96345515 | D16: =IF(OR('Tabel 1 H'!C14<5,'Tabel 2 H'!D16<0.5),"-",IFERROR('Tabel 2 H'!D16/'Tabel 1 H'!C14*100,"-")) -> 9.216248962 | F16: =IF(OR('Tabel 1 H'!E14<5,'Tabel 2 H'!F16<0.5),"-",IFERROR('Tabel 2 H'!F16/'Tabel 1 H'!E14*100,"-")) -> 13.49480969 | G16: =IF(OR('Tabel 1 H'!E14<5,'Tabel 2 H'!G16<0.5),"-",IFERROR('Tabel 2 H'!G16/'Tabel 1 H'!E14*100,"-")) -> 10.68346924 | I16: =IF(OR('Tabel 1 H'!G14<5,'Tabel 2 H'!I16<0.5),"-",IFERROR('Tabel 2 H'!I16/'Tabel 1 H'!G14*100,"-")) -> 12.62798635 | J16: =IF(OR('Tabel 1 H'!G14<5,'Tabel 2 H'!J16<0.5),"-",IFERROR('Tabel 2 H'!J16/'Tabel 1 H'!G14*100,"-")) -> 10.18104227
A17: Agronom | C17: =IF(OR('Tabel 1 H'!C15<5,'Tabel 2 H'!C17<0.5),"-",IFERROR('Tabel 2 H'!C17/'Tabel 1 H'!C15*100,"-")) -> 5.141388175 | D17: =IF(OR('Tabel 1 H'!C15<5,'Tabel 2 H'!D17<0.5),"-",IFERROR('Tabel 2 H'!D17/'Tabel 1 H'!C15*100,"-")) -> 4.357176562 | F17: =IF(OR('Tabel 1 H'!E15<5,'Tabel 2 H'!F17<0.5),"-",IFERROR('Tabel 2 H'!F17/'Tabel 1 H'!E15*100,"-")) -> 6.008583691 | G17: =IF(OR('Tabel 1 H'!E15<5,'Tabel 2 H'!G17<0.5),"-",IFERROR('Tabel 2 H'!G17/'Tabel 1 H'!E15*100,"-")) -> 4.743034016 | I17: =IF(OR('Tabel 1 H'!G15<5,'Tabel 2 H'!I17<0.5),"-",IFERROR('Tabel 2 H'!I17/'Tabel 1 H'!G15*100,"-")) -> 5.614035088 | J17: =IF(OR('Tabel 1 H'!G15<5,'Tabel 2 H'!J17<0.5),"-",IFERROR('Tabel 2 H'!J17/'Tabel 1 H'!G15*100,"-")) -> 4.567480157
A18: Landsk. Arkt. | C18: =IF(OR('Tabel 1 H'!C16<5,'Tabel 2 H'!C18<0.5),"-",IFERROR('Tabel 2 H'!C18/'Tabel 1 H'!C16*100,"-")) -> 11.19402985 | D18: =IF(OR('Tabel 1 H'!C16<5,'Tabel 2 H'!D18<0.5),"-",IFERROR('Tabel 2 H'!D18/'Tabel 1 H'!C16*100,"-")) -> 9.128094946 | F18: =IF(OR('Tabel 1 H'!E16<5,'Tabel 2 H'!F18<0.5),"-",IFERROR('Tabel 2 H'!F18/'Tabel 1 H'!E16*100,"-")) -> 6.648199446 | G18: =IF(OR('Tabel 1 H'!E16<5,'Tabel 2 H'!G18<0.5),"-",IFERROR('Tabel 2 H'!G18/'Tabel 1 H'!E16*100,"-")) -> 5.010268814 | I18: =IF(OR('Tabel 1 H'!G16<5,'Tabel 2 H'!I18<0.5),"-",IFERROR('Tabel 2 H'!I18/'Tabel 1 H'!G16*100,"-")) -> 7.878787879 | J18: =IF(OR('Tabel 1 H'!G16<5,'Tabel 2 H'!J18<0.5),"-",IFERROR('Tabel 2 H'!J18/'Tabel 1 H'!G16*100,"-")) -> 6.124993464
A19: Hortonom | C19: =IF(OR('Tabel 1 H'!C17<5,'Tabel 2 H'!C19<0.5),"-",IFERROR('Tabel 2 H'!C19/'Tabel 1 H'!C17*100,"-")) -> - | D19: =IF(OR('Tabel 1 H'!C17<5,'Tabel 2 H'!D19<0.5),"-",IFERROR('Tabel 2 H'!D19/'Tabel 1 H'!C17*100,"-")) -> - | F19: =IF(OR('Tabel 1 H'!E17<5,'Tabel 2 H'!F19<0.5),"-",IFERROR('Tabel 2 H'!F19/'Tabel 1 H'!E17*100,"-")) -> 4.255319149 | G19: =IF(OR('Tabel 1 H'!E17<5,'Tabel 2 H'!G19<0.5),"-",IFERROR('Tabel 2 H'!G19/'Tabel 1 H'!E17*100,"-")) -> 3.518010062 | I19: =IF(OR('Tabel 1 H'!G17<5,'Tabel 2 H'!I19<0.5),"-",IFERROR('Tabel 2 H'!I19/'Tabel 1 H'!G17*100,"-")) -> 2.721088435 | J19: =IF(OR('Tabel 1 H'!G17<5,'Tabel 2 H'!J19<0.5),"-",IFERROR('Tabel 2 H'!J19/'Tabel 1 H'!G17*100,"-")) -> 2.249611876
A20: Forstkand. | C20: =IF(OR('Tabel 1 H'!C18<5,'Tabel 2 H'!C20<0.5),"-",IFERROR('Tabel 2 H'!C20/'Tabel 1 H'!C18*100,"-")) -> 2.551020408 | D20: =IF(OR('Tabel 1 H'!C18<5,'Tabel 2 H'!D20<0.5),"-",IFERROR('Tabel 2 H'!D20/'Tabel 1 H'!C18*100,"-")) -> 1.779811282 | F20: =IF(OR('Tabel 1 H'!E18<5,'Tabel 2 H'!F20<0.5),"-",IFERROR('Tabel 2 H'!F20/'Tabel 1 H'!E18*100,"-")) -> 11.76470588 | G20: =IF(OR('Tabel 1 H'!E18<5,'Tabel 2 H'!G20<0.5),"-",IFERROR('Tabel 2 H'!G20/'Tabel 1 H'!E18*100,"-")) -> 9.817985699 | I20: =IF(OR('Tabel 1 H'!G18<5,'Tabel 2 H'!I20<0.5),"-",IFERROR('Tabel 2 H'!I20/'Tabel 1 H'!G18*100,"-")) -> 4.924242424 | J20: =IF(OR('Tabel 1 H'!G18<5,'Tabel 2 H'!J20<0.5),"-",IFERROR('Tabel 2 H'!J20/'Tabel 1 H'!G18*100,"-")) -> 3.850250147
A21: Jordbrugsakad. | C21: =IF(OR('Tabel 1 H'!C19<5,'Tabel 2 H'!C21<0.5),"-",IFERROR('Tabel 2 H'!C21/'Tabel 1 H'!C19*100,"-")) -> 5.18134715 | D21: =IF(OR('Tabel 1 H'!C19<5,'Tabel 2 H'!D21<0.5),"-",IFERROR('Tabel 2 H'!D21/'Tabel 1 H'!C19*100,"-")) -> 4.231799763 | F21: =IF(OR('Tabel 1 H'!E19<5,'Tabel 2 H'!F21<0.5),"-",IFERROR('Tabel 2 H'!F21/'Tabel 1 H'!E19*100,"-")) -> 6.471183013 | G21: =IF(OR('Tabel 1 H'!E19<5,'Tabel 2 H'!G21<0.5),"-",IFERROR('Tabel 2 H'!G21/'Tabel 1 H'!E19*100,"-")) -> 5.073080755 | I21: =IF(OR('Tabel 1 H'!G19<5,'Tabel 2 H'!I21<0.5),"-",IFERROR('Tabel 2 H'!I21/'Tabel 1 H'!G19*100,"-")) -> 5.905735378 | J21: =IF(OR('Tabel 1 H'!G19<5,'Tabel 2 H'!J21<0.5),"-",IFERROR('Tabel 2 H'!J21/'Tabel 1 H'!G19*100,"-")) -> 4.704273869
A22: Mejeriing. | C22: =IF(OR('Tabel 1 H'!C20<5,'Tabel 2 H'!C22<0.5),"-",IFERROR('Tabel 2 H'!C22/'Tabel 1 H'!C20*100,"-")) -> 6.557377049 | D22: =IF(OR('Tabel 1 H'!C20<5,'Tabel 2 H'!D22<0.5),"-",IFERROR('Tabel 2 H'!D22/'Tabel 1 H'!C20*100,"-")) -> 6.556150072 | F22: =IF(OR('Tabel 1 H'!E20<5,'Tabel 2 H'!F22<0.5),"-",IFERROR('Tabel 2 H'!F22/'Tabel 1 H'!E20*100,"-")) -> 8.988764045 | G22: =IF(OR('Tabel 1 H'!E20<5,'Tabel 2 H'!G22<0.5),"-",IFERROR('Tabel 2 H'!G22/'Tabel 1 H'!E20*100,"-")) -> 7.535020817 | I22: =IF(OR('Tabel 1 H'!G20<5,'Tabel 2 H'!I22<0.5),"-",IFERROR('Tabel 2 H'!I22/'Tabel 1 H'!G20*100,"-")) -> 8 | J22: =IF(OR('Tabel 1 H'!G20<5,'Tabel 2 H'!J22<0.5),"-",IFERROR('Tabel 2 H'!J22/'Tabel 1 H'!G20*100,"-")) -> 7.136946714
A23: Levn.m.kand. | C23: =IF(OR('Tabel 1 H'!C21<5,'Tabel 2 H'!C23<0.5),"-",IFERROR('Tabel 2 H'!C23/'Tabel 1 H'!C21*100,"-")) -> 20.37037037 | D23: =IF(OR('Tabel 1 H'!C21<5,'Tabel 2 H'!D23<0.5),"-",IFERROR('Tabel 2 H'!D23/'Tabel 1 H'!C21*100,"-")) -> 18.97821854 | F23: =IF(OR('Tabel 1 H'!E21<5,'Tabel 2 H'!F23<0.5),"-",IFERROR('Tabel 2 H'!F23/'Tabel 1 H'!E21*100,"-")) -> 2.536231884 | G23: =IF(OR('Tabel 1 H'!E21<5,'Tabel 2 H'!G23<0.5),"-",IFERROR('Tabel 2 H'!G23/'Tabel 1 H'!E21*100,"-")) -> 1.883569847 | I23: =IF(OR('Tabel 1 H'!G21<5,'Tabel 2 H'!I23<0.5),"-",IFERROR('Tabel 2 H'!I23/'Tabel 1 H'!G21*100,"-")) -> 5.454545455 | J23: =IF(OR('Tabel 1 H'!G21<5,'Tabel 2 H'!J23<0.5),"-",IFERROR('Tabel 2 H'!J23/'Tabel 1 H'!G21*100,"-")) -> 4.680875996
A24: Dyrlæge | C24: =IF(OR('Tabel 1 H'!C22<5,'Tabel 2 H'!C24<0.5),"-",IFERROR('Tabel 2 H'!C24/'Tabel 1 H'!C22*100,"-")) -> 1.818181818 | D24: =IF(OR('Tabel 1 H'!C22<5,'Tabel 2 H'!D24<0.5),"-",IFERROR('Tabel 2 H'!D24/'Tabel 1 H'!C22*100,"-")) -> 1.510142906 | F24: =IF(OR('Tabel 1 H'!E22<5,'Tabel 2 H'!F24<0.5),"-",IFERROR('Tabel 2 H'!F24/'Tabel 1 H'!E22*100,"-")) -> 3.25 | G24: =IF(OR('Tabel 1 H'!E22<5,'Tabel 2 H'!G24<0.5),"-",IFERROR('Tabel 2 H'!G24/'Tabel 1 H'!E22*100,"-")) -> 2.284896775 | I24: =IF(OR('Tabel 1 H'!G22<5,'Tabel 2 H'!I24<0.5),"-",IFERROR('Tabel 2 H'!I24/'Tabel 1 H'!G22*100,"-")) -> 3.005181347 | J24: =IF(OR('Tabel 1 H'!G22<5,'Tabel 2 H'!J24<0.5),"-",IFERROR('Tabel 2 H'!J24/'Tabel 1 H'!G22*100,"-")) -> 2.152425907
A25: Farmaceut | C25: =IF(OR('Tabel 1 H'!C23<5,'Tabel 2 H'!C25<0.5),"-",IFERROR('Tabel 2 H'!C25/'Tabel 1 H'!C23*100,"-")) -> 4.174397032 | D25: =IF(OR('Tabel 1 H'!C23<5,'Tabel 2 H'!D25<0.5),"-",IFERROR('Tabel 2 H'!D25/'Tabel 1 H'!C23*100,"-")) -> 3.774971542 | F25: =IF(OR('Tabel 1 H'!E23<5,'Tabel 2 H'!F25<0.5),"-",IFERROR('Tabel 2 H'!F25/'Tabel 1 H'!E23*100,"-")) -> 2.965344766 | G25: =IF(OR('Tabel 1 H'!E23<5,'Tabel 2 H'!G25<0.5),"-",IFERROR('Tabel 2 H'!G25/'Tabel 1 H'!E23*100,"-")) -> 2.472102967 | I25: =IF(OR('Tabel 1 H'!G23<5,'Tabel 2 H'!I25<0.5),"-",IFERROR('Tabel 2 H'!I25/'Tabel 1 H'!G23*100,"-")) -> 3.301521795 | J25: =IF(OR('Tabel 1 H'!G23<5,'Tabel 2 H'!J25<0.5),"-",IFERROR('Tabel 2 H'!J25/'Tabel 1 H'!G23*100,"-")) -> 2.834365625
A26: Læge | C26: =IF(OR('Tabel 1 H'!C24<5,'Tabel 2 H'!C26<0.5),"-",IFERROR('Tabel 2 H'!C26/'Tabel 1 H'!C24*100,"-")) -> 4.837721984 | D26: =IF(OR('Tabel 1 H'!C24<5,'Tabel 2 H'!D26<0.5),"-",IFERROR('Tabel 2 H'!D26/'Tabel 1 H'!C24*100,"-")) -> 4.256491959 | F26: =IF(OR('Tabel 1 H'!E24<5,'Tabel 2 H'!F26<0.5),"-",IFERROR('Tabel 2 H'!F26/'Tabel 1 H'!E24*100,"-")) -> 3.905447071 | G26: =IF(OR('Tabel 1 H'!E24<5,'Tabel 2 H'!G26<0.5),"-",IFERROR('Tabel 2 H'!G26/'Tabel 1 H'!E24*100,"-")) -> 3.265121417 | I26: =IF(OR('Tabel 1 H'!G24<5,'Tabel 2 H'!I26<0.5),"-",IFERROR('Tabel 2 H'!I26/'Tabel 1 H'!G24*100,"-")) -> 4.180995475 | J26: =IF(OR('Tabel 1 H'!G24<5,'Tabel 2 H'!J26<0.5),"-",IFERROR('Tabel 2 H'!J26/'Tabel 1 H'!G24*100,"-")) -> 3.558136457
A27: Tandlæge | C27: =IF(OR('Tabel 1 H'!C25<5,'Tabel 2 H'!C27<0.5),"-",IFERROR('Tabel 2 H'!C27/'Tabel 1 H'!C25*100,"-")) -> 6.666666667 | D27: =IF(OR('Tabel 1 H'!C25<5,'Tabel 2 H'!D27<0.5),"-",IFERROR('Tabel 2 H'!D27/'Tabel 1 H'!C25*100,"-")) -> 5.113989434 | F27: =IF(OR('Tabel 1 H'!E25<5,'Tabel 2 H'!F27<0.5),"-",IFERROR('Tabel 2 H'!F27/'Tabel 1 H'!E25*100,"-")) -> 4.959785523 | G27: =IF(OR('Tabel 1 H'!E25<5,'Tabel 2 H'!G27<0.5),"-",IFERROR('Tabel 2 H'!G27/'Tabel 1 H'!E25*100,"-")) -> 3.140640392 | I27: =IF(OR('Tabel 1 H'!G25<5,'Tabel 2 H'!I27<0.5),"-",IFERROR('Tabel 2 H'!I27/'Tabel 1 H'!G25*100,"-")) -> 5.221339387 | J27: =IF(OR('Tabel 1 H'!G25<5,'Tabel 2 H'!J27<0.5),"-",IFERROR('Tabel 2 H'!J27/'Tabel 1 H'!G25*100,"-")) -> 3.443026454
A28: Arkitekt | C28: =IF(OR('Tabel 1 H'!C26<5,'Tabel 2 H'!C28<0.5),"-",IFERROR('Tabel 2 H'!C28/'Tabel 1 H'!C26*100,"-")) -> 7.491082045 | D28: =IF(OR('Tabel 1 H'!C26<5,'Tabel 2 H'!D28<0.5),"-",IFERROR('Tabel 2 H'!D28/'Tabel 1 H'!C26*100,"-")) -> 6.181587574 | F28: =IF(OR('Tabel 1 H'!E26<5,'Tabel 2 H'!F28<0.5),"-",IFERROR('Tabel 2 H'!F28/'Tabel 1 H'!E26*100,"-")) -> 7.770762506 | G28: =IF(OR('Tabel 1 H'!E26<5,'Tabel 2 H'!G28<0.5),"-",IFERROR('Tabel 2 H'!G28/'Tabel 1 H'!E26*100,"-")) -> 6.203905513 | I28: =IF(OR('Tabel 1 H'!G26<5,'Tabel 2 H'!I28<0.5),"-",IFERROR('Tabel 2 H'!I28/'Tabel 1 H'!G26*100,"-")) -> 7.645014702 | J28: =IF(OR('Tabel 1 H'!G26<5,'Tabel 2 H'!J28<0.5),"-",IFERROR('Tabel 2 H'!J28/'Tabel 1 H'!G26*100,"-")) -> 6.193871091
A29: Landinspek. | C29: =IF(OR('Tabel 1 H'!C27<5,'Tabel 2 H'!C29<0.5),"-",IFERROR('Tabel 2 H'!C29/'Tabel 1 H'!C27*100,"-")) -> 4.195804196 | D29: =IF(OR('Tabel 1 H'!C27<5,'Tabel 2 H'!D29<0.5),"-",IFERROR('Tabel 2 H'!D29/'Tabel 1 H'!C27*100,"-")) -> 3.710877783 | F29: =IF(OR('Tabel 1 H'!E27<5,'Tabel 2 H'!F29<0.5),"-",IFERROR('Tabel 2 H'!F29/'Tabel 1 H'!E27*100,"-")) -> 3.921568627 | G29: =IF(OR('Tabel 1 H'!E27<5,'Tabel 2 H'!G29<0.5),"-",IFERROR('Tabel 2 H'!G29/'Tabel 1 H'!E27*100,"-")) -> 1.736614311 | I29: =IF(OR('Tabel 1 H'!G27<5,'Tabel 2 H'!I29<0.5),"-",IFERROR('Tabel 2 H'!I29/'Tabel 1 H'!G27*100,"-")) -> 4.12371134 | J29: =IF(OR('Tabel 1 H'!G27<5,'Tabel 2 H'!J29<0.5),"-",IFERROR('Tabel 2 H'!J29/'Tabel 1 H'!G27*100,"-")) -> 3.191870376
A30: Bibliotekar | C30: =IF(OR('Tabel 1 H'!C28<5,'Tabel 2 H'!C30<0.5),"-",IFERROR('Tabel 2 H'!C30/'Tabel 1 H'!C28*100,"-")) -> 5.643340858 | D30: =IF(OR('Tabel 1 H'!C28<5,'Tabel 2 H'!D30<0.5),"-",IFERROR('Tabel 2 H'!D30/'Tabel 1 H'!C28*100,"-")) -> 4.45244212 | F30: =IF(OR('Tabel 1 H'!E28<5,'Tabel 2 H'!F30<0.5),"-",IFERROR('Tabel 2 H'!F30/'Tabel 1 H'!E28*100,"-")) -> 4.765817584 | G30: =IF(OR('Tabel 1 H'!E28<5,'Tabel 2 H'!G30<0.5),"-",IFERROR('Tabel 2 H'!G30/'Tabel 1 H'!E28*100,"-")) -> 3.83683796 | I30: =IF(OR('Tabel 1 H'!G28<5,'Tabel 2 H'!I30<0.5),"-",IFERROR('Tabel 2 H'!I30/'Tabel 1 H'!G28*100,"-")) -> 5 | J30: =IF(OR('Tabel 1 H'!G28<5,'Tabel 2 H'!J30<0.5),"-",IFERROR('Tabel 2 H'!J30/'Tabel 1 H'!G28*100,"-")) -> 4.001122684
A31: Musikudd. | C31: =IF(OR('Tabel 1 H'!C29<5,'Tabel 2 H'!C31<0.5),"-",IFERROR('Tabel 2 H'!C31/'Tabel 1 H'!C29*100,"-")) -> 8.333333333 | D31: =IF(OR('Tabel 1 H'!C29<5,'Tabel 2 H'!D31<0.5),"-",IFERROR('Tabel 2 H'!D31/'Tabel 1 H'!C29*100,"-")) -> 6.08120751 | F31: =IF(OR('Tabel 1 H'!E29<5,'Tabel 2 H'!F31<0.5),"-",IFERROR('Tabel 2 H'!F31/'Tabel 1 H'!E29*100,"-")) -> 6.432748538 | G31: =IF(OR('Tabel 1 H'!E29<5,'Tabel 2 H'!G31<0.5),"-",IFERROR('Tabel 2 H'!G31/'Tabel 1 H'!E29*100,"-")) -> 3.740822565 | I31: =IF(OR('Tabel 1 H'!G29<5,'Tabel 2 H'!I31<0.5),"-",IFERROR('Tabel 2 H'!I31/'Tabel 1 H'!G29*100,"-")) -> 7.260726073 | J31: =IF(OR('Tabel 1 H'!G29<5,'Tabel 2 H'!J31<0.5),"-",IFERROR('Tabel 2 H'!J31/'Tabel 1 H'!G29*100,"-")) -> 4.760396204
A32: Teolog | C32: =IF(OR('Tabel 1 H'!C30<5,'Tabel 2 H'!C32<0.5),"-",IFERROR('Tabel 2 H'!C32/'Tabel 1 H'!C30*100,"-")) -> 5.365853659 | D32: =IF(OR('Tabel 1 H'!C30<5,'Tabel 2 H'!D32<0.5),"-",IFERROR('Tabel 2 H'!D32/'Tabel 1 H'!C30*100,"-")) -> 5.349637105 | F32: =IF(OR('Tabel 1 H'!E30<5,'Tabel 2 H'!F32<0.5),"-",IFERROR('Tabel 2 H'!F32/'Tabel 1 H'!E30*100,"-")) -> 6.741573034 | G32: =IF(OR('Tabel 1 H'!E30<5,'Tabel 2 H'!G32<0.5),"-",IFERROR('Tabel 2 H'!G32/'Tabel 1 H'!E30*100,"-")) -> 4.730937666 | I32: =IF(OR('Tabel 1 H'!G30<5,'Tabel 2 H'!I32<0.5),"-",IFERROR('Tabel 2 H'!I32/'Tabel 1 H'!G30*100,"-")) -> 6.23885918 | J32: =IF(OR('Tabel 1 H'!G30<5,'Tabel 2 H'!J32<0.5),"-",IFERROR('Tabel 2 H'!J32/'Tabel 1 H'!G30*100,"-")) -> 4.957022131
A33: Psykolog | C33: =IF(OR('Tabel 1 H'!C31<5,'Tabel 2 H'!C33<0.5),"-",IFERROR('Tabel 2 H'!C33/'Tabel 1 H'!C31*100,"-")) -> 6.330935252 | D33: =IF(OR('Tabel 1 H'!C31<5,'Tabel 2 H'!D33<0.5),"-",IFERROR('Tabel 2 H'!D33/'Tabel 1 H'!C31*100,"-")) -> 5.472166893 | F33: =IF(OR('Tabel 1 H'!E31<5,'Tabel 2 H'!F33<0.5),"-",IFERROR('Tabel 2 H'!F33/'Tabel 1 H'!E31*100,"-")) -> 5.047215891 | G33: =IF(OR('Tabel 1 H'!E31<5,'Tabel 2 H'!G33<0.5),"-",IFERROR('Tabel 2 H'!G33/'Tabel 1 H'!E31*100,"-")) -> 4.036509444 | I33: =IF(OR('Tabel 1 H'!G31<5,'Tabel 2 H'!I33<0.5),"-",IFERROR('Tabel 2 H'!I33/'Tabel 1 H'!G31*100,"-")) -> 5.284121083 | J33: =IF(OR('Tabel 1 H'!G31<5,'Tabel 2 H'!J33<0.5),"-",IFERROR('Tabel 2 H'!J33/'Tabel 1 H'!G31*100,"-")) -> 4.301454193
A34: Jurist | C34: =IF(OR('Tabel 1 H'!C32<5,'Tabel 2 H'!C34<0.5),"-",IFERROR('Tabel 2 H'!C34/'Tabel 1 H'!C32*100,"-")) -> 2.990936556 | D34: =IF(OR('Tabel 1 H'!C32<5,'Tabel 2 H'!D34<0.5),"-",IFERROR('Tabel 2 H'!D34/'Tabel 1 H'!C32*100,"-")) -> 2.562030766 | F34: =IF(OR('Tabel 1 H'!E32<5,'Tabel 2 H'!F34<0.5),"-",IFERROR('Tabel 2 H'!F34/'Tabel 1 H'!E32*100,"-")) -> 2.363390035 | G34: =IF(OR('Tabel 1 H'!E32<5,'Tabel 2 H'!G34<0.5),"-",IFERROR('Tabel 2 H'!G34/'Tabel 1 H'!E32*100,"-")) -> 1.953585888 | I34: =IF(OR('Tabel 1 H'!G32<5,'Tabel 2 H'!I34<0.5),"-",IFERROR('Tabel 2 H'!I34/'Tabel 1 H'!G32*100,"-")) -> 2.572088817 | J34: =IF(OR('Tabel 1 H'!G32<5,'Tabel 2 H'!J34<0.5),"-",IFERROR('Tabel 2 H'!J34/'Tabel 1 H'!G32*100,"-")) -> 2.15593217
A35: Økonom | C35: =IF(OR('Tabel 1 H'!C33<5,'Tabel 2 H'!C35<0.5),"-",IFERROR('Tabel 2 H'!C35/'Tabel 1 H'!C33*100,"-")) -> 3.267045455 | D35: =IF(OR('Tabel 1 H'!C33<5,'Tabel 2 H'!D35<0.5),"-",IFERROR('Tabel 2 H'!D35/'Tabel 1 H'!C33*100,"-")) -> 2.575813096 | F35: =IF(OR('Tabel 1 H'!E33<5,'Tabel 2 H'!F35<0.5),"-",IFERROR('Tabel 2 H'!F35/'Tabel 1 H'!E33*100,"-")) -> 2.55033557 | G35: =IF(OR('Tabel 1 H'!E33<5,'Tabel 2 H'!G35<0.5),"-",IFERROR('Tabel 2 H'!G35/'Tabel 1 H'!E33*100,"-")) -> 2.040059715 | I35: =IF(OR('Tabel 1 H'!G33<5,'Tabel 2 H'!I35<0.5),"-",IFERROR('Tabel 2 H'!I35/'Tabel 1 H'!G33*100,"-")) -> 2.988705474 | J35: =IF(OR('Tabel 1 H'!G33<5,'Tabel 2 H'!J35<0.5),"-",IFERROR('Tabel 2 H'!J35/'Tabel 1 H'!G33*100,"-")) -> 2.367749011
A36: Samf. Adm. | C36: =IF(OR('Tabel 1 H'!C34<5,'Tabel 2 H'!C36<0.5),"-",IFERROR('Tabel 2 H'!C36/'Tabel 1 H'!C34*100,"-")) -> 5.85915493 | D36: =IF(OR('Tabel 1 H'!C34<5,'Tabel 2 H'!D36<0.5),"-",IFERROR('Tabel 2 H'!D36/'Tabel 1 H'!C34*100,"-")) -> 4.95449087 | F36: =IF(OR('Tabel 1 H'!E34<5,'Tabel 2 H'!F36<0.5),"-",IFERROR('Tabel 2 H'!F36/'Tabel 1 H'!E34*100,"-")) -> 5.787080887 | G36: =IF(OR('Tabel 1 H'!E34<5,'Tabel 2 H'!G36<0.5),"-",IFERROR('Tabel 2 H'!G36/'Tabel 1 H'!E34*100,"-")) -> 4.602944862 | I36: =IF(OR('Tabel 1 H'!G34<5,'Tabel 2 H'!I36<0.5),"-",IFERROR('Tabel 2 H'!I36/'Tabel 1 H'!G34*100,"-")) -> 5.816060709 | J36: =IF(OR('Tabel 1 H'!G34<5,'Tabel 2 H'!J36<0.5),"-",IFERROR('Tabel 2 H'!J36/'Tabel 1 H'!G34*100,"-")) -> 4.744295901
A37: Cand. Merc. | C37: =IF(OR('Tabel 1 H'!C35<5,'Tabel 2 H'!C37<0.5),"-",IFERROR('Tabel 2 H'!C37/'Tabel 1 H'!C35*100,"-")) -> 5.577689243 | D37: =IF(OR('Tabel 1 H'!C35<5,'Tabel 2 H'!D37<0.5),"-",IFERROR('Tabel 2 H'!D37/'Tabel 1 H'!C35*100,"-")) -> 4.556403169 | F37: =IF(OR('Tabel 1 H'!E35<5,'Tabel 2 H'!F37<0.5),"-",IFERROR('Tabel 2 H'!F37/'Tabel 1 H'!E35*100,"-")) -> 5.910870781 | G37: =IF(OR('Tabel 1 H'!E35<5,'Tabel 2 H'!G37<0.5),"-",IFERROR('Tabel 2 H'!G37/'Tabel 1 H'!E35*100,"-")) -> 4.749062043 | I37: =IF(OR('Tabel 1 H'!G35<5,'Tabel 2 H'!I37<0.5),"-",IFERROR('Tabel 2 H'!I37/'Tabel 1 H'!G35*100,"-")) -> 5.743761327 | J37: =IF(OR('Tabel 1 H'!G35<5,'Tabel 2 H'!J37<0.5),"-",IFERROR('Tabel 2 H'!J37/'Tabel 1 H'!G35*100,"-")) -> 4.652432681
A38: HA | C38: =IF(OR('Tabel 1 H'!C36<5,'Tabel 2 H'!C38<0.5),"-",IFERROR('Tabel 2 H'!C38/'Tabel 1 H'!C36*100,"-")) -> 7.560815253 | D38: =IF(OR('Tabel 1 H'!C36<5,'Tabel 2 H'!D38<0.5),"-",IFERROR('Tabel 2 H'!D38/'Tabel 1 H'!C36*100,"-")) -> 5.879105443 | F38: =IF(OR('Tabel 1 H'!E36<5,'Tabel 2 H'!F38<0.5),"-",IFERROR('Tabel 2 H'!F38/'Tabel 1 H'!E36*100,"-")) -> 8.949416342 | G38: =IF(OR('Tabel 1 H'!E36<5,'Tabel 2 H'!G38<0.5),"-",IFERROR('Tabel 2 H'!G38/'Tabel 1 H'!E36*100,"-")) -> 7.241581747 | I38: =IF(OR('Tabel 1 H'!G36<5,'Tabel 2 H'!I38<0.5),"-",IFERROR('Tabel 2 H'!I38/'Tabel 1 H'!G36*100,"-")) -> 8.196721311 | J38: =IF(OR('Tabel 1 H'!G36<5,'Tabel 2 H'!J38<0.5),"-",IFERROR('Tabel 2 H'!J38/'Tabel 1 H'!G36*100,"-")) -> 6.503047728
A39: HD | C39: =IF(OR('Tabel 1 H'!C37<5,'Tabel 2 H'!C39<0.5),"-",IFERROR('Tabel 2 H'!C39/'Tabel 1 H'!C37*100,"-")) -> 6.796116505 | D39: =IF(OR('Tabel 1 H'!C37<5,'Tabel 2 H'!D39<0.5),"-",IFERROR('Tabel 2 H'!D39/'Tabel 1 H'!C37*100,"-")) -> 5.602382726 | F39: =IF(OR('Tabel 1 H'!E37<5,'Tabel 2 H'!F39<0.5),"-",IFERROR('Tabel 2 H'!F39/'Tabel 1 H'!E37*100,"-")) -> 6.862745098 | G39: =IF(OR('Tabel 1 H'!E37<5,'Tabel 2 H'!G39<0.5),"-",IFERROR('Tabel 2 H'!G39/'Tabel 1 H'!E37*100,"-")) -> 5.823365126 | I39: =IF(OR('Tabel 1 H'!G37<5,'Tabel 2 H'!I39<0.5),"-",IFERROR('Tabel 2 H'!I39/'Tabel 1 H'!G37*100,"-")) -> 6.827936012 | J39: =IF(OR('Tabel 1 H'!G37<5,'Tabel 2 H'!J39<0.5),"-",IFERROR('Tabel 2 H'!J39/'Tabel 1 H'!G37*100,"-")) -> 5.707916264
A40: Komm. og Sprog | C40: =IF(OR('Tabel 1 H'!C38<5,'Tabel 2 H'!C40<0.5),"-",IFERROR('Tabel 2 H'!C40/'Tabel 1 H'!C38*100,"-")) -> 9.56937799 | D40: =IF(OR('Tabel 1 H'!C38<5,'Tabel 2 H'!D40<0.5),"-",IFERROR('Tabel 2 H'!D40/'Tabel 1 H'!C38*100,"-")) -> 7.932303898 | F40: =IF(OR('Tabel 1 H'!E38<5,'Tabel 2 H'!F40<0.5),"-",IFERROR('Tabel 2 H'!F40/'Tabel 1 H'!E38*100,"-")) -> 7.234678625 | G40: =IF(OR('Tabel 1 H'!E38<5,'Tabel 2 H'!G40<0.5),"-",IFERROR('Tabel 2 H'!G40/'Tabel 1 H'!E38*100,"-")) -> 5.647470179 | I40: =IF(OR('Tabel 1 H'!G38<5,'Tabel 2 H'!I40<0.5),"-",IFERROR('Tabel 2 H'!I40/'Tabel 1 H'!G38*100,"-")) -> 7.603222558 | J40: =IF(OR('Tabel 1 H'!G38<5,'Tabel 2 H'!J40<0.5),"-",IFERROR('Tabel 2 H'!J40/'Tabel 1 H'!G38*100,"-")) -> 6.008142572
A41: Komm. og Sprog | C41: =IF(OR('Tabel 1 H'!C39<5,'Tabel 2 H'!C41<0.5),"-",IFERROR('Tabel 2 H'!C41/'Tabel 1 H'!C39*100,"-")) -> 4.110228865 | D41: =IF(OR('Tabel 1 H'!C39<5,'Tabel 2 H'!D41<0.5),"-",IFERROR('Tabel 2 H'!D41/'Tabel 1 H'!C39*100,"-")) -> 3.583973072 | F41: =IF(OR('Tabel 1 H'!E39<5,'Tabel 2 H'!F41<0.5),"-",IFERROR('Tabel 2 H'!F41/'Tabel 1 H'!E39*100,"-")) -> 8.118811881 | G41: =IF(OR('Tabel 1 H'!E39<5,'Tabel 2 H'!G41<0.5),"-",IFERROR('Tabel 2 H'!G41/'Tabel 1 H'!E39*100,"-")) -> 6.82645262 | I41: =IF(OR('Tabel 1 H'!G39<5,'Tabel 2 H'!I41<0.5),"-",IFERROR('Tabel 2 H'!I41/'Tabel 1 H'!G39*100,"-")) -> 4.875283447 | J41: =IF(OR('Tabel 1 H'!G39<5,'Tabel 2 H'!J41<0.5),"-",IFERROR('Tabel 2 H'!J41/'Tabel 1 H'!G39*100,"-")) -> 4.202813651
A42: Cand. IT. | C42: =IF(OR('Tabel 1 H'!C40<5,'Tabel 2 H'!C42<0.5),"-",IFERROR('Tabel 2 H'!C42/'Tabel 1 H'!C40*100,"-")) -> 7.238095238 | D42: =IF(OR('Tabel 1 H'!C40<5,'Tabel 2 H'!D42<0.5),"-",IFERROR('Tabel 2 H'!D42/'Tabel 1 H'!C40*100,"-")) -> 5.981037127 | F42: =IF(OR('Tabel 1 H'!E40<5,'Tabel 2 H'!F42<0.5),"-",IFERROR('Tabel 2 H'!F42/'Tabel 1 H'!E40*100,"-")) -> 10.43034282 | G42: =IF(OR('Tabel 1 H'!E40<5,'Tabel 2 H'!G42<0.5),"-",IFERROR('Tabel 2 H'!G42/'Tabel 1 H'!E40*100,"-")) -> 8.307810436 | I42: =IF(OR('Tabel 1 H'!G40<5,'Tabel 2 H'!I42<0.5),"-",IFERROR('Tabel 2 H'!I42/'Tabel 1 H'!G40*100,"-")) -> 8.723693143 | J42: =IF(OR('Tabel 1 H'!G40<5,'Tabel 2 H'!J42<0.5),"-",IFERROR('Tabel 2 H'!J42/'Tabel 1 H'!G40*100,"-")) -> 7.063863402
A43: Bac. Samf. | C43: =IF(OR('Tabel 1 H'!C41<5,'Tabel 2 H'!C43<0.5),"-",IFERROR('Tabel 2 H'!C43/'Tabel 1 H'!C41*100,"-")) -> 7.01754386 | D43: =IF(OR('Tabel 1 H'!C41<5,'Tabel 2 H'!D43<0.5),"-",IFERROR('Tabel 2 H'!D43/'Tabel 1 H'!C41*100,"-")) -> 5.841335704 | F43: =IF(OR('Tabel 1 H'!E41<5,'Tabel 2 H'!F43<0.5),"-",IFERROR('Tabel 2 H'!F43/'Tabel 1 H'!E41*100,"-")) -> 9.756097561 | G43: =IF(OR('Tabel 1 H'!E41<5,'Tabel 2 H'!G43<0.5),"-",IFERROR('Tabel 2 H'!G43/'Tabel 1 H'!E41*100,"-")) -> 7.111303004 | I43: =IF(OR('Tabel 1 H'!G41<5,'Tabel 2 H'!I43<0.5),"-",IFERROR('Tabel 2 H'!I43/'Tabel 1 H'!G41*100,"-")) -> 8.470588235 | J43: =IF(OR('Tabel 1 H'!G41<5,'Tabel 2 H'!J43<0.5),"-",IFERROR('Tabel 2 H'!J43/'Tabel 1 H'!G41*100,"-")) -> 6.515165413
A44: Bac. Hum. | C44: =IF(OR('Tabel 1 H'!C42<5,'Tabel 2 H'!C44<0.5),"-",IFERROR('Tabel 2 H'!C44/'Tabel 1 H'!C42*100,"-")) -> 11.00217865 | D44: =IF(OR('Tabel 1 H'!C42<5,'Tabel 2 H'!D44<0.5),"-",IFERROR('Tabel 2 H'!D44/'Tabel 1 H'!C42*100,"-")) -> 8.948931174 | F44: =IF(OR('Tabel 1 H'!E42<5,'Tabel 2 H'!F44<0.5),"-",IFERROR('Tabel 2 H'!F44/'Tabel 1 H'!E42*100,"-")) -> 12.90734824 | G44: =IF(OR('Tabel 1 H'!E42<5,'Tabel 2 H'!G44<0.5),"-",IFERROR('Tabel 2 H'!G44/'Tabel 1 H'!E42*100,"-")) -> 9.958454298 | I44: =IF(OR('Tabel 1 H'!G42<5,'Tabel 2 H'!I44<0.5),"-",IFERROR('Tabel 2 H'!I44/'Tabel 1 H'!G42*100,"-")) -> 12.20298027 | J44: =IF(OR('Tabel 1 H'!G42<5,'Tabel 2 H'!J44<0.5),"-",IFERROR('Tabel 2 H'!J44/'Tabel 1 H'!G42*100,"-")) -> 9.58521941
A45: Bac. Nat. | C45: =IF(OR('Tabel 1 H'!C43<5,'Tabel 2 H'!C45<0.5),"-",IFERROR('Tabel 2 H'!C45/'Tabel 1 H'!C43*100,"-")) -> 13.19845857 | D45: =IF(OR('Tabel 1 H'!C43<5,'Tabel 2 H'!D45<0.5),"-",IFERROR('Tabel 2 H'!D45/'Tabel 1 H'!C43*100,"-")) -> 10.84624715 | F45: =IF(OR('Tabel 1 H'!E43<5,'Tabel 2 H'!F45<0.5),"-",IFERROR('Tabel 2 H'!F45/'Tabel 1 H'!E43*100,"-")) -> 19.51871658 | G45: =IF(OR('Tabel 1 H'!E43<5,'Tabel 2 H'!G45<0.5),"-",IFERROR('Tabel 2 H'!G45/'Tabel 1 H'!E43*100,"-")) -> 15.74026298 | I45: =IF(OR('Tabel 1 H'!G43<5,'Tabel 2 H'!I45<0.5),"-",IFERROR('Tabel 2 H'!I45/'Tabel 1 H'!G43*100,"-")) -> 15.84546473 | J45: =IF(OR('Tabel 1 H'!G43<5,'Tabel 2 H'!J45<0.5),"-",IFERROR('Tabel 2 H'!J45/'Tabel 1 H'!G43*100,"-")) -> 12.89592455
A46: Andre | C46: =IF(OR('Tabel 1 H'!C44<5,'Tabel 2 H'!C46<0.5),"-",IFERROR('Tabel 2 H'!C46/'Tabel 1 H'!C44*100,"-")) -> 7.099674469 | D46: =IF(OR('Tabel 1 H'!C44<5,'Tabel 2 H'!D46<0.5),"-",IFERROR('Tabel 2 H'!D46/'Tabel 1 H'!C44*100,"-")) -> 5.810243547 | F46: =IF(OR('Tabel 1 H'!E44<5,'Tabel 2 H'!F46<0.5),"-",IFERROR('Tabel 2 H'!F46/'Tabel 1 H'!E44*100,"-")) -> 9.980327869 | G46: =IF(OR('Tabel 1 H'!E44<5,'Tabel 2 H'!G46<0.5),"-",IFERROR('Tabel 2 H'!G46/'Tabel 1 H'!E44*100,"-")) -> 8.026371838 | I46: =IF(OR('Tabel 1 H'!G44<5,'Tabel 2 H'!I46<0.5),"-",IFERROR('Tabel 2 H'!I46/'Tabel 1 H'!G44*100,"-")) -> 8.660130719 | J46: =IF(OR('Tabel 1 H'!G44<5,'Tabel 2 H'!J46<0.5),"-",IFERROR('Tabel 2 H'!J46/'Tabel 1 H'!G44*100,"-")) -> 7.010725091
A48: Total | C48: =IF(OR('Tabel 1 H'!C46<5,'Tabel 2 H'!C48<0.5),"-",IFERROR('Tabel 2 H'!C48/'Tabel 1 H'!C46*100,"-")) -> 5.748493587 | D48: =IF(OR('Tabel 1 H'!C46<5,'Tabel 2 H'!D48<0.5),"-",IFERROR('Tabel 2 H'!D48/'Tabel 1 H'!C46*100,"-")) -> 4.728855226 | F48: =IF(OR('Tabel 1 H'!E46<5,'Tabel 2 H'!F48<0.5),"-",IFERROR('Tabel 2 H'!F48/'Tabel 1 H'!E46*100,"-")) -> 6.892633971 | G48: =IF(OR('Tabel 1 H'!E46<5,'Tabel 2 H'!G48<0.5),"-",IFERROR('Tabel 2 H'!G48/'Tabel 1 H'!E46*100,"-")) -> 5.491327952 | I48: =IF(OR('Tabel 1 H'!G46<5,'Tabel 2 H'!I48<0.5),"-",IFERROR('Tabel 2 H'!I48/'Tabel 1 H'!G46*100,"-")) -> 6.354442673 | J48: =IF(OR('Tabel 1 H'!G46<5,'Tabel 2 H'!J48<0.5),"-",IFERROR('Tabel 2 H'!J48/'Tabel 1 H'!G46*100,"-")) -> 5.132669005
A50: Ingeniører i alt | C50: =IF(OR('Tabel 1 H'!C48<5,'Tabel 2 H'!C50<0.5),"-",IFERROR('Tabel 2 H'!C50/'Tabel 1 H'!C48*100,"-")) -> 3.462339465 | D50: =IF(OR('Tabel 1 H'!C48<5,'Tabel 2 H'!D50<0.5),"-",IFERROR('Tabel 2 H'!D50/'Tabel 1 H'!C48*100,"-")) -> 2.853781942 | F50: =IF(OR('Tabel 1 H'!E48<5,'Tabel 2 H'!F50<0.5),"-",IFERROR('Tabel 2 H'!F50/'Tabel 1 H'!E48*100,"-")) -> 4.467134652 | G50: =IF(OR('Tabel 1 H'!E48<5,'Tabel 2 H'!G50<0.5),"-",IFERROR('Tabel 2 H'!G50/'Tabel 1 H'!E48*100,"-")) -> 3.509003905 | I50: =IF(OR('Tabel 1 H'!G48<5,'Tabel 2 H'!I50<0.5),"-",IFERROR('Tabel 2 H'!I50/'Tabel 1 H'!G48*100,"-")) -> 3.717255448 | J50: =IF(OR('Tabel 1 H'!G48<5,'Tabel 2 H'!J50<0.5),"-",IFERROR('Tabel 2 H'!J50/'Tabel 1 H'!G48*100,"-")) -> 3.020011391
A51: Magistre i alt | C51: =IF(OR('Tabel 1 H'!C49<5,'Tabel 2 H'!C51<0.5),"-",IFERROR('Tabel 2 H'!C51/'Tabel 1 H'!C49*100,"-")) -> 8.379796655 | D51: =IF(OR('Tabel 1 H'!C49<5,'Tabel 2 H'!D51<0.5),"-",IFERROR('Tabel 2 H'!D51/'Tabel 1 H'!C49*100,"-")) -> 6.853955714 | F51: =IF(OR('Tabel 1 H'!E49<5,'Tabel 2 H'!F51<0.5),"-",IFERROR('Tabel 2 H'!F51/'Tabel 1 H'!E49*100,"-")) -> 9.312359551 | G51: =IF(OR('Tabel 1 H'!E49<5,'Tabel 2 H'!G51<0.5),"-",IFERROR('Tabel 2 H'!G51/'Tabel 1 H'!E49*100,"-")) -> 7.416377878 | I51: =IF(OR('Tabel 1 H'!G49<5,'Tabel 2 H'!I51<0.5),"-",IFERROR('Tabel 2 H'!I51/'Tabel 1 H'!G49*100,"-")) -> 8.982174999 | J51: =IF(OR('Tabel 1 H'!G49<5,'Tabel 2 H'!J51<0.5),"-",IFERROR('Tabel 2 H'!J51/'Tabel 1 H'!G49*100,"-")) -> 7.217245882
A52: DJØF'ere i alt | C52: =IF(OR('Tabel 1 H'!C50<5,'Tabel 2 H'!C52<0.5),"-",IFERROR('Tabel 2 H'!C52/'Tabel 1 H'!C50*100,"-")) -> 5.132601738 | D52: =IF(OR('Tabel 1 H'!C50<5,'Tabel 2 H'!D52<0.5),"-",IFERROR('Tabel 2 H'!D52/'Tabel 1 H'!C50*100,"-")) -> 4.223572927 | F52: =IF(OR('Tabel 1 H'!E50<5,'Tabel 2 H'!F52<0.5),"-",IFERROR('Tabel 2 H'!F52/'Tabel 1 H'!E50*100,"-")) -> 5.005246923 | G52: =IF(OR('Tabel 1 H'!E50<5,'Tabel 2 H'!G52<0.5),"-",IFERROR('Tabel 2 H'!G52/'Tabel 1 H'!E50*100,"-")) -> 4.01879252 | I52: =IF(OR('Tabel 1 H'!G50<5,'Tabel 2 H'!I52<0.5),"-",IFERROR('Tabel 2 H'!I52/'Tabel 1 H'!G50*100,"-")) -> 5.063181432 | J52: =IF(OR('Tabel 1 H'!G50<5,'Tabel 2 H'!J52<0.5),"-",IFERROR('Tabel 2 H'!J52/'Tabel 1 H'!G50*100,"-")) -> 4.111948419
A57: København
C59: Mænd | F59: Kvinder | I59: I alt
C60: Ledigheds- berørte | D60: Gns. brutto- ledighed | F60: Ledigheds- berørte | G60: Gns. brutto- ledighed | I60: Ledigheds- berørte | J60: Gns. brutto- ledighed
A63: Civ. ing. | C63: =IF(OR('Tabel 1 H'!C61<5,'Tabel 2 H'!C63<0.5),"-",IFERROR('Tabel 2 H'!C63/'Tabel 1 H'!C61*100,"-")) -> 5.761589404 | D63: =IF(OR('Tabel 1 H'!C61<5,'Tabel 2 H'!D63<0.5),"-",IFERROR('Tabel 2 H'!D63/'Tabel 1 H'!C61*100,"-")) -> 4.738543531 | F63: =IF(OR('Tabel 1 H'!E61<5,'Tabel 2 H'!F63<0.5),"-",IFERROR('Tabel 2 H'!F63/'Tabel 1 H'!E61*100,"-")) -> 7.411696584 | G63: =IF(OR('Tabel 1 H'!E61<5,'Tabel 2 H'!G63<0.5),"-",IFERROR('Tabel 2 H'!G63/'Tabel 1 H'!E61*100,"-")) -> 5.732711604 | I63: =IF(OR('Tabel 1 H'!G61<5,'Tabel 2 H'!I63<0.5),"-",IFERROR('Tabel 2 H'!I63/'Tabel 1 H'!G61*100,"-")) -> 6.217036919 | J63: =IF(OR('Tabel 1 H'!G61<5,'Tabel 2 H'!J63<0.5),"-",IFERROR('Tabel 2 H'!J63/'Tabel 1 H'!G61*100,"-")) -> 5.012944724
A64: Diplom ing. | C64: =IF(OR('Tabel 1 H'!C62<5,'Tabel 2 H'!C64<0.5),"-",IFERROR('Tabel 2 H'!C64/'Tabel 1 H'!C62*100,"-")) -> 3.938223938 | D64: =IF(OR('Tabel 1 H'!C62<5,'Tabel 2 H'!D64<0.5),"-",IFERROR('Tabel 2 H'!D64/'Tabel 1 H'!C62*100,"-")) -> 3.473073273 | F64: =IF(OR('Tabel 1 H'!E62<5,'Tabel 2 H'!F64<0.5),"-",IFERROR('Tabel 2 H'!F64/'Tabel 1 H'!E62*100,"-")) -> 4.671532847 | G64: =IF(OR('Tabel 1 H'!E62<5,'Tabel 2 H'!G64<0.5),"-",IFERROR('Tabel 2 H'!G64/'Tabel 1 H'!E62*100,"-")) -> 3.950975201 | I64: =IF(OR('Tabel 1 H'!G62<5,'Tabel 2 H'!I64<0.5),"-",IFERROR('Tabel 2 H'!I64/'Tabel 1 H'!G62*100,"-")) -> 4.091603053 | J64: =IF(OR('Tabel 1 H'!G62<5,'Tabel 2 H'!J64<0.5),"-",IFERROR('Tabel 2 H'!J64/'Tabel 1 H'!G62*100,"-")) -> 3.573031386
A65: Cand. Scient. Tek. | C65: =IF(OR('Tabel 1 H'!C63<5,'Tabel 2 H'!C65<0.5),"-",IFERROR('Tabel 2 H'!C65/'Tabel 1 H'!C63*100,"-")) -> 10.07105344 | D65: =IF(OR('Tabel 1 H'!C63<5,'Tabel 2 H'!D65<0.5),"-",IFERROR('Tabel 2 H'!D65/'Tabel 1 H'!C63*100,"-")) -> 7.925979667 | F65: =IF(OR('Tabel 1 H'!E63<5,'Tabel 2 H'!F65<0.5),"-",IFERROR('Tabel 2 H'!F65/'Tabel 1 H'!E63*100,"-")) -> 10.85637222 | G65: =IF(OR('Tabel 1 H'!E63<5,'Tabel 2 H'!G65<0.5),"-",IFERROR('Tabel 2 H'!G65/'Tabel 1 H'!E63*100,"-")) -> 8.559470166 | I65: =IF(OR('Tabel 1 H'!G63<5,'Tabel 2 H'!I65<0.5),"-",IFERROR('Tabel 2 H'!I65/'Tabel 1 H'!G63*100,"-")) -> 10.44655812 | J65: =IF(OR('Tabel 1 H'!G63<5,'Tabel 2 H'!J65<0.5),"-",IFERROR('Tabel 2 H'!J65/'Tabel 1 H'!G63*100,"-")) -> 8.22888678
A66: MA. Hum. | C66: =IF(OR('Tabel 1 H'!C64<5,'Tabel 2 H'!C66<0.5),"-",IFERROR('Tabel 2 H'!C66/'Tabel 1 H'!C64*100,"-")) -> 11.72178988 | D66: =IF(OR('Tabel 1 H'!C64<5,'Tabel 2 H'!D66<0.5),"-",IFERROR('Tabel 2 H'!D66/'Tabel 1 H'!C64*100,"-")) -> 9.709121338 | F66: =IF(OR('Tabel 1 H'!E64<5,'Tabel 2 H'!F66<0.5),"-",IFERROR('Tabel 2 H'!F66/'Tabel 1 H'!E64*100,"-")) -> 10.97289051 | G66: =IF(OR('Tabel 1 H'!E64<5,'Tabel 2 H'!G66<0.5),"-",IFERROR('Tabel 2 H'!G66/'Tabel 1 H'!E64*100,"-")) -> 8.618227136 | I66: =IF(OR('Tabel 1 H'!G64<5,'Tabel 2 H'!I66<0.5),"-",IFERROR('Tabel 2 H'!I66/'Tabel 1 H'!G64*100,"-")) -> 11.21665479 | J66: =IF(OR('Tabel 1 H'!G64<5,'Tabel 2 H'!J66<0.5),"-",IFERROR('Tabel 2 H'!J66/'Tabel 1 H'!G64*100,"-")) -> 8.973309615
A67: MA. Nat. | C67: =IF(OR('Tabel 1 H'!C65<5,'Tabel 2 H'!C67<0.5),"-",IFERROR('Tabel 2 H'!C67/'Tabel 1 H'!C65*100,"-")) -> 5.606860158 | D67: =IF(OR('Tabel 1 H'!C65<5,'Tabel 2 H'!D67<0.5),"-",IFERROR('Tabel 2 H'!D67/'Tabel 1 H'!C65*100,"-")) -> 4.5184676 | F67: =IF(OR('Tabel 1 H'!E65<5,'Tabel 2 H'!F67<0.5),"-",IFERROR('Tabel 2 H'!F67/'Tabel 1 H'!E65*100,"-")) -> 6.578947368 | G67: =IF(OR('Tabel 1 H'!E65<5,'Tabel 2 H'!G67<0.5),"-",IFERROR('Tabel 2 H'!G67/'Tabel 1 H'!E65*100,"-")) -> 5.217282119 | I67: =IF(OR('Tabel 1 H'!G65<5,'Tabel 2 H'!I67<0.5),"-",IFERROR('Tabel 2 H'!I67/'Tabel 1 H'!G65*100,"-")) -> 6.093544137 | J67: =IF(OR('Tabel 1 H'!G65<5,'Tabel 2 H'!J67<0.5),"-",IFERROR('Tabel 2 H'!J67/'Tabel 1 H'!G65*100,"-")) -> 4.868335211
A68: MA. Ph.d. | C68: =IF(OR('Tabel 1 H'!C66<5,'Tabel 2 H'!C68<0.5),"-",IFERROR('Tabel 2 H'!C68/'Tabel 1 H'!C66*100,"-")) -> 2.949061662 | D68: =IF(OR('Tabel 1 H'!C66<5,'Tabel 2 H'!D68<0.5),"-",IFERROR('Tabel 2 H'!D68/'Tabel 1 H'!C66*100,"-")) -> 2.493683855 | F68: =IF(OR('Tabel 1 H'!E66<5,'Tabel 2 H'!F68<0.5),"-",IFERROR('Tabel 2 H'!F68/'Tabel 1 H'!E66*100,"-")) -> 5.53633218 | G68: =IF(OR('Tabel 1 H'!E66<5,'Tabel 2 H'!G68<0.5),"-",IFERROR('Tabel 2 H'!G68/'Tabel 1 H'!E66*100,"-")) -> 4.615264753 | I68: =IF(OR('Tabel 1 H'!G66<5,'Tabel 2 H'!I68<0.5),"-",IFERROR('Tabel 2 H'!I68/'Tabel 1 H'!G66*100,"-")) -> 4.078549849 | J68: =IF(OR('Tabel 1 H'!G66<5,'Tabel 2 H'!J68<0.5),"-",IFERROR('Tabel 2 H'!J68/'Tabel 1 H'!G66*100,"-")) -> 3.419872495
A69: MA. Samf. | C69: =IF(OR('Tabel 1 H'!C67<5,'Tabel 2 H'!C69<0.5),"-",IFERROR('Tabel 2 H'!C69/'Tabel 1 H'!C67*100,"-")) -> 15.78231293 | D69: =IF(OR('Tabel 1 H'!C67<5,'Tabel 2 H'!D69<0.5),"-",IFERROR('Tabel 2 H'!D69/'Tabel 1 H'!C67*100,"-")) -> 13.16850323 | F69: =IF(OR('Tabel 1 H'!E67<5,'Tabel 2 H'!F69<0.5),"-",IFERROR('Tabel 2 H'!F69/'Tabel 1 H'!E67*100,"-")) -> 14.50719823 | G69: =IF(OR('Tabel 1 H'!E67<5,'Tabel 2 H'!G69<0.5),"-",IFERROR('Tabel 2 H'!G69/'Tabel 1 H'!E67*100,"-")) -> 11.9376571 | I69: =IF(OR('Tabel 1 H'!G67<5,'Tabel 2 H'!I69<0.5),"-",IFERROR('Tabel 2 H'!I69/'Tabel 1 H'!G67*100,"-")) -> 14.87603306 | J69: =IF(OR('Tabel 1 H'!G67<5,'Tabel 2 H'!J69<0.5),"-",IFERROR('Tabel 2 H'!J69/'Tabel 1 H'!G67*100,"-")) -> 12.29368697
A70: Øvrige Mag. | C70: =IF(OR('Tabel 1 H'!C68<5,'Tabel 2 H'!C70<0.5),"-",IFERROR('Tabel 2 H'!C70/'Tabel 1 H'!C68*100,"-")) -> 13.12849162 | D70: =IF(OR('Tabel 1 H'!C68<5,'Tabel 2 H'!D70<0.5),"-",IFERROR('Tabel 2 H'!D70/'Tabel 1 H'!C68*100,"-")) -> 11.11447165 | F70: =IF(OR('Tabel 1 H'!E68<5,'Tabel 2 H'!F70<0.5),"-",IFERROR('Tabel 2 H'!F70/'Tabel 1 H'!E68*100,"-")) -> 15.85185185 | G70: =IF(OR('Tabel 1 H'!E68<5,'Tabel 2 H'!G70<0.5),"-",IFERROR('Tabel 2 H'!G70/'Tabel 1 H'!E68*100,"-")) -> 12.54893264 | I70: =IF(OR('Tabel 1 H'!G68<5,'Tabel 2 H'!I70<0.5),"-",IFERROR('Tabel 2 H'!I70/'Tabel 1 H'!G68*100,"-")) -> 14.90803485 | J70: =IF(OR('Tabel 1 H'!G68<5,'Tabel 2 H'!J70<0.5),"-",IFERROR('Tabel 2 H'!J70/'Tabel 1 H'!G68*100,"-")) -> 12.05180095
A71: Agronom | C71: =IF(OR('Tabel 1 H'!C69<5,'Tabel 2 H'!C71<0.5),"-",IFERROR('Tabel 2 H'!C71/'Tabel 1 H'!C69*100,"-")) -> 9.219858156 | D71: =IF(OR('Tabel 1 H'!C69<5,'Tabel 2 H'!D71<0.5),"-",IFERROR('Tabel 2 H'!D71/'Tabel 1 H'!C69*100,"-")) -> 7.642924412 | F71: =IF(OR('Tabel 1 H'!E69<5,'Tabel 2 H'!F71<0.5),"-",IFERROR('Tabel 2 H'!F71/'Tabel 1 H'!E69*100,"-")) -> 5.681818182 | G71: =IF(OR('Tabel 1 H'!E69<5,'Tabel 2 H'!G71<0.5),"-",IFERROR('Tabel 2 H'!G71/'Tabel 1 H'!E69*100,"-")) -> 3.936128893 | I71: =IF(OR('Tabel 1 H'!G69<5,'Tabel 2 H'!I71<0.5),"-",IFERROR('Tabel 2 H'!I71/'Tabel 1 H'!G69*100,"-")) -> 7.255520505 | J71: =IF(OR('Tabel 1 H'!G69<5,'Tabel 2 H'!J71<0.5),"-",IFERROR('Tabel 2 H'!J71/'Tabel 1 H'!G69*100,"-")) -> 5.58489283
A72: Landsk. Arkt. | C72: =IF(OR('Tabel 1 H'!C70<5,'Tabel 2 H'!C72<0.5),"-",IFERROR('Tabel 2 H'!C72/'Tabel 1 H'!C70*100,"-")) -> 16.21621622 | D72: =IF(OR('Tabel 1 H'!C70<5,'Tabel 2 H'!D72<0.5),"-",IFERROR('Tabel 2 H'!D72/'Tabel 1 H'!C70*100,"-")) -> 13.71495615 | F72: =IF(OR('Tabel 1 H'!E70<5,'Tabel 2 H'!F72<0.5),"-",IFERROR('Tabel 2 H'!F72/'Tabel 1 H'!E70*100,"-")) -> 9.782608696 | G72: =IF(OR('Tabel 1 H'!E70<5,'Tabel 2 H'!G72<0.5),"-",IFERROR('Tabel 2 H'!G72/'Tabel 1 H'!E70*100,"-")) -> 7.996076028 | I72: =IF(OR('Tabel 1 H'!G70<5,'Tabel 2 H'!I72<0.5),"-",IFERROR('Tabel 2 H'!I72/'Tabel 1 H'!G70*100,"-")) -> 11.62790698 | J72: =IF(OR('Tabel 1 H'!G70<5,'Tabel 2 H'!J72<0.5),"-",IFERROR('Tabel 2 H'!J72/'Tabel 1 H'!G70*100,"-")) -> 9.636374977
A73: Hortonom | C73: =IF(OR('Tabel 1 H'!C71<5,'Tabel 2 H'!C73<0.5),"-",IFERROR('Tabel 2 H'!C73/'Tabel 1 H'!C71*100,"-")) -> - | D73: =IF(OR('Tabel 1 H'!C71<5,'Tabel 2 H'!D73<0.5),"-",IFERROR('Tabel 2 H'!D73/'Tabel 1 H'!C71*100,"-")) -> - | F73: =IF(OR('Tabel 1 H'!E71<5,'Tabel 2 H'!F73<0.5),"-",IFERROR('Tabel 2 H'!F73/'Tabel 1 H'!E71*100,"-")) -> 3.846153846 | G73: =IF(OR('Tabel 1 H'!E71<5,'Tabel 2 H'!G73<0.5),"-",IFERROR('Tabel 2 H'!G73/'Tabel 1 H'!E71*100,"-")) -> 3.845434177 | I73: =IF(OR('Tabel 1 H'!G71<5,'Tabel 2 H'!I73<0.5),"-",IFERROR('Tabel 2 H'!I73/'Tabel 1 H'!G71*100,"-")) -> 2.173913043 | J73: =IF(OR('Tabel 1 H'!G71<5,'Tabel 2 H'!J73<0.5),"-",IFERROR('Tabel 2 H'!J73/'Tabel 1 H'!G71*100,"-")) -> 2.173506274
A74: Forstkand. | C74: =IF(OR('Tabel 1 H'!C72<5,'Tabel 2 H'!C74<0.5),"-",IFERROR('Tabel 2 H'!C74/'Tabel 1 H'!C72*100,"-")) -> 2.941176471 | D74: =IF(OR('Tabel 1 H'!C72<5,'Tabel 2 H'!D74<0.5),"-",IFERROR('Tabel 2 H'!D74/'Tabel 1 H'!C72*100,"-")) -> 1.397852224 | F74: =IF(OR('Tabel 1 H'!E72<5,'Tabel 2 H'!F74<0.5),"-",IFERROR('Tabel 2 H'!F74/'Tabel 1 H'!E72*100,"-")) -> 23.07692308 | G74: =IF(OR('Tabel 1 H'!E72<5,'Tabel 2 H'!G74<0.5),"-",IFERROR('Tabel 2 H'!G74/'Tabel 1 H'!E72*100,"-")) -> 20.29468068 | I74: =IF(OR('Tabel 1 H'!G72<5,'Tabel 2 H'!I74<0.5),"-",IFERROR('Tabel 2 H'!I74/'Tabel 1 H'!G72*100,"-")) -> 8.510638298 | J74: =IF(OR('Tabel 1 H'!G72<5,'Tabel 2 H'!J74<0.5),"-",IFERROR('Tabel 2 H'!J74/'Tabel 1 H'!G72*100,"-")) -> 6.624634564
A75: Jordbrugsakad. | C75: =IF(OR('Tabel 1 H'!C73<5,'Tabel 2 H'!C75<0.5),"-",IFERROR('Tabel 2 H'!C75/'Tabel 1 H'!C73*100,"-")) -> 8.910891089 | D75: =IF(OR('Tabel 1 H'!C73<5,'Tabel 2 H'!D75<0.5),"-",IFERROR('Tabel 2 H'!D75/'Tabel 1 H'!C73*100,"-")) -> 7.219845043 | F75: =IF(OR('Tabel 1 H'!E73<5,'Tabel 2 H'!F75<0.5),"-",IFERROR('Tabel 2 H'!F75/'Tabel 1 H'!E73*100,"-")) -> 8.495145631 | G75: =IF(OR('Tabel 1 H'!E73<5,'Tabel 2 H'!G75<0.5),"-",IFERROR('Tabel 2 H'!G75/'Tabel 1 H'!E73*100,"-")) -> 6.775921507 | I75: =IF(OR('Tabel 1 H'!G73<5,'Tabel 2 H'!I75<0.5),"-",IFERROR('Tabel 2 H'!I75/'Tabel 1 H'!G73*100,"-")) -> 8.671328671 | J75: =IF(OR('Tabel 1 H'!G73<5,'Tabel 2 H'!J75<0.5),"-",IFERROR('Tabel 2 H'!J75/'Tabel 1 H'!G73*100,"-")) -> 6.964045747
A76: Mejeriing. | C76: =IF(OR('Tabel 1 H'!C74<5,'Tabel 2 H'!C76<0.5),"-",IFERROR('Tabel 2 H'!C76/'Tabel 1 H'!C74*100,"-")) -> 16.66666667 | D76: =IF(OR('Tabel 1 H'!C74<5,'Tabel 2 H'!D76<0.5),"-",IFERROR('Tabel 2 H'!D76/'Tabel 1 H'!C74*100,"-")) -> 16.6635481 | F76: =IF(OR('Tabel 1 H'!E74<5,'Tabel 2 H'!F76<0.5),"-",IFERROR('Tabel 2 H'!F76/'Tabel 1 H'!E74*100,"-")) -> 15.78947368 | G76: =IF(OR('Tabel 1 H'!E74<5,'Tabel 2 H'!G76<0.5),"-",IFERROR('Tabel 2 H'!G76/'Tabel 1 H'!E74*100,"-")) -> 12.99293891 | I76: =IF(OR('Tabel 1 H'!G74<5,'Tabel 2 H'!I76<0.5),"-",IFERROR('Tabel 2 H'!I76/'Tabel 1 H'!G74*100,"-")) -> 16.12903226 | J76: =IF(OR('Tabel 1 H'!G74<5,'Tabel 2 H'!J76<0.5),"-",IFERROR('Tabel 2 H'!J76/'Tabel 1 H'!G74*100,"-")) -> 14.41381988
A77: Levn.m.kand. | C77: =IF(OR('Tabel 1 H'!C75<5,'Tabel 2 H'!C77<0.5),"-",IFERROR('Tabel 2 H'!C77/'Tabel 1 H'!C75*100,"-")) -> 15.15151515 | D77: =IF(OR('Tabel 1 H'!C75<5,'Tabel 2 H'!D77<0.5),"-",IFERROR('Tabel 2 H'!D77/'Tabel 1 H'!C75*100,"-")) -> 14.0524562 | F77: =IF(OR('Tabel 1 H'!E75<5,'Tabel 2 H'!F77<0.5),"-",IFERROR('Tabel 2 H'!F77/'Tabel 1 H'!E75*100,"-")) -> 3.759398496 | G77: =IF(OR('Tabel 1 H'!E75<5,'Tabel 2 H'!G77<0.5),"-",IFERROR('Tabel 2 H'!G77/'Tabel 1 H'!E75*100,"-")) -> 2.578797771 | I77: =IF(OR('Tabel 1 H'!G75<5,'Tabel 2 H'!I77<0.5),"-",IFERROR('Tabel 2 H'!I77/'Tabel 1 H'!G75*100,"-")) -> 6.024096386 | J77: =IF(OR('Tabel 1 H'!G75<5,'Tabel 2 H'!J77<0.5),"-",IFERROR('Tabel 2 H'!J77/'Tabel 1 H'!G75*100,"-")) -> 4.859705773
A78: Dyrlæge | C78: =IF(OR('Tabel 1 H'!C76<5,'Tabel 2 H'!C78<0.5),"-",IFERROR('Tabel 2 H'!C78/'Tabel 1 H'!C76*100,"-")) -> 3.636363636 | D78: =IF(OR('Tabel 1 H'!C76<5,'Tabel 2 H'!D78<0.5),"-",IFERROR('Tabel 2 H'!D78/'Tabel 1 H'!C76*100,"-")) -> 3.467847564 | F78: =IF(OR('Tabel 1 H'!E76<5,'Tabel 2 H'!F78<0.5),"-",IFERROR('Tabel 2 H'!F78/'Tabel 1 H'!E76*100,"-")) -> 5.703422053 | G78: =IF(OR('Tabel 1 H'!E76<5,'Tabel 2 H'!G78<0.5),"-",IFERROR('Tabel 2 H'!G78/'Tabel 1 H'!E76*100,"-")) -> 3.538329572 | I78: =IF(OR('Tabel 1 H'!G76<5,'Tabel 2 H'!I78<0.5),"-",IFERROR('Tabel 2 H'!I78/'Tabel 1 H'!G76*100,"-")) -> 5.34591195 | J78: =IF(OR('Tabel 1 H'!G76<5,'Tabel 2 H'!J78<0.5),"-",IFERROR('Tabel 2 H'!J78/'Tabel 1 H'!G76*100,"-")) -> 3.526139287
A79: Farmaceut | C79: =IF(OR('Tabel 1 H'!C77<5,'Tabel 2 H'!C79<0.5),"-",IFERROR('Tabel 2 H'!C79/'Tabel 1 H'!C77*100,"-")) -> 7.524271845 | D79: =IF(OR('Tabel 1 H'!C77<5,'Tabel 2 H'!D79<0.5),"-",IFERROR('Tabel 2 H'!D79/'Tabel 1 H'!C77*100,"-")) -> 6.842077535 | F79: =IF(OR('Tabel 1 H'!E77<5,'Tabel 2 H'!F79<0.5),"-",IFERROR('Tabel 2 H'!F79/'Tabel 1 H'!E77*100,"-")) -> 5.485714286 | G79: =IF(OR('Tabel 1 H'!E77<5,'Tabel 2 H'!G79<0.5),"-",IFERROR('Tabel 2 H'!G79/'Tabel 1 H'!E77*100,"-")) -> 4.531582183 | I79: =IF(OR('Tabel 1 H'!G77<5,'Tabel 2 H'!I79<0.5),"-",IFERROR('Tabel 2 H'!I79/'Tabel 1 H'!G77*100,"-")) -> 6.138306138 | J79: =IF(OR('Tabel 1 H'!G77<5,'Tabel 2 H'!J79<0.5),"-",IFERROR('Tabel 2 H'!J79/'Tabel 1 H'!G77*100,"-")) -> 5.271227937
A80: Læge | C80: =IF(OR('Tabel 1 H'!C78<5,'Tabel 2 H'!C80<0.5),"-",IFERROR('Tabel 2 H'!C80/'Tabel 1 H'!C78*100,"-")) -> 7.142857143 | D80: =IF(OR('Tabel 1 H'!C78<5,'Tabel 2 H'!D80<0.5),"-",IFERROR('Tabel 2 H'!D80/'Tabel 1 H'!C78*100,"-")) -> 6.344694679 | F80: =IF(OR('Tabel 1 H'!E78<5,'Tabel 2 H'!F80<0.5),"-",IFERROR('Tabel 2 H'!F80/'Tabel 1 H'!E78*100,"-")) -> 6.032608696 | G80: =IF(OR('Tabel 1 H'!E78<5,'Tabel 2 H'!G80<0.5),"-",IFERROR('Tabel 2 H'!G80/'Tabel 1 H'!E78*100,"-")) -> 5.152925081 | I80: =IF(OR('Tabel 1 H'!G78<5,'Tabel 2 H'!I80<0.5),"-",IFERROR('Tabel 2 H'!I80/'Tabel 1 H'!G78*100,"-")) -> 6.364329268 | J80: =IF(OR('Tabel 1 H'!G78<5,'Tabel 2 H'!J80<0.5),"-",IFERROR('Tabel 2 H'!J80/'Tabel 1 H'!G78*100,"-")) -> 5.509002583
A81: Tandlæge | C81: =IF(OR('Tabel 1 H'!C79<5,'Tabel 2 H'!C81<0.5),"-",IFERROR('Tabel 2 H'!C81/'Tabel 1 H'!C79*100,"-")) -> 10 | D81: =IF(OR('Tabel 1 H'!C79<5,'Tabel 2 H'!D81<0.5),"-",IFERROR('Tabel 2 H'!D81/'Tabel 1 H'!C79*100,"-")) -> 7.47084139 | F81: =IF(OR('Tabel 1 H'!E79<5,'Tabel 2 H'!F81<0.5),"-",IFERROR('Tabel 2 H'!F81/'Tabel 1 H'!E79*100,"-")) -> 7.037037037 | G81: =IF(OR('Tabel 1 H'!E79<5,'Tabel 2 H'!G81<0.5),"-",IFERROR('Tabel 2 H'!G81/'Tabel 1 H'!E79*100,"-")) -> 4.417278252 | I81: =IF(OR('Tabel 1 H'!G79<5,'Tabel 2 H'!I81<0.5),"-",IFERROR('Tabel 2 H'!I81/'Tabel 1 H'!G79*100,"-")) -> 7.5 | J81: =IF(OR('Tabel 1 H'!G79<5,'Tabel 2 H'!J81<0.5),"-",IFERROR('Tabel 2 H'!J81/'Tabel 1 H'!G79*100,"-")) -> 4.894397493
A82: Arkitekt | C82: =IF(OR('Tabel 1 H'!C80<5,'Tabel 2 H'!C82<0.5),"-",IFERROR('Tabel 2 H'!C82/'Tabel 1 H'!C80*100,"-")) -> 8.989805375 | D82: =IF(OR('Tabel 1 H'!C80<5,'Tabel 2 H'!D82<0.5),"-",IFERROR('Tabel 2 H'!D82/'Tabel 1 H'!C80*100,"-")) -> 7.253054939 | F82: =IF(OR('Tabel 1 H'!E80<5,'Tabel 2 H'!F82<0.5),"-",IFERROR('Tabel 2 H'!F82/'Tabel 1 H'!E80*100,"-")) -> 9.564541213 | G82: =IF(OR('Tabel 1 H'!E80<5,'Tabel 2 H'!G82<0.5),"-",IFERROR('Tabel 2 H'!G82/'Tabel 1 H'!E80*100,"-")) -> 7.514681762 | I82: =IF(OR('Tabel 1 H'!G80<5,'Tabel 2 H'!I82<0.5),"-",IFERROR('Tabel 2 H'!I82/'Tabel 1 H'!G80*100,"-")) -> 9.302325581 | J82: =IF(OR('Tabel 1 H'!G80<5,'Tabel 2 H'!J82<0.5),"-",IFERROR('Tabel 2 H'!J82/'Tabel 1 H'!G80*100,"-")) -> 7.395317981
A83: Landinspek. | C83: =IF(OR('Tabel 1 H'!C81<5,'Tabel 2 H'!C83<0.5),"-",IFERROR('Tabel 2 H'!C83/'Tabel 1 H'!C81*100,"-")) -> 9.756097561 | D83: =IF(OR('Tabel 1 H'!C81<5,'Tabel 2 H'!D83<0.5),"-",IFERROR('Tabel 2 H'!D83/'Tabel 1 H'!C81*100,"-")) -> 9.754272058 | F83: =IF(OR('Tabel 1 H'!E81<5,'Tabel 2 H'!F83<0.5),"-",IFERROR('Tabel 2 H'!F83/'Tabel 1 H'!E81*100,"-")) -> 6.666666667 | G83: =IF(OR('Tabel 1 H'!E81<5,'Tabel 2 H'!G83<0.5),"-",IFERROR('Tabel 2 H'!G83/'Tabel 1 H'!E81*100,"-")) -> - | I83: =IF(OR('Tabel 1 H'!G81<5,'Tabel 2 H'!I83<0.5),"-",IFERROR('Tabel 2 H'!I83/'Tabel 1 H'!G81*100,"-")) -> 8.928571429 | J83: =IF(OR('Tabel 1 H'!G81<5,'Tabel 2 H'!J83<0.5),"-",IFERROR('Tabel 2 H'!J83/'Tabel 1 H'!G81*100,"-")) -> 7.926731473
A84: Bibliotekar | C84: =IF(OR('Tabel 1 H'!C82<5,'Tabel 2 H'!C84<0.5),"-",IFERROR('Tabel 2 H'!C84/'Tabel 1 H'!C82*100,"-")) -> 5.6 | D84: =IF(OR('Tabel 1 H'!C82<5,'Tabel 2 H'!D84<0.5),"-",IFERROR('Tabel 2 H'!D84/'Tabel 1 H'!C82*100,"-")) -> 4.486746086 | F84: =IF(OR('Tabel 1 H'!E82<5,'Tabel 2 H'!F84<0.5),"-",IFERROR('Tabel 2 H'!F84/'Tabel 1 H'!E82*100,"-")) -> 6.145251397 | G84: =IF(OR('Tabel 1 H'!E82<5,'Tabel 2 H'!G84<0.5),"-",IFERROR('Tabel 2 H'!G84/'Tabel 1 H'!E82*100,"-")) -> 4.88529187 | I84: =IF(OR('Tabel 1 H'!G82<5,'Tabel 2 H'!I84<0.5),"-",IFERROR('Tabel 2 H'!I84/'Tabel 1 H'!G82*100,"-")) -> 5.972045743 | J84: =IF(OR('Tabel 1 H'!G82<5,'Tabel 2 H'!J84<0.5),"-",IFERROR('Tabel 2 H'!J84/'Tabel 1 H'!G82*100,"-")) -> 4.758689016
A85: Musikudd. | C85: =IF(OR('Tabel 1 H'!C83<5,'Tabel 2 H'!C85<0.5),"-",IFERROR('Tabel 2 H'!C85/'Tabel 1 H'!C83*100,"-")) -> 10.60606061 | D85: =IF(OR('Tabel 1 H'!C83<5,'Tabel 2 H'!D85<0.5),"-",IFERROR('Tabel 2 H'!D85/'Tabel 1 H'!C83*100,"-")) -> 8.777351258 | F85: =IF(OR('Tabel 1 H'!E83<5,'Tabel 2 H'!F85<0.5),"-",IFERROR('Tabel 2 H'!F85/'Tabel 1 H'!E83*100,"-")) -> 7.407407407 | G85: =IF(OR('Tabel 1 H'!E83<5,'Tabel 2 H'!G85<0.5),"-",IFERROR('Tabel 2 H'!G85/'Tabel 1 H'!E83*100,"-")) -> 5.197613256 | I85: =IF(OR('Tabel 1 H'!G83<5,'Tabel 2 H'!I85<0.5),"-",IFERROR('Tabel 2 H'!I85/'Tabel 1 H'!G83*100,"-")) -> 8.843537415 | J85: =IF(OR('Tabel 1 H'!G83<5,'Tabel 2 H'!J85<0.5),"-",IFERROR('Tabel 2 H'!J85/'Tabel 1 H'!G83*100,"-")) -> 6.804842563
A86: Teolog | C86: =IF(OR('Tabel 1 H'!C84<5,'Tabel 2 H'!C86<0.5),"-",IFERROR('Tabel 2 H'!C86/'Tabel 1 H'!C84*100,"-")) -> 9.473684211 | D86: =IF(OR('Tabel 1 H'!C84<5,'Tabel 2 H'!D86<0.5),"-",IFERROR('Tabel 2 H'!D86/'Tabel 1 H'!C84*100,"-")) -> 9.471911551 | F86: =IF(OR('Tabel 1 H'!E84<5,'Tabel 2 H'!F86<0.5),"-",IFERROR('Tabel 2 H'!F86/'Tabel 1 H'!E84*100,"-")) -> 9.433962264 | G86: =IF(OR('Tabel 1 H'!E84<5,'Tabel 2 H'!G86<0.5),"-",IFERROR('Tabel 2 H'!G86/'Tabel 1 H'!E84*100,"-")) -> 6.954602673 | I86: =IF(OR('Tabel 1 H'!G84<5,'Tabel 2 H'!I86<0.5),"-",IFERROR('Tabel 2 H'!I86/'Tabel 1 H'!G84*100,"-")) -> 9.448818898 | J86: =IF(OR('Tabel 1 H'!G84<5,'Tabel 2 H'!J86<0.5),"-",IFERROR('Tabel 2 H'!J86/'Tabel 1 H'!G84*100,"-")) -> 7.896115836
A87: Psykolog | C87: =IF(OR('Tabel 1 H'!C85<5,'Tabel 2 H'!C87<0.5),"-",IFERROR('Tabel 2 H'!C87/'Tabel 1 H'!C85*100,"-")) -> 6.081081081 | D87: =IF(OR('Tabel 1 H'!C85<5,'Tabel 2 H'!D87<0.5),"-",IFERROR('Tabel 2 H'!D87/'Tabel 1 H'!C85*100,"-")) -> 5.094644323 | F87: =IF(OR('Tabel 1 H'!E85<5,'Tabel 2 H'!F87<0.5),"-",IFERROR('Tabel 2 H'!F87/'Tabel 1 H'!E85*100,"-")) -> 5.917159763 | G87: =IF(OR('Tabel 1 H'!E85<5,'Tabel 2 H'!G87<0.5),"-",IFERROR('Tabel 2 H'!G87/'Tabel 1 H'!E85*100,"-")) -> 4.761591939 | I87: =IF(OR('Tabel 1 H'!G85<5,'Tabel 2 H'!I87<0.5),"-",IFERROR('Tabel 2 H'!I87/'Tabel 1 H'!G85*100,"-")) -> 5.95126523 | J87: =IF(OR('Tabel 1 H'!G85<5,'Tabel 2 H'!J87<0.5),"-",IFERROR('Tabel 2 H'!J87/'Tabel 1 H'!G85*100,"-")) -> 4.830886811
A88: Jurist | C88: =IF(OR('Tabel 1 H'!C86<5,'Tabel 2 H'!C88<0.5),"-",IFERROR('Tabel 2 H'!C88/'Tabel 1 H'!C86*100,"-")) -> 4.207920792 | D88: =IF(OR('Tabel 1 H'!C86<5,'Tabel 2 H'!D88<0.5),"-",IFERROR('Tabel 2 H'!D88/'Tabel 1 H'!C86*100,"-")) -> 3.611980982 | F88: =IF(OR('Tabel 1 H'!E86<5,'Tabel 2 H'!F88<0.5),"-",IFERROR('Tabel 2 H'!F88/'Tabel 1 H'!E86*100,"-")) -> 2.790064648 | G88: =IF(OR('Tabel 1 H'!E86<5,'Tabel 2 H'!G88<0.5),"-",IFERROR('Tabel 2 H'!G88/'Tabel 1 H'!E86*100,"-")) -> 2.350608658 | I88: =IF(OR('Tabel 1 H'!G86<5,'Tabel 2 H'!I88<0.5),"-",IFERROR('Tabel 2 H'!I88/'Tabel 1 H'!G86*100,"-")) -> 3.293084523 | J88: =IF(OR('Tabel 1 H'!G86<5,'Tabel 2 H'!J88<0.5),"-",IFERROR('Tabel 2 H'!J88/'Tabel 1 H'!G86*100,"-")) -> 2.79811199
A89: Økonom | C89: =IF(OR('Tabel 1 H'!C87<5,'Tabel 2 H'!C89<0.5),"-",IFERROR('Tabel 2 H'!C89/'Tabel 1 H'!C87*100,"-")) -> 4.334916865 | D89: =IF(OR('Tabel 1 H'!C87<5,'Tabel 2 H'!D89<0.5),"-",IFERROR('Tabel 2 H'!D89/'Tabel 1 H'!C87*100,"-")) -> 3.33297876 | F89: =IF(OR('Tabel 1 H'!E87<5,'Tabel 2 H'!F89<0.5),"-",IFERROR('Tabel 2 H'!F89/'Tabel 1 H'!E87*100,"-")) -> 3.458213256 | G89: =IF(OR('Tabel 1 H'!E87<5,'Tabel 2 H'!G89<0.5),"-",IFERROR('Tabel 2 H'!G89/'Tabel 1 H'!E87*100,"-")) -> 2.861413416 | I89: =IF(OR('Tabel 1 H'!G87<5,'Tabel 2 H'!I89<0.5),"-",IFERROR('Tabel 2 H'!I89/'Tabel 1 H'!G87*100,"-")) -> 4 | J89: =IF(OR('Tabel 1 H'!G87<5,'Tabel 2 H'!J89<0.5),"-",IFERROR('Tabel 2 H'!J89/'Tabel 1 H'!G87*100,"-")) -> 3.152832146
A90: Samf. Adm. | C90: =IF(OR('Tabel 1 H'!C88<5,'Tabel 2 H'!C90<0.5),"-",IFERROR('Tabel 2 H'!C90/'Tabel 1 H'!C88*100,"-")) -> 6.673090821 | D90: =IF(OR('Tabel 1 H'!C88<5,'Tabel 2 H'!D90<0.5),"-",IFERROR('Tabel 2 H'!D90/'Tabel 1 H'!C88*100,"-")) -> 5.667724916 | F90: =IF(OR('Tabel 1 H'!E88<5,'Tabel 2 H'!F90<0.5),"-",IFERROR('Tabel 2 H'!F90/'Tabel 1 H'!E88*100,"-")) -> 6.713722915 | G90: =IF(OR('Tabel 1 H'!E88<5,'Tabel 2 H'!G90<0.5),"-",IFERROR('Tabel 2 H'!G90/'Tabel 1 H'!E88*100,"-")) -> 5.336334585 | I90: =IF(OR('Tabel 1 H'!G88<5,'Tabel 2 H'!I90<0.5),"-",IFERROR('Tabel 2 H'!I90/'Tabel 1 H'!G88*100,"-")) -> 6.697256663 | J90: =IF(OR('Tabel 1 H'!G88<5,'Tabel 2 H'!J90<0.5),"-",IFERROR('Tabel 2 H'!J90/'Tabel 1 H'!G88*100,"-")) -> 5.470631301
A91: Cand. Merc. | C91: =IF(OR('Tabel 1 H'!C89<5,'Tabel 2 H'!C91<0.5),"-",IFERROR('Tabel 2 H'!C91/'Tabel 1 H'!C89*100,"-")) -> 7.000946074 | D91: =IF(OR('Tabel 1 H'!C89<5,'Tabel 2 H'!D91<0.5),"-",IFERROR('Tabel 2 H'!D91/'Tabel 1 H'!C89*100,"-")) -> 5.704731154 | F91: =IF(OR('Tabel 1 H'!E89<5,'Tabel 2 H'!F91<0.5),"-",IFERROR('Tabel 2 H'!F91/'Tabel 1 H'!E89*100,"-")) -> 7.120921305 | G91: =IF(OR('Tabel 1 H'!E89<5,'Tabel 2 H'!G91<0.5),"-",IFERROR('Tabel 2 H'!G91/'Tabel 1 H'!E89*100,"-")) -> 5.668227706 | I91: =IF(OR('Tabel 1 H'!G89<5,'Tabel 2 H'!I91<0.5),"-",IFERROR('Tabel 2 H'!I91/'Tabel 1 H'!G89*100,"-")) -> 7.060505002 | J91: =IF(OR('Tabel 1 H'!G89<5,'Tabel 2 H'!J91<0.5),"-",IFERROR('Tabel 2 H'!J91/'Tabel 1 H'!G89*100,"-")) -> 5.686609862
A92: HA | C92: =IF(OR('Tabel 1 H'!C90<5,'Tabel 2 H'!C92<0.5),"-",IFERROR('Tabel 2 H'!C92/'Tabel 1 H'!C90*100,"-")) -> 8.228730823 | D92: =IF(OR('Tabel 1 H'!C90<5,'Tabel 2 H'!D92<0.5),"-",IFERROR('Tabel 2 H'!D92/'Tabel 1 H'!C90*100,"-")) -> 6.365532178 | F92: =IF(OR('Tabel 1 H'!E90<5,'Tabel 2 H'!F92<0.5),"-",IFERROR('Tabel 2 H'!F92/'Tabel 1 H'!E90*100,"-")) -> 11.82108626 | G92: =IF(OR('Tabel 1 H'!E90<5,'Tabel 2 H'!G92<0.5),"-",IFERROR('Tabel 2 H'!G92/'Tabel 1 H'!E90*100,"-")) -> 9.465700635 | I92: =IF(OR('Tabel 1 H'!G90<5,'Tabel 2 H'!I92<0.5),"-",IFERROR('Tabel 2 H'!I92/'Tabel 1 H'!G90*100,"-")) -> 9.903201787 | J92: =IF(OR('Tabel 1 H'!G90<5,'Tabel 2 H'!J92<0.5),"-",IFERROR('Tabel 2 H'!J92/'Tabel 1 H'!G90*100,"-")) -> 7.810584638
A93: HD | C93: =IF(OR('Tabel 1 H'!C91<5,'Tabel 2 H'!C93<0.5),"-",IFERROR('Tabel 2 H'!C93/'Tabel 1 H'!C91*100,"-")) -> 10.55776892 | D93: =IF(OR('Tabel 1 H'!C91<5,'Tabel 2 H'!D93<0.5),"-",IFERROR('Tabel 2 H'!D93/'Tabel 1 H'!C91*100,"-")) -> 9.221269975 | F93: =IF(OR('Tabel 1 H'!E91<5,'Tabel 2 H'!F93<0.5),"-",IFERROR('Tabel 2 H'!F93/'Tabel 1 H'!E91*100,"-")) -> 9.225700165 | G93: =IF(OR('Tabel 1 H'!E91<5,'Tabel 2 H'!G93<0.5),"-",IFERROR('Tabel 2 H'!G93/'Tabel 1 H'!E91*100,"-")) -> 7.876670348 | I93: =IF(OR('Tabel 1 H'!G91<5,'Tabel 2 H'!I93<0.5),"-",IFERROR('Tabel 2 H'!I93/'Tabel 1 H'!G91*100,"-")) -> 9.828674482 | J93: =IF(OR('Tabel 1 H'!G91<5,'Tabel 2 H'!J93<0.5),"-",IFERROR('Tabel 2 H'!J93/'Tabel 1 H'!G91*100,"-")) -> 8.485316888
A94: Komm. og Sprog | C94: =IF(OR('Tabel 1 H'!C92<5,'Tabel 2 H'!C94<0.5),"-",IFERROR('Tabel 2 H'!C94/'Tabel 1 H'!C92*100,"-")) -> 10.72319202 | D94: =IF(OR('Tabel 1 H'!C92<5,'Tabel 2 H'!D94<0.5),"-",IFERROR('Tabel 2 H'!D94/'Tabel 1 H'!C92*100,"-")) -> 8.818003641 | F94: =IF(OR('Tabel 1 H'!E92<5,'Tabel 2 H'!F94<0.5),"-",IFERROR('Tabel 2 H'!F94/'Tabel 1 H'!E92*100,"-")) -> 9.289617486 | G94: =IF(OR('Tabel 1 H'!E92<5,'Tabel 2 H'!G94<0.5),"-",IFERROR('Tabel 2 H'!G94/'Tabel 1 H'!E92*100,"-")) -> 6.998202819 | I94: =IF(OR('Tabel 1 H'!G92<5,'Tabel 2 H'!I94<0.5),"-",IFERROR('Tabel 2 H'!I94/'Tabel 1 H'!G92*100,"-")) -> 9.597855228 | J94: =IF(OR('Tabel 1 H'!G92<5,'Tabel 2 H'!J94<0.5),"-",IFERROR('Tabel 2 H'!J94/'Tabel 1 H'!G92*100,"-")) -> 7.38948439
A95: Bygningskonst. | C95: =IF(OR('Tabel 1 H'!C93<5,'Tabel 2 H'!C95<0.5),"-",IFERROR('Tabel 2 H'!C95/'Tabel 1 H'!C93*100,"-")) -> 5.531453362 | D95: =IF(OR('Tabel 1 H'!C93<5,'Tabel 2 H'!D95<0.5),"-",IFERROR('Tabel 2 H'!D95/'Tabel 1 H'!C93*100,"-")) -> 4.793103649 | F95: =IF(OR('Tabel 1 H'!E93<5,'Tabel 2 H'!F95<0.5),"-",IFERROR('Tabel 2 H'!F95/'Tabel 1 H'!E93*100,"-")) -> 11.29032258 | G95: =IF(OR('Tabel 1 H'!E93<5,'Tabel 2 H'!G95<0.5),"-",IFERROR('Tabel 2 H'!G95/'Tabel 1 H'!E93*100,"-")) -> 9.694923575 | I95: =IF(OR('Tabel 1 H'!G93<5,'Tabel 2 H'!I95<0.5),"-",IFERROR('Tabel 2 H'!I95/'Tabel 1 H'!G93*100,"-")) -> 6.752136752 | J95: =IF(OR('Tabel 1 H'!G93<5,'Tabel 2 H'!J95<0.5),"-",IFERROR('Tabel 2 H'!J95/'Tabel 1 H'!G93*100,"-")) -> 5.83212189
A96: Cand. IT. | C96: =IF(OR('Tabel 1 H'!C94<5,'Tabel 2 H'!C96<0.5),"-",IFERROR('Tabel 2 H'!C96/'Tabel 1 H'!C94*100,"-")) -> 8.762886598 | D96: =IF(OR('Tabel 1 H'!C94<5,'Tabel 2 H'!D96<0.5),"-",IFERROR('Tabel 2 H'!D96/'Tabel 1 H'!C94*100,"-")) -> 7.150972768 | F96: =IF(OR('Tabel 1 H'!E94<5,'Tabel 2 H'!F96<0.5),"-",IFERROR('Tabel 2 H'!F96/'Tabel 1 H'!E94*100,"-")) -> 13.16085489 | G96: =IF(OR('Tabel 1 H'!E94<5,'Tabel 2 H'!G96<0.5),"-",IFERROR('Tabel 2 H'!G96/'Tabel 1 H'!E94*100,"-")) -> 10.27499736 | I96: =IF(OR('Tabel 1 H'!G94<5,'Tabel 2 H'!I96<0.5),"-",IFERROR('Tabel 2 H'!I96/'Tabel 1 H'!G94*100,"-")) -> 10.86605702 | J96: =IF(OR('Tabel 1 H'!G94<5,'Tabel 2 H'!J96<0.5),"-",IFERROR('Tabel 2 H'!J96/'Tabel 1 H'!G94*100,"-")) -> 8.644925355
A97: Bac. Samf. | C97: =IF(OR('Tabel 1 H'!C95<5,'Tabel 2 H'!C97<0.5),"-",IFERROR('Tabel 2 H'!C97/'Tabel 1 H'!C95*100,"-")) -> 7.630522088 | D97: =IF(OR('Tabel 1 H'!C95<5,'Tabel 2 H'!D97<0.5),"-",IFERROR('Tabel 2 H'!D97/'Tabel 1 H'!C95*100,"-")) -> 6.626643792 | F97: =IF(OR('Tabel 1 H'!E95<5,'Tabel 2 H'!F97<0.5),"-",IFERROR('Tabel 2 H'!F97/'Tabel 1 H'!E95*100,"-")) -> 13.04347826 | G97: =IF(OR('Tabel 1 H'!E95<5,'Tabel 2 H'!G97<0.5),"-",IFERROR('Tabel 2 H'!G97/'Tabel 1 H'!E95*100,"-")) -> 9.692213367 | I97: =IF(OR('Tabel 1 H'!G95<5,'Tabel 2 H'!I97<0.5),"-",IFERROR('Tabel 2 H'!I97/'Tabel 1 H'!G95*100,"-")) -> 10.35856574 | J97: =IF(OR('Tabel 1 H'!G95<5,'Tabel 2 H'!J97<0.5),"-",IFERROR('Tabel 2 H'!J97/'Tabel 1 H'!G95*100,"-")) -> 8.171642004
A98: Bac. Hum. | C98: =IF(OR('Tabel 1 H'!C96<5,'Tabel 2 H'!C98<0.5),"-",IFERROR('Tabel 2 H'!C98/'Tabel 1 H'!C96*100,"-")) -> 12.42038217 | D98: =IF(OR('Tabel 1 H'!C96<5,'Tabel 2 H'!D98<0.5),"-",IFERROR('Tabel 2 H'!D98/'Tabel 1 H'!C96*100,"-")) -> 9.913272029 | F98: =IF(OR('Tabel 1 H'!E96<5,'Tabel 2 H'!F98<0.5),"-",IFERROR('Tabel 2 H'!F98/'Tabel 1 H'!E96*100,"-")) -> 15.15444015 | G98: =IF(OR('Tabel 1 H'!E96<5,'Tabel 2 H'!G98<0.5),"-",IFERROR('Tabel 2 H'!G98/'Tabel 1 H'!E96*100,"-")) -> 11.35640367 | I98: =IF(OR('Tabel 1 H'!G96<5,'Tabel 2 H'!I98<0.5),"-",IFERROR('Tabel 2 H'!I98/'Tabel 1 H'!G96*100,"-")) -> 14.12259615 | J98: =IF(OR('Tabel 1 H'!G96<5,'Tabel 2 H'!J98<0.5),"-",IFERROR('Tabel 2 H'!J98/'Tabel 1 H'!G96*100,"-")) -> 10.81176024
A99: Bac. Nat. | C99: =IF(OR('Tabel 1 H'!C97<5,'Tabel 2 H'!C99<0.5),"-",IFERROR('Tabel 2 H'!C99/'Tabel 1 H'!C97*100,"-")) -> 16.36363636 | D99: =IF(OR('Tabel 1 H'!C97<5,'Tabel 2 H'!D99<0.5),"-",IFERROR('Tabel 2 H'!D99/'Tabel 1 H'!C97*100,"-")) -> 13.53991483 | F99: =IF(OR('Tabel 1 H'!E97<5,'Tabel 2 H'!F99<0.5),"-",IFERROR('Tabel 2 H'!F99/'Tabel 1 H'!E97*100,"-")) -> 24.06181015 | G99: =IF(OR('Tabel 1 H'!E97<5,'Tabel 2 H'!G99<0.5),"-",IFERROR('Tabel 2 H'!G99/'Tabel 1 H'!E97*100,"-")) -> 19.05493209 | I99: =IF(OR('Tabel 1 H'!G97<5,'Tabel 2 H'!I99<0.5),"-",IFERROR('Tabel 2 H'!I99/'Tabel 1 H'!G97*100,"-")) -> 19.84047856 | J99: =IF(OR('Tabel 1 H'!G97<5,'Tabel 2 H'!J99<0.5),"-",IFERROR('Tabel 2 H'!J99/'Tabel 1 H'!G97*100,"-")) -> 16.03074516
A100: Andre | C100: =IF(OR('Tabel 1 H'!C98<5,'Tabel 2 H'!C100<0.5),"-",IFERROR('Tabel 2 H'!C100/'Tabel 1 H'!C98*100,"-")) -> 8.994708995 | D100: =IF(OR('Tabel 1 H'!C98<5,'Tabel 2 H'!D100<0.5),"-",IFERROR('Tabel 2 H'!D100/'Tabel 1 H'!C98*100,"-")) -> 7.17470467 | F100: =IF(OR('Tabel 1 H'!E98<5,'Tabel 2 H'!F100<0.5),"-",IFERROR('Tabel 2 H'!F100/'Tabel 1 H'!E98*100,"-")) -> 11.39732685 | G100: =IF(OR('Tabel 1 H'!E98<5,'Tabel 2 H'!G100<0.5),"-",IFERROR('Tabel 2 H'!G100/'Tabel 1 H'!E98*100,"-")) -> 9.205421473 | I100: =IF(OR('Tabel 1 H'!G98<5,'Tabel 2 H'!I100<0.5),"-",IFERROR('Tabel 2 H'!I100/'Tabel 1 H'!G98*100,"-")) -> 10.30996408 | J100: =IF(OR('Tabel 1 H'!G98<5,'Tabel 2 H'!J100<0.5),"-",IFERROR('Tabel 2 H'!J100/'Tabel 1 H'!G98*100,"-")) -> 8.286371511
A102: Total | C102: =IF(OR('Tabel 1 H'!C100<5,'Tabel 2 H'!C102<0.5),"-",IFERROR('Tabel 2 H'!C102/'Tabel 1 H'!C100*100,"-")) -> 7.802865003 | D102: =IF(OR('Tabel 1 H'!C100<5,'Tabel 2 H'!D102<0.5),"-",IFERROR('Tabel 2 H'!D102/'Tabel 1 H'!C100*100,"-")) -> 6.425347149 | F102: =IF(OR('Tabel 1 H'!E100<5,'Tabel 2 H'!F102<0.5),"-",IFERROR('Tabel 2 H'!F102/'Tabel 1 H'!E100*100,"-")) -> 8.857193515 | G102: =IF(OR('Tabel 1 H'!E100<5,'Tabel 2 H'!G102<0.5),"-",IFERROR('Tabel 2 H'!G102/'Tabel 1 H'!E100*100,"-")) -> 7.03247401 | I102: =IF(OR('Tabel 1 H'!G100<5,'Tabel 2 H'!I102<0.5),"-",IFERROR('Tabel 2 H'!I102/'Tabel 1 H'!G100*100,"-")) -> 8.378800108 | J102: =IF(OR('Tabel 1 H'!G100<5,'Tabel 2 H'!J102<0.5),"-",IFERROR('Tabel 2 H'!J102/'Tabel 1 H'!G100*100,"-")) -> 6.756994893
A104: Ingeniører i alt | C104: =IF(OR('Tabel 1 H'!C102<5,'Tabel 2 H'!C104<0.5),"-",IFERROR('Tabel 2 H'!C104/'Tabel 1 H'!C102*100,"-")) -> 5.098314607 | D104: =IF(OR('Tabel 1 H'!C102<5,'Tabel 2 H'!D104<0.5),"-",IFERROR('Tabel 2 H'!D104/'Tabel 1 H'!C102*100,"-")) -> 4.278210951 | F104: =IF(OR('Tabel 1 H'!E102<5,'Tabel 2 H'!F104<0.5),"-",IFERROR('Tabel 2 H'!F104/'Tabel 1 H'!E102*100,"-")) -> 6.633499171 | G104: =IF(OR('Tabel 1 H'!E102<5,'Tabel 2 H'!G104<0.5),"-",IFERROR('Tabel 2 H'!G104/'Tabel 1 H'!E102*100,"-")) -> 5.226704375 | I104: =IF(OR('Tabel 1 H'!G102<5,'Tabel 2 H'!I104<0.5),"-",IFERROR('Tabel 2 H'!I104/'Tabel 1 H'!G102*100,"-")) -> 5.486781368 | J104: =IF(OR('Tabel 1 H'!G102<5,'Tabel 2 H'!J104<0.5),"-",IFERROR('Tabel 2 H'!J104/'Tabel 1 H'!G102*100,"-")) -> 4.518219988
A105: Magistre i alt | C105: =IF(OR('Tabel 1 H'!C103<5,'Tabel 2 H'!C105<0.5),"-",IFERROR('Tabel 2 H'!C105/'Tabel 1 H'!C103*100,"-")) -> 10.44544686 | D105: =IF(OR('Tabel 1 H'!C103<5,'Tabel 2 H'!D105<0.5),"-",IFERROR('Tabel 2 H'!D105/'Tabel 1 H'!C103*100,"-")) -> 8.64982783 | F105: =IF(OR('Tabel 1 H'!E103<5,'Tabel 2 H'!F105<0.5),"-",IFERROR('Tabel 2 H'!F105/'Tabel 1 H'!E103*100,"-")) -> 11.08422449 | G105: =IF(OR('Tabel 1 H'!E103<5,'Tabel 2 H'!G105<0.5),"-",IFERROR('Tabel 2 H'!G105/'Tabel 1 H'!E103*100,"-")) -> 8.799463899 | I105: =IF(OR('Tabel 1 H'!G103<5,'Tabel 2 H'!I105<0.5),"-",IFERROR('Tabel 2 H'!I105/'Tabel 1 H'!G103*100,"-")) -> 10.8565687 | J105: =IF(OR('Tabel 1 H'!G103<5,'Tabel 2 H'!J105<0.5),"-",IFERROR('Tabel 2 H'!J105/'Tabel 1 H'!G103*100,"-")) -> 8.746134672
A106: DJØF'ere i alt | C106: =IF(OR('Tabel 1 H'!C104<5,'Tabel 2 H'!C106<0.5),"-",IFERROR('Tabel 2 H'!C106/'Tabel 1 H'!C104*100,"-")) -> 6.295993459 | D106: =IF(OR('Tabel 1 H'!C104<5,'Tabel 2 H'!D106<0.5),"-",IFERROR('Tabel 2 H'!D106/'Tabel 1 H'!C104*100,"-")) -> 5.180258258 | F106: =IF(OR('Tabel 1 H'!E104<5,'Tabel 2 H'!F106<0.5),"-",IFERROR('Tabel 2 H'!F106/'Tabel 1 H'!E104*100,"-")) -> 6.110133266 | G106: =IF(OR('Tabel 1 H'!E104<5,'Tabel 2 H'!G106<0.5),"-",IFERROR('Tabel 2 H'!G106/'Tabel 1 H'!E104*100,"-")) -> 4.893959986 | I106: =IF(OR('Tabel 1 H'!G104<5,'Tabel 2 H'!I106<0.5),"-",IFERROR('Tabel 2 H'!I106/'Tabel 1 H'!G104*100,"-")) -> 6.195293076 | J106: =IF(OR('Tabel 1 H'!G104<5,'Tabel 2 H'!J106<0.5),"-",IFERROR('Tabel 2 H'!J106/'Tabel 1 H'!G104*100,"-")) -> 5.025139804
A111: Frederiksberg
C113: Mænd | F113: Kvinder | I113: I alt
C114: Ledigheds- berørte | D114: Gns. brutto- ledighed | F114: Ledigheds- berørte | G114: Gns. brutto- ledighed | I114: Ledigheds- berørte | J114: Gns. brutto- ledighed
A117: Civ. ing. | C117: =IF(OR('Tabel 1 H'!C115<5,'Tabel 2 H'!C117<0.5),"-",IFERROR('Tabel 2 H'!C117/'Tabel 1 H'!C115*100,"-")) -> 3.680203046 | D117: =IF(OR('Tabel 1 H'!C115<5,'Tabel 2 H'!D117<0.5),"-",IFERROR('Tabel 2 H'!D117/'Tabel 1 H'!C115*100,"-")) -> 3.041316118 | F117: =IF(OR('Tabel 1 H'!E115<5,'Tabel 2 H'!F117<0.5),"-",IFERROR('Tabel 2 H'!F117/'Tabel 1 H'!E115*100,"-")) -> 4.573170732 | G117: =IF(OR('Tabel 1 H'!E115<5,'Tabel 2 H'!G117<0.5),"-",IFERROR('Tabel 2 H'!G117/'Tabel 1 H'!E115*100,"-")) -> 3.6846641 | I117: =IF(OR('Tabel 1 H'!G115<5,'Tabel 2 H'!I117<0.5),"-",IFERROR('Tabel 2 H'!I117/'Tabel 1 H'!G115*100,"-")) -> 3.94265233 | J117: =IF(OR('Tabel 1 H'!G115<5,'Tabel 2 H'!J117<0.5),"-",IFERROR('Tabel 2 H'!J117/'Tabel 1 H'!G115*100,"-")) -> 3.230400471
A118: Diplom ing. | C118: =IF(OR('Tabel 1 H'!C116<5,'Tabel 2 H'!C118<0.5),"-",IFERROR('Tabel 2 H'!C118/'Tabel 1 H'!C116*100,"-")) -> 2.401746725 | D118: =IF(OR('Tabel 1 H'!C116<5,'Tabel 2 H'!D118<0.5),"-",IFERROR('Tabel 2 H'!D118/'Tabel 1 H'!C116*100,"-")) -> 1.711671642 | F118: =IF(OR('Tabel 1 H'!E116<5,'Tabel 2 H'!F118<0.5),"-",IFERROR('Tabel 2 H'!F118/'Tabel 1 H'!E116*100,"-")) -> 3.669724771 | G118: =IF(OR('Tabel 1 H'!E116<5,'Tabel 2 H'!G118<0.5),"-",IFERROR('Tabel 2 H'!G118/'Tabel 1 H'!E116*100,"-")) -> 3.489362822 | I118: =IF(OR('Tabel 1 H'!G116<5,'Tabel 2 H'!I118<0.5),"-",IFERROR('Tabel 2 H'!I118/'Tabel 1 H'!G116*100,"-")) -> 2.645502646 | J118: =IF(OR('Tabel 1 H'!G116<5,'Tabel 2 H'!J118<0.5),"-",IFERROR('Tabel 2 H'!J118/'Tabel 1 H'!G116*100,"-")) -> 2.053414744
A119: Cand. Scient. Tek. | C119: =IF(OR('Tabel 1 H'!C117<5,'Tabel 2 H'!C119<0.5),"-",IFERROR('Tabel 2 H'!C119/'Tabel 1 H'!C117*100,"-")) -> 6.588235294 | D119: =IF(OR('Tabel 1 H'!C117<5,'Tabel 2 H'!D119<0.5),"-",IFERROR('Tabel 2 H'!D119/'Tabel 1 H'!C117*100,"-")) -> 5.605937753 | F119: =IF(OR('Tabel 1 H'!E117<5,'Tabel 2 H'!F119<0.5),"-",IFERROR('Tabel 2 H'!F119/'Tabel 1 H'!E117*100,"-")) -> 8.436724566 | G119: =IF(OR('Tabel 1 H'!E117<5,'Tabel 2 H'!G119<0.5),"-",IFERROR('Tabel 2 H'!G119/'Tabel 1 H'!E117*100,"-")) -> 6.427035802 | I119: =IF(OR('Tabel 1 H'!G117<5,'Tabel 2 H'!I119<0.5),"-",IFERROR('Tabel 2 H'!I119/'Tabel 1 H'!G117*100,"-")) -> 7.487922705 | J119: =IF(OR('Tabel 1 H'!G117<5,'Tabel 2 H'!J119<0.5),"-",IFERROR('Tabel 2 H'!J119/'Tabel 1 H'!G117*100,"-")) -> 6.00557847
A120: MA. Hum. | C120: =IF(OR('Tabel 1 H'!C118<5,'Tabel 2 H'!C120<0.5),"-",IFERROR('Tabel 2 H'!C120/'Tabel 1 H'!C118*100,"-")) -> 9.208103131 | D120: =IF(OR('Tabel 1 H'!C118<5,'Tabel 2 H'!D120<0.5),"-",IFERROR('Tabel 2 H'!D120/'Tabel 1 H'!C118*100,"-")) -> 6.536357621 | F120: =IF(OR('Tabel 1 H'!E118<5,'Tabel 2 H'!F120<0.5),"-",IFERROR('Tabel 2 H'!F120/'Tabel 1 H'!E118*100,"-")) -> 9.442724458 | G120: =IF(OR('Tabel 1 H'!E118<5,'Tabel 2 H'!G120<0.5),"-",IFERROR('Tabel 2 H'!G120/'Tabel 1 H'!E118*100,"-")) -> 7.162809909 | I120: =IF(OR('Tabel 1 H'!G118<5,'Tabel 2 H'!I120<0.5),"-",IFERROR('Tabel 2 H'!I120/'Tabel 1 H'!G118*100,"-")) -> 9.373297003 | J120: =IF(OR('Tabel 1 H'!G118<5,'Tabel 2 H'!J120<0.5),"-",IFERROR('Tabel 2 H'!J120/'Tabel 1 H'!G118*100,"-")) -> 6.977434654
A121: MA. Nat. | C121: =IF(OR('Tabel 1 H'!C119<5,'Tabel 2 H'!C121<0.5),"-",IFERROR('Tabel 2 H'!C121/'Tabel 1 H'!C119*100,"-")) -> 5.905511811 | D121: =IF(OR('Tabel 1 H'!C119<5,'Tabel 2 H'!D121<0.5),"-",IFERROR('Tabel 2 H'!D121/'Tabel 1 H'!C119*100,"-")) -> 4.81168024 | F121: =IF(OR('Tabel 1 H'!E119<5,'Tabel 2 H'!F121<0.5),"-",IFERROR('Tabel 2 H'!F121/'Tabel 1 H'!E119*100,"-")) -> 5.809128631 | G121: =IF(OR('Tabel 1 H'!E119<5,'Tabel 2 H'!G121<0.5),"-",IFERROR('Tabel 2 H'!G121/'Tabel 1 H'!E119*100,"-")) -> 4.524899759 | I121: =IF(OR('Tabel 1 H'!G119<5,'Tabel 2 H'!I121<0.5),"-",IFERROR('Tabel 2 H'!I121/'Tabel 1 H'!G119*100,"-")) -> 5.858585859 | J121: =IF(OR('Tabel 1 H'!G119<5,'Tabel 2 H'!J121<0.5),"-",IFERROR('Tabel 2 H'!J121/'Tabel 1 H'!G119*100,"-")) -> 4.672055804
A122: MA. Ph.d. | C122: =IF(OR('Tabel 1 H'!C120<5,'Tabel 2 H'!C122<0.5),"-",IFERROR('Tabel 2 H'!C122/'Tabel 1 H'!C120*100,"-")) -> 8.064516129 | D122: =IF(OR('Tabel 1 H'!C120<5,'Tabel 2 H'!D122<0.5),"-",IFERROR('Tabel 2 H'!D122/'Tabel 1 H'!C120*100,"-")) -> 4.08431803 | F122: =IF(OR('Tabel 1 H'!E120<5,'Tabel 2 H'!F122<0.5),"-",IFERROR('Tabel 2 H'!F122/'Tabel 1 H'!E120*100,"-")) -> 4.6875 | G122: =IF(OR('Tabel 1 H'!E120<5,'Tabel 2 H'!G122<0.5),"-",IFERROR('Tabel 2 H'!G122/'Tabel 1 H'!E120*100,"-")) -> 4.686622903 | I122: =IF(OR('Tabel 1 H'!G120<5,'Tabel 2 H'!I122<0.5),"-",IFERROR('Tabel 2 H'!I122/'Tabel 1 H'!G120*100,"-")) -> 6.349206349 | J122: =IF(OR('Tabel 1 H'!G120<5,'Tabel 2 H'!J122<0.5),"-",IFERROR('Tabel 2 H'!J122/'Tabel 1 H'!G120*100,"-")) -> 4.390250664
A123: MA. Samf. | C123: =IF(OR('Tabel 1 H'!C121<5,'Tabel 2 H'!C123<0.5),"-",IFERROR('Tabel 2 H'!C123/'Tabel 1 H'!C121*100,"-")) -> 14.42307692 | D123: =IF(OR('Tabel 1 H'!C121<5,'Tabel 2 H'!D123<0.5),"-",IFERROR('Tabel 2 H'!D123/'Tabel 1 H'!C121*100,"-")) -> 11.10210191 | F123: =IF(OR('Tabel 1 H'!E121<5,'Tabel 2 H'!F123<0.5),"-",IFERROR('Tabel 2 H'!F123/'Tabel 1 H'!E121*100,"-")) -> 11.73913043 | G123: =IF(OR('Tabel 1 H'!E121<5,'Tabel 2 H'!G123<0.5),"-",IFERROR('Tabel 2 H'!G123/'Tabel 1 H'!E121*100,"-")) -> 9.297671379 | I123: =IF(OR('Tabel 1 H'!G121<5,'Tabel 2 H'!I123<0.5),"-",IFERROR('Tabel 2 H'!I123/'Tabel 1 H'!G121*100,"-")) -> 12.5748503 | J123: =IF(OR('Tabel 1 H'!G121<5,'Tabel 2 H'!J123<0.5),"-",IFERROR('Tabel 2 H'!J123/'Tabel 1 H'!G121*100,"-")) -> 9.859529989
A124: Øvrige Mag. | C124: =IF(OR('Tabel 1 H'!C122<5,'Tabel 2 H'!C124<0.5),"-",IFERROR('Tabel 2 H'!C124/'Tabel 1 H'!C122*100,"-")) -> 6.666666667 | D124: =IF(OR('Tabel 1 H'!C122<5,'Tabel 2 H'!D124<0.5),"-",IFERROR('Tabel 2 H'!D124/'Tabel 1 H'!C122*100,"-")) -> 3.588432192 | F124: =IF(OR('Tabel 1 H'!E122<5,'Tabel 2 H'!F124<0.5),"-",IFERROR('Tabel 2 H'!F124/'Tabel 1 H'!E122*100,"-")) -> 15 | G124: =IF(OR('Tabel 1 H'!E122<5,'Tabel 2 H'!G124<0.5),"-",IFERROR('Tabel 2 H'!G124/'Tabel 1 H'!E122*100,"-")) -> 13.31004803 | I124: =IF(OR('Tabel 1 H'!G122<5,'Tabel 2 H'!I124<0.5),"-",IFERROR('Tabel 2 H'!I124/'Tabel 1 H'!G122*100,"-")) -> 12 | J124: =IF(OR('Tabel 1 H'!G122<5,'Tabel 2 H'!J124<0.5),"-",IFERROR('Tabel 2 H'!J124/'Tabel 1 H'!G122*100,"-")) -> 9.810266326
A125: Agronom | C125: =IF(OR('Tabel 1 H'!C123<5,'Tabel 2 H'!C125<0.5),"-",IFERROR('Tabel 2 H'!C125/'Tabel 1 H'!C123*100,"-")) -> 2.380952381 | D125: =IF(OR('Tabel 1 H'!C123<5,'Tabel 2 H'!D125<0.5),"-",IFERROR('Tabel 2 H'!D125/'Tabel 1 H'!C123*100,"-")) -> 1.940937293 | F125: =IF(OR('Tabel 1 H'!E123<5,'Tabel 2 H'!F125<0.5),"-",IFERROR('Tabel 2 H'!F125/'Tabel 1 H'!E123*100,"-")) -> 8.333333333 | G125: =IF(OR('Tabel 1 H'!E123<5,'Tabel 2 H'!G125<0.5),"-",IFERROR('Tabel 2 H'!G125/'Tabel 1 H'!E123*100,"-")) -> 8.331774049 | I125: =IF(OR('Tabel 1 H'!G123<5,'Tabel 2 H'!I125<0.5),"-",IFERROR('Tabel 2 H'!I125/'Tabel 1 H'!G123*100,"-")) -> 5.128205128 | J125: =IF(OR('Tabel 1 H'!G123<5,'Tabel 2 H'!J125<0.5),"-",IFERROR('Tabel 2 H'!J125/'Tabel 1 H'!G123*100,"-")) -> 4.890554257
A126: Landsk. Arkt. | C126: =IF(OR('Tabel 1 H'!C124<5,'Tabel 2 H'!C126<0.5),"-",IFERROR('Tabel 2 H'!C126/'Tabel 1 H'!C124*100,"-")) -> 14.28571429 | D126: =IF(OR('Tabel 1 H'!C124<5,'Tabel 2 H'!D126<0.5),"-",IFERROR('Tabel 2 H'!D126/'Tabel 1 H'!C124*100,"-")) -> 9.337883472 | F126: =IF(OR('Tabel 1 H'!E124<5,'Tabel 2 H'!F126<0.5),"-",IFERROR('Tabel 2 H'!F126/'Tabel 1 H'!E124*100,"-")) -> - | G126: =IF(OR('Tabel 1 H'!E124<5,'Tabel 2 H'!G126<0.5),"-",IFERROR('Tabel 2 H'!G126/'Tabel 1 H'!E124*100,"-")) -> - | I126: =IF(OR('Tabel 1 H'!G124<5,'Tabel 2 H'!I126<0.5),"-",IFERROR('Tabel 2 H'!I126/'Tabel 1 H'!G124*100,"-")) -> 6.060606061 | J126: =IF(OR('Tabel 1 H'!G124<5,'Tabel 2 H'!J126<0.5),"-",IFERROR('Tabel 2 H'!J126/'Tabel 1 H'!G124*100,"-")) -> 3.961526322
A127: Hortonom | C127: =IF(OR('Tabel 1 H'!C125<5,'Tabel 2 H'!C127<0.5),"-",IFERROR('Tabel 2 H'!C127/'Tabel 1 H'!C125*100,"-")) -> - | D127: =IF(OR('Tabel 1 H'!C125<5,'Tabel 2 H'!D127<0.5),"-",IFERROR('Tabel 2 H'!D127/'Tabel 1 H'!C125*100,"-")) -> - | F127: =IF(OR('Tabel 1 H'!E125<5,'Tabel 2 H'!F127<0.5),"-",IFERROR('Tabel 2 H'!F127/'Tabel 1 H'!E125*100,"-")) -> - | G127: =IF(OR('Tabel 1 H'!E125<5,'Tabel 2 H'!G127<0.5),"-",IFERROR('Tabel 2 H'!G127/'Tabel 1 H'!E125*100,"-")) -> - | I127: =IF(OR('Tabel 1 H'!G125<5,'Tabel 2 H'!I127<0.5),"-",IFERROR('Tabel 2 H'!I127/'Tabel 1 H'!G125*100,"-")) -> - | J127: =IF(OR('Tabel 1 H'!G125<5,'Tabel 2 H'!J127<0.5),"-",IFERROR('Tabel 2 H'!J127/'Tabel 1 H'!G125*100,"-")) -> -
A128: Forstkand. | C128: =IF(OR('Tabel 1 H'!C126<5,'Tabel 2 H'!C128<0.5),"-",IFERROR('Tabel 2 H'!C128/'Tabel 1 H'!C126*100,"-")) -> 14.28571429 | D128: =IF(OR('Tabel 1 H'!C126<5,'Tabel 2 H'!D128<0.5),"-",IFERROR('Tabel 2 H'!D128/'Tabel 1 H'!C126*100,"-")) -> 11.64562376 | F128: =IF(OR('Tabel 1 H'!E126<5,'Tabel 2 H'!F128<0.5),"-",IFERROR('Tabel 2 H'!F128/'Tabel 1 H'!E126*100,"-")) -> - | G128: =IF(OR('Tabel 1 H'!E126<5,'Tabel 2 H'!G128<0.5),"-",IFERROR('Tabel 2 H'!G128/'Tabel 1 H'!E126*100,"-")) -> - | I128: =IF(OR('Tabel 1 H'!G126<5,'Tabel 2 H'!I128<0.5),"-",IFERROR('Tabel 2 H'!I128/'Tabel 1 H'!G126*100,"-")) -> 7.692307692 | J128: =IF(OR('Tabel 1 H'!G126<5,'Tabel 2 H'!J128<0.5),"-",IFERROR('Tabel 2 H'!J128/'Tabel 1 H'!G126*100,"-")) -> 6.270720485
A129: Jordbrugsakad. | C129: =IF(OR('Tabel 1 H'!C127<5,'Tabel 2 H'!C129<0.5),"-",IFERROR('Tabel 2 H'!C129/'Tabel 1 H'!C127*100,"-")) -> 6.25 | D129: =IF(OR('Tabel 1 H'!C127<5,'Tabel 2 H'!D129<0.5),"-",IFERROR('Tabel 2 H'!D129/'Tabel 1 H'!C127*100,"-")) -> 4.590142207 | F129: =IF(OR('Tabel 1 H'!E127<5,'Tabel 2 H'!F129<0.5),"-",IFERROR('Tabel 2 H'!F129/'Tabel 1 H'!E127*100,"-")) -> 4.411764706 | G129: =IF(OR('Tabel 1 H'!E127<5,'Tabel 2 H'!G129<0.5),"-",IFERROR('Tabel 2 H'!G129/'Tabel 1 H'!E127*100,"-")) -> 4.410939203 | I129: =IF(OR('Tabel 1 H'!G127<5,'Tabel 2 H'!I129<0.5),"-",IFERROR('Tabel 2 H'!I129/'Tabel 1 H'!G127*100,"-")) -> 5.303030303 | J129: =IF(OR('Tabel 1 H'!G127<5,'Tabel 2 H'!J129<0.5),"-",IFERROR('Tabel 2 H'!J129/'Tabel 1 H'!G127*100,"-")) -> 4.497825508
A130: Mejeriing. | C130: =IF(OR('Tabel 1 H'!C128<5,'Tabel 2 H'!C130<0.5),"-",IFERROR('Tabel 2 H'!C130/'Tabel 1 H'!C128*100,"-")) -> - | D130: =IF(OR('Tabel 1 H'!C128<5,'Tabel 2 H'!D130<0.5),"-",IFERROR('Tabel 2 H'!D130/'Tabel 1 H'!C128*100,"-")) -> - | F130: =IF(OR('Tabel 1 H'!E128<5,'Tabel 2 H'!F130<0.5),"-",IFERROR('Tabel 2 H'!F130/'Tabel 1 H'!E128*100,"-")) -> - | G130: =IF(OR('Tabel 1 H'!E128<5,'Tabel 2 H'!G130<0.5),"-",IFERROR('Tabel 2 H'!G130/'Tabel 1 H'!E128*100,"-")) -> - | I130: =IF(OR('Tabel 1 H'!G128<5,'Tabel 2 H'!I130<0.5),"-",IFERROR('Tabel 2 H'!I130/'Tabel 1 H'!G128*100,"-")) -> - | J130: =IF(OR('Tabel 1 H'!G128<5,'Tabel 2 H'!J130<0.5),"-",IFERROR('Tabel 2 H'!J130/'Tabel 1 H'!G128*100,"-")) -> -
A131: Levn.m.kand. | C131: =IF(OR('Tabel 1 H'!C129<5,'Tabel 2 H'!C131<0.5),"-",IFERROR('Tabel 2 H'!C131/'Tabel 1 H'!C129*100,"-")) -> - | D131: =IF(OR('Tabel 1 H'!C129<5,'Tabel 2 H'!D131<0.5),"-",IFERROR('Tabel 2 H'!D131/'Tabel 1 H'!C129*100,"-")) -> - | F131: =IF(OR('Tabel 1 H'!E129<5,'Tabel 2 H'!F131<0.5),"-",IFERROR('Tabel 2 H'!F131/'Tabel 1 H'!E129*100,"-")) -> 4.347826087 | G131: =IF(OR('Tabel 1 H'!E129<5,'Tabel 2 H'!G131<0.5),"-",IFERROR('Tabel 2 H'!G131/'Tabel 1 H'!E129*100,"-")) -> 4.347012547 | I131: =IF(OR('Tabel 1 H'!G129<5,'Tabel 2 H'!I131<0.5),"-",IFERROR('Tabel 2 H'!I131/'Tabel 1 H'!G129*100,"-")) -> 11.11111111 | J131: =IF(OR('Tabel 1 H'!G129<5,'Tabel 2 H'!J131<0.5),"-",IFERROR('Tabel 2 H'!J131/'Tabel 1 H'!G129*100,"-")) -> 9.741482267
A132: Dyrlæge | C132: =IF(OR('Tabel 1 H'!C130<5,'Tabel 2 H'!C132<0.5),"-",IFERROR('Tabel 2 H'!C132/'Tabel 1 H'!C130*100,"-")) -> - | D132: =IF(OR('Tabel 1 H'!C130<5,'Tabel 2 H'!D132<0.5),"-",IFERROR('Tabel 2 H'!D132/'Tabel 1 H'!C130*100,"-")) -> - | F132: =IF(OR('Tabel 1 H'!E130<5,'Tabel 2 H'!F132<0.5),"-",IFERROR('Tabel 2 H'!F132/'Tabel 1 H'!E130*100,"-")) -> 3.278688525 | G132: =IF(OR('Tabel 1 H'!E130<5,'Tabel 2 H'!G132<0.5),"-",IFERROR('Tabel 2 H'!G132/'Tabel 1 H'!E130*100,"-")) -> 2.899756956 | I132: =IF(OR('Tabel 1 H'!G130<5,'Tabel 2 H'!I132<0.5),"-",IFERROR('Tabel 2 H'!I132/'Tabel 1 H'!G130*100,"-")) -> 2.631578947 | J132: =IF(OR('Tabel 1 H'!G130<5,'Tabel 2 H'!J132<0.5),"-",IFERROR('Tabel 2 H'!J132/'Tabel 1 H'!G130*100,"-")) -> 2.327436504
A133: Farmaceut | C133: =IF(OR('Tabel 1 H'!C131<5,'Tabel 2 H'!C133<0.5),"-",IFERROR('Tabel 2 H'!C133/'Tabel 1 H'!C131*100,"-")) -> 7.352941176 | D133: =IF(OR('Tabel 1 H'!C131<5,'Tabel 2 H'!D133<0.5),"-",IFERROR('Tabel 2 H'!D133/'Tabel 1 H'!C131*100,"-")) -> 5.67487645 | F133: =IF(OR('Tabel 1 H'!E131<5,'Tabel 2 H'!F133<0.5),"-",IFERROR('Tabel 2 H'!F133/'Tabel 1 H'!E131*100,"-")) -> 1.27388535 | G133: =IF(OR('Tabel 1 H'!E131<5,'Tabel 2 H'!G133<0.5),"-",IFERROR('Tabel 2 H'!G133/'Tabel 1 H'!E131*100,"-")) -> 1.273646988 | I133: =IF(OR('Tabel 1 H'!G131<5,'Tabel 2 H'!I133<0.5),"-",IFERROR('Tabel 2 H'!I133/'Tabel 1 H'!G131*100,"-")) -> 3.111111111 | J133: =IF(OR('Tabel 1 H'!G131<5,'Tabel 2 H'!J133<0.5),"-",IFERROR('Tabel 2 H'!J133/'Tabel 1 H'!G131*100,"-")) -> 2.603796337
A134: Læge | C134: =IF(OR('Tabel 1 H'!C132<5,'Tabel 2 H'!C134<0.5),"-",IFERROR('Tabel 2 H'!C134/'Tabel 1 H'!C132*100,"-")) -> 7.051282051 | D134: =IF(OR('Tabel 1 H'!C132<5,'Tabel 2 H'!D134<0.5),"-",IFERROR('Tabel 2 H'!D134/'Tabel 1 H'!C132*100,"-")) -> 5.925678928 | F134: =IF(OR('Tabel 1 H'!E132<5,'Tabel 2 H'!F134<0.5),"-",IFERROR('Tabel 2 H'!F134/'Tabel 1 H'!E132*100,"-")) -> 4.335260116 | G134: =IF(OR('Tabel 1 H'!E132<5,'Tabel 2 H'!G134<0.5),"-",IFERROR('Tabel 2 H'!G134/'Tabel 1 H'!E132*100,"-")) -> 3.683515466 | I134: =IF(OR('Tabel 1 H'!G132<5,'Tabel 2 H'!I134<0.5),"-",IFERROR('Tabel 2 H'!I134/'Tabel 1 H'!G132*100,"-")) -> 5.179282869 | J134: =IF(OR('Tabel 1 H'!G132<5,'Tabel 2 H'!J134<0.5),"-",IFERROR('Tabel 2 H'!J134/'Tabel 1 H'!G132*100,"-")) -> 4.380283395
A135: Tandlæge | C135: =IF(OR('Tabel 1 H'!C133<5,'Tabel 2 H'!C135<0.5),"-",IFERROR('Tabel 2 H'!C135/'Tabel 1 H'!C133*100,"-")) -> - | D135: =IF(OR('Tabel 1 H'!C133<5,'Tabel 2 H'!D135<0.5),"-",IFERROR('Tabel 2 H'!D135/'Tabel 1 H'!C133*100,"-")) -> - | F135: =IF(OR('Tabel 1 H'!E133<5,'Tabel 2 H'!F135<0.5),"-",IFERROR('Tabel 2 H'!F135/'Tabel 1 H'!E133*100,"-")) -> 3.389830508 | G135: =IF(OR('Tabel 1 H'!E133<5,'Tabel 2 H'!G135<0.5),"-",IFERROR('Tabel 2 H'!G135/'Tabel 1 H'!E133*100,"-")) -> 1.279141432 | I135: =IF(OR('Tabel 1 H'!G133<5,'Tabel 2 H'!I135<0.5),"-",IFERROR('Tabel 2 H'!I135/'Tabel 1 H'!G133*100,"-")) -> 3.03030303 | J135: =IF(OR('Tabel 1 H'!G133<5,'Tabel 2 H'!J135<0.5),"-",IFERROR('Tabel 2 H'!J135/'Tabel 1 H'!G133*100,"-")) -> 1.143474916
A136: Arkitekt | C136: =IF(OR('Tabel 1 H'!C134<5,'Tabel 2 H'!C136<0.5),"-",IFERROR('Tabel 2 H'!C136/'Tabel 1 H'!C134*100,"-")) -> 7.537688442 | D136: =IF(OR('Tabel 1 H'!C134<5,'Tabel 2 H'!D136<0.5),"-",IFERROR('Tabel 2 H'!D136/'Tabel 1 H'!C134*100,"-")) -> 6.924161129 | F136: =IF(OR('Tabel 1 H'!E134<5,'Tabel 2 H'!F136<0.5),"-",IFERROR('Tabel 2 H'!F136/'Tabel 1 H'!E134*100,"-")) -> 6.493506494 | G136: =IF(OR('Tabel 1 H'!E134<5,'Tabel 2 H'!G136<0.5),"-",IFERROR('Tabel 2 H'!G136/'Tabel 1 H'!E134*100,"-")) -> 5.20328338 | I136: =IF(OR('Tabel 1 H'!G134<5,'Tabel 2 H'!I136<0.5),"-",IFERROR('Tabel 2 H'!I136/'Tabel 1 H'!G134*100,"-")) -> 6.976744186 | J136: =IF(OR('Tabel 1 H'!G134<5,'Tabel 2 H'!J136<0.5),"-",IFERROR('Tabel 2 H'!J136/'Tabel 1 H'!G134*100,"-")) -> 5.999689594
A137: Landinspek. | C137: =IF(OR('Tabel 1 H'!C135<5,'Tabel 2 H'!C137<0.5),"-",IFERROR('Tabel 2 H'!C137/'Tabel 1 H'!C135*100,"-")) -> 14.28571429 | D137: =IF(OR('Tabel 1 H'!C135<5,'Tabel 2 H'!D137<0.5),"-",IFERROR('Tabel 2 H'!D137/'Tabel 1 H'!C135*100,"-")) -> 9.337883472 | F137: =IF(OR('Tabel 1 H'!E135<5,'Tabel 2 H'!F137<0.5),"-",IFERROR('Tabel 2 H'!F137/'Tabel 1 H'!E135*100,"-")) -> - | G137: =IF(OR('Tabel 1 H'!E135<5,'Tabel 2 H'!G137<0.5),"-",IFERROR('Tabel 2 H'!G137/'Tabel 1 H'!E135*100,"-")) -> - | I137: =IF(OR('Tabel 1 H'!G135<5,'Tabel 2 H'!I137<0.5),"-",IFERROR('Tabel 2 H'!I137/'Tabel 1 H'!G135*100,"-")) -> 16.66666667 | J137: =IF(OR('Tabel 1 H'!G135<5,'Tabel 2 H'!J137<0.5),"-",IFERROR('Tabel 2 H'!J137/'Tabel 1 H'!G135*100,"-")) -> 9.740327242
A138: Bibliotekar | C138: =IF(OR('Tabel 1 H'!C136<5,'Tabel 2 H'!C138<0.5),"-",IFERROR('Tabel 2 H'!C138/'Tabel 1 H'!C136*100,"-")) -> 6.896551724 | D138: =IF(OR('Tabel 1 H'!C136<5,'Tabel 2 H'!D138<0.5),"-",IFERROR('Tabel 2 H'!D138/'Tabel 1 H'!C136*100,"-")) -> 5.46287076 | F138: =IF(OR('Tabel 1 H'!E136<5,'Tabel 2 H'!F138<0.5),"-",IFERROR('Tabel 2 H'!F138/'Tabel 1 H'!E136*100,"-")) -> 6.315789474 | G138: =IF(OR('Tabel 1 H'!E136<5,'Tabel 2 H'!G138<0.5),"-",IFERROR('Tabel 2 H'!G138/'Tabel 1 H'!E136*100,"-")) -> 4.651590306 | I138: =IF(OR('Tabel 1 H'!G136<5,'Tabel 2 H'!I138<0.5),"-",IFERROR('Tabel 2 H'!I138/'Tabel 1 H'!G136*100,"-")) -> 6.451612903 | J138: =IF(OR('Tabel 1 H'!G136<5,'Tabel 2 H'!J138<0.5),"-",IFERROR('Tabel 2 H'!J138/'Tabel 1 H'!G136*100,"-")) -> 4.841325251
A139: Musikudd. | C139: =IF(OR('Tabel 1 H'!C137<5,'Tabel 2 H'!C139<0.5),"-",IFERROR('Tabel 2 H'!C139/'Tabel 1 H'!C137*100,"-")) -> 9.090909091 | D139: =IF(OR('Tabel 1 H'!C137<5,'Tabel 2 H'!D139<0.5),"-",IFERROR('Tabel 2 H'!D139/'Tabel 1 H'!C137*100,"-")) -> 6.764457398 | F139: =IF(OR('Tabel 1 H'!E137<5,'Tabel 2 H'!F139<0.5),"-",IFERROR('Tabel 2 H'!F139/'Tabel 1 H'!E137*100,"-")) -> - | G139: =IF(OR('Tabel 1 H'!E137<5,'Tabel 2 H'!G139<0.5),"-",IFERROR('Tabel 2 H'!G139/'Tabel 1 H'!E137*100,"-")) -> - | I139: =IF(OR('Tabel 1 H'!G137<5,'Tabel 2 H'!I139<0.5),"-",IFERROR('Tabel 2 H'!I139/'Tabel 1 H'!G137*100,"-")) -> 5.263157895 | J139: =IF(OR('Tabel 1 H'!G137<5,'Tabel 2 H'!J139<0.5),"-",IFERROR('Tabel 2 H'!J139/'Tabel 1 H'!G137*100,"-")) -> 3.916264809
A140: Teolog | C140: =IF(OR('Tabel 1 H'!C138<5,'Tabel 2 H'!C140<0.5),"-",IFERROR('Tabel 2 H'!C140/'Tabel 1 H'!C138*100,"-")) -> - | D140: =IF(OR('Tabel 1 H'!C138<5,'Tabel 2 H'!D140<0.5),"-",IFERROR('Tabel 2 H'!D140/'Tabel 1 H'!C138*100,"-")) -> - | F140: =IF(OR('Tabel 1 H'!E138<5,'Tabel 2 H'!F140<0.5),"-",IFERROR('Tabel 2 H'!F140/'Tabel 1 H'!E138*100,"-")) -> 10.71428571 | G140: =IF(OR('Tabel 1 H'!E138<5,'Tabel 2 H'!G140<0.5),"-",IFERROR('Tabel 2 H'!G140/'Tabel 1 H'!E138*100,"-")) -> 8.42681612 | I140: =IF(OR('Tabel 1 H'!G138<5,'Tabel 2 H'!I140<0.5),"-",IFERROR('Tabel 2 H'!I140/'Tabel 1 H'!G138*100,"-")) -> 8.333333333 | J140: =IF(OR('Tabel 1 H'!G138<5,'Tabel 2 H'!J140<0.5),"-",IFERROR('Tabel 2 H'!J140/'Tabel 1 H'!G138*100,"-")) -> 6.554190316
A141: Psykolog | C141: =IF(OR('Tabel 1 H'!C139<5,'Tabel 2 H'!C141<0.5),"-",IFERROR('Tabel 2 H'!C141/'Tabel 1 H'!C139*100,"-")) -> 11.47540984 | D141: =IF(OR('Tabel 1 H'!C139<5,'Tabel 2 H'!D141<0.5),"-",IFERROR('Tabel 2 H'!D141/'Tabel 1 H'!C139*100,"-")) -> 8.935464048 | F141: =IF(OR('Tabel 1 H'!E139<5,'Tabel 2 H'!F141<0.5),"-",IFERROR('Tabel 2 H'!F141/'Tabel 1 H'!E139*100,"-")) -> 5.300353357 | G141: =IF(OR('Tabel 1 H'!E139<5,'Tabel 2 H'!G141<0.5),"-",IFERROR('Tabel 2 H'!G141/'Tabel 1 H'!E139*100,"-")) -> 4.371725366 | I141: =IF(OR('Tabel 1 H'!G139<5,'Tabel 2 H'!I141<0.5),"-",IFERROR('Tabel 2 H'!I141/'Tabel 1 H'!G139*100,"-")) -> 6.395348837 | J141: =IF(OR('Tabel 1 H'!G139<5,'Tabel 2 H'!J141<0.5),"-",IFERROR('Tabel 2 H'!J141/'Tabel 1 H'!G139*100,"-")) -> 5.180992981
A142: Jurist | C142: =IF(OR('Tabel 1 H'!C140<5,'Tabel 2 H'!C142<0.5),"-",IFERROR('Tabel 2 H'!C142/'Tabel 1 H'!C140*100,"-")) -> 2.5 | D142: =IF(OR('Tabel 1 H'!C140<5,'Tabel 2 H'!D142<0.5),"-",IFERROR('Tabel 2 H'!D142/'Tabel 1 H'!C140*100,"-")) -> 2.325204266 | F142: =IF(OR('Tabel 1 H'!E140<5,'Tabel 2 H'!F142<0.5),"-",IFERROR('Tabel 2 H'!F142/'Tabel 1 H'!E140*100,"-")) -> 2.37388724 | G142: =IF(OR('Tabel 1 H'!E140<5,'Tabel 2 H'!G142<0.5),"-",IFERROR('Tabel 2 H'!G142/'Tabel 1 H'!E140*100,"-")) -> 2.236485172 | I142: =IF(OR('Tabel 1 H'!G140<5,'Tabel 2 H'!I142<0.5),"-",IFERROR('Tabel 2 H'!I142/'Tabel 1 H'!G140*100,"-")) -> 2.420856611 | J142: =IF(OR('Tabel 1 H'!G140<5,'Tabel 2 H'!J142<0.5),"-",IFERROR('Tabel 2 H'!J142/'Tabel 1 H'!G140*100,"-")) -> 2.269527665
A143: Økonom | C143: =IF(OR('Tabel 1 H'!C141<5,'Tabel 2 H'!C143<0.5),"-",IFERROR('Tabel 2 H'!C143/'Tabel 1 H'!C141*100,"-")) -> 2.808988764 | D143: =IF(OR('Tabel 1 H'!C141<5,'Tabel 2 H'!D143<0.5),"-",IFERROR('Tabel 2 H'!D143/'Tabel 1 H'!C141*100,"-")) -> 2.445447837 | F143: =IF(OR('Tabel 1 H'!E141<5,'Tabel 2 H'!F143<0.5),"-",IFERROR('Tabel 2 H'!F143/'Tabel 1 H'!E141*100,"-")) -> 2.074688797 | G143: =IF(OR('Tabel 1 H'!E141<5,'Tabel 2 H'!G143<0.5),"-",IFERROR('Tabel 2 H'!G143/'Tabel 1 H'!E141*100,"-")) -> 1.489148548 | I143: =IF(OR('Tabel 1 H'!G141<5,'Tabel 2 H'!I143<0.5),"-",IFERROR('Tabel 2 H'!I143/'Tabel 1 H'!G141*100,"-")) -> 2.512562814 | J143: =IF(OR('Tabel 1 H'!G141<5,'Tabel 2 H'!J143<0.5),"-",IFERROR('Tabel 2 H'!J143/'Tabel 1 H'!G141*100,"-")) -> 2.05940407
A144: Samf. Adm. | C144: =IF(OR('Tabel 1 H'!C142<5,'Tabel 2 H'!C144<0.5),"-",IFERROR('Tabel 2 H'!C144/'Tabel 1 H'!C142*100,"-")) -> 5.507246377 | D144: =IF(OR('Tabel 1 H'!C142<5,'Tabel 2 H'!D144<0.5),"-",IFERROR('Tabel 2 H'!D144/'Tabel 1 H'!C142*100,"-")) -> 4.4188752 | F144: =IF(OR('Tabel 1 H'!E142<5,'Tabel 2 H'!F144<0.5),"-",IFERROR('Tabel 2 H'!F144/'Tabel 1 H'!E142*100,"-")) -> 5.123339658 | G144: =IF(OR('Tabel 1 H'!E142<5,'Tabel 2 H'!G144<0.5),"-",IFERROR('Tabel 2 H'!G144/'Tabel 1 H'!E142*100,"-")) -> 4.311375814 | I144: =IF(OR('Tabel 1 H'!G142<5,'Tabel 2 H'!I144<0.5),"-",IFERROR('Tabel 2 H'!I144/'Tabel 1 H'!G142*100,"-")) -> 5.275229358 | J144: =IF(OR('Tabel 1 H'!G142<5,'Tabel 2 H'!J144<0.5),"-",IFERROR('Tabel 2 H'!J144/'Tabel 1 H'!G142*100,"-")) -> 4.353907108
A145: Cand. Merc. | C145: =IF(OR('Tabel 1 H'!C143<5,'Tabel 2 H'!C145<0.5),"-",IFERROR('Tabel 2 H'!C145/'Tabel 1 H'!C143*100,"-")) -> 5.596107056 | D145: =IF(OR('Tabel 1 H'!C143<5,'Tabel 2 H'!D145<0.5),"-",IFERROR('Tabel 2 H'!D145/'Tabel 1 H'!C143*100,"-")) -> 4.582903803 | F145: =IF(OR('Tabel 1 H'!E143<5,'Tabel 2 H'!F145<0.5),"-",IFERROR('Tabel 2 H'!F145/'Tabel 1 H'!E143*100,"-")) -> 5.990415335 | G145: =IF(OR('Tabel 1 H'!E143<5,'Tabel 2 H'!G145<0.5),"-",IFERROR('Tabel 2 H'!G145/'Tabel 1 H'!E143*100,"-")) -> 4.704454411 | I145: =IF(OR('Tabel 1 H'!G143<5,'Tabel 2 H'!I145<0.5),"-",IFERROR('Tabel 2 H'!I145/'Tabel 1 H'!G143*100,"-")) -> 5.794768612 | J145: =IF(OR('Tabel 1 H'!G143<5,'Tabel 2 H'!J145<0.5),"-",IFERROR('Tabel 2 H'!J145/'Tabel 1 H'!G143*100,"-")) -> 4.644143787
A146: HA | C146: =IF(OR('Tabel 1 H'!C144<5,'Tabel 2 H'!C146<0.5),"-",IFERROR('Tabel 2 H'!C146/'Tabel 1 H'!C144*100,"-")) -> 11.97183099 | D146: =IF(OR('Tabel 1 H'!C144<5,'Tabel 2 H'!D146<0.5),"-",IFERROR('Tabel 2 H'!D146/'Tabel 1 H'!C144*100,"-")) -> 9.010465211 | F146: =IF(OR('Tabel 1 H'!E144<5,'Tabel 2 H'!F146<0.5),"-",IFERROR('Tabel 2 H'!F146/'Tabel 1 H'!E144*100,"-")) -> 9.615384615 | G146: =IF(OR('Tabel 1 H'!E144<5,'Tabel 2 H'!G146<0.5),"-",IFERROR('Tabel 2 H'!G146/'Tabel 1 H'!E144*100,"-")) -> 6.702522202 | I146: =IF(OR('Tabel 1 H'!G144<5,'Tabel 2 H'!I146<0.5),"-",IFERROR('Tabel 2 H'!I146/'Tabel 1 H'!G144*100,"-")) -> 10.97560976 | J146: =IF(OR('Tabel 1 H'!G144<5,'Tabel 2 H'!J146<0.5),"-",IFERROR('Tabel 2 H'!J146/'Tabel 1 H'!G144*100,"-")) -> 8.034749467
A147: HD | C147: =IF(OR('Tabel 1 H'!C145<5,'Tabel 2 H'!C147<0.5),"-",IFERROR('Tabel 2 H'!C147/'Tabel 1 H'!C145*100,"-")) -> 5.93220339 | D147: =IF(OR('Tabel 1 H'!C145<5,'Tabel 2 H'!D147<0.5),"-",IFERROR('Tabel 2 H'!D147/'Tabel 1 H'!C145*100,"-")) -> 4.956937334 | F147: =IF(OR('Tabel 1 H'!E145<5,'Tabel 2 H'!F147<0.5),"-",IFERROR('Tabel 2 H'!F147/'Tabel 1 H'!E145*100,"-")) -> 7.954545455 | G147: =IF(OR('Tabel 1 H'!E145<5,'Tabel 2 H'!G147<0.5),"-",IFERROR('Tabel 2 H'!G147/'Tabel 1 H'!E145*100,"-")) -> 7.225154936 | I147: =IF(OR('Tabel 1 H'!G145<5,'Tabel 2 H'!I147<0.5),"-",IFERROR('Tabel 2 H'!I147/'Tabel 1 H'!G145*100,"-")) -> 6.796116505 | J147: =IF(OR('Tabel 1 H'!G145<5,'Tabel 2 H'!J147<0.5),"-",IFERROR('Tabel 2 H'!J147/'Tabel 1 H'!G145*100,"-")) -> 5.925884659
A148: Komm. og Sprog | C148: =IF(OR('Tabel 1 H'!C146<5,'Tabel 2 H'!C148<0.5),"-",IFERROR('Tabel 2 H'!C148/'Tabel 1 H'!C146*100,"-")) -> 10.16949153 | D148: =IF(OR('Tabel 1 H'!C146<5,'Tabel 2 H'!D148<0.5),"-",IFERROR('Tabel 2 H'!D148/'Tabel 1 H'!C146*100,"-")) -> 8.61887611 | F148: =IF(OR('Tabel 1 H'!E146<5,'Tabel 2 H'!F148<0.5),"-",IFERROR('Tabel 2 H'!F148/'Tabel 1 H'!E146*100,"-")) -> 7.763975155 | G148: =IF(OR('Tabel 1 H'!E146<5,'Tabel 2 H'!G148<0.5),"-",IFERROR('Tabel 2 H'!G148/'Tabel 1 H'!E146*100,"-")) -> 6.726034386 | I148: =IF(OR('Tabel 1 H'!G146<5,'Tabel 2 H'!I148<0.5),"-",IFERROR('Tabel 2 H'!I148/'Tabel 1 H'!G146*100,"-")) -> 8.13648294 | J148: =IF(OR('Tabel 1 H'!G146<5,'Tabel 2 H'!J148<0.5),"-",IFERROR('Tabel 2 H'!J148/'Tabel 1 H'!G146*100,"-")) -> 7.019151609
A149: Bygningskonst. | C149: =IF(OR('Tabel 1 H'!C147<5,'Tabel 2 H'!C149<0.5),"-",IFERROR('Tabel 2 H'!C149/'Tabel 1 H'!C147*100,"-")) -> 3.333333333 | D149: =IF(OR('Tabel 1 H'!C147<5,'Tabel 2 H'!D149<0.5),"-",IFERROR('Tabel 2 H'!D149/'Tabel 1 H'!C147*100,"-")) -> 3.256408657 | F149: =IF(OR('Tabel 1 H'!E147<5,'Tabel 2 H'!F149<0.5),"-",IFERROR('Tabel 2 H'!F149/'Tabel 1 H'!E147*100,"-")) -> 9.756097561 | G149: =IF(OR('Tabel 1 H'!E147<5,'Tabel 2 H'!G149<0.5),"-",IFERROR('Tabel 2 H'!G149/'Tabel 1 H'!E147*100,"-")) -> 6.826164937 | I149: =IF(OR('Tabel 1 H'!G147<5,'Tabel 2 H'!I149<0.5),"-",IFERROR('Tabel 2 H'!I149/'Tabel 1 H'!G147*100,"-")) -> 4.968944099 | J149: =IF(OR('Tabel 1 H'!G147<5,'Tabel 2 H'!J149<0.5),"-",IFERROR('Tabel 2 H'!J149/'Tabel 1 H'!G147*100,"-")) -> 4.165477027
A150: Cand. IT. | C150: =IF(OR('Tabel 1 H'!C148<5,'Tabel 2 H'!C150<0.5),"-",IFERROR('Tabel 2 H'!C150/'Tabel 1 H'!C148*100,"-")) -> 7.438016529 | D150: =IF(OR('Tabel 1 H'!C148<5,'Tabel 2 H'!D150<0.5),"-",IFERROR('Tabel 2 H'!D150/'Tabel 1 H'!C148*100,"-")) -> 6.798993605 | F150: =IF(OR('Tabel 1 H'!E148<5,'Tabel 2 H'!F150<0.5),"-",IFERROR('Tabel 2 H'!F150/'Tabel 1 H'!E148*100,"-")) -> 8.910891089 | G150: =IF(OR('Tabel 1 H'!E148<5,'Tabel 2 H'!G150<0.5),"-",IFERROR('Tabel 2 H'!G150/'Tabel 1 H'!E148*100,"-")) -> 8.118774829 | I150: =IF(OR('Tabel 1 H'!G148<5,'Tabel 2 H'!I150<0.5),"-",IFERROR('Tabel 2 H'!I150/'Tabel 1 H'!G148*100,"-")) -> 8.108108108 | J150: =IF(OR('Tabel 1 H'!G148<5,'Tabel 2 H'!J150<0.5),"-",IFERROR('Tabel 2 H'!J150/'Tabel 1 H'!G148*100,"-")) -> 7.399434612
A151: Bac. Samf. | C151: =IF(OR('Tabel 1 H'!C149<5,'Tabel 2 H'!C151<0.5),"-",IFERROR('Tabel 2 H'!C151/'Tabel 1 H'!C149*100,"-")) -> 12.5 | D151: =IF(OR('Tabel 1 H'!C149<5,'Tabel 2 H'!D151<0.5),"-",IFERROR('Tabel 2 H'!D151/'Tabel 1 H'!C149*100,"-")) -> 10.04568702 | F151: =IF(OR('Tabel 1 H'!E149<5,'Tabel 2 H'!F151<0.5),"-",IFERROR('Tabel 2 H'!F151/'Tabel 1 H'!E149*100,"-")) -> 10 | G151: =IF(OR('Tabel 1 H'!E149<5,'Tabel 2 H'!G151<0.5),"-",IFERROR('Tabel 2 H'!G151/'Tabel 1 H'!E149*100,"-")) -> 9.075032745 | I151: =IF(OR('Tabel 1 H'!G149<5,'Tabel 2 H'!I151<0.5),"-",IFERROR('Tabel 2 H'!I151/'Tabel 1 H'!G149*100,"-")) -> 10.97560976 | J151: =IF(OR('Tabel 1 H'!G149<5,'Tabel 2 H'!J151<0.5),"-",IFERROR('Tabel 2 H'!J151/'Tabel 1 H'!G149*100,"-")) -> 9.453824657
A152: Bac. Hum. | C152: =IF(OR('Tabel 1 H'!C150<5,'Tabel 2 H'!C152<0.5),"-",IFERROR('Tabel 2 H'!C152/'Tabel 1 H'!C150*100,"-")) -> 10.81081081 | D152: =IF(OR('Tabel 1 H'!C150<5,'Tabel 2 H'!D152<0.5),"-",IFERROR('Tabel 2 H'!D152/'Tabel 1 H'!C150*100,"-")) -> 9.70211776 | F152: =IF(OR('Tabel 1 H'!E150<5,'Tabel 2 H'!F152<0.5),"-",IFERROR('Tabel 2 H'!F152/'Tabel 1 H'!E150*100,"-")) -> 10.56338028 | G152: =IF(OR('Tabel 1 H'!E150<5,'Tabel 2 H'!G152<0.5),"-",IFERROR('Tabel 2 H'!G152/'Tabel 1 H'!E150*100,"-")) -> 9.250287479 | I152: =IF(OR('Tabel 1 H'!G150<5,'Tabel 2 H'!I152<0.5),"-",IFERROR('Tabel 2 H'!I152/'Tabel 1 H'!G150*100,"-")) -> 10.64814815 | J152: =IF(OR('Tabel 1 H'!G150<5,'Tabel 2 H'!J152<0.5),"-",IFERROR('Tabel 2 H'!J152/'Tabel 1 H'!G150*100,"-")) -> 9.405081187
A153: Bac. Nat. | C153: =IF(OR('Tabel 1 H'!C151<5,'Tabel 2 H'!C153<0.5),"-",IFERROR('Tabel 2 H'!C153/'Tabel 1 H'!C151*100,"-")) -> 15.25423729 | D153: =IF(OR('Tabel 1 H'!C151<5,'Tabel 2 H'!D153<0.5),"-",IFERROR('Tabel 2 H'!D153/'Tabel 1 H'!C151*100,"-")) -> 12.75970007 | F153: =IF(OR('Tabel 1 H'!E151<5,'Tabel 2 H'!F153<0.5),"-",IFERROR('Tabel 2 H'!F153/'Tabel 1 H'!E151*100,"-")) -> 26.15384615 | G153: =IF(OR('Tabel 1 H'!E151<5,'Tabel 2 H'!G153<0.5),"-",IFERROR('Tabel 2 H'!G153/'Tabel 1 H'!E151*100,"-")) -> 21.65053807 | I153: =IF(OR('Tabel 1 H'!G151<5,'Tabel 2 H'!I153<0.5),"-",IFERROR('Tabel 2 H'!I153/'Tabel 1 H'!G151*100,"-")) -> 20.96774194 | J153: =IF(OR('Tabel 1 H'!G151<5,'Tabel 2 H'!J153<0.5),"-",IFERROR('Tabel 2 H'!J153/'Tabel 1 H'!G151*100,"-")) -> 17.42021999
A154: Andre | C154: =IF(OR('Tabel 1 H'!C152<5,'Tabel 2 H'!C154<0.5),"-",IFERROR('Tabel 2 H'!C154/'Tabel 1 H'!C152*100,"-")) -> 6.713780919 | D154: =IF(OR('Tabel 1 H'!C152<5,'Tabel 2 H'!D154<0.5),"-",IFERROR('Tabel 2 H'!D154/'Tabel 1 H'!C152*100,"-")) -> 5.418043483 | F154: =IF(OR('Tabel 1 H'!E152<5,'Tabel 2 H'!F154<0.5),"-",IFERROR('Tabel 2 H'!F154/'Tabel 1 H'!E152*100,"-")) -> 9.912536443 | G154: =IF(OR('Tabel 1 H'!E152<5,'Tabel 2 H'!G154<0.5),"-",IFERROR('Tabel 2 H'!G154/'Tabel 1 H'!E152*100,"-")) -> 7.967895661 | I154: =IF(OR('Tabel 1 H'!G152<5,'Tabel 2 H'!I154<0.5),"-",IFERROR('Tabel 2 H'!I154/'Tabel 1 H'!G152*100,"-")) -> 8.466453674 | J154: =IF(OR('Tabel 1 H'!G152<5,'Tabel 2 H'!J154<0.5),"-",IFERROR('Tabel 2 H'!J154/'Tabel 1 H'!G152*100,"-")) -> 6.815166961
A156: Total | C156: =IF(OR('Tabel 1 H'!C154<5,'Tabel 2 H'!C156<0.5),"-",IFERROR('Tabel 2 H'!C156/'Tabel 1 H'!C154*100,"-")) -> 5.954177528 | D156: =IF(OR('Tabel 1 H'!C154<5,'Tabel 2 H'!D156<0.5),"-",IFERROR('Tabel 2 H'!D156/'Tabel 1 H'!C154*100,"-")) -> 4.788451778 | F156: =IF(OR('Tabel 1 H'!E154<5,'Tabel 2 H'!F156<0.5),"-",IFERROR('Tabel 2 H'!F156/'Tabel 1 H'!E154*100,"-")) -> 6.78307589 | G156: =IF(OR('Tabel 1 H'!E154<5,'Tabel 2 H'!G156<0.5),"-",IFERROR('Tabel 2 H'!G156/'Tabel 1 H'!E154*100,"-")) -> 5.468428105 | I156: =IF(OR('Tabel 1 H'!G154<5,'Tabel 2 H'!I156<0.5),"-",IFERROR('Tabel 2 H'!I156/'Tabel 1 H'!G154*100,"-")) -> 6.410651544 | J156: =IF(OR('Tabel 1 H'!G154<5,'Tabel 2 H'!J156<0.5),"-",IFERROR('Tabel 2 H'!J156/'Tabel 1 H'!G154*100,"-")) -> 5.162914486
A158: Ingeniører i alt | C158: =IF(OR('Tabel 1 H'!C156<5,'Tabel 2 H'!C158<0.5),"-",IFERROR('Tabel 2 H'!C158/'Tabel 1 H'!C156*100,"-")) -> 3.210272873 | D158: =IF(OR('Tabel 1 H'!C156<5,'Tabel 2 H'!D158<0.5),"-",IFERROR('Tabel 2 H'!D158/'Tabel 1 H'!C156*100,"-")) -> 2.552570396 | F158: =IF(OR('Tabel 1 H'!E156<5,'Tabel 2 H'!F158<0.5),"-",IFERROR('Tabel 2 H'!F158/'Tabel 1 H'!E156*100,"-")) -> 4.347826087 | G158: =IF(OR('Tabel 1 H'!E156<5,'Tabel 2 H'!G158<0.5),"-",IFERROR('Tabel 2 H'!G158/'Tabel 1 H'!E156*100,"-")) -> 3.635950509 | I158: =IF(OR('Tabel 1 H'!G156<5,'Tabel 2 H'!I158<0.5),"-",IFERROR('Tabel 2 H'!I158/'Tabel 1 H'!G156*100,"-")) -> 3.505644682 | J158: =IF(OR('Tabel 1 H'!G156<5,'Tabel 2 H'!J158<0.5),"-",IFERROR('Tabel 2 H'!J158/'Tabel 1 H'!G156*100,"-")) -> 2.833875868
A159: Magistre i alt | C159: =IF(OR('Tabel 1 H'!C157<5,'Tabel 2 H'!C159<0.5),"-",IFERROR('Tabel 2 H'!C159/'Tabel 1 H'!C157*100,"-")) -> 8.73015873 | D159: =IF(OR('Tabel 1 H'!C157<5,'Tabel 2 H'!D159<0.5),"-",IFERROR('Tabel 2 H'!D159/'Tabel 1 H'!C157*100,"-")) -> 6.290411443 | F159: =IF(OR('Tabel 1 H'!E157<5,'Tabel 2 H'!F159<0.5),"-",IFERROR('Tabel 2 H'!F159/'Tabel 1 H'!E157*100,"-")) -> 9.334032512 | G159: =IF(OR('Tabel 1 H'!E157<5,'Tabel 2 H'!G159<0.5),"-",IFERROR('Tabel 2 H'!G159/'Tabel 1 H'!E157*100,"-")) -> 7.26170077 | I159: =IF(OR('Tabel 1 H'!G157<5,'Tabel 2 H'!I159<0.5),"-",IFERROR('Tabel 2 H'!I159/'Tabel 1 H'!G157*100,"-")) -> 9.125214408 | J159: =IF(OR('Tabel 1 H'!G157<5,'Tabel 2 H'!J159<0.5),"-",IFERROR('Tabel 2 H'!J159/'Tabel 1 H'!G157*100,"-")) -> 6.925831253
A160: DJØF'ere i alt | C160: =IF(OR('Tabel 1 H'!C158<5,'Tabel 2 H'!C160<0.5),"-",IFERROR('Tabel 2 H'!C160/'Tabel 1 H'!C158*100,"-")) -> 5.104572847 | D160: =IF(OR('Tabel 1 H'!C158<5,'Tabel 2 H'!D160<0.5),"-",IFERROR('Tabel 2 H'!D160/'Tabel 1 H'!C158*100,"-")) -> 4.175785705 | F160: =IF(OR('Tabel 1 H'!E158<5,'Tabel 2 H'!F160<0.5),"-",IFERROR('Tabel 2 H'!F160/'Tabel 1 H'!E158*100,"-")) -> 4.812030075 | G160: =IF(OR('Tabel 1 H'!E158<5,'Tabel 2 H'!G160<0.5),"-",IFERROR('Tabel 2 H'!G160/'Tabel 1 H'!E158*100,"-")) -> 3.909024104 | I160: =IF(OR('Tabel 1 H'!G158<5,'Tabel 2 H'!I160<0.5),"-",IFERROR('Tabel 2 H'!I160/'Tabel 1 H'!G158*100,"-")) -> 4.946306541 | J160: =IF(OR('Tabel 1 H'!G158<5,'Tabel 2 H'!J160<0.5),"-",IFERROR('Tabel 2 H'!J160/'Tabel 1 H'!G158*100,"-")) -> 4.031467071
A165: Ballerup
C167: Mænd | F167: Kvinder | I167: I alt
C168: Ledigheds- berørte | D168: Gns. brutto- ledighed | F168: Ledigheds- berørte | G168: Gns. brutto- ledighed | I168: Ledigheds- berørte | J168: Gns. brutto- ledighed
A171: Civ. ing. | C171: =IF(OR('Tabel 1 H'!C169<5,'Tabel 2 H'!C171<0.5),"-",IFERROR('Tabel 2 H'!C171/'Tabel 1 H'!C169*100,"-")) -> 1.530612245 | D171: =IF(OR('Tabel 1 H'!C169<5,'Tabel 2 H'!D171<0.5),"-",IFERROR('Tabel 2 H'!D171/'Tabel 1 H'!C169*100,"-")) -> 1.271293773 | F171: =IF(OR('Tabel 1 H'!E169<5,'Tabel 2 H'!F171<0.5),"-",IFERROR('Tabel 2 H'!F171/'Tabel 1 H'!E169*100,"-")) -> 1.863354037 | G171: =IF(OR('Tabel 1 H'!E169<5,'Tabel 2 H'!G171<0.5),"-",IFERROR('Tabel 2 H'!G171/'Tabel 1 H'!E169*100,"-")) -> 1.174983429 | I171: =IF(OR('Tabel 1 H'!G169<5,'Tabel 2 H'!I171<0.5),"-",IFERROR('Tabel 2 H'!I171/'Tabel 1 H'!G169*100,"-")) -> 1.627486438 | J171: =IF(OR('Tabel 1 H'!G169<5,'Tabel 2 H'!J171<0.5),"-",IFERROR('Tabel 2 H'!J171/'Tabel 1 H'!G169*100,"-")) -> 1.243254053
A172: Diplom ing. | C172: =IF(OR('Tabel 1 H'!C170<5,'Tabel 2 H'!C172<0.5),"-",IFERROR('Tabel 2 H'!C172/'Tabel 1 H'!C170*100,"-")) -> 3.258145363 | D172: =IF(OR('Tabel 1 H'!C170<5,'Tabel 2 H'!D172<0.5),"-",IFERROR('Tabel 2 H'!D172/'Tabel 1 H'!C170*100,"-")) -> 2.6743088 | F172: =IF(OR('Tabel 1 H'!E170<5,'Tabel 2 H'!F172<0.5),"-",IFERROR('Tabel 2 H'!F172/'Tabel 1 H'!E170*100,"-")) -> 5.102040816 | G172: =IF(OR('Tabel 1 H'!E170<5,'Tabel 2 H'!G172<0.5),"-",IFERROR('Tabel 2 H'!G172/'Tabel 1 H'!E170*100,"-")) -> 3.546257273 | I172: =IF(OR('Tabel 1 H'!G170<5,'Tabel 2 H'!I172<0.5),"-",IFERROR('Tabel 2 H'!I172/'Tabel 1 H'!G170*100,"-")) -> 3.621730382 | J172: =IF(OR('Tabel 1 H'!G170<5,'Tabel 2 H'!J172<0.5),"-",IFERROR('Tabel 2 H'!J172/'Tabel 1 H'!G170*100,"-")) -> 2.846242301
A173: Cand. Scient. Tek. | C173: =IF(OR('Tabel 1 H'!C171<5,'Tabel 2 H'!C173<0.5),"-",IFERROR('Tabel 2 H'!C173/'Tabel 1 H'!C171*100,"-")) -> 2.521008403 | D173: =IF(OR('Tabel 1 H'!C171<5,'Tabel 2 H'!D173<0.5),"-",IFERROR('Tabel 2 H'!D173/'Tabel 1 H'!C171*100,"-")) -> 1.374790545 | F173: =IF(OR('Tabel 1 H'!E171<5,'Tabel 2 H'!F173<0.5),"-",IFERROR('Tabel 2 H'!F173/'Tabel 1 H'!E171*100,"-")) -> 8.080808081 | G173: =IF(OR('Tabel 1 H'!E171<5,'Tabel 2 H'!G173<0.5),"-",IFERROR('Tabel 2 H'!G173/'Tabel 1 H'!E171*100,"-")) -> 7.411481496 | I173: =IF(OR('Tabel 1 H'!G171<5,'Tabel 2 H'!I173<0.5),"-",IFERROR('Tabel 2 H'!I173/'Tabel 1 H'!G171*100,"-")) -> 5.04587156 | J173: =IF(OR('Tabel 1 H'!G171<5,'Tabel 2 H'!J173<0.5),"-",IFERROR('Tabel 2 H'!J173/'Tabel 1 H'!G171*100,"-")) -> 4.116223592
A174: MA. Hum. | C174: =IF(OR('Tabel 1 H'!C172<5,'Tabel 2 H'!C174<0.5),"-",IFERROR('Tabel 2 H'!C174/'Tabel 1 H'!C172*100,"-")) -> 2.941176471 | D174: =IF(OR('Tabel 1 H'!C172<5,'Tabel 2 H'!D174<0.5),"-",IFERROR('Tabel 2 H'!D174/'Tabel 1 H'!C172*100,"-")) -> 2.940626135 | F174: =IF(OR('Tabel 1 H'!E172<5,'Tabel 2 H'!F174<0.5),"-",IFERROR('Tabel 2 H'!F174/'Tabel 1 H'!E172*100,"-")) -> 4.402515723 | G174: =IF(OR('Tabel 1 H'!E172<5,'Tabel 2 H'!G174<0.5),"-",IFERROR('Tabel 2 H'!G174/'Tabel 1 H'!E172*100,"-")) -> 3.387667025 | I174: =IF(OR('Tabel 1 H'!G172<5,'Tabel 2 H'!I174<0.5),"-",IFERROR('Tabel 2 H'!I174/'Tabel 1 H'!G172*100,"-")) -> 3.964757709 | J174: =IF(OR('Tabel 1 H'!G172<5,'Tabel 2 H'!J174<0.5),"-",IFERROR('Tabel 2 H'!J174/'Tabel 1 H'!G172*100,"-")) -> 3.253751692
A175: MA. Nat. | C175: =IF(OR('Tabel 1 H'!C173<5,'Tabel 2 H'!C175<0.5),"-",IFERROR('Tabel 2 H'!C175/'Tabel 1 H'!C173*100,"-")) -> - | D175: =IF(OR('Tabel 1 H'!C173<5,'Tabel 2 H'!D175<0.5),"-",IFERROR('Tabel 2 H'!D175/'Tabel 1 H'!C173*100,"-")) -> - | F175: =IF(OR('Tabel 1 H'!E173<5,'Tabel 2 H'!F175<0.5),"-",IFERROR('Tabel 2 H'!F175/'Tabel 1 H'!E173*100,"-")) -> 3.488372093 | G175: =IF(OR('Tabel 1 H'!E173<5,'Tabel 2 H'!G175<0.5),"-",IFERROR('Tabel 2 H'!G175/'Tabel 1 H'!E173*100,"-")) -> 2.742164054 | I175: =IF(OR('Tabel 1 H'!G173<5,'Tabel 2 H'!I175<0.5),"-",IFERROR('Tabel 2 H'!I175/'Tabel 1 H'!G173*100,"-")) -> 1.796407186 | J175: =IF(OR('Tabel 1 H'!G173<5,'Tabel 2 H'!J175<0.5),"-",IFERROR('Tabel 2 H'!J175/'Tabel 1 H'!G173*100,"-")) -> 1.412132387
A176: MA. Ph.d. | C176: =IF(OR('Tabel 1 H'!C174<5,'Tabel 2 H'!C176<0.5),"-",IFERROR('Tabel 2 H'!C176/'Tabel 1 H'!C174*100,"-")) -> - | D176: =IF(OR('Tabel 1 H'!C174<5,'Tabel 2 H'!D176<0.5),"-",IFERROR('Tabel 2 H'!D176/'Tabel 1 H'!C174*100,"-")) -> - | F176: =IF(OR('Tabel 1 H'!E174<5,'Tabel 2 H'!F176<0.5),"-",IFERROR('Tabel 2 H'!F176/'Tabel 1 H'!E174*100,"-")) -> - | G176: =IF(OR('Tabel 1 H'!E174<5,'Tabel 2 H'!G176<0.5),"-",IFERROR('Tabel 2 H'!G176/'Tabel 1 H'!E174*100,"-")) -> - | I176: =IF(OR('Tabel 1 H'!G174<5,'Tabel 2 H'!I176<0.5),"-",IFERROR('Tabel 2 H'!I176/'Tabel 1 H'!G174*100,"-")) -> - | J176: =IF(OR('Tabel 1 H'!G174<5,'Tabel 2 H'!J176<0.5),"-",IFERROR('Tabel 2 H'!J176/'Tabel 1 H'!G174*100,"-")) -> -
A177: MA. Samf. | C177: =IF(OR('Tabel 1 H'!C175<5,'Tabel 2 H'!C177<0.5),"-",IFERROR('Tabel 2 H'!C177/'Tabel 1 H'!C175*100,"-")) -> 17.64705882 | D177: =IF(OR('Tabel 1 H'!C175<5,'Tabel 2 H'!D177<0.5),"-",IFERROR('Tabel 2 H'!D177/'Tabel 1 H'!C175*100,"-")) -> 9.451095351 | F177: =IF(OR('Tabel 1 H'!E175<5,'Tabel 2 H'!F177<0.5),"-",IFERROR('Tabel 2 H'!F177/'Tabel 1 H'!E175*100,"-")) -> 11.11111111 | G177: =IF(OR('Tabel 1 H'!E175<5,'Tabel 2 H'!G177<0.5),"-",IFERROR('Tabel 2 H'!G177/'Tabel 1 H'!E175*100,"-")) -> 6.237135907 | I177: =IF(OR('Tabel 1 H'!G175<5,'Tabel 2 H'!I177<0.5),"-",IFERROR('Tabel 2 H'!I177/'Tabel 1 H'!G175*100,"-")) -> 14.28571429 | J177: =IF(OR('Tabel 1 H'!G175<5,'Tabel 2 H'!J177<0.5),"-",IFERROR('Tabel 2 H'!J177/'Tabel 1 H'!G175*100,"-")) -> 7.798201923
A178: Øvrige Mag. | C178: =IF(OR('Tabel 1 H'!C176<5,'Tabel 2 H'!C178<0.5),"-",IFERROR('Tabel 2 H'!C178/'Tabel 1 H'!C176*100,"-")) -> - | D178: =IF(OR('Tabel 1 H'!C176<5,'Tabel 2 H'!D178<0.5),"-",IFERROR('Tabel 2 H'!D178/'Tabel 1 H'!C176*100,"-")) -> - | F178: =IF(OR('Tabel 1 H'!E176<5,'Tabel 2 H'!F178<0.5),"-",IFERROR('Tabel 2 H'!F178/'Tabel 1 H'!E176*100,"-")) -> - | G178: =IF(OR('Tabel 1 H'!E176<5,'Tabel 2 H'!G178<0.5),"-",IFERROR('Tabel 2 H'!G178/'Tabel 1 H'!E176*100,"-")) -> - | I178: =IF(OR('Tabel 1 H'!G176<5,'Tabel 2 H'!I178<0.5),"-",IFERROR('Tabel 2 H'!I178/'Tabel 1 H'!G176*100,"-")) -> - | J178: =IF(OR('Tabel 1 H'!G176<5,'Tabel 2 H'!J178<0.5),"-",IFERROR('Tabel 2 H'!J178/'Tabel 1 H'!G176*100,"-")) -> -
A179: Agronom | C179: =IF(OR('Tabel 1 H'!C177<5,'Tabel 2 H'!C179<0.5),"-",IFERROR('Tabel 2 H'!C179/'Tabel 1 H'!C177*100,"-")) -> - | D179: =IF(OR('Tabel 1 H'!C177<5,'Tabel 2 H'!D179<0.5),"-",IFERROR('Tabel 2 H'!D179/'Tabel 1 H'!C177*100,"-")) -> - | F179: =IF(OR('Tabel 1 H'!E177<5,'Tabel 2 H'!F179<0.5),"-",IFERROR('Tabel 2 H'!F179/'Tabel 1 H'!E177*100,"-")) -> - | G179: =IF(OR('Tabel 1 H'!E177<5,'Tabel 2 H'!G179<0.5),"-",IFERROR('Tabel 2 H'!G179/'Tabel 1 H'!E177*100,"-")) -> - | I179: =IF(OR('Tabel 1 H'!G177<5,'Tabel 2 H'!I179<0.5),"-",IFERROR('Tabel 2 H'!I179/'Tabel 1 H'!G177*100,"-")) -> - | J179: =IF(OR('Tabel 1 H'!G177<5,'Tabel 2 H'!J179<0.5),"-",IFERROR('Tabel 2 H'!J179/'Tabel 1 H'!G177*100,"-")) -> -
A180: Landsk. Arkt. | C180: =IF(OR('Tabel 1 H'!C178<5,'Tabel 2 H'!C180<0.5),"-",IFERROR('Tabel 2 H'!C180/'Tabel 1 H'!C178*100,"-")) -> - | D180: =IF(OR('Tabel 1 H'!C178<5,'Tabel 2 H'!D180<0.5),"-",IFERROR('Tabel 2 H'!D180/'Tabel 1 H'!C178*100,"-")) -> - | F180: =IF(OR('Tabel 1 H'!E178<5,'Tabel 2 H'!F180<0.5),"-",IFERROR('Tabel 2 H'!F180/'Tabel 1 H'!E178*100,"-")) -> 22.22222222 | G180: =IF(OR('Tabel 1 H'!E178<5,'Tabel 2 H'!G180<0.5),"-",IFERROR('Tabel 2 H'!G180/'Tabel 1 H'!E178*100,"-")) -> 7.858791243 | I180: =IF(OR('Tabel 1 H'!G178<5,'Tabel 2 H'!I180<0.5),"-",IFERROR('Tabel 2 H'!I180/'Tabel 1 H'!G178*100,"-")) -> 16.66666667 | J180: =IF(OR('Tabel 1 H'!G178<5,'Tabel 2 H'!J180<0.5),"-",IFERROR('Tabel 2 H'!J180/'Tabel 1 H'!G178*100,"-")) -> 5.894093432
A181: Hortonom | C181: =IF(OR('Tabel 1 H'!C179<5,'Tabel 2 H'!C181<0.5),"-",IFERROR('Tabel 2 H'!C181/'Tabel 1 H'!C179*100,"-")) -> - | D181: =IF(OR('Tabel 1 H'!C179<5,'Tabel 2 H'!D181<0.5),"-",IFERROR('Tabel 2 H'!D181/'Tabel 1 H'!C179*100,"-")) -> - | F181: =IF(OR('Tabel 1 H'!E179<5,'Tabel 2 H'!F181<0.5),"-",IFERROR('Tabel 2 H'!F181/'Tabel 1 H'!E179*100,"-")) -> - | G181: =IF(OR('Tabel 1 H'!E179<5,'Tabel 2 H'!G181<0.5),"-",IFERROR('Tabel 2 H'!G181/'Tabel 1 H'!E179*100,"-")) -> - | I181: =IF(OR('Tabel 1 H'!G179<5,'Tabel 2 H'!I181<0.5),"-",IFERROR('Tabel 2 H'!I181/'Tabel 1 H'!G179*100,"-")) -> - | J181: =IF(OR('Tabel 1 H'!G179<5,'Tabel 2 H'!J181<0.5),"-",IFERROR('Tabel 2 H'!J181/'Tabel 1 H'!G179*100,"-")) -> -
A182: Forstkand. | C182: =IF(OR('Tabel 1 H'!C180<5,'Tabel 2 H'!C182<0.5),"-",IFERROR('Tabel 2 H'!C182/'Tabel 1 H'!C180*100,"-")) -> - | D182: =IF(OR('Tabel 1 H'!C180<5,'Tabel 2 H'!D182<0.5),"-",IFERROR('Tabel 2 H'!D182/'Tabel 1 H'!C180*100,"-")) -> - | F182: =IF(OR('Tabel 1 H'!E180<5,'Tabel 2 H'!F182<0.5),"-",IFERROR('Tabel 2 H'!F182/'Tabel 1 H'!E180*100,"-")) -> - | G182: =IF(OR('Tabel 1 H'!E180<5,'Tabel 2 H'!G182<0.5),"-",IFERROR('Tabel 2 H'!G182/'Tabel 1 H'!E180*100,"-")) -> - | I182: =IF(OR('Tabel 1 H'!G180<5,'Tabel 2 H'!I182<0.5),"-",IFERROR('Tabel 2 H'!I182/'Tabel 1 H'!G180*100,"-")) -> - | J182: =IF(OR('Tabel 1 H'!G180<5,'Tabel 2 H'!J182<0.5),"-",IFERROR('Tabel 2 H'!J182/'Tabel 1 H'!G180*100,"-")) -> -
A183: Jordbrugsakad. | C183: =IF(OR('Tabel 1 H'!C181<5,'Tabel 2 H'!C183<0.5),"-",IFERROR('Tabel 2 H'!C183/'Tabel 1 H'!C181*100,"-")) -> - | D183: =IF(OR('Tabel 1 H'!C181<5,'Tabel 2 H'!D183<0.5),"-",IFERROR('Tabel 2 H'!D183/'Tabel 1 H'!C181*100,"-")) -> - | F183: =IF(OR('Tabel 1 H'!E181<5,'Tabel 2 H'!F183<0.5),"-",IFERROR('Tabel 2 H'!F183/'Tabel 1 H'!E181*100,"-")) -> 9.523809524 | G183: =IF(OR('Tabel 1 H'!E181<5,'Tabel 2 H'!G183<0.5),"-",IFERROR('Tabel 2 H'!G183/'Tabel 1 H'!E181*100,"-")) -> 3.36805339 | I183: =IF(OR('Tabel 1 H'!G181<5,'Tabel 2 H'!I183<0.5),"-",IFERROR('Tabel 2 H'!I183/'Tabel 1 H'!G181*100,"-")) -> 5.405405405 | J183: =IF(OR('Tabel 1 H'!G181<5,'Tabel 2 H'!J183<0.5),"-",IFERROR('Tabel 2 H'!J183/'Tabel 1 H'!G181*100,"-")) -> 1.91159787
A184: Mejeriing. | C184: =IF(OR('Tabel 1 H'!C182<5,'Tabel 2 H'!C184<0.5),"-",IFERROR('Tabel 2 H'!C184/'Tabel 1 H'!C182*100,"-")) -> - | D184: =IF(OR('Tabel 1 H'!C182<5,'Tabel 2 H'!D184<0.5),"-",IFERROR('Tabel 2 H'!D184/'Tabel 1 H'!C182*100,"-")) -> - | F184: =IF(OR('Tabel 1 H'!E182<5,'Tabel 2 H'!F184<0.5),"-",IFERROR('Tabel 2 H'!F184/'Tabel 1 H'!E182*100,"-")) -> - | G184: =IF(OR('Tabel 1 H'!E182<5,'Tabel 2 H'!G184<0.5),"-",IFERROR('Tabel 2 H'!G184/'Tabel 1 H'!E182*100,"-")) -> - | I184: =IF(OR('Tabel 1 H'!G182<5,'Tabel 2 H'!I184<0.5),"-",IFERROR('Tabel 2 H'!I184/'Tabel 1 H'!G182*100,"-")) -> - | J184: =IF(OR('Tabel 1 H'!G182<5,'Tabel 2 H'!J184<0.5),"-",IFERROR('Tabel 2 H'!J184/'Tabel 1 H'!G182*100,"-")) -> -
A185: Levn.m.kand. | C185: =IF(OR('Tabel 1 H'!C183<5,'Tabel 2 H'!C185<0.5),"-",IFERROR('Tabel 2 H'!C185/'Tabel 1 H'!C183*100,"-")) -> - | D185: =IF(OR('Tabel 1 H'!C183<5,'Tabel 2 H'!D185<0.5),"-",IFERROR('Tabel 2 H'!D185/'Tabel 1 H'!C183*100,"-")) -> - | F185: =IF(OR('Tabel 1 H'!E183<5,'Tabel 2 H'!F185<0.5),"-",IFERROR('Tabel 2 H'!F185/'Tabel 1 H'!E183*100,"-")) -> - | G185: =IF(OR('Tabel 1 H'!E183<5,'Tabel 2 H'!G185<0.5),"-",IFERROR('Tabel 2 H'!G185/'Tabel 1 H'!E183*100,"-")) -> - | I185: =IF(OR('Tabel 1 H'!G183<5,'Tabel 2 H'!I185<0.5),"-",IFERROR('Tabel 2 H'!I185/'Tabel 1 H'!G183*100,"-")) -> - | J185: =IF(OR('Tabel 1 H'!G183<5,'Tabel 2 H'!J185<0.5),"-",IFERROR('Tabel 2 H'!J185/'Tabel 1 H'!G183*100,"-")) -> -
A186: Dyrlæge | C186: =IF(OR('Tabel 1 H'!C184<5,'Tabel 2 H'!C186<0.5),"-",IFERROR('Tabel 2 H'!C186/'Tabel 1 H'!C184*100,"-")) -> - | D186: =IF(OR('Tabel 1 H'!C184<5,'Tabel 2 H'!D186<0.5),"-",IFERROR('Tabel 2 H'!D186/'Tabel 1 H'!C184*100,"-")) -> - | F186: =IF(OR('Tabel 1 H'!E184<5,'Tabel 2 H'!F186<0.5),"-",IFERROR('Tabel 2 H'!F186/'Tabel 1 H'!E184*100,"-")) -> - | G186: =IF(OR('Tabel 1 H'!E184<5,'Tabel 2 H'!G186<0.5),"-",IFERROR('Tabel 2 H'!G186/'Tabel 1 H'!E184*100,"-")) -> - | I186: =IF(OR('Tabel 1 H'!G184<5,'Tabel 2 H'!I186<0.5),"-",IFERROR('Tabel 2 H'!I186/'Tabel 1 H'!G184*100,"-")) -> - | J186: =IF(OR('Tabel 1 H'!G184<5,'Tabel 2 H'!J186<0.5),"-",IFERROR('Tabel 2 H'!J186/'Tabel 1 H'!G184*100,"-")) -> -
A187: Farmaceut | C187: =IF(OR('Tabel 1 H'!C185<5,'Tabel 2 H'!C187<0.5),"-",IFERROR('Tabel 2 H'!C187/'Tabel 1 H'!C185*100,"-")) -> 2.941176471 | D187: =IF(OR('Tabel 1 H'!C185<5,'Tabel 2 H'!D187<0.5),"-",IFERROR('Tabel 2 H'!D187/'Tabel 1 H'!C185*100,"-")) -> 2.940626135 | F187: =IF(OR('Tabel 1 H'!E185<5,'Tabel 2 H'!F187<0.5),"-",IFERROR('Tabel 2 H'!F187/'Tabel 1 H'!E185*100,"-")) -> 2.06185567 | G187: =IF(OR('Tabel 1 H'!E185<5,'Tabel 2 H'!G187<0.5),"-",IFERROR('Tabel 2 H'!G187/'Tabel 1 H'!E185*100,"-")) -> 1.655734532 | I187: =IF(OR('Tabel 1 H'!G185<5,'Tabel 2 H'!I187<0.5),"-",IFERROR('Tabel 2 H'!I187/'Tabel 1 H'!G185*100,"-")) -> 2.290076336 | J187: =IF(OR('Tabel 1 H'!G185<5,'Tabel 2 H'!J187<0.5),"-",IFERROR('Tabel 2 H'!J187/'Tabel 1 H'!G185*100,"-")) -> 1.989217849
A188: Læge | C188: =IF(OR('Tabel 1 H'!C186<5,'Tabel 2 H'!C188<0.5),"-",IFERROR('Tabel 2 H'!C188/'Tabel 1 H'!C186*100,"-")) -> - | D188: =IF(OR('Tabel 1 H'!C186<5,'Tabel 2 H'!D188<0.5),"-",IFERROR('Tabel 2 H'!D188/'Tabel 1 H'!C186*100,"-")) -> - | F188: =IF(OR('Tabel 1 H'!E186<5,'Tabel 2 H'!F188<0.5),"-",IFERROR('Tabel 2 H'!F188/'Tabel 1 H'!E186*100,"-")) -> 1.851851852 | G188: =IF(OR('Tabel 1 H'!E186<5,'Tabel 2 H'!G188<0.5),"-",IFERROR('Tabel 2 H'!G188/'Tabel 1 H'!E186*100,"-")) -> 1.851505344 | I188: =IF(OR('Tabel 1 H'!G186<5,'Tabel 2 H'!I188<0.5),"-",IFERROR('Tabel 2 H'!I188/'Tabel 1 H'!G186*100,"-")) -> 1.219512195 | J188: =IF(OR('Tabel 1 H'!G186<5,'Tabel 2 H'!J188<0.5),"-",IFERROR('Tabel 2 H'!J188/'Tabel 1 H'!G186*100,"-")) -> 1.219284007
A189: Tandlæge | C189: =IF(OR('Tabel 1 H'!C187<5,'Tabel 2 H'!C189<0.5),"-",IFERROR('Tabel 2 H'!C189/'Tabel 1 H'!C187*100,"-")) -> - | D189: =IF(OR('Tabel 1 H'!C187<5,'Tabel 2 H'!D189<0.5),"-",IFERROR('Tabel 2 H'!D189/'Tabel 1 H'!C187*100,"-")) -> - | F189: =IF(OR('Tabel 1 H'!E187<5,'Tabel 2 H'!F189<0.5),"-",IFERROR('Tabel 2 H'!F189/'Tabel 1 H'!E187*100,"-")) -> - | G189: =IF(OR('Tabel 1 H'!E187<5,'Tabel 2 H'!G189<0.5),"-",IFERROR('Tabel 2 H'!G189/'Tabel 1 H'!E187*100,"-")) -> - | I189: =IF(OR('Tabel 1 H'!G187<5,'Tabel 2 H'!I189<0.5),"-",IFERROR('Tabel 2 H'!I189/'Tabel 1 H'!G187*100,"-")) -> - | J189: =IF(OR('Tabel 1 H'!G187<5,'Tabel 2 H'!J189<0.5),"-",IFERROR('Tabel 2 H'!J189/'Tabel 1 H'!G187*100,"-")) -> -
A190: Arkitekt | C190: =IF(OR('Tabel 1 H'!C188<5,'Tabel 2 H'!C190<0.5),"-",IFERROR('Tabel 2 H'!C190/'Tabel 1 H'!C188*100,"-")) -> 10 | D190: =IF(OR('Tabel 1 H'!C188<5,'Tabel 2 H'!D190<0.5),"-",IFERROR('Tabel 2 H'!D190/'Tabel 1 H'!C188*100,"-")) -> - | F190: =IF(OR('Tabel 1 H'!E188<5,'Tabel 2 H'!F190<0.5),"-",IFERROR('Tabel 2 H'!F190/'Tabel 1 H'!E188*100,"-")) -> 9.090909091 | G190: =IF(OR('Tabel 1 H'!E188<5,'Tabel 2 H'!G190<0.5),"-",IFERROR('Tabel 2 H'!G190/'Tabel 1 H'!E188*100,"-")) -> 9.089208054 | I190: =IF(OR('Tabel 1 H'!G188<5,'Tabel 2 H'!I190<0.5),"-",IFERROR('Tabel 2 H'!I190/'Tabel 1 H'!G188*100,"-")) -> 9.523809524 | J190: =IF(OR('Tabel 1 H'!G188<5,'Tabel 2 H'!J190<0.5),"-",IFERROR('Tabel 2 H'!J190/'Tabel 1 H'!G188*100,"-")) -> 5.67876374
A191: Landinspek. | C191: =IF(OR('Tabel 1 H'!C189<5,'Tabel 2 H'!C191<0.5),"-",IFERROR('Tabel 2 H'!C191/'Tabel 1 H'!C189*100,"-")) -> - | D191: =IF(OR('Tabel 1 H'!C189<5,'Tabel 2 H'!D191<0.5),"-",IFERROR('Tabel 2 H'!D191/'Tabel 1 H'!C189*100,"-")) -> - | F191: =IF(OR('Tabel 1 H'!E189<5,'Tabel 2 H'!F191<0.5),"-",IFERROR('Tabel 2 H'!F191/'Tabel 1 H'!E189*100,"-")) -> - | G191: =IF(OR('Tabel 1 H'!E189<5,'Tabel 2 H'!G191<0.5),"-",IFERROR('Tabel 2 H'!G191/'Tabel 1 H'!E189*100,"-")) -> - | I191: =IF(OR('Tabel 1 H'!G189<5,'Tabel 2 H'!I191<0.5),"-",IFERROR('Tabel 2 H'!I191/'Tabel 1 H'!G189*100,"-")) -> - | J191: =IF(OR('Tabel 1 H'!G189<5,'Tabel 2 H'!J191<0.5),"-",IFERROR('Tabel 2 H'!J191/'Tabel 1 H'!G189*100,"-")) -> -
A192: Bibliotekar | C192: =IF(OR('Tabel 1 H'!C190<5,'Tabel 2 H'!C192<0.5),"-",IFERROR('Tabel 2 H'!C192/'Tabel 1 H'!C190*100,"-")) -> - | D192: =IF(OR('Tabel 1 H'!C190<5,'Tabel 2 H'!D192<0.5),"-",IFERROR('Tabel 2 H'!D192/'Tabel 1 H'!C190*100,"-")) -> - | F192: =IF(OR('Tabel 1 H'!E190<5,'Tabel 2 H'!F192<0.5),"-",IFERROR('Tabel 2 H'!F192/'Tabel 1 H'!E190*100,"-")) -> 6.666666667 | G192: =IF(OR('Tabel 1 H'!E190<5,'Tabel 2 H'!G192<0.5),"-",IFERROR('Tabel 2 H'!G192/'Tabel 1 H'!E190*100,"-")) -> 4.166406786 | I192: =IF(OR('Tabel 1 H'!G190<5,'Tabel 2 H'!I192<0.5),"-",IFERROR('Tabel 2 H'!I192/'Tabel 1 H'!G190*100,"-")) -> 4.87804878 | J192: =IF(OR('Tabel 1 H'!G190<5,'Tabel 2 H'!J192<0.5),"-",IFERROR('Tabel 2 H'!J192/'Tabel 1 H'!G190*100,"-")) -> 3.048590331
A193: Musikudd. | C193: =IF(OR('Tabel 1 H'!C191<5,'Tabel 2 H'!C193<0.5),"-",IFERROR('Tabel 2 H'!C193/'Tabel 1 H'!C191*100,"-")) -> - | D193: =IF(OR('Tabel 1 H'!C191<5,'Tabel 2 H'!D193<0.5),"-",IFERROR('Tabel 2 H'!D193/'Tabel 1 H'!C191*100,"-")) -> - | F193: =IF(OR('Tabel 1 H'!E191<5,'Tabel 2 H'!F193<0.5),"-",IFERROR('Tabel 2 H'!F193/'Tabel 1 H'!E191*100,"-")) -> - | G193: =IF(OR('Tabel 1 H'!E191<5,'Tabel 2 H'!G193<0.5),"-",IFERROR('Tabel 2 H'!G193/'Tabel 1 H'!E191*100,"-")) -> - | I193: =IF(OR('Tabel 1 H'!G191<5,'Tabel 2 H'!I193<0.5),"-",IFERROR('Tabel 2 H'!I193/'Tabel 1 H'!G191*100,"-")) -> 12.5 | J193: =IF(OR('Tabel 1 H'!G191<5,'Tabel 2 H'!J193<0.5),"-",IFERROR('Tabel 2 H'!J193/'Tabel 1 H'!G191*100,"-")) -> 10.39262771
A194: Teolog | C194: =IF(OR('Tabel 1 H'!C192<5,'Tabel 2 H'!C194<0.5),"-",IFERROR('Tabel 2 H'!C194/'Tabel 1 H'!C192*100,"-")) -> - | D194: =IF(OR('Tabel 1 H'!C192<5,'Tabel 2 H'!D194<0.5),"-",IFERROR('Tabel 2 H'!D194/'Tabel 1 H'!C192*100,"-")) -> - | F194: =IF(OR('Tabel 1 H'!E192<5,'Tabel 2 H'!F194<0.5),"-",IFERROR('Tabel 2 H'!F194/'Tabel 1 H'!E192*100,"-")) -> - | G194: =IF(OR('Tabel 1 H'!E192<5,'Tabel 2 H'!G194<0.5),"-",IFERROR('Tabel 2 H'!G194/'Tabel 1 H'!E192*100,"-")) -> - | I194: =IF(OR('Tabel 1 H'!G192<5,'Tabel 2 H'!I194<0.5),"-",IFERROR('Tabel 2 H'!I194/'Tabel 1 H'!G192*100,"-")) -> - | J194: =IF(OR('Tabel 1 H'!G192<5,'Tabel 2 H'!J194<0.5),"-",IFERROR('Tabel 2 H'!J194/'Tabel 1 H'!G192*100,"-")) -> -
A195: Psykolog | C195: =IF(OR('Tabel 1 H'!C193<5,'Tabel 2 H'!C195<0.5),"-",IFERROR('Tabel 2 H'!C195/'Tabel 1 H'!C193*100,"-")) -> 12.5 | D195: =IF(OR('Tabel 1 H'!C193<5,'Tabel 2 H'!D195<0.5),"-",IFERROR('Tabel 2 H'!D195/'Tabel 1 H'!C193*100,"-")) -> 12.49766107 | F195: =IF(OR('Tabel 1 H'!E193<5,'Tabel 2 H'!F195<0.5),"-",IFERROR('Tabel 2 H'!F195/'Tabel 1 H'!E193*100,"-")) -> 12.19512195 | G195: =IF(OR('Tabel 1 H'!E193<5,'Tabel 2 H'!G195<0.5),"-",IFERROR('Tabel 2 H'!G195/'Tabel 1 H'!E193*100,"-")) -> 8.409484706 | I195: =IF(OR('Tabel 1 H'!G193<5,'Tabel 2 H'!I195<0.5),"-",IFERROR('Tabel 2 H'!I195/'Tabel 1 H'!G193*100,"-")) -> 12.24489796 | J195: =IF(OR('Tabel 1 H'!G193<5,'Tabel 2 H'!J195<0.5),"-",IFERROR('Tabel 2 H'!J195/'Tabel 1 H'!G193*100,"-")) -> 9.076942072
A196: Jurist | C196: =IF(OR('Tabel 1 H'!C194<5,'Tabel 2 H'!C196<0.5),"-",IFERROR('Tabel 2 H'!C196/'Tabel 1 H'!C194*100,"-")) -> 6.666666667 | D196: =IF(OR('Tabel 1 H'!C194<5,'Tabel 2 H'!D196<0.5),"-",IFERROR('Tabel 2 H'!D196/'Tabel 1 H'!C194*100,"-")) -> 6.665419239 | F196: =IF(OR('Tabel 1 H'!E194<5,'Tabel 2 H'!F196<0.5),"-",IFERROR('Tabel 2 H'!F196/'Tabel 1 H'!E194*100,"-")) -> 3.529411765 | G196: =IF(OR('Tabel 1 H'!E194<5,'Tabel 2 H'!G196<0.5),"-",IFERROR('Tabel 2 H'!G196/'Tabel 1 H'!E194*100,"-")) -> 3.148652962 | I196: =IF(OR('Tabel 1 H'!G194<5,'Tabel 2 H'!I196<0.5),"-",IFERROR('Tabel 2 H'!I196/'Tabel 1 H'!G194*100,"-")) -> 4.347826087 | J196: =IF(OR('Tabel 1 H'!G194<5,'Tabel 2 H'!J196<0.5),"-",IFERROR('Tabel 2 H'!J196/'Tabel 1 H'!G194*100,"-")) -> 4.066070252
A197: Økonom | C197: =IF(OR('Tabel 1 H'!C195<5,'Tabel 2 H'!C197<0.5),"-",IFERROR('Tabel 2 H'!C197/'Tabel 1 H'!C195*100,"-")) -> 3.636363636 | D197: =IF(OR('Tabel 1 H'!C195<5,'Tabel 2 H'!D197<0.5),"-",IFERROR('Tabel 2 H'!D197/'Tabel 1 H'!C195*100,"-")) -> 2.041244479 | F197: =IF(OR('Tabel 1 H'!E195<5,'Tabel 2 H'!F197<0.5),"-",IFERROR('Tabel 2 H'!F197/'Tabel 1 H'!E195*100,"-")) -> - | G197: =IF(OR('Tabel 1 H'!E195<5,'Tabel 2 H'!G197<0.5),"-",IFERROR('Tabel 2 H'!G197/'Tabel 1 H'!E195*100,"-")) -> - | I197: =IF(OR('Tabel 1 H'!G195<5,'Tabel 2 H'!I197<0.5),"-",IFERROR('Tabel 2 H'!I197/'Tabel 1 H'!G195*100,"-")) -> 2.53164557 | J197: =IF(OR('Tabel 1 H'!G195<5,'Tabel 2 H'!J197<0.5),"-",IFERROR('Tabel 2 H'!J197/'Tabel 1 H'!G195*100,"-")) -> 1.421119574
A198: Samf. Adm. | C198: =IF(OR('Tabel 1 H'!C196<5,'Tabel 2 H'!C198<0.5),"-",IFERROR('Tabel 2 H'!C198/'Tabel 1 H'!C196*100,"-")) -> 4.494382022 | D198: =IF(OR('Tabel 1 H'!C196<5,'Tabel 2 H'!D198<0.5),"-",IFERROR('Tabel 2 H'!D198/'Tabel 1 H'!C196*100,"-")) -> 4.044327115 | F198: =IF(OR('Tabel 1 H'!E196<5,'Tabel 2 H'!F198<0.5),"-",IFERROR('Tabel 2 H'!F198/'Tabel 1 H'!E196*100,"-")) -> 1.694915254 | G198: =IF(OR('Tabel 1 H'!E196<5,'Tabel 2 H'!G198<0.5),"-",IFERROR('Tabel 2 H'!G198/'Tabel 1 H'!E196*100,"-")) -> 1.499026901 | I198: =IF(OR('Tabel 1 H'!G196<5,'Tabel 2 H'!I198<0.5),"-",IFERROR('Tabel 2 H'!I198/'Tabel 1 H'!G196*100,"-")) -> 2.898550725 | J198: =IF(OR('Tabel 1 H'!G196<5,'Tabel 2 H'!J198<0.5),"-",IFERROR('Tabel 2 H'!J198/'Tabel 1 H'!G196*100,"-")) -> 2.593383032
A199: Cand. Merc. | C199: =IF(OR('Tabel 1 H'!C197<5,'Tabel 2 H'!C199<0.5),"-",IFERROR('Tabel 2 H'!C199/'Tabel 1 H'!C197*100,"-")) -> 2.877697842 | D199: =IF(OR('Tabel 1 H'!C197<5,'Tabel 2 H'!D199<0.5),"-",IFERROR('Tabel 2 H'!D199/'Tabel 1 H'!C197*100,"-")) -> 1.878768924 | F199: =IF(OR('Tabel 1 H'!E197<5,'Tabel 2 H'!F199<0.5),"-",IFERROR('Tabel 2 H'!F199/'Tabel 1 H'!E197*100,"-")) -> 5 | G199: =IF(OR('Tabel 1 H'!E197<5,'Tabel 2 H'!G199<0.5),"-",IFERROR('Tabel 2 H'!G199/'Tabel 1 H'!E197*100,"-")) -> 4.339710062 | I199: =IF(OR('Tabel 1 H'!G197<5,'Tabel 2 H'!I199<0.5),"-",IFERROR('Tabel 2 H'!I199/'Tabel 1 H'!G197*100,"-")) -> 3.94265233 | J199: =IF(OR('Tabel 1 H'!G197<5,'Tabel 2 H'!J199<0.5),"-",IFERROR('Tabel 2 H'!J199/'Tabel 1 H'!G197*100,"-")) -> 3.113649782
A200: HA | C200: =IF(OR('Tabel 1 H'!C198<5,'Tabel 2 H'!C200<0.5),"-",IFERROR('Tabel 2 H'!C200/'Tabel 1 H'!C198*100,"-")) -> 5 | D200: =IF(OR('Tabel 1 H'!C198<5,'Tabel 2 H'!D200<0.5),"-",IFERROR('Tabel 2 H'!D200/'Tabel 1 H'!C198*100,"-")) -> 4.99906443 | F200: =IF(OR('Tabel 1 H'!E198<5,'Tabel 2 H'!F200<0.5),"-",IFERROR('Tabel 2 H'!F200/'Tabel 1 H'!E198*100,"-")) -> 5.882352941 | G200: =IF(OR('Tabel 1 H'!E198<5,'Tabel 2 H'!G200<0.5),"-",IFERROR('Tabel 2 H'!G200/'Tabel 1 H'!E198*100,"-")) -> - | I200: =IF(OR('Tabel 1 H'!G198<5,'Tabel 2 H'!I200<0.5),"-",IFERROR('Tabel 2 H'!I200/'Tabel 1 H'!G198*100,"-")) -> 5.405405405 | J200: =IF(OR('Tabel 1 H'!G198<5,'Tabel 2 H'!J200<0.5),"-",IFERROR('Tabel 2 H'!J200/'Tabel 1 H'!G198*100,"-")) -> 3.95636702
A201: HD | C201: =IF(OR('Tabel 1 H'!C199<5,'Tabel 2 H'!C201<0.5),"-",IFERROR('Tabel 2 H'!C201/'Tabel 1 H'!C199*100,"-")) -> 15.78947368 | D201: =IF(OR('Tabel 1 H'!C199<5,'Tabel 2 H'!D201<0.5),"-",IFERROR('Tabel 2 H'!D201/'Tabel 1 H'!C199*100,"-")) -> 11.78818686 | F201: =IF(OR('Tabel 1 H'!E199<5,'Tabel 2 H'!F201<0.5),"-",IFERROR('Tabel 2 H'!F201/'Tabel 1 H'!E199*100,"-")) -> - | G201: =IF(OR('Tabel 1 H'!E199<5,'Tabel 2 H'!G201<0.5),"-",IFERROR('Tabel 2 H'!G201/'Tabel 1 H'!E199*100,"-")) -> - | I201: =IF(OR('Tabel 1 H'!G199<5,'Tabel 2 H'!I201<0.5),"-",IFERROR('Tabel 2 H'!I201/'Tabel 1 H'!G199*100,"-")) -> 8.108108108 | J201: =IF(OR('Tabel 1 H'!G199<5,'Tabel 2 H'!J201<0.5),"-",IFERROR('Tabel 2 H'!J201/'Tabel 1 H'!G199*100,"-")) -> 6.053393255
A202: Komm. og Sprog | C202: =IF(OR('Tabel 1 H'!C200<5,'Tabel 2 H'!C202<0.5),"-",IFERROR('Tabel 2 H'!C202/'Tabel 1 H'!C200*100,"-")) -> - | D202: =IF(OR('Tabel 1 H'!C200<5,'Tabel 2 H'!D202<0.5),"-",IFERROR('Tabel 2 H'!D202/'Tabel 1 H'!C200*100,"-")) -> - | F202: =IF(OR('Tabel 1 H'!E200<5,'Tabel 2 H'!F202<0.5),"-",IFERROR('Tabel 2 H'!F202/'Tabel 1 H'!E200*100,"-")) -> 5 | G202: =IF(OR('Tabel 1 H'!E200<5,'Tabel 2 H'!G202<0.5),"-",IFERROR('Tabel 2 H'!G202/'Tabel 1 H'!E200*100,"-")) -> 3.712135387 | I202: =IF(OR('Tabel 1 H'!G200<5,'Tabel 2 H'!I202<0.5),"-",IFERROR('Tabel 2 H'!I202/'Tabel 1 H'!G200*100,"-")) -> 4.285714286 | J202: =IF(OR('Tabel 1 H'!G200<5,'Tabel 2 H'!J202<0.5),"-",IFERROR('Tabel 2 H'!J202/'Tabel 1 H'!G200*100,"-")) -> 3.181830332
A203: Bygningskonst. | C203: =IF(OR('Tabel 1 H'!C201<5,'Tabel 2 H'!C203<0.5),"-",IFERROR('Tabel 2 H'!C203/'Tabel 1 H'!C201*100,"-")) -> 3.773584906 | D203: =IF(OR('Tabel 1 H'!C201<5,'Tabel 2 H'!D203<0.5),"-",IFERROR('Tabel 2 H'!D203/'Tabel 1 H'!C201*100,"-")) -> 3.599415827 | F203: =IF(OR('Tabel 1 H'!E201<5,'Tabel 2 H'!F203<0.5),"-",IFERROR('Tabel 2 H'!F203/'Tabel 1 H'!E201*100,"-")) -> - | G203: =IF(OR('Tabel 1 H'!E201<5,'Tabel 2 H'!G203<0.5),"-",IFERROR('Tabel 2 H'!G203/'Tabel 1 H'!E201*100,"-")) -> - | I203: =IF(OR('Tabel 1 H'!G201<5,'Tabel 2 H'!I203<0.5),"-",IFERROR('Tabel 2 H'!I203/'Tabel 1 H'!G201*100,"-")) -> 3.076923077 | J203: =IF(OR('Tabel 1 H'!G201<5,'Tabel 2 H'!J203<0.5),"-",IFERROR('Tabel 2 H'!J203/'Tabel 1 H'!G201*100,"-")) -> 2.93490829
A204: Cand. IT. | C204: =IF(OR('Tabel 1 H'!C202<5,'Tabel 2 H'!C204<0.5),"-",IFERROR('Tabel 2 H'!C204/'Tabel 1 H'!C202*100,"-")) -> 5.555555556 | D204: =IF(OR('Tabel 1 H'!C202<5,'Tabel 2 H'!D204<0.5),"-",IFERROR('Tabel 2 H'!D204/'Tabel 1 H'!C202*100,"-")) -> - | F204: =IF(OR('Tabel 1 H'!E202<5,'Tabel 2 H'!F204<0.5),"-",IFERROR('Tabel 2 H'!F204/'Tabel 1 H'!E202*100,"-")) -> - | G204: =IF(OR('Tabel 1 H'!E202<5,'Tabel 2 H'!G204<0.5),"-",IFERROR('Tabel 2 H'!G204/'Tabel 1 H'!E202*100,"-")) -> - | I204: =IF(OR('Tabel 1 H'!G202<5,'Tabel 2 H'!I204<0.5),"-",IFERROR('Tabel 2 H'!I204/'Tabel 1 H'!G202*100,"-")) -> 2.564102564 | J204: =IF(OR('Tabel 1 H'!G202<5,'Tabel 2 H'!J204<0.5),"-",IFERROR('Tabel 2 H'!J204/'Tabel 1 H'!G202*100,"-")) -> -
A205: Bac. Samf. | C205: =IF(OR('Tabel 1 H'!C203<5,'Tabel 2 H'!C205<0.5),"-",IFERROR('Tabel 2 H'!C205/'Tabel 1 H'!C203*100,"-")) -> - | D205: =IF(OR('Tabel 1 H'!C203<5,'Tabel 2 H'!D205<0.5),"-",IFERROR('Tabel 2 H'!D205/'Tabel 1 H'!C203*100,"-")) -> - | F205: =IF(OR('Tabel 1 H'!E203<5,'Tabel 2 H'!F205<0.5),"-",IFERROR('Tabel 2 H'!F205/'Tabel 1 H'!E203*100,"-")) -> 20 | G205: =IF(OR('Tabel 1 H'!E203<5,'Tabel 2 H'!G205<0.5),"-",IFERROR('Tabel 2 H'!G205/'Tabel 1 H'!E203*100,"-")) -> 15.38077715 | I205: =IF(OR('Tabel 1 H'!G203<5,'Tabel 2 H'!I205<0.5),"-",IFERROR('Tabel 2 H'!I205/'Tabel 1 H'!G203*100,"-")) -> 11.11111111 | J205: =IF(OR('Tabel 1 H'!G203<5,'Tabel 2 H'!J205<0.5),"-",IFERROR('Tabel 2 H'!J205/'Tabel 1 H'!G203*100,"-")) -> 8.544876193
A206: Bac. Hum. | C206: =IF(OR('Tabel 1 H'!C204<5,'Tabel 2 H'!C206<0.5),"-",IFERROR('Tabel 2 H'!C206/'Tabel 1 H'!C204*100,"-")) -> - | D206: =IF(OR('Tabel 1 H'!C204<5,'Tabel 2 H'!D206<0.5),"-",IFERROR('Tabel 2 H'!D206/'Tabel 1 H'!C204*100,"-")) -> - | F206: =IF(OR('Tabel 1 H'!E204<5,'Tabel 2 H'!F206<0.5),"-",IFERROR('Tabel 2 H'!F206/'Tabel 1 H'!E204*100,"-")) -> - | G206: =IF(OR('Tabel 1 H'!E204<5,'Tabel 2 H'!G206<0.5),"-",IFERROR('Tabel 2 H'!G206/'Tabel 1 H'!E204*100,"-")) -> - | I206: =IF(OR('Tabel 1 H'!G204<5,'Tabel 2 H'!I206<0.5),"-",IFERROR('Tabel 2 H'!I206/'Tabel 1 H'!G204*100,"-")) -> - | J206: =IF(OR('Tabel 1 H'!G204<5,'Tabel 2 H'!J206<0.5),"-",IFERROR('Tabel 2 H'!J206/'Tabel 1 H'!G204*100,"-")) -> -
A207: Bac. Nat. | C207: =IF(OR('Tabel 1 H'!C205<5,'Tabel 2 H'!C207<0.5),"-",IFERROR('Tabel 2 H'!C207/'Tabel 1 H'!C205*100,"-")) -> 9.090909091 | D207: =IF(OR('Tabel 1 H'!C205<5,'Tabel 2 H'!D207<0.5),"-",IFERROR('Tabel 2 H'!D207/'Tabel 1 H'!C205*100,"-")) -> 6.711536244 | F207: =IF(OR('Tabel 1 H'!E205<5,'Tabel 2 H'!F207<0.5),"-",IFERROR('Tabel 2 H'!F207/'Tabel 1 H'!E205*100,"-")) -> 14.28571429 | G207: =IF(OR('Tabel 1 H'!E205<5,'Tabel 2 H'!G207<0.5),"-",IFERROR('Tabel 2 H'!G207/'Tabel 1 H'!E205*100,"-")) -> 10.32691502 | I207: =IF(OR('Tabel 1 H'!G205<5,'Tabel 2 H'!I207<0.5),"-",IFERROR('Tabel 2 H'!I207/'Tabel 1 H'!G205*100,"-")) -> 10 | J207: =IF(OR('Tabel 1 H'!G205<5,'Tabel 2 H'!J207<0.5),"-",IFERROR('Tabel 2 H'!J207/'Tabel 1 H'!G205*100,"-")) -> 7.344227531
A208: Andre | C208: =IF(OR('Tabel 1 H'!C206<5,'Tabel 2 H'!C208<0.5),"-",IFERROR('Tabel 2 H'!C208/'Tabel 1 H'!C206*100,"-")) -> 2.857142857 | D208: =IF(OR('Tabel 1 H'!C206<5,'Tabel 2 H'!D208<0.5),"-",IFERROR('Tabel 2 H'!D208/'Tabel 1 H'!C206*100,"-")) -> 2.856608245 | F208: =IF(OR('Tabel 1 H'!E206<5,'Tabel 2 H'!F208<0.5),"-",IFERROR('Tabel 2 H'!F208/'Tabel 1 H'!E206*100,"-")) -> 9.302325581 | G208: =IF(OR('Tabel 1 H'!E206<5,'Tabel 2 H'!G208<0.5),"-",IFERROR('Tabel 2 H'!G208/'Tabel 1 H'!E206*100,"-")) -> 7.720994054 | I208: =IF(OR('Tabel 1 H'!G206<5,'Tabel 2 H'!I208<0.5),"-",IFERROR('Tabel 2 H'!I208/'Tabel 1 H'!G206*100,"-")) -> 5.759162304 | J208: =IF(OR('Tabel 1 H'!G206<5,'Tabel 2 H'!J208<0.5),"-",IFERROR('Tabel 2 H'!J208/'Tabel 1 H'!G206*100,"-")) -> 5.046855259
A210: Total | C210: =IF(OR('Tabel 1 H'!C208<5,'Tabel 2 H'!C210<0.5),"-",IFERROR('Tabel 2 H'!C210/'Tabel 1 H'!C208*100,"-")) -> 3.111111111 | D210: =IF(OR('Tabel 1 H'!C208<5,'Tabel 2 H'!D210<0.5),"-",IFERROR('Tabel 2 H'!D210/'Tabel 1 H'!C208*100,"-")) -> 2.442691116 | F210: =IF(OR('Tabel 1 H'!E208<5,'Tabel 2 H'!F210<0.5),"-",IFERROR('Tabel 2 H'!F210/'Tabel 1 H'!E208*100,"-")) -> 4.342273308 | G210: =IF(OR('Tabel 1 H'!E208<5,'Tabel 2 H'!G210<0.5),"-",IFERROR('Tabel 2 H'!G210/'Tabel 1 H'!E208*100,"-")) -> 3.364986599 | I210: =IF(OR('Tabel 1 H'!G208<5,'Tabel 2 H'!I210<0.5),"-",IFERROR('Tabel 2 H'!I210/'Tabel 1 H'!G208*100,"-")) -> 3.683897802 | J210: =IF(OR('Tabel 1 H'!G208<5,'Tabel 2 H'!J210<0.5),"-",IFERROR('Tabel 2 H'!J210/'Tabel 1 H'!G208*100,"-")) -> 2.871780458
A212: Ingeniører i alt | C212: =IF(OR('Tabel 1 H'!C210<5,'Tabel 2 H'!C212<0.5),"-",IFERROR('Tabel 2 H'!C212/'Tabel 1 H'!C210*100,"-")) -> 2.402022756 | D212: =IF(OR('Tabel 1 H'!C210<5,'Tabel 2 H'!D212<0.5),"-",IFERROR('Tabel 2 H'!D212/'Tabel 1 H'!C210*100,"-")) -> 1.979009317 | F212: =IF(OR('Tabel 1 H'!E210<5,'Tabel 2 H'!F212<0.5),"-",IFERROR('Tabel 2 H'!F212/'Tabel 1 H'!E210*100,"-")) -> 3.088803089 | G212: =IF(OR('Tabel 1 H'!E210<5,'Tabel 2 H'!G212<0.5),"-",IFERROR('Tabel 2 H'!G212/'Tabel 1 H'!E210*100,"-")) -> 2.072222181 | I212: =IF(OR('Tabel 1 H'!G210<5,'Tabel 2 H'!I212<0.5),"-",IFERROR('Tabel 2 H'!I212/'Tabel 1 H'!G210*100,"-")) -> 2.571428571 | J212: =IF(OR('Tabel 1 H'!G210<5,'Tabel 2 H'!J212<0.5),"-",IFERROR('Tabel 2 H'!J212/'Tabel 1 H'!G210*100,"-")) -> 2.002001824
A213: Magistre i alt | C213: =IF(OR('Tabel 1 H'!C211<5,'Tabel 2 H'!C213<0.5),"-",IFERROR('Tabel 2 H'!C213/'Tabel 1 H'!C211*100,"-")) -> 2.688172043 | D213: =IF(OR('Tabel 1 H'!C211<5,'Tabel 2 H'!D213<0.5),"-",IFERROR('Tabel 2 H'!D213/'Tabel 1 H'!C211*100,"-")) -> 1.938877409 | F213: =IF(OR('Tabel 1 H'!E211<5,'Tabel 2 H'!F213<0.5),"-",IFERROR('Tabel 2 H'!F213/'Tabel 1 H'!E211*100,"-")) -> 4.137931034 | G213: =IF(OR('Tabel 1 H'!E211<5,'Tabel 2 H'!G213<0.5),"-",IFERROR('Tabel 2 H'!G213/'Tabel 1 H'!E211*100,"-")) -> 3.05770211 | I213: =IF(OR('Tabel 1 H'!G211<5,'Tabel 2 H'!I213<0.5),"-",IFERROR('Tabel 2 H'!I213/'Tabel 1 H'!G211*100,"-")) -> 3.571428571 | J213: =IF(OR('Tabel 1 H'!G211<5,'Tabel 2 H'!J213<0.5),"-",IFERROR('Tabel 2 H'!J213/'Tabel 1 H'!G211*100,"-")) -> 2.620514307
A214: DJØF'ere i alt | C214: =IF(OR('Tabel 1 H'!C212<5,'Tabel 2 H'!C214<0.5),"-",IFERROR('Tabel 2 H'!C214/'Tabel 1 H'!C212*100,"-")) -> 3.903903904 | D214: =IF(OR('Tabel 1 H'!C212<5,'Tabel 2 H'!D214<0.5),"-",IFERROR('Tabel 2 H'!D214/'Tabel 1 H'!C212*100,"-")) -> 3.103021939 | F214: =IF(OR('Tabel 1 H'!E212<5,'Tabel 2 H'!F214<0.5),"-",IFERROR('Tabel 2 H'!F214/'Tabel 1 H'!E212*100,"-")) -> 3.385416667 | G214: =IF(OR('Tabel 1 H'!E212<5,'Tabel 2 H'!G214<0.5),"-",IFERROR('Tabel 2 H'!G214/'Tabel 1 H'!E212*100,"-")) -> 2.860636396 | I214: =IF(OR('Tabel 1 H'!G212<5,'Tabel 2 H'!I214<0.5),"-",IFERROR('Tabel 2 H'!I214/'Tabel 1 H'!G212*100,"-")) -> 3.626220363 | J214: =IF(OR('Tabel 1 H'!G212<5,'Tabel 2 H'!J214<0.5),"-",IFERROR('Tabel 2 H'!J214/'Tabel 1 H'!G212*100,"-")) -> 2.973208761
A219: Brøndby
C221: Mænd | F221: Kvinder | I221: I alt
C222: Ledigheds- berørte | D222: Gns. brutto- ledighed | F222: Ledigheds- berørte | G222: Gns. brutto- ledighed | I222: Ledigheds- berørte | J222: Gns. brutto- ledighed
A225: Civ. ing. | C225: =IF(OR('Tabel 1 H'!C223<5,'Tabel 2 H'!C225<0.5),"-",IFERROR('Tabel 2 H'!C225/'Tabel 1 H'!C223*100,"-")) -> 6.52173913 | D225: =IF(OR('Tabel 1 H'!C223<5,'Tabel 2 H'!D225<0.5),"-",IFERROR('Tabel 2 H'!D225/'Tabel 1 H'!C223*100,"-")) -> 3.761264132 | F225: =IF(OR('Tabel 1 H'!E223<5,'Tabel 2 H'!F225<0.5),"-",IFERROR('Tabel 2 H'!F225/'Tabel 1 H'!E223*100,"-")) -> - | G225: =IF(OR('Tabel 1 H'!E223<5,'Tabel 2 H'!G225<0.5),"-",IFERROR('Tabel 2 H'!G225/'Tabel 1 H'!E223*100,"-")) -> - | I225: =IF(OR('Tabel 1 H'!G223<5,'Tabel 2 H'!I225<0.5),"-",IFERROR('Tabel 2 H'!I225/'Tabel 1 H'!G223*100,"-")) -> 4.761904762 | J225: =IF(OR('Tabel 1 H'!G223<5,'Tabel 2 H'!J225<0.5),"-",IFERROR('Tabel 2 H'!J225/'Tabel 1 H'!G223*100,"-")) -> 2.746319842
A226: Diplom ing. | C226: =IF(OR('Tabel 1 H'!C224<5,'Tabel 2 H'!C226<0.5),"-",IFERROR('Tabel 2 H'!C226/'Tabel 1 H'!C224*100,"-")) -> 2.222222222 | D226: =IF(OR('Tabel 1 H'!C224<5,'Tabel 2 H'!D226<0.5),"-",IFERROR('Tabel 2 H'!D226/'Tabel 1 H'!C224*100,"-")) -> 1.568062168 | F226: =IF(OR('Tabel 1 H'!E224<5,'Tabel 2 H'!F226<0.5),"-",IFERROR('Tabel 2 H'!F226/'Tabel 1 H'!E224*100,"-")) -> 3.703703704 | G226: =IF(OR('Tabel 1 H'!E224<5,'Tabel 2 H'!G226<0.5),"-",IFERROR('Tabel 2 H'!G226/'Tabel 1 H'!E224*100,"-")) -> 2.351631242 | I226: =IF(OR('Tabel 1 H'!G224<5,'Tabel 2 H'!I226<0.5),"-",IFERROR('Tabel 2 H'!I226/'Tabel 1 H'!G224*100,"-")) -> 2.469135802 | J226: =IF(OR('Tabel 1 H'!G224<5,'Tabel 2 H'!J226<0.5),"-",IFERROR('Tabel 2 H'!J226/'Tabel 1 H'!G224*100,"-")) -> 1.698657014
A227: Cand. Scient. Tek. | C227: =IF(OR('Tabel 1 H'!C225<5,'Tabel 2 H'!C227<0.5),"-",IFERROR('Tabel 2 H'!C227/'Tabel 1 H'!C225*100,"-")) -> 6.666666667 | D227: =IF(OR('Tabel 1 H'!C225<5,'Tabel 2 H'!D227<0.5),"-",IFERROR('Tabel 2 H'!D227/'Tabel 1 H'!C225*100,"-")) -> 6.05002183 | F227: =IF(OR('Tabel 1 H'!E225<5,'Tabel 2 H'!F227<0.5),"-",IFERROR('Tabel 2 H'!F227/'Tabel 1 H'!E225*100,"-")) -> 3.333333333 | G227: =IF(OR('Tabel 1 H'!E225<5,'Tabel 2 H'!G227<0.5),"-",IFERROR('Tabel 2 H'!G227/'Tabel 1 H'!E225*100,"-")) -> 3.33270962 | I227: =IF(OR('Tabel 1 H'!G225<5,'Tabel 2 H'!I227<0.5),"-",IFERROR('Tabel 2 H'!I227/'Tabel 1 H'!G225*100,"-")) -> 5.333333333 | J227: =IF(OR('Tabel 1 H'!G225<5,'Tabel 2 H'!J227<0.5),"-",IFERROR('Tabel 2 H'!J227/'Tabel 1 H'!G225*100,"-")) -> 4.963096946
A228: MA. Hum. | C228: =IF(OR('Tabel 1 H'!C226<5,'Tabel 2 H'!C228<0.5),"-",IFERROR('Tabel 2 H'!C228/'Tabel 1 H'!C226*100,"-")) -> 18.18181818 | D228: =IF(OR('Tabel 1 H'!C226<5,'Tabel 2 H'!D228<0.5),"-",IFERROR('Tabel 2 H'!D228/'Tabel 1 H'!C226*100,"-")) -> 16.78923584 | F228: =IF(OR('Tabel 1 H'!E226<5,'Tabel 2 H'!F228<0.5),"-",IFERROR('Tabel 2 H'!F228/'Tabel 1 H'!E226*100,"-")) -> 19.6969697 | G228: =IF(OR('Tabel 1 H'!E226<5,'Tabel 2 H'!G228<0.5),"-",IFERROR('Tabel 2 H'!G228/'Tabel 1 H'!E226*100,"-")) -> 15.88107105 | I228: =IF(OR('Tabel 1 H'!G226<5,'Tabel 2 H'!I228<0.5),"-",IFERROR('Tabel 2 H'!I228/'Tabel 1 H'!G226*100,"-")) -> 19.31818182 | J228: =IF(OR('Tabel 1 H'!G226<5,'Tabel 2 H'!J228<0.5),"-",IFERROR('Tabel 2 H'!J228/'Tabel 1 H'!G226*100,"-")) -> 16.10811225
A229: MA. Nat. | C229: =IF(OR('Tabel 1 H'!C227<5,'Tabel 2 H'!C229<0.5),"-",IFERROR('Tabel 2 H'!C229/'Tabel 1 H'!C227*100,"-")) -> 7.142857143 | D229: =IF(OR('Tabel 1 H'!C227<5,'Tabel 2 H'!D229<0.5),"-",IFERROR('Tabel 2 H'!D229/'Tabel 1 H'!C227*100,"-")) -> 6.762837362 | F229: =IF(OR('Tabel 1 H'!E227<5,'Tabel 2 H'!F229<0.5),"-",IFERROR('Tabel 2 H'!F229/'Tabel 1 H'!E227*100,"-")) -> 3.703703704 | G229: =IF(OR('Tabel 1 H'!E227<5,'Tabel 2 H'!G229<0.5),"-",IFERROR('Tabel 2 H'!G229/'Tabel 1 H'!E227*100,"-")) -> - | I229: =IF(OR('Tabel 1 H'!G227<5,'Tabel 2 H'!I229<0.5),"-",IFERROR('Tabel 2 H'!I229/'Tabel 1 H'!G227*100,"-")) -> 5.454545455 | J229: =IF(OR('Tabel 1 H'!G227<5,'Tabel 2 H'!J229<0.5),"-",IFERROR('Tabel 2 H'!J229/'Tabel 1 H'!G227*100,"-")) -> 4.193623379
A230: MA. Ph.d. | C230: =IF(OR('Tabel 1 H'!C228<5,'Tabel 2 H'!C230<0.5),"-",IFERROR('Tabel 2 H'!C230/'Tabel 1 H'!C228*100,"-")) -> - | D230: =IF(OR('Tabel 1 H'!C228<5,'Tabel 2 H'!D230<0.5),"-",IFERROR('Tabel 2 H'!D230/'Tabel 1 H'!C228*100,"-")) -> - | F230: =IF(OR('Tabel 1 H'!E228<5,'Tabel 2 H'!F230<0.5),"-",IFERROR('Tabel 2 H'!F230/'Tabel 1 H'!E228*100,"-")) -> - | G230: =IF(OR('Tabel 1 H'!E228<5,'Tabel 2 H'!G230<0.5),"-",IFERROR('Tabel 2 H'!G230/'Tabel 1 H'!E228*100,"-")) -> - | I230: =IF(OR('Tabel 1 H'!G228<5,'Tabel 2 H'!I230<0.5),"-",IFERROR('Tabel 2 H'!I230/'Tabel 1 H'!G228*100,"-")) -> - | J230: =IF(OR('Tabel 1 H'!G228<5,'Tabel 2 H'!J230<0.5),"-",IFERROR('Tabel 2 H'!J230/'Tabel 1 H'!G228*100,"-")) -> -
A231: MA. Samf. | C231: =IF(OR('Tabel 1 H'!C229<5,'Tabel 2 H'!C231<0.5),"-",IFERROR('Tabel 2 H'!C231/'Tabel 1 H'!C229*100,"-")) -> 27.27272727 | D231: =IF(OR('Tabel 1 H'!C229<5,'Tabel 2 H'!D231<0.5),"-",IFERROR('Tabel 2 H'!D231/'Tabel 1 H'!C229*100,"-")) -> 27.26762416 | F231: =IF(OR('Tabel 1 H'!E229<5,'Tabel 2 H'!F231<0.5),"-",IFERROR('Tabel 2 H'!F231/'Tabel 1 H'!E229*100,"-")) -> 7.142857143 | G231: =IF(OR('Tabel 1 H'!E229<5,'Tabel 2 H'!G231<0.5),"-",IFERROR('Tabel 2 H'!G231/'Tabel 1 H'!E229*100,"-")) -> 7.141520614 | I231: =IF(OR('Tabel 1 H'!G229<5,'Tabel 2 H'!I231<0.5),"-",IFERROR('Tabel 2 H'!I231/'Tabel 1 H'!G229*100,"-")) -> 16 | J231: =IF(OR('Tabel 1 H'!G229<5,'Tabel 2 H'!J231<0.5),"-",IFERROR('Tabel 2 H'!J231/'Tabel 1 H'!G229*100,"-")) -> 15.99700617
A232: Øvrige Mag. | C232: =IF(OR('Tabel 1 H'!C230<5,'Tabel 2 H'!C232<0.5),"-",IFERROR('Tabel 2 H'!C232/'Tabel 1 H'!C230*100,"-")) -> 14.28571429 | D232: =IF(OR('Tabel 1 H'!C230<5,'Tabel 2 H'!D232<0.5),"-",IFERROR('Tabel 2 H'!D232/'Tabel 1 H'!C230*100,"-")) -> 14.28304123 | F232: =IF(OR('Tabel 1 H'!E230<5,'Tabel 2 H'!F232<0.5),"-",IFERROR('Tabel 2 H'!F232/'Tabel 1 H'!E230*100,"-")) -> 20 | G232: =IF(OR('Tabel 1 H'!E230<5,'Tabel 2 H'!G232<0.5),"-",IFERROR('Tabel 2 H'!G232/'Tabel 1 H'!E230*100,"-")) -> 15.38077715 | I232: =IF(OR('Tabel 1 H'!G230<5,'Tabel 2 H'!I232<0.5),"-",IFERROR('Tabel 2 H'!I232/'Tabel 1 H'!G230*100,"-")) -> 16.66666667 | J232: =IF(OR('Tabel 1 H'!G230<5,'Tabel 2 H'!J232<0.5),"-",IFERROR('Tabel 2 H'!J232/'Tabel 1 H'!G230*100,"-")) -> 14.74043119
A233: Agronom | C233: =IF(OR('Tabel 1 H'!C231<5,'Tabel 2 H'!C233<0.5),"-",IFERROR('Tabel 2 H'!C233/'Tabel 1 H'!C231*100,"-")) -> - | D233: =IF(OR('Tabel 1 H'!C231<5,'Tabel 2 H'!D233<0.5),"-",IFERROR('Tabel 2 H'!D233/'Tabel 1 H'!C231*100,"-")) -> - | F233: =IF(OR('Tabel 1 H'!E231<5,'Tabel 2 H'!F233<0.5),"-",IFERROR('Tabel 2 H'!F233/'Tabel 1 H'!E231*100,"-")) -> - | G233: =IF(OR('Tabel 1 H'!E231<5,'Tabel 2 H'!G233<0.5),"-",IFERROR('Tabel 2 H'!G233/'Tabel 1 H'!E231*100,"-")) -> - | I233: =IF(OR('Tabel 1 H'!G231<5,'Tabel 2 H'!I233<0.5),"-",IFERROR('Tabel 2 H'!I233/'Tabel 1 H'!G231*100,"-")) -> 16.66666667 | J233: =IF(OR('Tabel 1 H'!G231<5,'Tabel 2 H'!J233<0.5),"-",IFERROR('Tabel 2 H'!J233/'Tabel 1 H'!G231*100,"-")) -> 14.40778395
A234: Landsk. Arkt. | C234: =IF(OR('Tabel 1 H'!C232<5,'Tabel 2 H'!C234<0.5),"-",IFERROR('Tabel 2 H'!C234/'Tabel 1 H'!C232*100,"-")) -> - | D234: =IF(OR('Tabel 1 H'!C232<5,'Tabel 2 H'!D234<0.5),"-",IFERROR('Tabel 2 H'!D234/'Tabel 1 H'!C232*100,"-")) -> - | F234: =IF(OR('Tabel 1 H'!E232<5,'Tabel 2 H'!F234<0.5),"-",IFERROR('Tabel 2 H'!F234/'Tabel 1 H'!E232*100,"-")) -> - | G234: =IF(OR('Tabel 1 H'!E232<5,'Tabel 2 H'!G234<0.5),"-",IFERROR('Tabel 2 H'!G234/'Tabel 1 H'!E232*100,"-")) -> - | I234: =IF(OR('Tabel 1 H'!G232<5,'Tabel 2 H'!I234<0.5),"-",IFERROR('Tabel 2 H'!I234/'Tabel 1 H'!G232*100,"-")) -> - | J234: =IF(OR('Tabel 1 H'!G232<5,'Tabel 2 H'!J234<0.5),"-",IFERROR('Tabel 2 H'!J234/'Tabel 1 H'!G232*100,"-")) -> -
A235: Hortonom | C235: =IF(OR('Tabel 1 H'!C233<5,'Tabel 2 H'!C235<0.5),"-",IFERROR('Tabel 2 H'!C235/'Tabel 1 H'!C233*100,"-")) -> - | D235: =IF(OR('Tabel 1 H'!C233<5,'Tabel 2 H'!D235<0.5),"-",IFERROR('Tabel 2 H'!D235/'Tabel 1 H'!C233*100,"-")) -> - | F235: =IF(OR('Tabel 1 H'!E233<5,'Tabel 2 H'!F235<0.5),"-",IFERROR('Tabel 2 H'!F235/'Tabel 1 H'!E233*100,"-")) -> - | G235: =IF(OR('Tabel 1 H'!E233<5,'Tabel 2 H'!G235<0.5),"-",IFERROR('Tabel 2 H'!G235/'Tabel 1 H'!E233*100,"-")) -> - | I235: =IF(OR('Tabel 1 H'!G233<5,'Tabel 2 H'!I235<0.5),"-",IFERROR('Tabel 2 H'!I235/'Tabel 1 H'!G233*100,"-")) -> - | J235: =IF(OR('Tabel 1 H'!G233<5,'Tabel 2 H'!J235<0.5),"-",IFERROR('Tabel 2 H'!J235/'Tabel 1 H'!G233*100,"-")) -> -
A236: Forstkand. | C236: =IF(OR('Tabel 1 H'!C234<5,'Tabel 2 H'!C236<0.5),"-",IFERROR('Tabel 2 H'!C236/'Tabel 1 H'!C234*100,"-")) -> - | D236: =IF(OR('Tabel 1 H'!C234<5,'Tabel 2 H'!D236<0.5),"-",IFERROR('Tabel 2 H'!D236/'Tabel 1 H'!C234*100,"-")) -> - | F236: =IF(OR('Tabel 1 H'!E234<5,'Tabel 2 H'!F236<0.5),"-",IFERROR('Tabel 2 H'!F236/'Tabel 1 H'!E234*100,"-")) -> - | G236: =IF(OR('Tabel 1 H'!E234<5,'Tabel 2 H'!G236<0.5),"-",IFERROR('Tabel 2 H'!G236/'Tabel 1 H'!E234*100,"-")) -> - | I236: =IF(OR('Tabel 1 H'!G234<5,'Tabel 2 H'!I236<0.5),"-",IFERROR('Tabel 2 H'!I236/'Tabel 1 H'!G234*100,"-")) -> - | J236: =IF(OR('Tabel 1 H'!G234<5,'Tabel 2 H'!J236<0.5),"-",IFERROR('Tabel 2 H'!J236/'Tabel 1 H'!G234*100,"-")) -> -
A237: Jordbrugsakad. | C237: =IF(OR('Tabel 1 H'!C235<5,'Tabel 2 H'!C237<0.5),"-",IFERROR('Tabel 2 H'!C237/'Tabel 1 H'!C235*100,"-")) -> - | D237: =IF(OR('Tabel 1 H'!C235<5,'Tabel 2 H'!D237<0.5),"-",IFERROR('Tabel 2 H'!D237/'Tabel 1 H'!C235*100,"-")) -> - | F237: =IF(OR('Tabel 1 H'!E235<5,'Tabel 2 H'!F237<0.5),"-",IFERROR('Tabel 2 H'!F237/'Tabel 1 H'!E235*100,"-")) -> 8.333333333 | G237: =IF(OR('Tabel 1 H'!E235<5,'Tabel 2 H'!G237<0.5),"-",IFERROR('Tabel 2 H'!G237/'Tabel 1 H'!E235*100,"-")) -> 7.203891973 | I237: =IF(OR('Tabel 1 H'!G235<5,'Tabel 2 H'!I237<0.5),"-",IFERROR('Tabel 2 H'!I237/'Tabel 1 H'!G235*100,"-")) -> 7.142857143 | J237: =IF(OR('Tabel 1 H'!G235<5,'Tabel 2 H'!J237<0.5),"-",IFERROR('Tabel 2 H'!J237/'Tabel 1 H'!G235*100,"-")) -> 6.174764548
A238: Mejeriing. | C238: =IF(OR('Tabel 1 H'!C236<5,'Tabel 2 H'!C238<0.5),"-",IFERROR('Tabel 2 H'!C238/'Tabel 1 H'!C236*100,"-")) -> - | D238: =IF(OR('Tabel 1 H'!C236<5,'Tabel 2 H'!D238<0.5),"-",IFERROR('Tabel 2 H'!D238/'Tabel 1 H'!C236*100,"-")) -> - | F238: =IF(OR('Tabel 1 H'!E236<5,'Tabel 2 H'!F238<0.5),"-",IFERROR('Tabel 2 H'!F238/'Tabel 1 H'!E236*100,"-")) -> - | G238: =IF(OR('Tabel 1 H'!E236<5,'Tabel 2 H'!G238<0.5),"-",IFERROR('Tabel 2 H'!G238/'Tabel 1 H'!E236*100,"-")) -> - | I238: =IF(OR('Tabel 1 H'!G236<5,'Tabel 2 H'!I238<0.5),"-",IFERROR('Tabel 2 H'!I238/'Tabel 1 H'!G236*100,"-")) -> - | J238: =IF(OR('Tabel 1 H'!G236<5,'Tabel 2 H'!J238<0.5),"-",IFERROR('Tabel 2 H'!J238/'Tabel 1 H'!G236*100,"-")) -> -
A239: Levn.m.kand. | C239: =IF(OR('Tabel 1 H'!C237<5,'Tabel 2 H'!C239<0.5),"-",IFERROR('Tabel 2 H'!C239/'Tabel 1 H'!C237*100,"-")) -> - | D239: =IF(OR('Tabel 1 H'!C237<5,'Tabel 2 H'!D239<0.5),"-",IFERROR('Tabel 2 H'!D239/'Tabel 1 H'!C237*100,"-")) -> - | F239: =IF(OR('Tabel 1 H'!E237<5,'Tabel 2 H'!F239<0.5),"-",IFERROR('Tabel 2 H'!F239/'Tabel 1 H'!E237*100,"-")) -> - | G239: =IF(OR('Tabel 1 H'!E237<5,'Tabel 2 H'!G239<0.5),"-",IFERROR('Tabel 2 H'!G239/'Tabel 1 H'!E237*100,"-")) -> - | I239: =IF(OR('Tabel 1 H'!G237<5,'Tabel 2 H'!I239<0.5),"-",IFERROR('Tabel 2 H'!I239/'Tabel 1 H'!G237*100,"-")) -> - | J239: =IF(OR('Tabel 1 H'!G237<5,'Tabel 2 H'!J239<0.5),"-",IFERROR('Tabel 2 H'!J239/'Tabel 1 H'!G237*100,"-")) -> -
A240: Dyrlæge | C240: =IF(OR('Tabel 1 H'!C238<5,'Tabel 2 H'!C240<0.5),"-",IFERROR('Tabel 2 H'!C240/'Tabel 1 H'!C238*100,"-")) -> - | D240: =IF(OR('Tabel 1 H'!C238<5,'Tabel 2 H'!D240<0.5),"-",IFERROR('Tabel 2 H'!D240/'Tabel 1 H'!C238*100,"-")) -> - | F240: =IF(OR('Tabel 1 H'!E238<5,'Tabel 2 H'!F240<0.5),"-",IFERROR('Tabel 2 H'!F240/'Tabel 1 H'!E238*100,"-")) -> - | G240: =IF(OR('Tabel 1 H'!E238<5,'Tabel 2 H'!G240<0.5),"-",IFERROR('Tabel 2 H'!G240/'Tabel 1 H'!E238*100,"-")) -> - | I240: =IF(OR('Tabel 1 H'!G238<5,'Tabel 2 H'!I240<0.5),"-",IFERROR('Tabel 2 H'!I240/'Tabel 1 H'!G238*100,"-")) -> - | J240: =IF(OR('Tabel 1 H'!G238<5,'Tabel 2 H'!J240<0.5),"-",IFERROR('Tabel 2 H'!J240/'Tabel 1 H'!G238*100,"-")) -> -
... 1106 more rows

Sheet Tabel 4F H
A1: Tabel 4. Antal forsikrede - aldersfordelt
A3: Hovedstaden
C5: Under 30 år | D5: 30 - 39 år | E5: 40 - 49 år | F5: 50 - 59 år | G5: Over 60 år | I5: I alt
A7: Civ. ing. | C7: 3142 | D7: 5897 | E7: 4200 | F7: 3759 | G7: 1355 | I7: 18353
A8: Diplom ing. | C8: 1136 | D8: 2192 | E8: 2891 | F8: 4586 | G8: 1725 | I8: 12530
A9: Cand. Scient. Tek. | C9: 3117 | D9: 5764 | E9: 1767 | F9: 619 | G9: 135 | I9: 11402
A10: MA. Hum. | C10: 2659 | D10: 7349 | E10: 6546 | F10: 2914 | G10: 1047 | I10: 20515
A11: MA. Nat. | C11: 545 | D11: 1556 | E11: 2356 | F11: 1954 | G11: 757 | I11: 7168
A12: MA. Ph.d. | C12: 13 | D12: 350 | E12: 467 | F12: 374 | G12: 92 | I12: 1296
A13: MA. Samf. | C13: 976 | D13: 1781 | E13: 624 | F13: 274 | G13: 54 | I13: 3709
A14: Øvrige Mag. | C14: 288 | D14: 407 | E14: 522 | F14: 414 | G14: 127 | I14: 1758
A15: Agronom | C15: 125 | D15: 170 | E15: 197 | F15: 259 | G15: 104 | I15: 855
A16: Landsk. Arkt. | C16: 60 | D16: 182 | E16: 142 | F16: 87 | G16: 24 | I16: 495
A17: Hortonom | C17: 0 | D17: 13 | E17: 36 | F17: 73 | G17: 25 | I17: 147
A18: Forstkand. | C18: 25 | D18: 44 | E18: 95 | F18: 69 | G18: 31 | I18: 264
A19: Jordbrugsakad. | C19: 210 | D19: 409 | E19: 470 | F19: 488 | G19: 184 | I19: 1761
A20: Mejeriing. | C20: 30 | D20: 48 | E20: 26 | F20: 30 | G20: 16 | I20: 150
A21: Levn.m.kand. | C21: 68 | D21: 169 | E21: 81 | F21: 9 | G21: 3 | I21: 330
A22: Dyrlæge | C22: 162 | D22: 356 | E22: 219 | F22: 155 | G22: 73 | I22: 965
A23: Farmaceut | C23: 644 | D23: 1313 | E23: 1035 | F23: 653 | G23: 232 | I23: 3877
A24: Læge | C24: 886 | D24: 2353 | E24: 1102 | F24: 698 | G24: 486 | I24: 5525
A25: Tandlæge | C25: 161 | D25: 303 | E25: 195 | F25: 133 | G25: 89 | I25: 881
A26: Arkitekt | C26: 329 | D26: 1101 | E26: 1175 | F26: 771 | G26: 365 | I26: 3741
A27: Landinspek. | C27: 20 | D27: 55 | E27: 49 | F27: 46 | G27: 24 | I27: 194
A28: Bibliotekar | C28: 59 | D28: 327 | E28: 575 | F28: 426 | G28: 273 | I28: 1660
A29: Musikudd. | C29: 10 | D29: 34 | E29: 66 | F29: 119 | G29: 74 | I29: 303
A30: Teolog | C30: 16 | D30: 101 | E30: 176 | F30: 176 | G30: 92 | I30: 561
A31: Psykolog | C31: 652 | D31: 1378 | E31: 940 | F31: 533 | G31: 263 | I31: 3766
A32: Jurist | C32: 1748 | D32: 3075 | E32: 2606 | F32: 1955 | G32: 569 | I32: 9953
A33: Økonom | C33: 1013 | D33: 1717 | E33: 1352 | F33: 1336 | G33: 337 | I33: 5755
A34: Samf. Adm. | C34: 2772 | D34: 7138 | E34: 4864 | F34: 2348 | G34: 536 | I34: 17658
A35: Cand. Merc. | C35: 5279 | D35: 8360 | E35: 4448 | F35: 2979 | G35: 453 | I35: 21519
A36: HA | C36: 879 | D36: 596 | E36: 433 | F36: 677 | G36: 221 | I36: 2806
A37: HD | C37: 538 | D37: 665 | E37: 312 | F37: 714 | G37: 334 | I37: 2563
A38: Komm. og Sprog | C38: 559 | D38: 1114 | E38: 1125 | F38: 872 | G38: 302 | I38: 3972
A39: Bygningskonst. | C39: 460 | D39: 1097 | E39: 649 | F39: 360 | G39: 80 | I39: 2646
A40: Cand. IT. | C40: 750 | D40: 1368 | E40: 719 | F40: 98 | G40: 11 | I40: 2946
A41: Bac. Samf. | C41: 215 | D41: 228 | E41: 229 | F41: 154 | G41: 24 | I41: 850
A42: Bac. Hum. | C42: 1146 | D42: 477 | E42: 376 | F42: 368 | G42: 116 | I42: 2483
A43: Bac. Nat. | C43: 755 | D43: 646 | E43: 243 | F43: 109 | G43: 33 | I43: 1786
A44: Andre | C44: 1738 | D44: 5335 | E44: 3880 | F44: 2186 | G44: 937 | I44: 14076
A46: Total | C46: 32975 | D46: 65059 | E46: 46718 | F46: 33287 | G46: 11419 | I46: 189458
A48: Ingeniører i alt | C48: 4278 | D48: 8089 | E48: 7091 | F48: 8345 | G48: 3080 | I48: 30883
A49: Magistre i alt | C49: 4481 | D49: 11443 | E49: 10515 | F49: 5930 | G49: 2077 | I49: 34446
A50: DJØF'ere i alt | C50: 11691 | D50: 20886 | E50: 13703 | F50: 9295 | G50: 2116 | I50: 57691
A57: København
C59: Under 30 år | D59: 30 - 39 år | E59: 40 - 49 år | F59: 50 - 59 år | G59: Over 60 år | I59: I alt
A61: Civ. ing. | C61: 1718 | D61: 2556 | E61: 1047 | F61: 716 | G61: 220 | I61: 6257
A62: Diplom ing. | C62: 554 | D62: 858 | E62: 712 | F62: 858 | G62: 293 | I62: 3275
A63: Cand. Scient. Tek. | C63: 2168 | D63: 3175 | E63: 652 | F63: 169 | G63: 39 | I63: 6203
A64: MA. Hum. | C64: 2019 | D64: 5078 | E64: 3593 | F64: 1492 | G64: 451 | I64: 12633
A65: MA. Nat. | C65: 376 | D65: 906 | E65: 885 | F65: 640 | G65: 229 | I65: 3036
A66: MA. Ph.d. | C66: 10 | D66: 205 | E66: 251 | F66: 151 | G66: 45 | I66: 662
A67: MA. Samf. | C67: 764 | D67: 1255 | E67: 355 | F67: 136 | G67: 31 | I67: 2541
A68: Øvrige Mag. | C68: 215 | D68: 276 | E68: 288 | F68: 191 | G68: 63 | I68: 1033
A69: Agronom | C69: 81 | D69: 88 | E69: 53 | F69: 63 | G69: 32 | I69: 317
A70: Landsk. Arkt. | C70: 42 | D70: 120 | E70: 55 | F70: 34 | G70: 7 | I70: 258
A71: Hortonom | C71: 0 | D71: 9 | E71: 13 | F71: 15 | G71: 9 | I71: 46
A72: Forstkand. | C72: 20 | D72: 27 | E72: 22 | F72: 22 | G72: 3 | I72: 94
A73: Jordbrugsakad. | C73: 143 | D73: 244 | E73: 143 | F73: 134 | G73: 51 | I73: 715
A74: Mejeriing. | C74: 21 | D74: 25 | E74: 8 | F74: 7 | G74: 1 | I74: 62
A75: Levn.m.kand. | C75: 47 | D75: 86 | E75: 30 | F75: 2 | G75: 1 | I75: 166
A76: Dyrlæge | C76: 86 | D76: 121 | E76: 52 | F76: 41 | G76: 18 | I76: 318
A77: Farmaceut | C77: 378 | D77: 530 | E77: 226 | F77: 116 | G77: 37 | I77: 1287
A78: Læge | C78: 647 | D78: 1280 | E78: 399 | F78: 178 | G78: 120 | I78: 2624
A79: Tandlæge | C79: 86 | D79: 126 | E79: 52 | F79: 34 | G79: 22 | I79: 320
A80: Arkitekt | C80: 287 | D80: 809 | E80: 723 | F80: 376 | G80: 170 | I80: 2365
A81: Landinspek. | C81: 10 | D81: 24 | E81: 12 | F81: 4 | G81: 6 | I81: 56
A82: Bibliotekar | C82: 47 | D82: 200 | E82: 258 | F82: 175 | G82: 107 | I82: 787
A83: Musikudd. | C83: 8 | D83: 19 | E83: 42 | F83: 55 | G83: 23 | I83: 147
A84: Teolog | C84: 11 | D84: 60 | E84: 82 | F84: 65 | G84: 36 | I84: 254
A85: Psykolog | C85: 473 | D85: 864 | E85: 447 | F85: 240 | G85: 110 | I85: 2134
A86: Jurist | C86: 1280 | D86: 1606 | E86: 908 | F86: 591 | G86: 170 | I86: 4555
A87: Økonom | C87: 768 | D87: 1000 | E87: 466 | F87: 397 | G87: 94 | I87: 2725
A88: Samf. Adm. | C88: 2089 | D88: 4535 | E88: 2372 | F88: 1040 | G88: 207 | I88: 10243
A89: Cand. Merc. | C89: 3722 | D89: 4502 | E89: 1431 | F89: 737 | G89: 103 | I89: 10495
A90: HA | C90: 645 | D90: 347 | E90: 131 | F90: 173 | G90: 47 | I90: 1343
A91: HD | C91: 418 | D91: 405 | E91: 88 | F91: 146 | G91: 52 | I91: 1109
A92: Komm. og Sprog | C92: 411 | D92: 681 | E92: 459 | F92: 241 | G92: 73 | I92: 1865
A93: Bygningskonst. | C93: 285 | D93: 523 | E93: 228 | F93: 107 | G93: 27 | I93: 1170
A94: Cand. IT. | C94: 575 | D94: 873 | E94: 354 | F94: 50 | G94: 7 | I94: 1859
A95: Bac. Samf. | C95: 158 | D95: 131 | E95: 118 | F95: 85 | G95: 10 | I95: 502
A96: Bac. Hum. | C96: 881 | D96: 324 | E96: 208 | F96: 192 | G96: 59 | I96: 1664
A97: Bac. Nat. | C97: 516 | D97: 345 | E97: 93 | F97: 42 | G97: 7 | I97: 1003
A98: Andre | C98: 1206 | D98: 3193 | E98: 1853 | F98: 920 | G98: 345 | I98: 7517
A100: Total | C100: 23022 | D100: 37162 | E100: 18966 | F100: 10501 | G100: 3274 | I100: 92925
A102: Ingeniører i alt | C102: 2272 | D102: 3414 | E102: 1759 | F102: 1574 | G102: 513 | I102: 9532
A103: Magistre i alt | C103: 3384 | D103: 7720 | E103: 5372 | F103: 2610 | G103: 819 | I103: 19905
A104: DJØF'ere i alt | C104: 8504 | D104: 11990 | E104: 5308 | F104: 2938 | G104: 621 | I104: 29361
A111: Frederiksberg
C113: Under 30 år | D113: 30 - 39 år | E113: 40 - 49 år | F113: 50 - 59 år | G113: Over 60 år | I113: I alt
A115: Civ. ing. | C115: 229 | D115: 415 | E115: 217 | F115: 188 | G115: 67 | I115: 1116
A116: Diplom ing. | C116: 69 | D116: 113 | E116: 115 | F116: 200 | G116: 70 | I116: 567
A117: Cand. Scient. Tek. | C117: 223 | D117: 441 | E117: 129 | F117: 31 | G117: 4 | I117: 828
A118: MA. Hum. | C118: 230 | D118: 552 | E118: 656 | F118: 290 | G118: 107 | I118: 1835
A119: MA. Nat. | C119: 52 | D119: 92 | E119: 160 | F119: 140 | G119: 51 | I119: 495
A120: MA. Ph.d. | C120: 1 | D120: 34 | E120: 45 | F120: 38 | G120: 8 | I120: 126
A121: MA. Samf. | C121: 88 | D121: 150 | E121: 56 | F121: 36 | G121: 4 | I121: 334
A122: Øvrige Mag. | C122: 19 | D122: 25 | E122: 38 | F122: 31 | G122: 12 | I122: 125
A123: Agronom | C123: 14 | D123: 14 | E123: 18 | F123: 21 | G123: 11 | I123: 78
A124: Landsk. Arkt. | C124: 4 | D124: 13 | E124: 8 | F124: 6 | G124: 2 | I124: 33
A125: Hortonom | C125: 0 | D125: 0 | E125: 4 | F125: 2 | G125: 2 | I125: 8
A126: Forstkand. | C126: 1 | D126: 3 | E126: 6 | F126: 2 | G126: 1 | I126: 13
A127: Jordbrugsakad. | C127: 19 | D127: 30 | E127: 36 | F127: 31 | G127: 16 | I127: 132
A128: Mejeriing. | C128: 2 | D128: 2 | E128: 2 | F128: 1 | G128: 1 | I128: 8
A129: Levn.m.kand. | C129: 7 | D129: 15 | E129: 5 | F129: 0 | G129: 0 | I129: 27
A130: Dyrlæge | C130: 22 | D130: 26 | E130: 9 | F130: 12 | G130: 7 | I130: 76
A131: Farmaceut | C131: 52 | D131: 72 | E131: 43 | F131: 37 | G131: 21 | I131: 225
A132: Læge | C132: 97 | D132: 200 | E132: 87 | F132: 73 | G132: 45 | I132: 502
A133: Tandlæge | C133: 18 | D133: 25 | E133: 8 | F133: 6 | G133: 9 | I133: 66
A134: Arkitekt | C134: 32 | D134: 125 | E134: 137 | F134: 99 | G134: 37 | I134: 430
A135: Landinspek. | C135: 4 | D135: 9 | E135: 4 | F135: 1 | G135: 0 | I135: 18
A136: Bibliotekar | C136: 4 | D136: 19 | E136: 54 | F136: 26 | G136: 21 | I136: 124
A137: Musikudd. | C137: 0 | D137: 2 | E137: 1 | F137: 10 | G137: 6 | I137: 19
A138: Teolog | C138: 1 | D138: 3 | E138: 16 | F138: 12 | G138: 4 | I138: 36
A139: Psykolog | C139: 67 | D139: 125 | E139: 80 | F139: 38 | G139: 34 | I139: 344
A140: Jurist | C140: 206 | D140: 365 | E140: 224 | F140: 210 | G140: 69 | I140: 1074
A141: Økonom | C141: 120 | D141: 209 | E141: 102 | F141: 125 | G141: 41 | I141: 597
A142: Samf. Adm. | C142: 309 | D142: 676 | E142: 465 | F142: 242 | G142: 52 | I142: 1744
A143: Cand. Merc. | C143: 832 | D143: 1007 | E143: 370 | F143: 234 | G143: 42 | I143: 2485
A144: HA | C144: 105 | D144: 55 | E144: 25 | F144: 41 | G144: 20 | I144: 246
A145: HD | C145: 52 | D145: 63 | E145: 22 | F145: 43 | G145: 26 | I145: 206
A146: Komm. og Sprog | C146: 71 | D146: 130 | E146: 92 | F146: 68 | G146: 20 | I146: 381
A147: Bygningskonst. | C147: 24 | D147: 63 | E147: 50 | F147: 21 | G147: 3 | I147: 161
A148: Cand. IT. | C148: 62 | D148: 94 | E148: 55 | F148: 11 | G148: 0 | I148: 222
A149: Bac. Samf. | C149: 25 | D149: 20 | E149: 23 | F149: 11 | G149: 3 | I149: 82
A150: Bac. Hum. | C150: 95 | D150: 32 | E150: 34 | F150: 47 | G150: 8 | I150: 216
A151: Bac. Nat. | C151: 67 | D151: 35 | E151: 15 | F151: 6 | G151: 1 | I151: 124
A152: Andre | C152: 185 | D152: 442 | E152: 328 | F152: 199 | G152: 98 | I152: 1252
A154: Total | C154: 3389 | D154: 5666 | E154: 3703 | F154: 2558 | G154: 907 | I154: 16223
A156: Ingeniører i alt | C156: 298 | D156: 528 | E156: 332 | F156: 388 | G156: 137 | I156: 1683
A157: Magistre i alt | C157: 390 | D157: 853 | E157: 955 | F157: 535 | G157: 182 | I157: 2915
A158: DJØF'ere i alt | C158: 1572 | D158: 2312 | E158: 1186 | F158: 852 | G158: 224 | I158: 6146
A165: Ballerup
C167: Under 30 år | D167: 30 - 39 år | E167: 40 - 49 år | F167: 50 - 59 år | G167: Over 60 år | I167: I alt
A169: Civ. ing. | C169: 46 | D169: 160 | E169: 171 | F169: 144 | G169: 32 | I169: 553
A170: Diplom ing. | C170: 27 | D170: 91 | E170: 111 | F170: 201 | G170: 67 | I170: 497
A171: Cand. Scient. Tek. | C171: 41 | D171: 121 | E171: 37 | F171: 16 | G171: 3 | I171: 218
A172: MA. Hum. | C172: 14 | D172: 68 | E172: 88 | F172: 41 | G172: 16 | I172: 227
A173: MA. Nat. | C173: 5 | D173: 26 | E173: 63 | F173: 54 | G173: 19 | I173: 167
A174: MA. Ph.d. | C174: 0 | D174: 3 | E174: 5 | F174: 11 | G174: 1 | I174: 20
A175: MA. Samf. | C175: 5 | D175: 19 | E175: 7 | F175: 4 | G175: 0 | I175: 35
A176: Øvrige Mag. | C176: 2 | D176: 3 | E176: 13 | F176: 8 | G176: 1 | I176: 27
A177: Agronom | C177: 1 | D177: 4 | E177: 1 | F177: 7 | G177: 5 | I177: 18
A178: Landsk. Arkt. | C178: 1 | D178: 5 | E178: 5 | F178: 1 | G178: 0 | I178: 12
A179: Hortonom | C179: 0 | D179: 0 | E179: 1 | F179: 2 | G179: 0 | I179: 3
A180: Forstkand. | C180: 0 | D180: 0 | E180: 3 | F180: 1 | G180: 0 | I180: 4
A181: Jordbrugsakad. | C181: 2 | D181: 9 | E181: 10 | F181: 11 | G181: 5 | I181: 37
A182: Mejeriing. | C182: 1 | D182: 0 | E182: 2 | F182: 1 | G182: 0 | I182: 4
A183: Levn.m.kand. | C183: 0 | D183: 2 | E183: 2 | F183: 0 | G183: 0 | I183: 4
A184: Dyrlæge | C184: 2 | D184: 14 | E184: 8 | F184: 3 | G184: 2 | I184: 29
A185: Farmaceut | C185: 11 | D185: 42 | E185: 52 | F185: 24 | G185: 2 | I185: 131
A186: Læge | C186: 4 | D186: 35 | E186: 22 | F186: 14 | G186: 7 | I186: 82
A187: Tandlæge | C187: 3 | D187: 3 | E187: 2 | F187: 6 | G187: 1 | I187: 15
A188: Arkitekt | C188: 1 | D188: 5 | E188: 7 | F188: 8 | G188: 0 | I188: 21
A189: Landinspek. | C189: 1 | D189: 2 | E189: 3 | F189: 0 | G189: 1 | I189: 7
A190: Bibliotekar | C190: 0 | D190: 6 | E190: 14 | F190: 12 | G190: 9 | I190: 41
A191: Musikudd. | C191: 0 | D191: 0 | E191: 4 | F191: 2 | G191: 2 | I191: 8
A192: Teolog | C192: 0 | D192: 1 | E192: 2 | F192: 3 | G192: 2 | I192: 8
A193: Psykolog | C193: 8 | D193: 17 | E193: 11 | F193: 12 | G193: 1 | I193: 49
A194: Jurist | C194: 14 | D194: 38 | E194: 39 | F194: 22 | G194: 2 | I194: 115
A195: Økonom | C195: 2 | D195: 20 | E195: 31 | F195: 23 | G195: 3 | I195: 79
A196: Samf. Adm. | C196: 29 | D196: 75 | E196: 57 | F196: 40 | G196: 6 | I196: 207
A197: Cand. Merc. | C197: 35 | D197: 98 | E197: 87 | F197: 51 | G197: 8 | I197: 279
A198: HA | C198: 4 | D198: 4 | E198: 11 | F198: 14 | G198: 4 | I198: 37
A199: HD | C199: 0 | D199: 8 | E199: 8 | F199: 12 | G199: 9 | I199: 37
A200: Komm. og Sprog | C200: 3 | D200: 14 | E200: 22 | F200: 21 | G200: 10 | I200: 70
A201: Bygningskonst. | C201: 13 | D201: 21 | E201: 18 | F201: 12 | G201: 1 | I201: 65
A202: Cand. IT. | C202: 4 | D202: 21 | E202: 13 | F202: 1 | G202: 0 | I202: 39
A203: Bac. Samf. | C203: 1 | D203: 0 | E203: 4 | F203: 4 | G203: 0 | I203: 9
A204: Bac. Hum. | C204: 8 | D204: 2 | E204: 4 | F204: 4 | G204: 0 | I204: 18
A205: Bac. Nat. | C205: 12 | D205: 17 | E205: 7 | F205: 3 | G205: 1 | I205: 40
A206: Andre | C206: 18 | D206: 60 | E206: 55 | F206: 42 | G206: 16 | I206: 191
A208: Total | C208: 316 | D208: 1005 | E208: 990 | F208: 824 | G208: 231 | I208: 3366
A210: Ingeniører i alt | C210: 73 | D210: 251 | E210: 282 | F210: 345 | G210: 99 | I210: 1050
A211: Magistre i alt | C211: 26 | D211: 119 | E211: 176 | F211: 118 | G211: 37 | I211: 476
A212: DJØF'ere i alt | C212: 84 | D212: 235 | E212: 225 | F212: 150 | G212: 23 | I212: 717
A219: Brøndby
C221: Under 30 år | D221: 30 - 39 år | E221: 40 - 49 år | F221: 50 - 59 år | G221: Over 60 år | I221: I alt
A223: Civ. ing. | C223: 20 | D223: 27 | E223: 27 | F223: 37 | G223: 15 | I223: 126
A224: Diplom ing. | C224: 23 | D224: 27 | E224: 51 | F224: 45 | G224: 16 | I224: 162
A225: Cand. Scient. Tek. | C225: 21 | D225: 38 | E225: 12 | F225: 4 | G225: 0 | I225: 75
A226: MA. Hum. | C226: 12 | D226: 40 | E226: 20 | F226: 14 | G226: 2 | I226: 88
A227: MA. Nat. | C227: 2 | D227: 15 | E227: 17 | F227: 15 | G227: 6 | I227: 55
A228: MA. Ph.d. | C228: 0 | D228: 4 | E228: 2 | F228: 0 | G228: 0 | I228: 6
A229: MA. Samf. | C229: 9 | D229: 13 | E229: 3 | F229: 0 | G229: 0 | I229: 25
A230: Øvrige Mag. | C230: 1 | D230: 6 | E230: 4 | F230: 0 | G230: 1 | I230: 12
A231: Agronom | C231: 2 | D231: 1 | E231: 1 | F231: 1 | G231: 1 | I231: 6
A232: Landsk. Arkt. | C232: 0 | D232: 0 | E232: 4 | F232: 1 | G232: 0 | I232: 5
A233: Hortonom | C233: 0 | D233: 0 | E233: 0 | F233: 1 | G233: 1 | I233: 2
A234: Forstkand. | C234: 0 | D234: 0 | E234: 1 | F234: 0 | G234: 0 | I234: 1
A235: Jordbrugsakad. | C235: 2 | D235: 1 | E235: 6 | F235: 3 | G235: 2 | I235: 14
A236: Mejeriing. | C236: 0 | D236: 0 | E236: 0 | F236: 0 | G236: 0 | I236: 0
A237: Levn.m.kand. | C237: 0 | D237: 1 | E237: 0 | F237: 0 | G237: 0 | I237: 1
A238: Dyrlæge | C238: 1 | D238: 2 | E238: 2 | F238: 0 | G238: 1 | I238: 6
A239: Farmaceut | C239: 11 | D239: 16 | E239: 10 | F239: 3 | G239: 2 | I239: 42
A240: Læge | C240: 6 | D240: 16 | E240: 5 | F240: 7 | G240: 5 | I240: 39
A241: Tandlæge | C241: 4 | D241: 4 | E241: 0 | F241: 0 | G241: 2 | I241: 10
A242: Arkitekt | C242: 0 | D242: 1 | E242: 2 | F242: 0 | G242: 1 | I242: 4
A243: Landinspek. | C243: 0 | D243: 1 | E243: 0 | F243: 0 | G243: 0 | I243: 1
... 1077 more rows

Sheet Tabel 4 H
A1: Tabel 4. Ledighedsberørte - aldersfordelt
A3: Hovedstaden
C5: Under 30 år | D5: 30 - 39 år | E5: 40 - 49 år | F5: 50 - 59 år | G5: Over 60 år | I5: I alt
A7: Civ. ing. | C7: 451 | D7: 170 | E7: 55 | F7: 58 | G7: 44 | I7: 778
A8: Diplom ing. | C8: 94 | D8: 73 | E8: 49 | F8: 96 | G8: 58 | I8: 370
A9: Cand. Scient. Tek | C9: 518 | D9: 335 | E9: 58 | F9: 15 | G9: 9 | I9: 935
A10: MA. Hum. | C10: 661 | D10: 768 | E10: 337 | F10: 163 | G10: 78 | I10: 2007
A11: MA. Nat. | C11: 109 | D11: 97 | E11: 48 | F11: 31 | G11: 24 | I11: 309
A12: MA. Ph.d. | C12: 2 | D12: 16 | E12: 17 | F12: 10 | G12: 5 | I12: 50
A13: MA. Samf. | C13: 258 | D13: 187 | E13: 41 | F13: 18 | G13: 2 | I13: 506
A14: Øvrige Mag. | C14: 106 | D14: 59 | E14: 31 | F14: 17 | G14: 9 | I14: 222
A15: Agronom | C15: 20 | D15: 15 | E15: 2 | F15: 8 | G15: 3 | I15: 48
A16: Landsk. Arkt. | C16: 17 | D16: 14 | E16: 6 | F16: 2 | G16: 0 | I16: 39
A17: Hortonom | C17: 0 | D17: 1 | E17: 1 | F17: 1 | G17: 1 | I17: 4
A18: Forstkand. | C18: 4 | D18: 3 | E18: 2 | F18: 3 | G18: 1 | I18: 13
A19: Jordbrugsakad. | C19: 41 | D19: 33 | E19: 11 | F19: 14 | G19: 5 | I19: 104
A20: Mejeriing. | C20: 7 | D20: 5 | E20: 0 | F20: 0 | G20: 0 | I20: 12
A21: Levn.m.kand. | C21: 10 | D21: 4 | E21: 4 | F21: 0 | G21: 0 | I21: 18
A22: Dyrlæge | C22: 12 | D22: 13 | E22: 3 | F22: 1 | G22: 0 | I22: 29
A23: Farmaceut | C23: 83 | D23: 25 | E23: 9 | F23: 10 | G23: 1 | I23: 128
A24: Læge | C24: 143 | D24: 71 | E24: 9 | F24: 5 | G24: 3 | I24: 231
A25: Tandlæge | C25: 28 | D25: 10 | E25: 2 | F25: 3 | G25: 3 | I25: 46
A26: Arkitekt | C26: 112 | D26: 80 | E26: 47 | F26: 26 | G26: 21 | I26: 286
A27: Landinspek. | C27: 3 | D27: 3 | E27: 1 | F27: 1 | G27: 0 | I27: 8
A28: Bibliotekar | C28: 10 | D28: 22 | E28: 25 | F28: 18 | G28: 8 | I28: 83
A29: Musikudd. | C29: 4 | D29: 4 | E29: 6 | F29: 4 | G29: 4 | I29: 22
A30: Teolog | C30: 6 | D30: 15 | E30: 6 | F30: 7 | G30: 1 | I30: 35
A31: Psykolog | C31: 84 | D31: 66 | E31: 27 | F31: 13 | G31: 9 | I31: 199
A32: Jurist | C32: 118 | D32: 61 | E32: 37 | F32: 25 | G32: 15 | I32: 256
A33: Økonom | C33: 79 | D33: 25 | E33: 22 | F33: 26 | G33: 20 | I33: 172
A34: Samf. Adm. | C34: 428 | D34: 341 | E34: 152 | F34: 83 | G34: 23 | I34: 1027
A35: Cand. Merc. | C35: 658 | D35: 291 | E35: 146 | F35: 104 | G35: 37 | I35: 1236
A36: HA | C36: 143 | D36: 38 | E36: 14 | F36: 16 | G36: 19 | I36: 230
A37: HD | C37: 62 | D37: 50 | E37: 15 | F37: 23 | G37: 25 | I37: 175
A38: Komm. og Sprog | C38: 84 | D38: 79 | E38: 65 | F38: 49 | G38: 25 | I38: 302
A39: Bygningskonst. | C39: 66 | D39: 34 | E39: 17 | F39: 10 | G39: 2 | I39: 129
A40: Cand. IT. | C40: 147 | D40: 79 | E40: 26 | F40: 4 | G40: 1 | I40: 257
A41: Bac. Samf. | C41: 39 | D41: 15 | E41: 9 | F41: 6 | G41: 3 | I41: 72
A42: Bac. Hum. | C42: 202 | D42: 52 | E42: 22 | F42: 21 | G42: 6 | I42: 303
A43: Bac. Nat. | C43: 214 | D43: 46 | E43: 15 | F43: 7 | G43: 1 | I43: 283
A44: Andre | C44: 332 | D44: 409 | E44: 208 | F44: 174 | G44: 96 | I44: 1219
A46: Total | C46: 5314 | D46: 3576 | E46: 1534 | F46: 1058 | G46: 557 | I46: 12039
A48: Ingeniører i alt | C48: 545 | D48: 243 | E48: 104 | F48: 154 | G48: 102 | I48: 1148
A49: Magistre i alt | C49: 1136 | D49: 1127 | E49: 474 | F49: 239 | G49: 118 | I49: 3094
A50: DJØF'ere i alt | C50: 1426 | D50: 756 | E50: 371 | F50: 254 | G50: 114 | I50: 2921
A57: København
C59: Under 30 år | D59: 30 - 39 år | E59: 40 - 49 år | F59: 50 - 59 år | G59: Over 60 år | I59: I alt
A61: Civ. ing. | C61: 254 | D61: 90 | E61: 21 | F61: 16 | G61: 8 | I61: 389
A62: Diplom ing. | C62: 42 | D62: 38 | E62: 18 | F62: 25 | G62: 11 | I62: 134
A63: Cand. Scient. Tek | C63: 386 | D63: 220 | E63: 27 | F63: 11 | G63: 4 | I63: 648
A64: MA. Hum. | C64: 506 | D64: 560 | E64: 211 | F64: 98 | G64: 42 | I64: 1417
A65: MA. Nat. | C65: 76 | D65: 63 | E65: 26 | F65: 13 | G65: 7 | I65: 185
A66: MA. Ph.d. | C66: 1 | D66: 9 | E66: 11 | F66: 4 | G66: 2 | I66: 27
A67: MA. Samf. | C67: 202 | D67: 132 | E67: 28 | F67: 14 | G67: 2 | I67: 378
A68: Øvrige Mag. | C68: 81 | D68: 39 | E68: 22 | F68: 7 | G68: 5 | I68: 154
A69: Agronom | C69: 11 | D69: 7 | E69: 1 | F69: 2 | G69: 2 | I69: 23
A70: Landsk. Arkt. | C70: 12 | D70: 11 | E70: 5 | F70: 2 | G70: 0 | I70: 30
A71: Hortonom | C71: 0 | D71: 0 | E71: 0 | F71: 0 | G71: 1 | I71: 1
A72: Forstkand. | C72: 4 | D72: 2 | E72: 0 | F72: 2 | G72: 0 | I72: 8
A73: Jordbrugsakad. | C73: 27 | D73: 20 | E73: 6 | F73: 6 | G73: 3 | I73: 62
A74: Mejeriing. | C74: 6 | D74: 4 | E74: 0 | F74: 0 | G74: 0 | I74: 10
A75: Levn.m.kand. | C75: 6 | D75: 2 | E75: 2 | F75: 0 | G75: 0 | I75: 10
A76: Dyrlæge | C76: 8 | D76: 8 | E76: 1 | F76: 0 | G76: 0 | I76: 17
A77: Farmaceut | C77: 57 | D77: 15 | E77: 4 | F77: 3 | G77: 0 | I77: 79
A78: Læge | C78: 117 | D78: 46 | E78: 2 | F78: 2 | G78: 0 | I78: 167
A79: Tandlæge | C79: 18 | D79: 3 | E79: 2 | F79: 1 | G79: 0 | I79: 24
A80: Arkitekt | C80: 105 | D80: 61 | E80: 29 | F80: 14 | G80: 11 | I80: 220
A81: Landinspek. | C81: 2 | D81: 2 | E81: 0 | F81: 1 | G81: 0 | I81: 5
A82: Bibliotekar | C82: 7 | D82: 14 | E82: 16 | F82: 7 | G82: 3 | I82: 47
A83: Musikudd. | C83: 3 | D83: 3 | E83: 3 | F83: 4 | G83: 0 | I83: 13
A84: Teolog | C84: 4 | D84: 13 | E84: 3 | F84: 4 | G84: 0 | I84: 24
A85: Psykolog | C85: 63 | D85: 42 | E85: 11 | F85: 6 | G85: 5 | I85: 127
A86: Jurist | C86: 90 | D86: 36 | E86: 11 | F86: 6 | G86: 7 | I86: 150
A87: Økonom | C87: 62 | D87: 19 | E87: 10 | F87: 7 | G87: 11 | I87: 109
A88: Samf. Adm. | C88: 317 | D88: 231 | E88: 89 | F88: 42 | G88: 7 | I88: 686
A89: Cand. Merc. | C89: 454 | D89: 183 | E89: 65 | F89: 30 | G89: 9 | I89: 741
A90: HA | C90: 99 | D90: 20 | E90: 5 | F90: 5 | G90: 4 | I90: 133
A91: HD | C91: 48 | D91: 38 | E91: 9 | F91: 9 | G91: 5 | I91: 109
A92: Komm. og Sprog | C92: 63 | D92: 53 | E92: 40 | F92: 17 | G92: 6 | I92: 179
A93: Bygningskonst. | C93: 46 | D93: 18 | E93: 9 | F93: 6 | G93: 0 | I93: 79
A94: Cand. IT. | C94: 121 | D94: 58 | E94: 21 | F94: 2 | G94: 0 | I94: 202
A95: Bac. Samf. | C95: 33 | D95: 10 | E95: 5 | F95: 4 | G95: 0 | I95: 52
A96: Bac. Hum. | C96: 166 | D96: 42 | E96: 14 | F96: 10 | G96: 3 | I96: 235
A97: Bac. Nat. | C97: 158 | D97: 30 | E97: 7 | F97: 3 | G97: 1 | I97: 199
A98: Andre | C98: 251 | D98: 285 | E98: 108 | F98: 82 | G98: 49 | I98: 775
A100: Total | C100: 3879 | D100: 2407 | E100: 836 | F100: 459 | G100: 205 | I100: 7786
A102: Ingeniører i alt | C102: 296 | D102: 128 | E102: 39 | F102: 41 | G102: 19 | I102: 523
A103: Magistre i alt | C103: 866 | D103: 803 | E103: 298 | F103: 136 | G103: 58 | I103: 2161
A104: DJØF'ere i alt | C104: 1022 | D104: 489 | E104: 180 | F104: 90 | G104: 38 | I104: 1819
A111: Frederiksberg
C113: Under 30 år | D113: 30 - 39 år | E113: 40 - 49 år | F113: 50 - 59 år | G113: Over 60 år | I113: I alt
A115: Civ. ing. | C115: 20 | D115: 15 | E115: 1 | F115: 5 | G115: 3 | I115: 44
A116: Diplom ing. | C116: 5 | D116: 1 | E116: 2 | F116: 5 | G116: 2 | I116: 15
A117: Cand. Scient. Tek | C117: 31 | D117: 21 | E117: 9 | F117: 0 | G117: 1 | I117: 62
A118: MA. Hum. | C118: 58 | D118: 45 | E118: 47 | F118: 15 | G118: 7 | I118: 172
A119: MA. Nat. | C119: 10 | D119: 8 | E119: 5 | F119: 5 | G119: 1 | I119: 29
A120: MA. Ph.d. | C120: 1 | D120: 3 | E120: 1 | F120: 3 | G120: 0 | I120: 8
A121: MA. Samf. | C121: 22 | D121: 15 | E121: 3 | F121: 2 | G121: 0 | I121: 42
A122: Øvrige Mag. | C122: 6 | D122: 3 | E122: 2 | F122: 3 | G122: 1 | I122: 15
A123: Agronom | C123: 3 | D123: 0 | E123: 1 | F123: 0 | G123: 0 | I123: 4
A124: Landsk. Arkt. | C124: 1 | D124: 1 | E124: 0 | F124: 0 | G124: 0 | I124: 2
A125: Hortonom | C125: 0 | D125: 0 | E125: 0 | F125: 0 | G125: 0 | I125: 0
A126: Forstkand. | C126: 0 | D126: 0 | E126: 1 | F126: 0 | G126: 0 | I126: 1
A127: Jordbrugsakad. | C127: 4 | D127: 1 | E127: 2 | F127: 0 | G127: 0 | I127: 7
A128: Mejeriing. | C128: 0 | D128: 0 | E128: 0 | F128: 0 | G128: 0 | I128: 0
A129: Levn.m.kand. | C129: 2 | D129: 1 | E129: 0 | F129: 0 | G129: 0 | I129: 3
A130: Dyrlæge | C130: 2 | D130: 0 | E130: 0 | F130: 0 | G130: 0 | I130: 2
A131: Farmaceut | C131: 7 | D131: 0 | E131: 0 | F131: 0 | G131: 0 | I131: 7
A132: Læge | C132: 16 | D132: 5 | E132: 3 | F132: 1 | G132: 1 | I132: 26
A133: Tandlæge | C133: 1 | D133: 1 | E133: 0 | F133: 0 | G133: 0 | I133: 2
A134: Arkitekt | C134: 5 | D134: 12 | E134: 6 | F134: 6 | G134: 1 | I134: 30
A135: Landinspek. | C135: 1 | D135: 1 | E135: 1 | F135: 0 | G135: 0 | I135: 3
A136: Bibliotekar | C136: 0 | D136: 0 | E136: 6 | F136: 2 | G136: 0 | I136: 8
A137: Musikudd. | C137: 0 | D137: 0 | E137: 0 | F137: 0 | G137: 1 | I137: 1
A138: Teolog | C138: 0 | D138: 0 | E138: 1 | F138: 2 | G138: 0 | I138: 3
A139: Psykolog | C139: 7 | D139: 8 | E139: 4 | F139: 1 | G139: 2 | I139: 22
A140: Jurist | C140: 8 | D140: 7 | E140: 4 | F140: 3 | G140: 4 | I140: 26
A141: Økonom | C141: 10 | D141: 0 | E141: 2 | F141: 2 | G141: 1 | I141: 15
A142: Samf. Adm. | C142: 45 | D142: 25 | E142: 9 | F142: 10 | G142: 3 | I142: 92
A143: Cand. Merc. | C143: 102 | D143: 25 | E143: 8 | F143: 7 | G143: 2 | I143: 144
A144: HA | C144: 16 | D144: 4 | E144: 2 | F144: 2 | G144: 3 | I144: 27
A145: HD | C145: 7 | D145: 2 | E145: 2 | F145: 1 | G145: 2 | I145: 14
A146: Komm. og Sprog | C146: 7 | D146: 14 | E146: 5 | F146: 3 | G146: 2 | I146: 31
A147: Bygningskonst. | C147: 2 | D147: 3 | E147: 1 | F147: 2 | G147: 0 | I147: 8
A148: Cand. IT. | C148: 10 | D148: 6 | E148: 1 | F148: 1 | G148: 0 | I148: 18
A149: Bac. Samf. | C149: 4 | D149: 4 | E149: 0 | F149: 1 | G149: 0 | I149: 9
A150: Bac. Hum. | C150: 16 | D150: 1 | E150: 2 | F150: 4 | G150: 0 | I150: 23
A151: Bac. Nat. | C151: 25 | D151: 0 | E151: 0 | F151: 1 | G151: 0 | I151: 26
A152: Andre | C152: 30 | D152: 31 | E152: 24 | F152: 15 | G152: 6 | I152: 106
A154: Total | C154: 480 | D154: 262 | E154: 153 | F154: 102 | G154: 43 | I154: 1040
A156: Ingeniører i alt | C156: 25 | D156: 16 | E156: 3 | F156: 10 | G156: 5 | I156: 59
A157: Magistre i alt | C157: 97 | D157: 74 | E157: 58 | F157: 28 | G157: 9 | I157: 266
A158: DJØF'ere i alt | C158: 181 | D158: 61 | E158: 25 | F158: 24 | G158: 13 | I158: 304
A165: Ballerup
C167: Under 30 år | D167: 30 - 39 år | E167: 40 - 49 år | F167: 50 - 59 år | G167: Over 60 år | I167: I alt
A169: Civ. ing. | C169: 3 | D169: 2 | E169: 0 | F169: 4 | G169: 0 | I169: 9
A170: Diplom ing. | C170: 2 | D170: 2 | E170: 3 | F170: 6 | G170: 5 | I170: 18
A171: Cand. Scient. Tek | C171: 3 | D171: 7 | E171: 1 | F171: 0 | G171: 0 | I171: 11
A172: MA. Hum. | C172: 4 | D172: 1 | E172: 3 | F172: 1 | G172: 0 | I172: 9
A173: MA. Nat. | C173: 0 | D173: 1 | E173: 2 | F173: 0 | G173: 0 | I173: 3
A174: MA. Ph.d. | C174: 0 | D174: 0 | E174: 0 | F174: 0 | G174: 0 | I174: 0
A175: MA. Samf. | C175: 4 | D175: 1 | E175: 0 | F175: 0 | G175: 0 | I175: 5
A176: Øvrige Mag. | C176: 0 | D176: 0 | E176: 0 | F176: 0 | G176: 0 | I176: 0
A177: Agronom | C177: 0 | D177: 0 | E177: 0 | F177: 0 | G177: 0 | I177: 0
A178: Landsk. Arkt. | C178: 1 | D178: 1 | E178: 0 | F178: 0 | G178: 0 | I178: 2
A179: Hortonom | C179: 0 | D179: 0 | E179: 0 | F179: 0 | G179: 0 | I179: 0
A180: Forstkand. | C180: 0 | D180: 0 | E180: 0 | F180: 0 | G180: 0 | I180: 0
A181: Jordbrugsakad. | C181: 1 | D181: 1 | E181: 0 | F181: 0 | G181: 0 | I181: 2
A182: Mejeriing. | C182: 1 | D182: 0 | E182: 0 | F182: 0 | G182: 0 | I182: 1
A183: Levn.m.kand. | C183: 0 | D183: 0 | E183: 0 | F183: 0 | G183: 0 | I183: 0
A184: Dyrlæge | C184: 0 | D184: 0 | E184: 0 | F184: 0 | G184: 0 | I184: 0
A185: Farmaceut | C185: 2 | D185: 0 | E185: 0 | F185: 1 | G185: 0 | I185: 3
A186: Læge | C186: 1 | D186: 0 | E186: 0 | F186: 0 | G186: 0 | I186: 1
A187: Tandlæge | C187: 0 | D187: 0 | E187: 0 | F187: 0 | G187: 0 | I187: 0
A188: Arkitekt | C188: 1 | D188: 1 | E188: 0 | F188: 0 | G188: 0 | I188: 2
A189: Landinspek. | C189: 0 | D189: 0 | E189: 0 | F189: 0 | G189: 0 | I189: 0
A190: Bibliotekar | C190: 0 | D190: 0 | E190: 2 | F190: 0 | G190: 0 | I190: 2
A191: Musikudd. | C191: 0 | D191: 0 | E191: 1 | F191: 0 | G191: 0 | I191: 1
A192: Teolog | C192: 0 | D192: 0 | E192: 0 | F192: 0 | G192: 0 | I192: 0
A193: Psykolog | C193: 3 | D193: 0 | E193: 3 | F193: 0 | G193: 0 | I193: 6
A194: Jurist | C194: 2 | D194: 2 | E194: 1 | F194: 0 | G194: 0 | I194: 5
A195: Økonom | C195: 0 | D195: 1 | E195: 0 | F195: 1 | G195: 0 | I195: 2
A196: Samf. Adm. | C196: 3 | D196: 2 | E196: 1 | F196: 0 | G196: 0 | I196: 6
A197: Cand. Merc. | C197: 3 | D197: 4 | E197: 2 | F197: 2 | G197: 0 | I197: 11
A198: HA | C198: 1 | D198: 1 | E198: 0 | F198: 0 | G198: 0 | I198: 2
A199: HD | C199: 0 | D199: 0 | E199: 1 | F199: 0 | G199: 2 | I199: 3
A200: Komm. og Sprog | C200: 1 | D200: 0 | E200: 2 | F200: 0 | G200: 0 | I200: 3
A201: Bygningskonst. | C201: 1 | D201: 1 | E201: 0 | F201: 0 | G201: 0 | I201: 2
A202: Cand. IT. | C202: 0 | D202: 1 | E202: 0 | F202: 0 | G202: 0 | I202: 1
A203: Bac. Samf. | C203: 0 | D203: 0 | E203: 0 | F203: 1 | G203: 0 | I203: 1
A204: Bac. Hum. | C204: 0 | D204: 0 | E204: 0 | F204: 0 | G204: 0 | I204: 0
A205: Bac. Nat. | C205: 1 | D205: 2 | E205: 1 | F205: 0 | G205: 0 | I205: 4
A206: Andre | C206: 4 | D206: 3 | E206: 3 | F206: 1 | G206: 0 | I206: 11
A208: Total | C208: 41 | D208: 33 | E208: 26 | F208: 17 | G208: 7 | I208: 124
A210: Ingeniører i alt | C210: 5 | D210: 4 | E210: 3 | F210: 10 | G210: 5 | I210: 27
A211: Magistre i alt | C211: 8 | D211: 3 | E211: 5 | F211: 1 | G211: 0 | I211: 17
A212: DJØF'ere i alt | C212: 9 | D212: 10 | E212: 4 | F212: 3 | G212: 0 | I212: 26
A219: Brøndby
C221: Under 30 år | D221: 30 - 39 år | E221: 40 - 49 år | F221: 50 - 59 år | G221: Over 60 år | I221: I alt
A223: Civ. ing. | C223: 4 | D223: 1 | E223: 0 | F223: 0 | G223: 1 | I223: 6
A224: Diplom ing. | C224: 2 | D224: 0 | E224: 0 | F224: 1 | G224: 1 | I224: 4
A225: Cand. Scient. Tek | C225: 3 | D225: 0 | E225: 1 | F225: 0 | G225: 0 | I225: 4
A226: MA. Hum. | C226: 5 | D226: 9 | E226: 1 | F226: 2 | G226: 0 | I226: 17
A227: MA. Nat. | C227: 1 | D227: 0 | E227: 1 | F227: 0 | G227: 1 | I227: 3
A228: MA. Ph.d. | C228: 0 | D228: 0 | E228: 0 | F228: 0 | G228: 0 | I228: 0
A229: MA. Samf. | C229: 4 | D229: 0 | E229: 0 | F229: 0 | G229: 0 | I229: 4
A230: Øvrige Mag. | C230: 0 | D230: 2 | E230: 0 | F230: 0 | G230: 0 | I230: 2
A231: Agronom | C231: 1 | D231: 0 | E231: 0 | F231: 0 | G231: 0 | I231: 1
A232: Landsk. Arkt. | C232: 0 | D232: 0 | E232: 0 | F232: 0 | G232: 0 | I232: 0
A233: Hortonom | C233: 0 | D233: 0 | E233: 0 | F233: 0 | G233: 0 | I233: 0
A234: Forstkand. | C234: 0 | D234: 0 | E234: 0 | F234: 0 | G234: 0 | I234: 0
A235: Jordbrugsakad. | C235: 1 | D235: 0 | E235: 0 | F235: 0 | G235: 0 | I235: 1
A236: Mejeriing. | C236: 0 | D236: 0 | E236: 0 | F236: 0 | G236: 0 | I236: 0
A237: Levn.m.kand. | C237: 0 | D237: 0 | E237: 0 | F237: 0 | G237: 0 | I237: 0
A238: Dyrlæge | C238: 0 | D238: 0 | E238: 0 | F238: 0 | G238: 0 | I238: 0
A239: Farmaceut | C239: 0 | D239: 2 | E239: 0 | F239: 0 | G239: 0 | I239: 2
A240: Læge | C240: 1 | D240: 0 | E240: 0 | F240: 0 | G240: 0 | I240: 1
A241: Tandlæge | C241: 0 | D241: 0 | E241: 0 | F241: 0 | G241: 0 | I241: 0
A242: Arkitekt | C242: 0 | D242: 0 | E242: 0 | F242: 0 | G242: 0 | I242: 0
A243: Landinspek. | C243: 0 | D243: 0 | E243: 0 | F243: 0 | G243: 0 | I243: 0
... 1077 more rows

Sheet Tabel 4(Br) H
A1: Tabel 4. Ledighedsberørte - aldersfordelt
A3: Hovedstaden
C5: Under 30 år | D5: 30 - 39 år | E5: 40 - 49 år | F5: 50 - 59 år | G5: Over 60 år | I5: I alt
A7: Civ. ing. | C7: 351.6759184 | D7: 137.3928772 | E7: 46.57082268 | F7: 47.35607809 | G7: 39.36817813 | I7: 622.3638745
A8: Diplom ing. | C8: 79.59458617 | D8: 64.21380902 | E8: 44.99220358 | F8: 76.46915736 | G8: 45.03648725 | I8: 310.3062434
A9: Cand. Scient. Tek | C9: 411.8910996 | D9: 263.6487245 | E9: 47.20638683 | F9: 13.7310547 | G9: 6.928834279 | I9: 743.4060999
A10: MA. Hum. | C10: 532.8010977 | D10: 610.98422 | E10: 265.5522984 | F10: 130.7690389 | G10: 61.37466475 | I10: 1601.48132
A11: MA. Nat. | C11: 85.64835028 | D11: 79.59271503 | E11: 37.16771658 | F11: 24.49510385 | G11: 19.96257718 | I11: 246.8664629
A12: MA. Ph.d. | C12: 1.214994075 | D12: 13.8183746 | E12: 15.33836462 | F12: 6.703049959 | G12: 4.906131105 | I12: 41.98091436
A13: MA. Samf. | C13: 210.1871141 | D13: 156.8240504 | E13: 34.37036113 | F13: 13.54456434 | G13: 1.815006549 | I13: 416.7410965
A14: Øvrige Mag. | C14: 86.73922535 | D14: 48.24798852 | E14: 24.99095615 | F14: 13.1391505 | G14: 5.865402607 | I14: 178.9827231
A15: Agronom | C15: 14.73024387 | D15: 13.87637997 | E15: 1.58423252 | F15: 6.230898771 | G15: 2.630200212 | I15: 39.05195534
A16: Landsk. Arkt. | C16: 12.47240067 | D16: 10.84825048 | E16: 5.690762802 | F16: 1.307303686 | G16: 0 | I16: 30.31871764
A17: Hortonom | C17: 0 | D17: 0.9998128859 | E17: 0.9998128859 | F17: 0.3074908002 | G17: 0.9998128859 | I17: 3.306929458
A18: Forstkand. | C18: 2.550988586 | D18: 2.999438658 | E18: 1.58423252 | F18: 2.399426183 | G18: 0.6305744402 | I18: 10.16466039
A19: Jordbrugsakad. | C19: 29.75363313 | D19: 28.72388199 | E19: 9.859040728 | F19: 10.24511944 | G19: 4.260587538 | I19: 82.84226283
A20: Mejeriing. | C20: 5.706355641 | D20: 4.99906443 | E20: 0 | F20: 0 | G20: 0 | I20: 10.70542007
A21: Levn.m.kand. | C21: 8.079585854 | D21: 3.617538826 | E21: 3.749766107 | F21: 0 | G21: 0 | I21: 15.44689079
A22: Dyrlæge | C22: 9.137404104 | D22: 9.380652404 | E22: 1.552423127 | F22: 0.7004303624 | G22: 0 | I22: 20.77091
A23: Farmaceut | C23: 68.91286721 | D23: 22.96076842 | E23: 7.630512069 | F23: 9.384394686 | G23: 0.9998128859 | I23: 109.8883553
A24: Læge | C24: 127.1047215 | D24: 56.55897212 | E24: 6.754194474 | F24: 4.384706543 | G24: 1.784444583 | I24: 196.5870392
A25: Tandlæge | C25: 19.15299694 | D25: 5.00779642 | E25: 1.475706356 | F25: 2.435601572 | G25: 2.260961766 | I25: 30.33306306
A26: Arkitekt | C26: 90.93494667 | D26: 63.85642113 | E26: 38.51805651 | F26: 20.53888854 | G26: 17.86440467 | I26: 231.7127175
A27: Landinspek. | C27: 2.445580989 | D27: 2.439343853 | E27: 0.3074908002 | F27: 0.9998128859 | G27: 0 | I27: 6.192228529
A28: Bibliotekar | C28: 7.949229714 | D28: 17.83072413 | E28: 20.78151313 | F28: 13.66993077 | G28: 6.18723882 | I28: 66.41863656
A29: Musikudd. | C29: 2.363250795 | D29: 2.886546498 | E29: 4.426495353 | F29: 3.038732614 | G29: 1.708975239 | I29: 14.4240005
A30: Teolog | C30: 4.321087757 | D30: 13.32439344 | E30: 3.159109337 | F30: 6.035676417 | G30: 0.9686272064 | I30: 27.80889416
A31: Psykolog | C31: 67.68789372 | D31: 54.1901079 | E31: 21.29046342 | F31: 10.93369925 | G31: 7.890600636 | I31: 161.9927649
A32: Jurist | C32: 102.9258405 | D32: 51.01852429 | E32: 30.87382274 | F32: 19.19790432 | G32: 10.56383709 | I32: 214.5799289
A33: Økonom | C33: 61.83995509 | D33: 18.44258716 | E33: 18.1781326 | F33: 21.20002495 | G33: 16.60325578 | I33: 136.2639556
A34: Samf. Adm. | C34: 346.8820558 | D34: 272.8422628 | E34: 129.69937 | F34: 67.71159484 | G34: 20.61248675 | I34: 837.7477702
A35: Cand. Merc. | C35: 528.5947733 | D35: 240.7908688 | E35: 118.303499 | F35: 83.49341982 | G35: 29.97442774 | I35: 1001.156989
A36: HA | C36: 112.5272875 | D36: 31.46946922 | E36: 11.00916859 | F36: 12.56969999 | G36: 14.89989397 | I36: 182.4755192
A37: HD | C37: 52.05201771 | D37: 43.71858043 | E37: 14.01796295 | F37: 18.68146947 | G37: 17.82386328 | I37: 146.2938938
A38: Komm. og Sprog | C38: 65.40011227 | D38: 62.14058504 | E38: 52.7811389 | F38: 39.02014595 | G38: 19.30144078 | I38: 238.6434229
A39: Bygningskonst. | C39: 54.79411214 | D39: 29.88723258 | E39: 15.26358136 | F39: 9.307677914 | G39: 1.953845194 | I39: 111.2064492
A40: Cand. IT. | C40: 118.6222167 | D40: 65.57163351 | E40: 20.35614046 | F40: 3.076155429 | G40: 0.4752697561 | I40: 208.1014158
A41: Bac. Samf. | C41: 31.87800162 | D41: 10.79461111 | E41: 5.607808894 | F41: 4.979105595 | G41: 2.119378781 | I41: 55.37890601
A42: Bac. Hum. | C42: 157.3928772 | D42: 40.2663257 | E42: 18.18499345 | F42: 17.0124119 | G42: 5.144389696 | I42: 238.0009979
A43: Bac. Nat. | C43: 175.0077964 | D43: 35.69013909 | E43: 12.21979667 | F43: 6.403667436 | G43: 0.9998128859 | I43: 230.3212125
A44: Andre | C44: 265.1150752 | D44: 341.1557413 | E44: 164.590532 | F44: 141.8399551 | G44: 74.12836026 | I44: 986.8296638
A46: Total | C46: 4276.334061 | D46: 2904.287532 | E46: 1246.779829 | F46: 853.0674234 | G46: 443.7831972 | I46: 9724.252043
A48: Ingeniører i alt | C48: 431.2705046 | D48: 201.6066862 | E48: 91.56302626 | F48: 123.8252355 | G48: 84.40466538 | I48: 932.6701179
A49: Magistre i alt | C49: 916.5907815 | D49: 909.4673486 | E49: 377.4196969 | F49: 188.6509075 | G49: 93.9237822 | I49: 2486.052517
A50: DJØF'ere i alt | C50: 1152.769912 | D50: 614.5637123 | E50: 308.063993 | F50: 204.1726439 | G50: 92.65390133 | I50: 2372.224163
A57: København
C59: Under 30 år | D59: 30 - 39 år | E59: 40 - 49 år | F59: 50 - 59 år | G59: Over 60 år | I59: I alt
A61: Civ. ing. | C61: 206.0612487 | D61: 70.76592029 | E61: 17.92241003 | F61: 11.83496538 | G61: 7.075406973 | I61: 313.6599514
A62: Diplom ing. | C62: 36.49410591 | D62: 33.69550303 | E62: 17.42406287 | F62: 20.1833718 | G62: 9.219734298 | I62: 117.0167779
A63: Cand. Scient. Tek | C63: 304.7439656 | D63: 169.0376099 | E63: 23.70860101 | F63: 9.731803156 | G63: 3.215867274 | I63: 510.4378469
A64: MA. Hum. | C64: 407.7072288 | D64: 448.4400923 | E64: 166.0069856 | F64: 77.80827044 | G64: 33.63562652 | I64: 1133.598204
A65: MA. Nat. | C65: 59.11619784 | D65: 51.75637747 | E65: 20.32245993 | F65: 11.01852429 | G65: 5.589097486 | I65: 147.802657
A66: MA. Ph.d. | C66: 0.9075032745 | D66: 8.039044471 | E66: 9.801035365 | F66: 1.985280359 | G66: 1.906692447 | I66: 22.63955592
A67: MA. Samf. | C67: 167.6336306 | D67: 108.7775214 | E67: 22.65140647 | F67: 11.50502089 | G67: 1.815006549 | I67: 312.3825859
A68: Øvrige Mag. | C68: 64.49635128 | D68: 32.2715649 | E68: 18.49622653 | F68: 5.844820059 | G68: 3.386141084 | I68: 124.4951038
A69: Agronom | C69: 6.956277677 | D69: 6.99494792 | E69: 0.7690388574 | F69: 1.307303686 | G69: 1.676542132 | I69: 17.70411027
A70: Landsk. Arkt. | C70: 9.959458617 | D70: 8.904135221 | E70: 4.690949916 | F70: 1.307303686 | G70: 0 | I70: 24.86184744
A71: Hortonom | C71: 0 | D71: 0 | E71: 0 | F71: 0 | G71: 0.9998128859 | I71: 0.9998128859
A72: Forstkand. | C72: 2.550988586 | D72: 1.999625772 | E72: 0 | F72: 1.676542132 | G72: 0 | I72: 6.22715649
A73: Jordbrugsakad. | C73: 19.46672488 | D73: 17.89870891 | E73: 5.459988773 | F73: 4.291149504 | G73: 2.676355018 | I73: 49.79292709
A74: Mejeriing. | C74: 4.937316784 | D74: 3.999251544 | E74: 0 | F74: 0 | G74: 0 | I74: 8.936568328
A75: Levn.m.kand. | C75: 4.08033431 | D75: 1.9871515 | E75: 1.999625772 | F75: 0 | G75: 0 | I75: 8.067111582
A76: Dyrlæge | C76: 6.217177072 | D76: 4.612362003 | E76: 0.3835838583 | F76: 0 | G76: 0 | I76: 11.21312293
A77: Farmaceut | C77: 47.1408969 | D77: 14.25497412 | E77: 3.537703487 | F77: 2.907129046 | G77: 0 | I77: 67.84070355
A78: Læge | C78: 103.7672301 | D78: 37.3841452 | E78: 1.90731616 | F78: 1.497536331 | G78: 0 | I78: 144.5562278
A79: Tandlæge | C79: 12.49984407 | D79: 0.7328634691 | E79: 1.475706356 | F79: 0.9536580802 | G79: 0 | I79: 15.66207198
A80: Arkitekt | C80: 86.13671802 | D80: 46.77415331 | E80: 23.11544939 | F80: 10.34803218 | G80: 8.524917358 | I80: 174.8992703
A81: Landinspek. | C81: 1.999625772 | D81: 1.439530967 | E81: 0 | F81: 0.9998128859 | G81: 0 | I81: 4.438969625
A82: Bibliotekar | C82: 5.429426807 | D82: 10.99045718 | E82: 13.72357014 | F82: 4.796981226 | G82: 2.510447203 | I82: 37.45088255
A83: Musikudd. | C83: 2.034553733 | D83: 2.74621094 | E83: 2.183621281 | F83: 3.038732614 | G83: 0 | I83: 10.00311857
A84: Teolog | C84: 2.875319653 | D84: 12.0744714 | E84: 1.430175264 | F84: 3.676167904 | G84: 0 | I84: 20.05613422
A85: Psykolog | C85: 52.0376723 | D85: 33.50963637 | E85: 9.056945051 | F85: 4.503212125 | G85: 3.983658704 | I85: 103.0911246
A86: Jurist | C86: 79.37379155 | D86: 28.97710971 | E86: 9.80540136 | F86: 4.845007173 | G86: 4.452691324 | I86: 127.4540011
A87: Økonom | C87: 48.51057195 | D87: 14.92484251 | E87: 8.361504397 | F87: 5.421942244 | G87: 8.695814882 | I87: 85.91467598
A88: Samf. Adm. | C88: 254.496975 | D88: 185.7924281 | E88: 79.02825423 | F88: 35.22360132 | G88: 5.81550552 | I88: 560.3567642
A89: Cand. Merc. | C89: 360.9187301 | D89: 152.6164785 | E89: 52.48425123 | F89: 23.68739475 | G89: 7.102850371 | I89: 596.809705
A90: HA | C90: 78.31971559 | D90: 15.69013909 | E90: 4.079086883 | F90: 4.000498971 | G90: 2.806711158 | I90: 104.8961517
A91: HD | C91: 40.77028628 | D91: 33.06929458 | E91: 8.711407722 | F91: 7.013659328 | G91: 4.537516372 | I91: 94.10216429
A92: Komm. og Sprog | C92: 48.1045344 | D92: 39.72743716 | E92: 30.5919042 | F92: 14.58429489 | G92: 4.805713216 | I92: 137.8138839
A93: Bygningskonst. | C93: 38.65502401 | D93: 15.4577434 | E93: 8.584606749 | F93: 5.538451943 | G93: 0 | I93: 68.23582611
A94: Cand. IT. | C94: 96.40990457 | D94: 47.0810204 | E94: 15.9109337 | F94: 1.307303686 | G94: 0 | I94: 160.7091624
A95: Bac. Samf. | C95: 27.14962889 | D95: 6.810952411 | E95: 3.850807709 | F95: 3.210253851 | G95: 0 | I95: 41.02164286
A96: Bac. Hum. | C96: 125.9221605 | D96: 32.64205077 | E96: 11.03536456 | F96: 7.974801971 | G96: 2.333312543 | I96: 179.9076904
A97: Bac. Nat. | C97: 128.3808395 | D97: 22.66388075 | E97: 5.790556976 | F97: 2.953283852 | G97: 0.9998128859 | I97: 160.788374
A98: Andre | C98: 196.2920227 | D98: 237.168964 | E98: 86.61011663 | F98: 66.48599763 | G98: 36.32944552 | I98: 622.8865465
A100: Total | C100: 3119.087258 | D100: 1943.809892 | E100: 685.4510697 | F100: 369.1709599 | G100: 161.4183247 | I100: 6278.937504
A102: Ingeniører i alt | C102: 242.5553546 | D102: 104.4614233 | E102: 35.3464729 | F102: 32.01833718 | G102: 16.29514127 | I102: 430.6767292
A103: Magistre i alt | C103: 699.8609119 | D103: 649.2846005 | E103: 237.2781139 | F103: 108.161916 | G103: 46.33256409 | I103: 1740.918106
A104: DJØF'ere i alt | C104: 821.6197842 | D104: 398.0009979 | E104: 153.7584981 | F104: 73.17844446 | G104: 28.87357326 | I104: 1475.431298
A111: Frederiksberg
C113: Under 30 år | D113: 30 - 39 år | E113: 40 - 49 år | F113: 50 - 59 år | G113: Over 60 år | I113: I alt
A115: Civ. ing. | C115: 15.29345724 | D115: 13.44601759 | E115: 0.9998128859 | F115: 4.306742344 | G115: 2.005239194 | I115: 36.05126926
A116: Diplom ing. | C116: 4.381587975 | D116: 0.3074908002 | E116: 1.999625772 | F116: 3.830225161 | G116: 1.12393189 | I116: 11.6428616
A117: Cand. Scient. Tek | C117: 24.86309487 | D117: 17.34921724 | E117: 6.698683964 | F117: 0 | G117: 0.8151936631 | I117: 49.72618973
A118: MA. Hum. | C118: 43.22210441 | D118: 32.21231211 | E118: 35.57475207 | F118: 11.82935196 | G118: 5.197405351 | I118: 128.0359259
A119: MA. Nat. | C119: 8.336555854 | D119: 7.444645419 | E119: 3.19777958 | F119: 3.147882492 | G119: 0.9998128859 | I119: 23.12667623
A120: MA. Ph.d. | C120: 0.3074908002 | D120: 1.998378345 | E120: 0.9998128859 | F120: 2.226033805 | G120: 0 | I120: 5.531715836
A121: MA. Samf. | C121: 15.5803655 | D121: 13.65870392 | E121: 2.459302688 | F121: 1.232458055 | G121: 0 | I121: 32.93083016
A122: Øvrige Mag. | C122: 5.564148943 | D122: 2.307116572 | E122: 1.676542132 | F122: 2.499844072 | G122: 0.2151811888 | I122: 12.26283291
A123: Agronom | C123: 2.999438658 | D123: 0 | E123: 0.8151936631 | F123: 0 | G123: 0 | I123: 3.814632321
A124: Landsk. Arkt. | C124: 0.3074908002 | D124: 0.9998128859 | E124: 0 | F124: 0 | G124: 0 | I124: 1.307303686
A125: Hortonom | C125: 0 | D125: 0 | E125: 0 | F125: 0 | G125: 0 | I125: 0
A126: Forstkand. | C126: 0 | D126: 0 | E126: 0.8151936631 | F126: 0 | G126: 0 | I126: 0.8151936631
A127: Jordbrugsakad. | C127: 3.306929458 | D127: 0.9998128859 | E127: 1.630387326 | F127: 0 | G127: 0 | I127: 5.93712967
A128: Mejeriing. | C128: 0 | D128: 0 | E128: 0 | F128: 0 | G128: 0 | I128: 0
A129: Levn.m.kand. | C129: 1.999625772 | D129: 0.6305744402 | E129: 0 | F129: 0 | G129: 0 | I129: 2.630200212
A130: Dyrlæge | C130: 1.768851743 | D130: 0 | E130: 0 | F130: 0 | G130: 0 | I130: 1.768851743
A131: Farmaceut | C131: 5.858541758 | D131: 0 | E131: 0 | F131: 0 | G131: 0 | I131: 5.858541758
A132: Læge | C132: 14.60425373 | D132: 4.02981351 | E132: 2.001496913 | F132: 0.9998128859 | G132: 0.3536456059 | I132: 21.98902264
A133: Tandlæge | C133: 0.3087382274 | D133: 0.4459552174 | E133: 0 | F133: 0 | G133: 0 | I133: 0.7546934448
A134: Arkitekt | C134: 3.605688268 | D134: 11.05968939 | E134: 4.826919479 | F134: 5.30655523 | G134: 0.9998128859 | I134: 25.79866525
A135: Landinspek. | C135: 0.4459552174 | D135: 0.9998128859 | E135: 0.3074908002 | F135: 0 | G135: 0 | I135: 1.753258904
A136: Bibliotekar | C136: 0 | D136: 0 | E136: 4.808208071 | F136: 1.19503524 | G136: 0 | I136: 6.003243311
A137: Musikudd. | C137: 0 | D137: 0 | E137: 0 | F137: 0 | G137: 0.7440903137 | I137: 0.7440903137
A138: Teolog | C138: 0 | D138: 0 | E138: 0.9998128859 | F138: 1.359695628 | G138: 0 | I138: 2.359508514
A139: Psykolog | C139: 4.672238508 | D139: 6.499719329 | E139: 3.743528971 | F139: 0.9998128859 | G139: 1.90731616 | I139: 17.82261585
A140: Jurist | C140: 7.873760369 | D140: 6.90638059 | E140: 3.767230088 | F140: 2.168652155 | G140: 3.658703923 | I140: 24.37472713
A141: Økonom | C141: 7.941745151 | D141: 0 | E141: 1.445768103 | F141: 1.999625772 | G141: 0.9075032745 | I141: 12.2946423
A142: Samf. Adm. | C142: 37.47208882 | D142: 20.00748456 | E142: 7.084138963 | F142: 8.461298572 | G142: 2.907129046 | I142: 75.93213996
A143: Cand. Merc. | C143: 80.90625585 | D143: 19.31266762 | E143: 6.610740348 | F143: 6.808457556 | G143: 1.768851743 | I143: 115.4069731
A144: HA | C144: 11.65783072 | D144: 3.999251544 | E144: 1.224973492 | F144: 1.136406162 | G144: 1.747021768 | I144: 19.76548369
A145: HD | C145: 6.035052704 | D145: 1.999625772 | E145: 1.90731616 | F145: 0.9998128859 | G145: 1.265514876 | I145: 12.2073224
A146: Komm. og Sprog | C146: 5.185554793 | D146: 12.38445706 | E146: 4.727749018 | F146: 2.445580989 | G146: 1.999625772 | I146: 26.74296763
A147: Bygningskonst. | C147: 1.307677914 | D147: 2.398740099 | E147: 1 | F147: 2 | G147: 0 | I147: 6.706418013
A148: Cand. IT. | C148: 8.9490426 | D148: 5.708850496 | E148: 0.9998128859 | F148: 0.7690388574 | G148: 0 | I148: 16.42674484
A149: Bac. Samf. | C149: 2.983845818 | D149: 3.768477515 | E149: 0 | F149: 0.9998128859 | G149: 0 | I149: 7.752136219
A150: Bac. Hum. | C150: 13.62938938 | D150: 0.9998128859 | E150: 1.999625772 | F150: 3.686147321 | G150: 0 | I150: 20.31497536
A151: Bac. Nat. | C151: 21.13141645 | D151: 0 | E151: 0 | F151: 0.4696563338 | G151: 0 | I151: 21.60107279
A152: Andre | C152: 24.55997006 | D152: 26.5259153 | E152: 17.41969688 | F152: 12.13497162 | G152: 4.685336493 | I152: 85.32589035
A154: Total | C154: 383.7532589 | D154: 217.4009231 | E154: 120.1112081 | F154: 83.01291087 | G154: 33.30131604 | I154: 837.579617
A156: Ingeniører i alt | C156: 19.67504522 | D156: 13.75350839 | E156: 2.999438658 | F156: 8.136967505 | G156: 3.129171085 | I156: 47.69413086
A157: Magistre i alt | C157: 73.0106655 | D157: 57.62115636 | E157: 43.90818936 | F157: 20.93557039 | G157: 6.412399426 | I157: 201.887981
A158: DJØF'ere i alt | C158: 145.8516809 | D158: 50.22578432 | E158: 20.13285099 | F158: 20.57444022 | G158: 10.98920975 | I158: 247.7739662
A165: Ballerup
C167: Under 30 år | D167: 30 - 39 år | E167: 40 - 49 år | F167: 50 - 59 år | G167: Over 60 år | I167: I alt
A169: Civ. ing. | C169: 2.676355018 | D169: 1.214994075 | E169: 0 | F169: 2.983845818 | G169: 0 | I169: 6.87519491
A170: Diplom ing. | C170: 1.168839269 | D170: 1.887357326 | E170: 2.361379654 | F170: 4.283041227 | G170: 4.445206761 | I170: 14.14582424
A171: Cand. Scient. Tek | C171: 2.353271378 | D171: 5.851057195 | E171: 0.7690388574 | F171: 0 | G171: 0 | I171: 8.97336743
A172: MA. Hum. | C172: 3.223351837 | D172: 0.7827605564 | E172: 2.729370673 | F172: 0.6505332751 | G172: 0 | I172: 7.386016341
A173: MA. Nat. | C173: 0 | D173: 0.9998128859 | E173: 1.358448201 | F173: 0 | G173: 0 | I173: 2.358261087
A174: MA. Ph.d. | C174: 0 | D174: 0 | E174: 0 | F174: 0 | G174: 0 | I174: 0
A175: MA. Samf. | C175: 1.729557787 | D175: 0.9998128859 | E175: 0 | F175: 0 | G175: 0 | I175: 2.729370673
A176: Øvrige Mag. | C176: 0 | D176: 0 | E176: 0 | F176: 0 | G176: 0 | I176: 0
A177: Agronom | C177: 0 | D177: 0 | E177: 0 | F177: 0 | G177: 0 | I177: 0
A178: Landsk. Arkt. | C178: 0.5382648288 | D178: 0.1690263831 | E178: 0 | F178: 0 | G178: 0 | I178: 0.7072912119
A179: Hortonom | C179: 0 | D179: 0 | E179: 0 | F179: 0 | G179: 0 | I179: 0
A180: Forstkand. | C180: 0 | D180: 0 | E180: 0 | F180: 0 | G180: 0 | I180: 0
A181: Jordbrugsakad. | C181: 0.5382648288 | D181: 0.1690263831 | E181: 0 | F181: 0 | G181: 0 | I181: 0.7072912119
A182: Mejeriing. | C182: 0.7690388574 | D182: 0 | E182: 0 | F182: 0 | G182: 0 | I182: 0.7690388574
A183: Levn.m.kand. | C183: 0 | D183: 0 | E183: 0 | F183: 0 | G183: 0 | I183: 0
A184: Dyrlæge | C184: 0 | D184: 0 | E184: 0 | F184: 0 | G184: 0 | I184: 0
A185: Farmaceut | C185: 1.606062496 | D185: 0 | E185: 0 | F185: 0.9998128859 | G185: 0 | I185: 2.605875382
A186: Læge | C186: 0.9998128859 | D186: 0 | E186: 0 | F186: 0 | G186: 0 | I186: 0.9998128859
A187: Tandlæge | C187: 0 | D187: 0 | E187: 0 | F187: 0 | G187: 0 | I187: 0
A188: Arkitekt | C188: 0.1927274995 | D188: 0.9998128859 | E188: 0 | F188: 0 | G188: 0 | I188: 1.192540385
A189: Landinspek. | C189: 0 | D189: 0 | E189: 0 | F189: 0 | G189: 0 | I189: 0
A190: Bibliotekar | C190: 0 | D190: 0 | E190: 1.249922036 | F190: 0 | G190: 0 | I190: 1.249922036
A191: Musikudd. | C191: 0 | D191: 0 | E191: 0.8314102164 | F191: 0 | G191: 0 | I191: 0.8314102164
A192: Teolog | C192: 0 | D192: 0 | E192: 0 | F192: 0 | G192: 0 | I192: 0
A193: Psykolog | C193: 2.168652155 | D193: 0 | E193: 2.27904946 | F193: 0 | G193: 0 | I193: 4.447701615
A194: Jurist | C194: 1.999625772 | D194: 1.676542132 | E194: 0.9998128859 | F194: 0 | G194: 0 | I194: 4.67598079
A195: Økonom | C195: 0 | D195: 0.1690263831 | E195: 0 | F195: 0.9536580802 | G195: 0 | I195: 1.122684463
A196: Samf. Adm. | C196: 2.676355018 | D196: 1.922909 | E196: 0.7690388574 | F196: 0 | G196: 0 | I196: 5.368302875
A197: Cand. Merc. | C197: 2.441214994 | D197: 3.306929458 | E197: 1.538077715 | F197: 1.400860725 | G197: 0 | I197: 8.687082892
A198: HA | C198: 0.4640429115 | D198: 0.9998128859 | E198: 0 | F198: 0 | G198: 0 | I198: 1.463855797
A199: HD | C199: 0 | D199: 0 | E199: 0.9998128859 | F199: 0 | G199: 1.239942618 | I199: 2.239755504
A200: Komm. og Sprog | C200: 0.7815131292 | D200: 0 | E200: 1.445768103 | F200: 0 | G200: 0 | I200: 2.227281232
A201: Bygningskonst. | C201: 0.9538451943 | D201: 0.9538451943 | E201: 0 | F201: 0 | G201: 0 | I201: 1.907690389
A202: Cand. IT. | C202: 0 | D202: 0.3536456059 | E202: 0 | F202: 0 | G202: 0 | I202: 0.3536456059
A203: Bac. Samf. | C203: 0 | D203: 0 | E203: 0 | F203: 0.7690388574 | G203: 0 | I203: 0.7690388574
A204: Bac. Hum. | C204: 0 | D204: 0 | E204: 0 | F204: 0 | G204: 0 | I204: 0
A205: Bac. Nat. | C205: 0.6767292459 | D205: 1.538077715 | E205: 0.7228840516 | F205: 0 | G205: 0 | I205: 2.937691012
A206: Andre | C206: 3.491548681 | D206: 2.445580989 | E206: 2.702550989 | F206: 0.9998128859 | G206: 0 | I206: 9.639493545
A208: Total | C208: 30.91080896 | D208: 26.27100356 | E208: 20.75656459 | F208: 13.04060375 | G208: 5.685149379 | I208: 96.66413023
A210: Ingeniører i alt | C210: 3.845194287 | D210: 3.1023514 | E210: 2.361379654 | F210: 7.266887045 | G210: 4.445206761 | I210: 21.02101915
A211: Magistre i alt | C211: 4.952909624 | D211: 2.782386328 | E211: 4.087818874 | F211: 0.6505332751 | G211: 0 | I211: 12.4736481
A212: DJØF'ere i alt | C212: 7.581238695 | D212: 8.075219859 | E212: 3.306929458 | F212: 2.354518805 | G212: 0 | I212: 21.31790682
A219: Brøndby
C221: Under 30 år | D221: 30 - 39 år | E221: 40 - 49 år | F221: 50 - 59 år | G221: Over 60 år | I221: I alt
A223: Civ. ing. | C223: 1.460737229 | D223: 0.9998128859 | E223: 0 | F223: 0 | G223: 0.9998128859 | I223: 3.460363001
A224: Diplom ing. | C224: 1.634753321 | D224: 0 | E224: 0 | F224: 0.9998128859 | G224: 0.1172581551 | I224: 2.751824362
A225: Cand. Scient. Tek | C225: 2.722509823 | D225: 0 | E225: 0.9998128859 | F225: 0 | G225: 0 | I225: 3.722322709
A226: MA. Hum. | C226: 4.200711033 | D226: 7.809517869 | E226: 0.9075032745 | F226: 1.257406599 | G226: 0 | I226: 14.17513878
A227: MA. Nat. | C227: 0.4128983971 | D227: 0 | E227: 0.9998128859 | F227: 0 | G227: 0.8937815755 | I227: 2.306492858
A228: MA. Ph.d. | C228: 0 | D228: 0 | E228: 0 | F228: 0 | G228: 0 | I228: 0
A229: MA. Samf. | C229: 3.999251544 | D229: 0 | E229: 0 | F229: 0 | G229: 0 | I229: 3.999251544
A230: Øvrige Mag. | C230: 0 | D230: 1.768851743 | E230: 0 | F230: 0 | G230: 0 | I230: 1.768851743
A231: Agronom | C231: 0.8644670367 | D231: 0 | E231: 0 | F231: 0 | G231: 0 | I231: 0.8644670367
A232: Landsk. Arkt. | C232: 0 | D232: 0 | E232: 0 | F232: 0 | G232: 0 | I232: 0
A233: Hortonom | C233: 0 | D233: 0 | E233: 0 | F233: 0 | G233: 0 | I233: 0
A234: Forstkand. | C234: 0 | D234: 0 | E234: 0 | F234: 0 | G234: 0 | I234: 0
A235: Jordbrugsakad. | C235: 0.8644670367 | D235: 0 | E235: 0 | F235: 0 | G235: 0 | I235: 0.8644670367
A236: Mejeriing. | C236: 0 | D236: 0 | E236: 0 | F236: 0 | G236: 0 | I236: 0
A237: Levn.m.kand. | C237: 0 | D237: 0 | E237: 0 | F237: 0 | G237: 0 | I237: 0
A238: Dyrlæge | C238: 0 | D238: 0 | E238: 0 | F238: 0 | G238: 0 | I238: 0
A239: Farmaceut | C239: 0 | D239: 1.999625772 | E239: 0 | F239: 0 | G239: 0 | I239: 1.999625772
A240: Læge | C240: 0.6230898771 | D240: 0 | E240: 0 | F240: 0 | G240: 0 | I240: 0.6230898771
A241: Tandlæge | C241: 0 | D241: 0 | E241: 0 | F241: 0 | G241: 0 | I241: 0
A242: Arkitekt | C242: 0 | D242: 0 | E242: 0 | F242: 0 | G242: 0 | I242: 0
A243: Landinspek. | C243: 0 | D243: 0 | E243: 0 | F243: 0 | G243: 0 | I243: 0
... 1077 more rows

Sheet Tabel 4P H
A1: Tabel 4. Ledighedsberørte - aldersfordelt
A3: Hovedstaden
C5: Under 30 år | D5: 30 - 39 år | E5: 40 - 49 år | F5: 50 - 59 år | G5: Over 60 år | I5: I alt
A7: Civ. ing. | C7: =IF(OR('Tabel 4F H'!C7<5,'Tabel 4 H'!C7<0.5),"-",IFERROR('Tabel 4 H'!C7/'Tabel 4F H'!C7*100,"-")) -> 14.3539147 | D7: =IF(OR('Tabel 4F H'!D7<5,'Tabel 4 H'!D7<0.5),"-",IFERROR('Tabel 4 H'!D7/'Tabel 4F H'!D7*100,"-")) -> 2.882821774 | E7: =IF(OR('Tabel 4F H'!E7<5,'Tabel 4 H'!E7<0.5),"-",IFERROR('Tabel 4 H'!E7/'Tabel 4F H'!E7*100,"-")) -> 1.30952381 | F7: =IF(OR('Tabel 4F H'!F7<5,'Tabel 4 H'!F7<0.5),"-",IFERROR('Tabel 4 H'!F7/'Tabel 4F H'!F7*100,"-")) -> 1.542963554 | G7: =IF(OR('Tabel 4F H'!G7<5,'Tabel 4 H'!G7<0.5),"-",IFERROR('Tabel 4 H'!G7/'Tabel 4F H'!G7*100,"-")) -> 3.247232472 | I7: =IF(OR('Tabel 4F H'!I7<5,'Tabel 4 H'!I7<0.5),"-",IFERROR('Tabel 4 H'!I7/'Tabel 4F H'!I7*100,"-")) -> 4.239088977
A8: Diplom ing. | C8: =IF(OR('Tabel 4F H'!C8<5,'Tabel 4 H'!C8<0.5),"-",IFERROR('Tabel 4 H'!C8/'Tabel 4F H'!C8*100,"-")) -> 8.274647887 | D8: =IF(OR('Tabel 4F H'!D8<5,'Tabel 4 H'!D8<0.5),"-",IFERROR('Tabel 4 H'!D8/'Tabel 4F H'!D8*100,"-")) -> 3.330291971 | E8: =IF(OR('Tabel 4F H'!E8<5,'Tabel 4 H'!E8<0.5),"-",IFERROR('Tabel 4 H'!E8/'Tabel 4F H'!E8*100,"-")) -> 1.694915254 | F8: =IF(OR('Tabel 4F H'!F8<5,'Tabel 4 H'!F8<0.5),"-",IFERROR('Tabel 4 H'!F8/'Tabel 4F H'!F8*100,"-")) -> 2.093327519 | G8: =IF(OR('Tabel 4F H'!G8<5,'Tabel 4 H'!G8<0.5),"-",IFERROR('Tabel 4 H'!G8/'Tabel 4F H'!G8*100,"-")) -> 3.362318841 | I8: =IF(OR('Tabel 4F H'!I8<5,'Tabel 4 H'!I8<0.5),"-",IFERROR('Tabel 4 H'!I8/'Tabel 4F H'!I8*100,"-")) -> 2.952913009
A9: Cand. Scient. Tek | C9: =IF(OR('Tabel 4F H'!C9<5,'Tabel 4 H'!C9<0.5),"-",IFERROR('Tabel 4 H'!C9/'Tabel 4F H'!C9*100,"-")) -> 16.61854347 | D9: =IF(OR('Tabel 4F H'!D9<5,'Tabel 4 H'!D9<0.5),"-",IFERROR('Tabel 4 H'!D9/'Tabel 4F H'!D9*100,"-")) -> 5.811936155 | E9: =IF(OR('Tabel 4F H'!E9<5,'Tabel 4 H'!E9<0.5),"-",IFERROR('Tabel 4 H'!E9/'Tabel 4F H'!E9*100,"-")) -> 3.282399547 | F9: =IF(OR('Tabel 4F H'!F9<5,'Tabel 4 H'!F9<0.5),"-",IFERROR('Tabel 4 H'!F9/'Tabel 4F H'!F9*100,"-")) -> 2.423263328 | G9: =IF(OR('Tabel 4F H'!G9<5,'Tabel 4 H'!G9<0.5),"-",IFERROR('Tabel 4 H'!G9/'Tabel 4F H'!G9*100,"-")) -> 6.666666667 | I9: =IF(OR('Tabel 4F H'!I9<5,'Tabel 4 H'!I9<0.5),"-",IFERROR('Tabel 4 H'!I9/'Tabel 4F H'!I9*100,"-")) -> 8.200315734
A10: MA. Hum. | C10: =IF(OR('Tabel 4F H'!C10<5,'Tabel 4 H'!C10<0.5),"-",IFERROR('Tabel 4 H'!C10/'Tabel 4F H'!C10*100,"-")) -> 24.85896954 | D10: =IF(OR('Tabel 4F H'!D10<5,'Tabel 4 H'!D10<0.5),"-",IFERROR('Tabel 4 H'!D10/'Tabel 4F H'!D10*100,"-")) -> 10.45040142 | E10: =IF(OR('Tabel 4F H'!E10<5,'Tabel 4 H'!E10<0.5),"-",IFERROR('Tabel 4 H'!E10/'Tabel 4F H'!E10*100,"-")) -> 5.148182096 | F10: =IF(OR('Tabel 4F H'!F10<5,'Tabel 4 H'!F10<0.5),"-",IFERROR('Tabel 4 H'!F10/'Tabel 4F H'!F10*100,"-")) -> 5.593685655 | G10: =IF(OR('Tabel 4F H'!G10<5,'Tabel 4 H'!G10<0.5),"-",IFERROR('Tabel 4 H'!G10/'Tabel 4F H'!G10*100,"-")) -> 7.449856734 | I10: =IF(OR('Tabel 4F H'!I10<5,'Tabel 4 H'!I10<0.5),"-",IFERROR('Tabel 4 H'!I10/'Tabel 4F H'!I10*100,"-")) -> 9.783085547
A11: MA. Nat. | C11: =IF(OR('Tabel 4F H'!C11<5,'Tabel 4 H'!C11<0.5),"-",IFERROR('Tabel 4 H'!C11/'Tabel 4F H'!C11*100,"-")) -> 20 | D11: =IF(OR('Tabel 4F H'!D11<5,'Tabel 4 H'!D11<0.5),"-",IFERROR('Tabel 4 H'!D11/'Tabel 4F H'!D11*100,"-")) -> 6.233933162 | E11: =IF(OR('Tabel 4F H'!E11<5,'Tabel 4 H'!E11<0.5),"-",IFERROR('Tabel 4 H'!E11/'Tabel 4F H'!E11*100,"-")) -> 2.037351443 | F11: =IF(OR('Tabel 4F H'!F11<5,'Tabel 4 H'!F11<0.5),"-",IFERROR('Tabel 4 H'!F11/'Tabel 4F H'!F11*100,"-")) -> 1.586489253 | G11: =IF(OR('Tabel 4F H'!G11<5,'Tabel 4 H'!G11<0.5),"-",IFERROR('Tabel 4 H'!G11/'Tabel 4F H'!G11*100,"-")) -> 3.170409511 | I11: =IF(OR('Tabel 4F H'!I11<5,'Tabel 4 H'!I11<0.5),"-",IFERROR('Tabel 4 H'!I11/'Tabel 4F H'!I11*100,"-")) -> 4.310825893
A12: MA. Ph.d. | C12: =IF(OR('Tabel 4F H'!C12<5,'Tabel 4 H'!C12<0.5),"-",IFERROR('Tabel 4 H'!C12/'Tabel 4F H'!C12*100,"-")) -> 15.38461538 | D12: =IF(OR('Tabel 4F H'!D12<5,'Tabel 4 H'!D12<0.5),"-",IFERROR('Tabel 4 H'!D12/'Tabel 4F H'!D12*100,"-")) -> 4.571428571 | E12: =IF(OR('Tabel 4F H'!E12<5,'Tabel 4 H'!E12<0.5),"-",IFERROR('Tabel 4 H'!E12/'Tabel 4F H'!E12*100,"-")) -> 3.640256959 | F12: =IF(OR('Tabel 4F H'!F12<5,'Tabel 4 H'!F12<0.5),"-",IFERROR('Tabel 4 H'!F12/'Tabel 4F H'!F12*100,"-")) -> 2.673796791 | G12: =IF(OR('Tabel 4F H'!G12<5,'Tabel 4 H'!G12<0.5),"-",IFERROR('Tabel 4 H'!G12/'Tabel 4F H'!G12*100,"-")) -> 5.434782609 | I12: =IF(OR('Tabel 4F H'!I12<5,'Tabel 4 H'!I12<0.5),"-",IFERROR('Tabel 4 H'!I12/'Tabel 4F H'!I12*100,"-")) -> 3.858024691
A13: MA. Samf. | C13: =IF(OR('Tabel 4F H'!C13<5,'Tabel 4 H'!C13<0.5),"-",IFERROR('Tabel 4 H'!C13/'Tabel 4F H'!C13*100,"-")) -> 26.43442623 | D13: =IF(OR('Tabel 4F H'!D13<5,'Tabel 4 H'!D13<0.5),"-",IFERROR('Tabel 4 H'!D13/'Tabel 4F H'!D13*100,"-")) -> 10.49971926 | E13: =IF(OR('Tabel 4F H'!E13<5,'Tabel 4 H'!E13<0.5),"-",IFERROR('Tabel 4 H'!E13/'Tabel 4F H'!E13*100,"-")) -> 6.570512821 | F13: =IF(OR('Tabel 4F H'!F13<5,'Tabel 4 H'!F13<0.5),"-",IFERROR('Tabel 4 H'!F13/'Tabel 4F H'!F13*100,"-")) -> 6.569343066 | G13: =IF(OR('Tabel 4F H'!G13<5,'Tabel 4 H'!G13<0.5),"-",IFERROR('Tabel 4 H'!G13/'Tabel 4F H'!G13*100,"-")) -> 3.703703704 | I13: =IF(OR('Tabel 4F H'!I13<5,'Tabel 4 H'!I13<0.5),"-",IFERROR('Tabel 4 H'!I13/'Tabel 4F H'!I13*100,"-")) -> 13.64249124
A14: Øvrige Mag. | C14: =IF(OR('Tabel 4F H'!C14<5,'Tabel 4 H'!C14<0.5),"-",IFERROR('Tabel 4 H'!C14/'Tabel 4F H'!C14*100,"-")) -> 36.80555556 | D14: =IF(OR('Tabel 4F H'!D14<5,'Tabel 4 H'!D14<0.5),"-",IFERROR('Tabel 4 H'!D14/'Tabel 4F H'!D14*100,"-")) -> 14.4963145 | E14: =IF(OR('Tabel 4F H'!E14<5,'Tabel 4 H'!E14<0.5),"-",IFERROR('Tabel 4 H'!E14/'Tabel 4F H'!E14*100,"-")) -> 5.938697318 | F14: =IF(OR('Tabel 4F H'!F14<5,'Tabel 4 H'!F14<0.5),"-",IFERROR('Tabel 4 H'!F14/'Tabel 4F H'!F14*100,"-")) -> 4.106280193 | G14: =IF(OR('Tabel 4F H'!G14<5,'Tabel 4 H'!G14<0.5),"-",IFERROR('Tabel 4 H'!G14/'Tabel 4F H'!G14*100,"-")) -> 7.086614173 | I14: =IF(OR('Tabel 4F H'!I14<5,'Tabel 4 H'!I14<0.5),"-",IFERROR('Tabel 4 H'!I14/'Tabel 4F H'!I14*100,"-")) -> 12.62798635
A15: Agronom | C15: =IF(OR('Tabel 4F H'!C15<5,'Tabel 4 H'!C15<0.5),"-",IFERROR('Tabel 4 H'!C15/'Tabel 4F H'!C15*100,"-")) -> 16 | D15: =IF(OR('Tabel 4F H'!D15<5,'Tabel 4 H'!D15<0.5),"-",IFERROR('Tabel 4 H'!D15/'Tabel 4F H'!D15*100,"-")) -> 8.823529412 | E15: =IF(OR('Tabel 4F H'!E15<5,'Tabel 4 H'!E15<0.5),"-",IFERROR('Tabel 4 H'!E15/'Tabel 4F H'!E15*100,"-")) -> 1.015228426 | F15: =IF(OR('Tabel 4F H'!F15<5,'Tabel 4 H'!F15<0.5),"-",IFERROR('Tabel 4 H'!F15/'Tabel 4F H'!F15*100,"-")) -> 3.088803089 | G15: =IF(OR('Tabel 4F H'!G15<5,'Tabel 4 H'!G15<0.5),"-",IFERROR('Tabel 4 H'!G15/'Tabel 4F H'!G15*100,"-")) -> 2.884615385 | I15: =IF(OR('Tabel 4F H'!I15<5,'Tabel 4 H'!I15<0.5),"-",IFERROR('Tabel 4 H'!I15/'Tabel 4F H'!I15*100,"-")) -> 5.614035088
A16: Landsk. Arkt. | C16: =IF(OR('Tabel 4F H'!C16<5,'Tabel 4 H'!C16<0.5),"-",IFERROR('Tabel 4 H'!C16/'Tabel 4F H'!C16*100,"-")) -> 28.33333333 | D16: =IF(OR('Tabel 4F H'!D16<5,'Tabel 4 H'!D16<0.5),"-",IFERROR('Tabel 4 H'!D16/'Tabel 4F H'!D16*100,"-")) -> 7.692307692 | E16: =IF(OR('Tabel 4F H'!E16<5,'Tabel 4 H'!E16<0.5),"-",IFERROR('Tabel 4 H'!E16/'Tabel 4F H'!E16*100,"-")) -> 4.225352113 | F16: =IF(OR('Tabel 4F H'!F16<5,'Tabel 4 H'!F16<0.5),"-",IFERROR('Tabel 4 H'!F16/'Tabel 4F H'!F16*100,"-")) -> 2.298850575 | G16: =IF(OR('Tabel 4F H'!G16<5,'Tabel 4 H'!G16<0.5),"-",IFERROR('Tabel 4 H'!G16/'Tabel 4F H'!G16*100,"-")) -> - | I16: =IF(OR('Tabel 4F H'!I16<5,'Tabel 4 H'!I16<0.5),"-",IFERROR('Tabel 4 H'!I16/'Tabel 4F H'!I16*100,"-")) -> 7.878787879
A17: Hortonom | C17: =IF(OR('Tabel 4F H'!C17<5,'Tabel 4 H'!C17<0.5),"-",IFERROR('Tabel 4 H'!C17/'Tabel 4F H'!C17*100,"-")) -> - | D17: =IF(OR('Tabel 4F H'!D17<5,'Tabel 4 H'!D17<0.5),"-",IFERROR('Tabel 4 H'!D17/'Tabel 4F H'!D17*100,"-")) -> 7.692307692 | E17: =IF(OR('Tabel 4F H'!E17<5,'Tabel 4 H'!E17<0.5),"-",IFERROR('Tabel 4 H'!E17/'Tabel 4F H'!E17*100,"-")) -> 2.777777778 | F17: =IF(OR('Tabel 4F H'!F17<5,'Tabel 4 H'!F17<0.5),"-",IFERROR('Tabel 4 H'!F17/'Tabel 4F H'!F17*100,"-")) -> 1.369863014 | G17: =IF(OR('Tabel 4F H'!G17<5,'Tabel 4 H'!G17<0.5),"-",IFERROR('Tabel 4 H'!G17/'Tabel 4F H'!G17*100,"-")) -> 4 | I17: =IF(OR('Tabel 4F H'!I17<5,'Tabel 4 H'!I17<0.5),"-",IFERROR('Tabel 4 H'!I17/'Tabel 4F H'!I17*100,"-")) -> 2.721088435
A18: Forstkand. | C18: =IF(OR('Tabel 4F H'!C18<5,'Tabel 4 H'!C18<0.5),"-",IFERROR('Tabel 4 H'!C18/'Tabel 4F H'!C18*100,"-")) -> 16 | D18: =IF(OR('Tabel 4F H'!D18<5,'Tabel 4 H'!D18<0.5),"-",IFERROR('Tabel 4 H'!D18/'Tabel 4F H'!D18*100,"-")) -> 6.818181818 | E18: =IF(OR('Tabel 4F H'!E18<5,'Tabel 4 H'!E18<0.5),"-",IFERROR('Tabel 4 H'!E18/'Tabel 4F H'!E18*100,"-")) -> 2.105263158 | F18: =IF(OR('Tabel 4F H'!F18<5,'Tabel 4 H'!F18<0.5),"-",IFERROR('Tabel 4 H'!F18/'Tabel 4F H'!F18*100,"-")) -> 4.347826087 | G18: =IF(OR('Tabel 4F H'!G18<5,'Tabel 4 H'!G18<0.5),"-",IFERROR('Tabel 4 H'!G18/'Tabel 4F H'!G18*100,"-")) -> 3.225806452 | I18: =IF(OR('Tabel 4F H'!I18<5,'Tabel 4 H'!I18<0.5),"-",IFERROR('Tabel 4 H'!I18/'Tabel 4F H'!I18*100,"-")) -> 4.924242424
A19: Jordbrugsakad. | C19: =IF(OR('Tabel 4F H'!C19<5,'Tabel 4 H'!C19<0.5),"-",IFERROR('Tabel 4 H'!C19/'Tabel 4F H'!C19*100,"-")) -> 19.52380952 | D19: =IF(OR('Tabel 4F H'!D19<5,'Tabel 4 H'!D19<0.5),"-",IFERROR('Tabel 4 H'!D19/'Tabel 4F H'!D19*100,"-")) -> 8.068459658 | E19: =IF(OR('Tabel 4F H'!E19<5,'Tabel 4 H'!E19<0.5),"-",IFERROR('Tabel 4 H'!E19/'Tabel 4F H'!E19*100,"-")) -> 2.340425532 | F19: =IF(OR('Tabel 4F H'!F19<5,'Tabel 4 H'!F19<0.5),"-",IFERROR('Tabel 4 H'!F19/'Tabel 4F H'!F19*100,"-")) -> 2.868852459 | G19: =IF(OR('Tabel 4F H'!G19<5,'Tabel 4 H'!G19<0.5),"-",IFERROR('Tabel 4 H'!G19/'Tabel 4F H'!G19*100,"-")) -> 2.717391304 | I19: =IF(OR('Tabel 4F H'!I19<5,'Tabel 4 H'!I19<0.5),"-",IFERROR('Tabel 4 H'!I19/'Tabel 4F H'!I19*100,"-")) -> 5.905735378
A20: Mejeriing. | C20: =IF(OR('Tabel 4F H'!C20<5,'Tabel 4 H'!C20<0.5),"-",IFERROR('Tabel 4 H'!C20/'Tabel 4F H'!C20*100,"-")) -> 23.33333333 | D20: =IF(OR('Tabel 4F H'!D20<5,'Tabel 4 H'!D20<0.5),"-",IFERROR('Tabel 4 H'!D20/'Tabel 4F H'!D20*100,"-")) -> 10.41666667 | E20: =IF(OR('Tabel 4F H'!E20<5,'Tabel 4 H'!E20<0.5),"-",IFERROR('Tabel 4 H'!E20/'Tabel 4F H'!E20*100,"-")) -> - | F20: =IF(OR('Tabel 4F H'!F20<5,'Tabel 4 H'!F20<0.5),"-",IFERROR('Tabel 4 H'!F20/'Tabel 4F H'!F20*100,"-")) -> - | G20: =IF(OR('Tabel 4F H'!G20<5,'Tabel 4 H'!G20<0.5),"-",IFERROR('Tabel 4 H'!G20/'Tabel 4F H'!G20*100,"-")) -> - | I20: =IF(OR('Tabel 4F H'!I20<5,'Tabel 4 H'!I20<0.5),"-",IFERROR('Tabel 4 H'!I20/'Tabel 4F H'!I20*100,"-")) -> 8
A21: Levn.m.kand. | C21: =IF(OR('Tabel 4F H'!C21<5,'Tabel 4 H'!C21<0.5),"-",IFERROR('Tabel 4 H'!C21/'Tabel 4F H'!C21*100,"-")) -> 14.70588235 | D21: =IF(OR('Tabel 4F H'!D21<5,'Tabel 4 H'!D21<0.5),"-",IFERROR('Tabel 4 H'!D21/'Tabel 4F H'!D21*100,"-")) -> 2.366863905 | E21: =IF(OR('Tabel 4F H'!E21<5,'Tabel 4 H'!E21<0.5),"-",IFERROR('Tabel 4 H'!E21/'Tabel 4F H'!E21*100,"-")) -> 4.938271605 | F21: =IF(OR('Tabel 4F H'!F21<5,'Tabel 4 H'!F21<0.5),"-",IFERROR('Tabel 4 H'!F21/'Tabel 4F H'!F21*100,"-")) -> - | G21: =IF(OR('Tabel 4F H'!G21<5,'Tabel 4 H'!G21<0.5),"-",IFERROR('Tabel 4 H'!G21/'Tabel 4F H'!G21*100,"-")) -> - | I21: =IF(OR('Tabel 4F H'!I21<5,'Tabel 4 H'!I21<0.5),"-",IFERROR('Tabel 4 H'!I21/'Tabel 4F H'!I21*100,"-")) -> 5.454545455
A22: Dyrlæge | C22: =IF(OR('Tabel 4F H'!C22<5,'Tabel 4 H'!C22<0.5),"-",IFERROR('Tabel 4 H'!C22/'Tabel 4F H'!C22*100,"-")) -> 7.407407407 | D22: =IF(OR('Tabel 4F H'!D22<5,'Tabel 4 H'!D22<0.5),"-",IFERROR('Tabel 4 H'!D22/'Tabel 4F H'!D22*100,"-")) -> 3.651685393 | E22: =IF(OR('Tabel 4F H'!E22<5,'Tabel 4 H'!E22<0.5),"-",IFERROR('Tabel 4 H'!E22/'Tabel 4F H'!E22*100,"-")) -> 1.369863014 | F22: =IF(OR('Tabel 4F H'!F22<5,'Tabel 4 H'!F22<0.5),"-",IFERROR('Tabel 4 H'!F22/'Tabel 4F H'!F22*100,"-")) -> 0.6451612903 | G22: =IF(OR('Tabel 4F H'!G22<5,'Tabel 4 H'!G22<0.5),"-",IFERROR('Tabel 4 H'!G22/'Tabel 4F H'!G22*100,"-")) -> - | I22: =IF(OR('Tabel 4F H'!I22<5,'Tabel 4 H'!I22<0.5),"-",IFERROR('Tabel 4 H'!I22/'Tabel 4F H'!I22*100,"-")) -> 3.005181347
A23: Farmaceut | C23: =IF(OR('Tabel 4F H'!C23<5,'Tabel 4 H'!C23<0.5),"-",IFERROR('Tabel 4 H'!C23/'Tabel 4F H'!C23*100,"-")) -> 12.88819876 | D23: =IF(OR('Tabel 4F H'!D23<5,'Tabel 4 H'!D23<0.5),"-",IFERROR('Tabel 4 H'!D23/'Tabel 4F H'!D23*100,"-")) -> 1.904036558 | E23: =IF(OR('Tabel 4F H'!E23<5,'Tabel 4 H'!E23<0.5),"-",IFERROR('Tabel 4 H'!E23/'Tabel 4F H'!E23*100,"-")) -> 0.8695652174 | F23: =IF(OR('Tabel 4F H'!F23<5,'Tabel 4 H'!F23<0.5),"-",IFERROR('Tabel 4 H'!F23/'Tabel 4F H'!F23*100,"-")) -> 1.531393568 | G23: =IF(OR('Tabel 4F H'!G23<5,'Tabel 4 H'!G23<0.5),"-",IFERROR('Tabel 4 H'!G23/'Tabel 4F H'!G23*100,"-")) -> 0.4310344828 | I23: =IF(OR('Tabel 4F H'!I23<5,'Tabel 4 H'!I23<0.5),"-",IFERROR('Tabel 4 H'!I23/'Tabel 4F H'!I23*100,"-")) -> 3.301521795
A24: Læge | C24: =IF(OR('Tabel 4F H'!C24<5,'Tabel 4 H'!C24<0.5),"-",IFERROR('Tabel 4 H'!C24/'Tabel 4F H'!C24*100,"-")) -> 16.13995485 | D24: =IF(OR('Tabel 4F H'!D24<5,'Tabel 4 H'!D24<0.5),"-",IFERROR('Tabel 4 H'!D24/'Tabel 4F H'!D24*100,"-")) -> 3.017424564 | E24: =IF(OR('Tabel 4F H'!E24<5,'Tabel 4 H'!E24<0.5),"-",IFERROR('Tabel 4 H'!E24/'Tabel 4F H'!E24*100,"-")) -> 0.8166969147 | F24: =IF(OR('Tabel 4F H'!F24<5,'Tabel 4 H'!F24<0.5),"-",IFERROR('Tabel 4 H'!F24/'Tabel 4F H'!F24*100,"-")) -> 0.7163323782 | G24: =IF(OR('Tabel 4F H'!G24<5,'Tabel 4 H'!G24<0.5),"-",IFERROR('Tabel 4 H'!G24/'Tabel 4F H'!G24*100,"-")) -> 0.6172839506 | I24: =IF(OR('Tabel 4F H'!I24<5,'Tabel 4 H'!I24<0.5),"-",IFERROR('Tabel 4 H'!I24/'Tabel 4F H'!I24*100,"-")) -> 4.180995475
A25: Tandlæge | C25: =IF(OR('Tabel 4F H'!C25<5,'Tabel 4 H'!C25<0.5),"-",IFERROR('Tabel 4 H'!C25/'Tabel 4F H'!C25*100,"-")) -> 17.39130435 | D25: =IF(OR('Tabel 4F H'!D25<5,'Tabel 4 H'!D25<0.5),"-",IFERROR('Tabel 4 H'!D25/'Tabel 4F H'!D25*100,"-")) -> 3.300330033 | E25: =IF(OR('Tabel 4F H'!E25<5,'Tabel 4 H'!E25<0.5),"-",IFERROR('Tabel 4 H'!E25/'Tabel 4F H'!E25*100,"-")) -> 1.025641026 | F25: =IF(OR('Tabel 4F H'!F25<5,'Tabel 4 H'!F25<0.5),"-",IFERROR('Tabel 4 H'!F25/'Tabel 4F H'!F25*100,"-")) -> 2.255639098 | G25: =IF(OR('Tabel 4F H'!G25<5,'Tabel 4 H'!G25<0.5),"-",IFERROR('Tabel 4 H'!G25/'Tabel 4F H'!G25*100,"-")) -> 3.370786517 | I25: =IF(OR('Tabel 4F H'!I25<5,'Tabel 4 H'!I25<0.5),"-",IFERROR('Tabel 4 H'!I25/'Tabel 4F H'!I25*100,"-")) -> 5.221339387
A26: Arkitekt | C26: =IF(OR('Tabel 4F H'!C26<5,'Tabel 4 H'!C26<0.5),"-",IFERROR('Tabel 4 H'!C26/'Tabel 4F H'!C26*100,"-")) -> 34.04255319 | D26: =IF(OR('Tabel 4F H'!D26<5,'Tabel 4 H'!D26<0.5),"-",IFERROR('Tabel 4 H'!D26/'Tabel 4F H'!D26*100,"-")) -> 7.266121708 | E26: =IF(OR('Tabel 4F H'!E26<5,'Tabel 4 H'!E26<0.5),"-",IFERROR('Tabel 4 H'!E26/'Tabel 4F H'!E26*100,"-")) -> 4 | F26: =IF(OR('Tabel 4F H'!F26<5,'Tabel 4 H'!F26<0.5),"-",IFERROR('Tabel 4 H'!F26/'Tabel 4F H'!F26*100,"-")) -> 3.372243839 | G26: =IF(OR('Tabel 4F H'!G26<5,'Tabel 4 H'!G26<0.5),"-",IFERROR('Tabel 4 H'!G26/'Tabel 4F H'!G26*100,"-")) -> 5.753424658 | I26: =IF(OR('Tabel 4F H'!I26<5,'Tabel 4 H'!I26<0.5),"-",IFERROR('Tabel 4 H'!I26/'Tabel 4F H'!I26*100,"-")) -> 7.645014702
A27: Landinspek. | C27: =IF(OR('Tabel 4F H'!C27<5,'Tabel 4 H'!C27<0.5),"-",IFERROR('Tabel 4 H'!C27/'Tabel 4F H'!C27*100,"-")) -> 15 | D27: =IF(OR('Tabel 4F H'!D27<5,'Tabel 4 H'!D27<0.5),"-",IFERROR('Tabel 4 H'!D27/'Tabel 4F H'!D27*100,"-")) -> 5.454545455 | E27: =IF(OR('Tabel 4F H'!E27<5,'Tabel 4 H'!E27<0.5),"-",IFERROR('Tabel 4 H'!E27/'Tabel 4F H'!E27*100,"-")) -> 2.040816327 | F27: =IF(OR('Tabel 4F H'!F27<5,'Tabel 4 H'!F27<0.5),"-",IFERROR('Tabel 4 H'!F27/'Tabel 4F H'!F27*100,"-")) -> 2.173913043 | G27: =IF(OR('Tabel 4F H'!G27<5,'Tabel 4 H'!G27<0.5),"-",IFERROR('Tabel 4 H'!G27/'Tabel 4F H'!G27*100,"-")) -> - | I27: =IF(OR('Tabel 4F H'!I27<5,'Tabel 4 H'!I27<0.5),"-",IFERROR('Tabel 4 H'!I27/'Tabel 4F H'!I27*100,"-")) -> 4.12371134
A28: Bibliotekar | C28: =IF(OR('Tabel 4F H'!C28<5,'Tabel 4 H'!C28<0.5),"-",IFERROR('Tabel 4 H'!C28/'Tabel 4F H'!C28*100,"-")) -> 16.94915254 | D28: =IF(OR('Tabel 4F H'!D28<5,'Tabel 4 H'!D28<0.5),"-",IFERROR('Tabel 4 H'!D28/'Tabel 4F H'!D28*100,"-")) -> 6.727828746 | E28: =IF(OR('Tabel 4F H'!E28<5,'Tabel 4 H'!E28<0.5),"-",IFERROR('Tabel 4 H'!E28/'Tabel 4F H'!E28*100,"-")) -> 4.347826087 | F28: =IF(OR('Tabel 4F H'!F28<5,'Tabel 4 H'!F28<0.5),"-",IFERROR('Tabel 4 H'!F28/'Tabel 4F H'!F28*100,"-")) -> 4.225352113 | G28: =IF(OR('Tabel 4F H'!G28<5,'Tabel 4 H'!G28<0.5),"-",IFERROR('Tabel 4 H'!G28/'Tabel 4F H'!G28*100,"-")) -> 2.93040293 | I28: =IF(OR('Tabel 4F H'!I28<5,'Tabel 4 H'!I28<0.5),"-",IFERROR('Tabel 4 H'!I28/'Tabel 4F H'!I28*100,"-")) -> 5
A29: Musikudd. | C29: =IF(OR('Tabel 4F H'!C29<5,'Tabel 4 H'!C29<0.5),"-",IFERROR('Tabel 4 H'!C29/'Tabel 4F H'!C29*100,"-")) -> 40 | D29: =IF(OR('Tabel 4F H'!D29<5,'Tabel 4 H'!D29<0.5),"-",IFERROR('Tabel 4 H'!D29/'Tabel 4F H'!D29*100,"-")) -> 11.76470588 | E29: =IF(OR('Tabel 4F H'!E29<5,'Tabel 4 H'!E29<0.5),"-",IFERROR('Tabel 4 H'!E29/'Tabel 4F H'!E29*100,"-")) -> 9.090909091 | F29: =IF(OR('Tabel 4F H'!F29<5,'Tabel 4 H'!F29<0.5),"-",IFERROR('Tabel 4 H'!F29/'Tabel 4F H'!F29*100,"-")) -> 3.361344538 | G29: =IF(OR('Tabel 4F H'!G29<5,'Tabel 4 H'!G29<0.5),"-",IFERROR('Tabel 4 H'!G29/'Tabel 4F H'!G29*100,"-")) -> 5.405405405 | I29: =IF(OR('Tabel 4F H'!I29<5,'Tabel 4 H'!I29<0.5),"-",IFERROR('Tabel 4 H'!I29/'Tabel 4F H'!I29*100,"-")) -> 7.260726073
A30: Teolog | C30: =IF(OR('Tabel 4F H'!C30<5,'Tabel 4 H'!C30<0.5),"-",IFERROR('Tabel 4 H'!C30/'Tabel 4F H'!C30*100,"-")) -> 37.5 | D30: =IF(OR('Tabel 4F H'!D30<5,'Tabel 4 H'!D30<0.5),"-",IFERROR('Tabel 4 H'!D30/'Tabel 4F H'!D30*100,"-")) -> 14.85148515 | E30: =IF(OR('Tabel 4F H'!E30<5,'Tabel 4 H'!E30<0.5),"-",IFERROR('Tabel 4 H'!E30/'Tabel 4F H'!E30*100,"-")) -> 3.409090909 | F30: =IF(OR('Tabel 4F H'!F30<5,'Tabel 4 H'!F30<0.5),"-",IFERROR('Tabel 4 H'!F30/'Tabel 4F H'!F30*100,"-")) -> 3.977272727 | G30: =IF(OR('Tabel 4F H'!G30<5,'Tabel 4 H'!G30<0.5),"-",IFERROR('Tabel 4 H'!G30/'Tabel 4F H'!G30*100,"-")) -> 1.086956522 | I30: =IF(OR('Tabel 4F H'!I30<5,'Tabel 4 H'!I30<0.5),"-",IFERROR('Tabel 4 H'!I30/'Tabel 4F H'!I30*100,"-")) -> 6.23885918
A31: Psykolog | C31: =IF(OR('Tabel 4F H'!C31<5,'Tabel 4 H'!C31<0.5),"-",IFERROR('Tabel 4 H'!C31/'Tabel 4F H'!C31*100,"-")) -> 12.88343558 | D31: =IF(OR('Tabel 4F H'!D31<5,'Tabel 4 H'!D31<0.5),"-",IFERROR('Tabel 4 H'!D31/'Tabel 4F H'!D31*100,"-")) -> 4.789550073 | E31: =IF(OR('Tabel 4F H'!E31<5,'Tabel 4 H'!E31<0.5),"-",IFERROR('Tabel 4 H'!E31/'Tabel 4F H'!E31*100,"-")) -> 2.872340426 | F31: =IF(OR('Tabel 4F H'!F31<5,'Tabel 4 H'!F31<0.5),"-",IFERROR('Tabel 4 H'!F31/'Tabel 4F H'!F31*100,"-")) -> 2.43902439 | G31: =IF(OR('Tabel 4F H'!G31<5,'Tabel 4 H'!G31<0.5),"-",IFERROR('Tabel 4 H'!G31/'Tabel 4F H'!G31*100,"-")) -> 3.422053232 | I31: =IF(OR('Tabel 4F H'!I31<5,'Tabel 4 H'!I31<0.5),"-",IFERROR('Tabel 4 H'!I31/'Tabel 4F H'!I31*100,"-")) -> 5.284121083
A32: Jurist | C32: =IF(OR('Tabel 4F H'!C32<5,'Tabel 4 H'!C32<0.5),"-",IFERROR('Tabel 4 H'!C32/'Tabel 4F H'!C32*100,"-")) -> 6.750572082 | D32: =IF(OR('Tabel 4F H'!D32<5,'Tabel 4 H'!D32<0.5),"-",IFERROR('Tabel 4 H'!D32/'Tabel 4F H'!D32*100,"-")) -> 1.983739837 | E32: =IF(OR('Tabel 4F H'!E32<5,'Tabel 4 H'!E32<0.5),"-",IFERROR('Tabel 4 H'!E32/'Tabel 4F H'!E32*100,"-")) -> 1.41980046 | F32: =IF(OR('Tabel 4F H'!F32<5,'Tabel 4 H'!F32<0.5),"-",IFERROR('Tabel 4 H'!F32/'Tabel 4F H'!F32*100,"-")) -> 1.278772379 | G32: =IF(OR('Tabel 4F H'!G32<5,'Tabel 4 H'!G32<0.5),"-",IFERROR('Tabel 4 H'!G32/'Tabel 4F H'!G32*100,"-")) -> 2.636203866 | I32: =IF(OR('Tabel 4F H'!I32<5,'Tabel 4 H'!I32<0.5),"-",IFERROR('Tabel 4 H'!I32/'Tabel 4F H'!I32*100,"-")) -> 2.572088817
A33: Økonom | C33: =IF(OR('Tabel 4F H'!C33<5,'Tabel 4 H'!C33<0.5),"-",IFERROR('Tabel 4 H'!C33/'Tabel 4F H'!C33*100,"-")) -> 7.798617966 | D33: =IF(OR('Tabel 4F H'!D33<5,'Tabel 4 H'!D33<0.5),"-",IFERROR('Tabel 4 H'!D33/'Tabel 4F H'!D33*100,"-")) -> 1.456027956 | E33: =IF(OR('Tabel 4F H'!E33<5,'Tabel 4 H'!E33<0.5),"-",IFERROR('Tabel 4 H'!E33/'Tabel 4F H'!E33*100,"-")) -> 1.627218935 | F33: =IF(OR('Tabel 4F H'!F33<5,'Tabel 4 H'!F33<0.5),"-",IFERROR('Tabel 4 H'!F33/'Tabel 4F H'!F33*100,"-")) -> 1.946107784 | G33: =IF(OR('Tabel 4F H'!G33<5,'Tabel 4 H'!G33<0.5),"-",IFERROR('Tabel 4 H'!G33/'Tabel 4F H'!G33*100,"-")) -> 5.934718101 | I33: =IF(OR('Tabel 4F H'!I33<5,'Tabel 4 H'!I33<0.5),"-",IFERROR('Tabel 4 H'!I33/'Tabel 4F H'!I33*100,"-")) -> 2.988705474
A34: Samf. Adm. | C34: =IF(OR('Tabel 4F H'!C34<5,'Tabel 4 H'!C34<0.5),"-",IFERROR('Tabel 4 H'!C34/'Tabel 4F H'!C34*100,"-")) -> 15.44011544 | D34: =IF(OR('Tabel 4F H'!D34<5,'Tabel 4 H'!D34<0.5),"-",IFERROR('Tabel 4 H'!D34/'Tabel 4F H'!D34*100,"-")) -> 4.777248529 | E34: =IF(OR('Tabel 4F H'!E34<5,'Tabel 4 H'!E34<0.5),"-",IFERROR('Tabel 4 H'!E34/'Tabel 4F H'!E34*100,"-")) -> 3.125 | F34: =IF(OR('Tabel 4F H'!F34<5,'Tabel 4 H'!F34<0.5),"-",IFERROR('Tabel 4 H'!F34/'Tabel 4F H'!F34*100,"-")) -> 3.534923339 | G34: =IF(OR('Tabel 4F H'!G34<5,'Tabel 4 H'!G34<0.5),"-",IFERROR('Tabel 4 H'!G34/'Tabel 4F H'!G34*100,"-")) -> 4.291044776 | I34: =IF(OR('Tabel 4F H'!I34<5,'Tabel 4 H'!I34<0.5),"-",IFERROR('Tabel 4 H'!I34/'Tabel 4F H'!I34*100,"-")) -> 5.816060709
A35: Cand. Merc. | C35: =IF(OR('Tabel 4F H'!C35<5,'Tabel 4 H'!C35<0.5),"-",IFERROR('Tabel 4 H'!C35/'Tabel 4F H'!C35*100,"-")) -> 12.46448191 | D35: =IF(OR('Tabel 4F H'!D35<5,'Tabel 4 H'!D35<0.5),"-",IFERROR('Tabel 4 H'!D35/'Tabel 4F H'!D35*100,"-")) -> 3.480861244 | E35: =IF(OR('Tabel 4F H'!E35<5,'Tabel 4 H'!E35<0.5),"-",IFERROR('Tabel 4 H'!E35/'Tabel 4F H'!E35*100,"-")) -> 3.282374101 | F35: =IF(OR('Tabel 4F H'!F35<5,'Tabel 4 H'!F35<0.5),"-",IFERROR('Tabel 4 H'!F35/'Tabel 4F H'!F35*100,"-")) -> 3.491104397 | G35: =IF(OR('Tabel 4F H'!G35<5,'Tabel 4 H'!G35<0.5),"-",IFERROR('Tabel 4 H'!G35/'Tabel 4F H'!G35*100,"-")) -> 8.167770419 | I35: =IF(OR('Tabel 4F H'!I35<5,'Tabel 4 H'!I35<0.5),"-",IFERROR('Tabel 4 H'!I35/'Tabel 4F H'!I35*100,"-")) -> 5.743761327
A36: HA | C36: =IF(OR('Tabel 4F H'!C36<5,'Tabel 4 H'!C36<0.5),"-",IFERROR('Tabel 4 H'!C36/'Tabel 4F H'!C36*100,"-")) -> 16.26848692 | D36: =IF(OR('Tabel 4F H'!D36<5,'Tabel 4 H'!D36<0.5),"-",IFERROR('Tabel 4 H'!D36/'Tabel 4F H'!D36*100,"-")) -> 6.375838926 | E36: =IF(OR('Tabel 4F H'!E36<5,'Tabel 4 H'!E36<0.5),"-",IFERROR('Tabel 4 H'!E36/'Tabel 4F H'!E36*100,"-")) -> 3.233256351 | F36: =IF(OR('Tabel 4F H'!F36<5,'Tabel 4 H'!F36<0.5),"-",IFERROR('Tabel 4 H'!F36/'Tabel 4F H'!F36*100,"-")) -> 2.363367799 | G36: =IF(OR('Tabel 4F H'!G36<5,'Tabel 4 H'!G36<0.5),"-",IFERROR('Tabel 4 H'!G36/'Tabel 4F H'!G36*100,"-")) -> 8.597285068 | I36: =IF(OR('Tabel 4F H'!I36<5,'Tabel 4 H'!I36<0.5),"-",IFERROR('Tabel 4 H'!I36/'Tabel 4F H'!I36*100,"-")) -> 8.196721311
A37: HD | C37: =IF(OR('Tabel 4F H'!C37<5,'Tabel 4 H'!C37<0.5),"-",IFERROR('Tabel 4 H'!C37/'Tabel 4F H'!C37*100,"-")) -> 11.52416357 | D37: =IF(OR('Tabel 4F H'!D37<5,'Tabel 4 H'!D37<0.5),"-",IFERROR('Tabel 4 H'!D37/'Tabel 4F H'!D37*100,"-")) -> 7.518796992 | E37: =IF(OR('Tabel 4F H'!E37<5,'Tabel 4 H'!E37<0.5),"-",IFERROR('Tabel 4 H'!E37/'Tabel 4F H'!E37*100,"-")) -> 4.807692308 | F37: =IF(OR('Tabel 4F H'!F37<5,'Tabel 4 H'!F37<0.5),"-",IFERROR('Tabel 4 H'!F37/'Tabel 4F H'!F37*100,"-")) -> 3.221288515 | G37: =IF(OR('Tabel 4F H'!G37<5,'Tabel 4 H'!G37<0.5),"-",IFERROR('Tabel 4 H'!G37/'Tabel 4F H'!G37*100,"-")) -> 7.48502994 | I37: =IF(OR('Tabel 4F H'!I37<5,'Tabel 4 H'!I37<0.5),"-",IFERROR('Tabel 4 H'!I37/'Tabel 4F H'!I37*100,"-")) -> 6.827936012
A38: Komm. og Sprog | C38: =IF(OR('Tabel 4F H'!C38<5,'Tabel 4 H'!C38<0.5),"-",IFERROR('Tabel 4 H'!C38/'Tabel 4F H'!C38*100,"-")) -> 15.02683363 | D38: =IF(OR('Tabel 4F H'!D38<5,'Tabel 4 H'!D38<0.5),"-",IFERROR('Tabel 4 H'!D38/'Tabel 4F H'!D38*100,"-")) -> 7.091561939 | E38: =IF(OR('Tabel 4F H'!E38<5,'Tabel 4 H'!E38<0.5),"-",IFERROR('Tabel 4 H'!E38/'Tabel 4F H'!E38*100,"-")) -> 5.777777778 | F38: =IF(OR('Tabel 4F H'!F38<5,'Tabel 4 H'!F38<0.5),"-",IFERROR('Tabel 4 H'!F38/'Tabel 4F H'!F38*100,"-")) -> 5.619266055 | G38: =IF(OR('Tabel 4F H'!G38<5,'Tabel 4 H'!G38<0.5),"-",IFERROR('Tabel 4 H'!G38/'Tabel 4F H'!G38*100,"-")) -> 8.278145695 | I38: =IF(OR('Tabel 4F H'!I38<5,'Tabel 4 H'!I38<0.5),"-",IFERROR('Tabel 4 H'!I38/'Tabel 4F H'!I38*100,"-")) -> 7.603222558
A39: Bygningskonst. | C39: =IF(OR('Tabel 4F H'!C39<5,'Tabel 4 H'!C39<0.5),"-",IFERROR('Tabel 4 H'!C39/'Tabel 4F H'!C39*100,"-")) -> 14.34782609 | D39: =IF(OR('Tabel 4F H'!D39<5,'Tabel 4 H'!D39<0.5),"-",IFERROR('Tabel 4 H'!D39/'Tabel 4F H'!D39*100,"-")) -> 3.099361896 | E39: =IF(OR('Tabel 4F H'!E39<5,'Tabel 4 H'!E39<0.5),"-",IFERROR('Tabel 4 H'!E39/'Tabel 4F H'!E39*100,"-")) -> 2.619414484 | F39: =IF(OR('Tabel 4F H'!F39<5,'Tabel 4 H'!F39<0.5),"-",IFERROR('Tabel 4 H'!F39/'Tabel 4F H'!F39*100,"-")) -> 2.777777778 | G39: =IF(OR('Tabel 4F H'!G39<5,'Tabel 4 H'!G39<0.5),"-",IFERROR('Tabel 4 H'!G39/'Tabel 4F H'!G39*100,"-")) -> 2.5 | I39: =IF(OR('Tabel 4F H'!I39<5,'Tabel 4 H'!I39<0.5),"-",IFERROR('Tabel 4 H'!I39/'Tabel 4F H'!I39*100,"-")) -> 4.875283447
A40: Cand. IT. | C40: =IF(OR('Tabel 4F H'!C40<5,'Tabel 4 H'!C40<0.5),"-",IFERROR('Tabel 4 H'!C40/'Tabel 4F H'!C40*100,"-")) -> 19.6 | D40: =IF(OR('Tabel 4F H'!D40<5,'Tabel 4 H'!D40<0.5),"-",IFERROR('Tabel 4 H'!D40/'Tabel 4F H'!D40*100,"-")) -> 5.774853801 | E40: =IF(OR('Tabel 4F H'!E40<5,'Tabel 4 H'!E40<0.5),"-",IFERROR('Tabel 4 H'!E40/'Tabel 4F H'!E40*100,"-")) -> 3.616133519 | F40: =IF(OR('Tabel 4F H'!F40<5,'Tabel 4 H'!F40<0.5),"-",IFERROR('Tabel 4 H'!F40/'Tabel 4F H'!F40*100,"-")) -> 4.081632653 | G40: =IF(OR('Tabel 4F H'!G40<5,'Tabel 4 H'!G40<0.5),"-",IFERROR('Tabel 4 H'!G40/'Tabel 4F H'!G40*100,"-")) -> 9.090909091 | I40: =IF(OR('Tabel 4F H'!I40<5,'Tabel 4 H'!I40<0.5),"-",IFERROR('Tabel 4 H'!I40/'Tabel 4F H'!I40*100,"-")) -> 8.723693143
A41: Bac. Samf. | C41: =IF(OR('Tabel 4F H'!C41<5,'Tabel 4 H'!C41<0.5),"-",IFERROR('Tabel 4 H'!C41/'Tabel 4F H'!C41*100,"-")) -> 18.13953488 | D41: =IF(OR('Tabel 4F H'!D41<5,'Tabel 4 H'!D41<0.5),"-",IFERROR('Tabel 4 H'!D41/'Tabel 4F H'!D41*100,"-")) -> 6.578947368 | E41: =IF(OR('Tabel 4F H'!E41<5,'Tabel 4 H'!E41<0.5),"-",IFERROR('Tabel 4 H'!E41/'Tabel 4F H'!E41*100,"-")) -> 3.930131004 | F41: =IF(OR('Tabel 4F H'!F41<5,'Tabel 4 H'!F41<0.5),"-",IFERROR('Tabel 4 H'!F41/'Tabel 4F H'!F41*100,"-")) -> 3.896103896 | G41: =IF(OR('Tabel 4F H'!G41<5,'Tabel 4 H'!G41<0.5),"-",IFERROR('Tabel 4 H'!G41/'Tabel 4F H'!G41*100,"-")) -> 12.5 | I41: =IF(OR('Tabel 4F H'!I41<5,'Tabel 4 H'!I41<0.5),"-",IFERROR('Tabel 4 H'!I41/'Tabel 4F H'!I41*100,"-")) -> 8.470588235
A42: Bac. Hum. | C42: =IF(OR('Tabel 4F H'!C42<5,'Tabel 4 H'!C42<0.5),"-",IFERROR('Tabel 4 H'!C42/'Tabel 4F H'!C42*100,"-")) -> 17.62652705 | D42: =IF(OR('Tabel 4F H'!D42<5,'Tabel 4 H'!D42<0.5),"-",IFERROR('Tabel 4 H'!D42/'Tabel 4F H'!D42*100,"-")) -> 10.90146751 | E42: =IF(OR('Tabel 4F H'!E42<5,'Tabel 4 H'!E42<0.5),"-",IFERROR('Tabel 4 H'!E42/'Tabel 4F H'!E42*100,"-")) -> 5.85106383 | F42: =IF(OR('Tabel 4F H'!F42<5,'Tabel 4 H'!F42<0.5),"-",IFERROR('Tabel 4 H'!F42/'Tabel 4F H'!F42*100,"-")) -> 5.706521739 | G42: =IF(OR('Tabel 4F H'!G42<5,'Tabel 4 H'!G42<0.5),"-",IFERROR('Tabel 4 H'!G42/'Tabel 4F H'!G42*100,"-")) -> 5.172413793 | I42: =IF(OR('Tabel 4F H'!I42<5,'Tabel 4 H'!I42<0.5),"-",IFERROR('Tabel 4 H'!I42/'Tabel 4F H'!I42*100,"-")) -> 12.20298027
A43: Bac. Nat. | C43: =IF(OR('Tabel 4F H'!C43<5,'Tabel 4 H'!C43<0.5),"-",IFERROR('Tabel 4 H'!C43/'Tabel 4F H'!C43*100,"-")) -> 28.34437086 | D43: =IF(OR('Tabel 4F H'!D43<5,'Tabel 4 H'!D43<0.5),"-",IFERROR('Tabel 4 H'!D43/'Tabel 4F H'!D43*100,"-")) -> 7.120743034 | E43: =IF(OR('Tabel 4F H'!E43<5,'Tabel 4 H'!E43<0.5),"-",IFERROR('Tabel 4 H'!E43/'Tabel 4F H'!E43*100,"-")) -> 6.172839506 | F43: =IF(OR('Tabel 4F H'!F43<5,'Tabel 4 H'!F43<0.5),"-",IFERROR('Tabel 4 H'!F43/'Tabel 4F H'!F43*100,"-")) -> 6.422018349 | G43: =IF(OR('Tabel 4F H'!G43<5,'Tabel 4 H'!G43<0.5),"-",IFERROR('Tabel 4 H'!G43/'Tabel 4F H'!G43*100,"-")) -> 3.03030303 | I43: =IF(OR('Tabel 4F H'!I43<5,'Tabel 4 H'!I43<0.5),"-",IFERROR('Tabel 4 H'!I43/'Tabel 4F H'!I43*100,"-")) -> 15.84546473
A44: Andre | C44: =IF(OR('Tabel 4F H'!C44<5,'Tabel 4 H'!C44<0.5),"-",IFERROR('Tabel 4 H'!C44/'Tabel 4F H'!C44*100,"-")) -> 19.10241657 | D44: =IF(OR('Tabel 4F H'!D44<5,'Tabel 4 H'!D44<0.5),"-",IFERROR('Tabel 4 H'!D44/'Tabel 4F H'!D44*100,"-")) -> 7.666354264 | E44: =IF(OR('Tabel 4F H'!E44<5,'Tabel 4 H'!E44<0.5),"-",IFERROR('Tabel 4 H'!E44/'Tabel 4F H'!E44*100,"-")) -> 5.360824742 | F44: =IF(OR('Tabel 4F H'!F44<5,'Tabel 4 H'!F44<0.5),"-",IFERROR('Tabel 4 H'!F44/'Tabel 4F H'!F44*100,"-")) -> 7.959743824 | G44: =IF(OR('Tabel 4F H'!G44<5,'Tabel 4 H'!G44<0.5),"-",IFERROR('Tabel 4 H'!G44/'Tabel 4F H'!G44*100,"-")) -> 10.24546425 | I44: =IF(OR('Tabel 4F H'!I44<5,'Tabel 4 H'!I44<0.5),"-",IFERROR('Tabel 4 H'!I44/'Tabel 4F H'!I44*100,"-")) -> 8.660130719
A46: Total | C46: =IF(OR('Tabel 4F H'!C46<5,'Tabel 4 H'!C46<0.5),"-",IFERROR('Tabel 4 H'!C46/'Tabel 4F H'!C46*100,"-")) -> 16.11523882 | D46: =IF(OR('Tabel 4F H'!D46<5,'Tabel 4 H'!D46<0.5),"-",IFERROR('Tabel 4 H'!D46/'Tabel 4F H'!D46*100,"-")) -> 5.496549286 | E46: =IF(OR('Tabel 4F H'!E46<5,'Tabel 4 H'!E46<0.5),"-",IFERROR('Tabel 4 H'!E46/'Tabel 4F H'!E46*100,"-")) -> 3.283530973 | F46: =IF(OR('Tabel 4F H'!F46<5,'Tabel 4 H'!F46<0.5),"-",IFERROR('Tabel 4 H'!F46/'Tabel 4F H'!F46*100,"-")) -> 3.178418001 | G46: =IF(OR('Tabel 4F H'!G46<5,'Tabel 4 H'!G46<0.5),"-",IFERROR('Tabel 4 H'!G46/'Tabel 4F H'!G46*100,"-")) -> 4.877835187 | I46: =IF(OR('Tabel 4F H'!I46<5,'Tabel 4 H'!I46<0.5),"-",IFERROR('Tabel 4 H'!I46/'Tabel 4F H'!I46*100,"-")) -> 6.354442673
A48: Ingeniører i alt | C48: =IF(OR('Tabel 4F H'!C48<5,'Tabel 4 H'!C48<0.5),"-",IFERROR('Tabel 4 H'!C48/'Tabel 4F H'!C48*100,"-")) -> 12.73959794 | D48: =IF(OR('Tabel 4F H'!D48<5,'Tabel 4 H'!D48<0.5),"-",IFERROR('Tabel 4 H'!D48/'Tabel 4F H'!D48*100,"-")) -> 3.004079614 | E48: =IF(OR('Tabel 4F H'!E48<5,'Tabel 4 H'!E48<0.5),"-",IFERROR('Tabel 4 H'!E48/'Tabel 4F H'!E48*100,"-")) -> 1.466647863 | F48: =IF(OR('Tabel 4F H'!F48<5,'Tabel 4 H'!F48<0.5),"-",IFERROR('Tabel 4 H'!F48/'Tabel 4F H'!F48*100,"-")) -> 1.845416417 | G48: =IF(OR('Tabel 4F H'!G48<5,'Tabel 4 H'!G48<0.5),"-",IFERROR('Tabel 4 H'!G48/'Tabel 4F H'!G48*100,"-")) -> 3.311688312 | I48: =IF(OR('Tabel 4F H'!I48<5,'Tabel 4 H'!I48<0.5),"-",IFERROR('Tabel 4 H'!I48/'Tabel 4F H'!I48*100,"-")) -> 3.717255448
A49: Magistre i alt | C49: =IF(OR('Tabel 4F H'!C49<5,'Tabel 4 H'!C49<0.5),"-",IFERROR('Tabel 4 H'!C49/'Tabel 4F H'!C49*100,"-")) -> 25.35148404 | D49: =IF(OR('Tabel 4F H'!D49<5,'Tabel 4 H'!D49<0.5),"-",IFERROR('Tabel 4 H'!D49/'Tabel 4F H'!D49*100,"-")) -> 9.84881587 | E49: =IF(OR('Tabel 4F H'!E49<5,'Tabel 4 H'!E49<0.5),"-",IFERROR('Tabel 4 H'!E49/'Tabel 4F H'!E49*100,"-")) -> 4.507845934 | F49: =IF(OR('Tabel 4F H'!F49<5,'Tabel 4 H'!F49<0.5),"-",IFERROR('Tabel 4 H'!F49/'Tabel 4F H'!F49*100,"-")) -> 4.030354132 | G49: =IF(OR('Tabel 4F H'!G49<5,'Tabel 4 H'!G49<0.5),"-",IFERROR('Tabel 4 H'!G49/'Tabel 4F H'!G49*100,"-")) -> 5.681271064 | I49: =IF(OR('Tabel 4F H'!I49<5,'Tabel 4 H'!I49<0.5),"-",IFERROR('Tabel 4 H'!I49/'Tabel 4F H'!I49*100,"-")) -> 8.982174999
A50: DJØF'ere i alt | C50: =IF(OR('Tabel 4F H'!C50<5,'Tabel 4 H'!C50<0.5),"-",IFERROR('Tabel 4 H'!C50/'Tabel 4F H'!C50*100,"-")) -> 12.19741682 | D50: =IF(OR('Tabel 4F H'!D50<5,'Tabel 4 H'!D50<0.5),"-",IFERROR('Tabel 4 H'!D50/'Tabel 4F H'!D50*100,"-")) -> 3.619649526 | E50: =IF(OR('Tabel 4F H'!E50<5,'Tabel 4 H'!E50<0.5),"-",IFERROR('Tabel 4 H'!E50/'Tabel 4F H'!E50*100,"-")) -> 2.707436328 | F50: =IF(OR('Tabel 4F H'!F50<5,'Tabel 4 H'!F50<0.5),"-",IFERROR('Tabel 4 H'!F50/'Tabel 4F H'!F50*100,"-")) -> 2.732651963 | G50: =IF(OR('Tabel 4F H'!G50<5,'Tabel 4 H'!G50<0.5),"-",IFERROR('Tabel 4 H'!G50/'Tabel 4F H'!G50*100,"-")) -> 5.387523629 | I50: =IF(OR('Tabel 4F H'!I50<5,'Tabel 4 H'!I50<0.5),"-",IFERROR('Tabel 4 H'!I50/'Tabel 4F H'!I50*100,"-")) -> 5.063181432
A57: København
C59: Under 30 år | D59: 30 - 39 år | E59: 40 - 49 år | F59: 50 - 59 år | G59: Over 60 år | I59: I alt
A61: Civ. ing. | C61: =IF(OR('Tabel 4F H'!C61<5,'Tabel 4 H'!C61<0.5),"-",IFERROR('Tabel 4 H'!C61/'Tabel 4F H'!C61*100,"-")) -> 14.78463329 | D61: =IF(OR('Tabel 4F H'!D61<5,'Tabel 4 H'!D61<0.5),"-",IFERROR('Tabel 4 H'!D61/'Tabel 4F H'!D61*100,"-")) -> 3.521126761 | E61: =IF(OR('Tabel 4F H'!E61<5,'Tabel 4 H'!E61<0.5),"-",IFERROR('Tabel 4 H'!E61/'Tabel 4F H'!E61*100,"-")) -> 2.005730659 | F61: =IF(OR('Tabel 4F H'!F61<5,'Tabel 4 H'!F61<0.5),"-",IFERROR('Tabel 4 H'!F61/'Tabel 4F H'!F61*100,"-")) -> 2.234636872 | G61: =IF(OR('Tabel 4F H'!G61<5,'Tabel 4 H'!G61<0.5),"-",IFERROR('Tabel 4 H'!G61/'Tabel 4F H'!G61*100,"-")) -> 3.636363636 | I61: =IF(OR('Tabel 4F H'!I61<5,'Tabel 4 H'!I61<0.5),"-",IFERROR('Tabel 4 H'!I61/'Tabel 4F H'!I61*100,"-")) -> 6.217036919
A62: Diplom ing. | C62: =IF(OR('Tabel 4F H'!C62<5,'Tabel 4 H'!C62<0.5),"-",IFERROR('Tabel 4 H'!C62/'Tabel 4F H'!C62*100,"-")) -> 7.581227437 | D62: =IF(OR('Tabel 4F H'!D62<5,'Tabel 4 H'!D62<0.5),"-",IFERROR('Tabel 4 H'!D62/'Tabel 4F H'!D62*100,"-")) -> 4.428904429 | E62: =IF(OR('Tabel 4F H'!E62<5,'Tabel 4 H'!E62<0.5),"-",IFERROR('Tabel 4 H'!E62/'Tabel 4F H'!E62*100,"-")) -> 2.528089888 | F62: =IF(OR('Tabel 4F H'!F62<5,'Tabel 4 H'!F62<0.5),"-",IFERROR('Tabel 4 H'!F62/'Tabel 4F H'!F62*100,"-")) -> 2.913752914 | G62: =IF(OR('Tabel 4F H'!G62<5,'Tabel 4 H'!G62<0.5),"-",IFERROR('Tabel 4 H'!G62/'Tabel 4F H'!G62*100,"-")) -> 3.754266212 | I62: =IF(OR('Tabel 4F H'!I62<5,'Tabel 4 H'!I62<0.5),"-",IFERROR('Tabel 4 H'!I62/'Tabel 4F H'!I62*100,"-")) -> 4.091603053
A63: Cand. Scient. Tek | C63: =IF(OR('Tabel 4F H'!C63<5,'Tabel 4 H'!C63<0.5),"-",IFERROR('Tabel 4 H'!C63/'Tabel 4F H'!C63*100,"-")) -> 17.80442804 | D63: =IF(OR('Tabel 4F H'!D63<5,'Tabel 4 H'!D63<0.5),"-",IFERROR('Tabel 4 H'!D63/'Tabel 4F H'!D63*100,"-")) -> 6.929133858 | E63: =IF(OR('Tabel 4F H'!E63<5,'Tabel 4 H'!E63<0.5),"-",IFERROR('Tabel 4 H'!E63/'Tabel 4F H'!E63*100,"-")) -> 4.141104294 | F63: =IF(OR('Tabel 4F H'!F63<5,'Tabel 4 H'!F63<0.5),"-",IFERROR('Tabel 4 H'!F63/'Tabel 4F H'!F63*100,"-")) -> 6.50887574 | G63: =IF(OR('Tabel 4F H'!G63<5,'Tabel 4 H'!G63<0.5),"-",IFERROR('Tabel 4 H'!G63/'Tabel 4F H'!G63*100,"-")) -> 10.25641026 | I63: =IF(OR('Tabel 4F H'!I63<5,'Tabel 4 H'!I63<0.5),"-",IFERROR('Tabel 4 H'!I63/'Tabel 4F H'!I63*100,"-")) -> 10.44655812
A64: MA. Hum. | C64: =IF(OR('Tabel 4F H'!C64<5,'Tabel 4 H'!C64<0.5),"-",IFERROR('Tabel 4 H'!C64/'Tabel 4F H'!C64*100,"-")) -> 25.06191184 | D64: =IF(OR('Tabel 4F H'!D64<5,'Tabel 4 H'!D64<0.5),"-",IFERROR('Tabel 4 H'!D64/'Tabel 4F H'!D64*100,"-")) -> 11.02796377 | E64: =IF(OR('Tabel 4F H'!E64<5,'Tabel 4 H'!E64<0.5),"-",IFERROR('Tabel 4 H'!E64/'Tabel 4F H'!E64*100,"-")) -> 5.872529919 | F64: =IF(OR('Tabel 4F H'!F64<5,'Tabel 4 H'!F64<0.5),"-",IFERROR('Tabel 4 H'!F64/'Tabel 4F H'!F64*100,"-")) -> 6.568364611 | G64: =IF(OR('Tabel 4F H'!G64<5,'Tabel 4 H'!G64<0.5),"-",IFERROR('Tabel 4 H'!G64/'Tabel 4F H'!G64*100,"-")) -> 9.312638581 | I64: =IF(OR('Tabel 4F H'!I64<5,'Tabel 4 H'!I64<0.5),"-",IFERROR('Tabel 4 H'!I64/'Tabel 4F H'!I64*100,"-")) -> 11.21665479
A65: MA. Nat. | C65: =IF(OR('Tabel 4F H'!C65<5,'Tabel 4 H'!C65<0.5),"-",IFERROR('Tabel 4 H'!C65/'Tabel 4F H'!C65*100,"-")) -> 20.21276596 | D65: =IF(OR('Tabel 4F H'!D65<5,'Tabel 4 H'!D65<0.5),"-",IFERROR('Tabel 4 H'!D65/'Tabel 4F H'!D65*100,"-")) -> 6.953642384 | E65: =IF(OR('Tabel 4F H'!E65<5,'Tabel 4 H'!E65<0.5),"-",IFERROR('Tabel 4 H'!E65/'Tabel 4F H'!E65*100,"-")) -> 2.937853107 | F65: =IF(OR('Tabel 4F H'!F65<5,'Tabel 4 H'!F65<0.5),"-",IFERROR('Tabel 4 H'!F65/'Tabel 4F H'!F65*100,"-")) -> 2.03125 | G65: =IF(OR('Tabel 4F H'!G65<5,'Tabel 4 H'!G65<0.5),"-",IFERROR('Tabel 4 H'!G65/'Tabel 4F H'!G65*100,"-")) -> 3.056768559 | I65: =IF(OR('Tabel 4F H'!I65<5,'Tabel 4 H'!I65<0.5),"-",IFERROR('Tabel 4 H'!I65/'Tabel 4F H'!I65*100,"-")) -> 6.093544137
A66: MA. Ph.d. | C66: =IF(OR('Tabel 4F H'!C66<5,'Tabel 4 H'!C66<0.5),"-",IFERROR('Tabel 4 H'!C66/'Tabel 4F H'!C66*100,"-")) -> 10 | D66: =IF(OR('Tabel 4F H'!D66<5,'Tabel 4 H'!D66<0.5),"-",IFERROR('Tabel 4 H'!D66/'Tabel 4F H'!D66*100,"-")) -> 4.390243902 | E66: =IF(OR('Tabel 4F H'!E66<5,'Tabel 4 H'!E66<0.5),"-",IFERROR('Tabel 4 H'!E66/'Tabel 4F H'!E66*100,"-")) -> 4.38247012 | F66: =IF(OR('Tabel 4F H'!F66<5,'Tabel 4 H'!F66<0.5),"-",IFERROR('Tabel 4 H'!F66/'Tabel 4F H'!F66*100,"-")) -> 2.649006623 | G66: =IF(OR('Tabel 4F H'!G66<5,'Tabel 4 H'!G66<0.5),"-",IFERROR('Tabel 4 H'!G66/'Tabel 4F H'!G66*100,"-")) -> 4.444444444 | I66: =IF(OR('Tabel 4F H'!I66<5,'Tabel 4 H'!I66<0.5),"-",IFERROR('Tabel 4 H'!I66/'Tabel 4F H'!I66*100,"-")) -> 4.078549849
A67: MA. Samf. | C67: =IF(OR('Tabel 4F H'!C67<5,'Tabel 4 H'!C67<0.5),"-",IFERROR('Tabel 4 H'!C67/'Tabel 4F H'!C67*100,"-")) -> 26.43979058 | D67: =IF(OR('Tabel 4F H'!D67<5,'Tabel 4 H'!D67<0.5),"-",IFERROR('Tabel 4 H'!D67/'Tabel 4F H'!D67*100,"-")) -> 10.51792829 | E67: =IF(OR('Tabel 4F H'!E67<5,'Tabel 4 H'!E67<0.5),"-",IFERROR('Tabel 4 H'!E67/'Tabel 4F H'!E67*100,"-")) -> 7.887323944 | F67: =IF(OR('Tabel 4F H'!F67<5,'Tabel 4 H'!F67<0.5),"-",IFERROR('Tabel 4 H'!F67/'Tabel 4F H'!F67*100,"-")) -> 10.29411765 | G67: =IF(OR('Tabel 4F H'!G67<5,'Tabel 4 H'!G67<0.5),"-",IFERROR('Tabel 4 H'!G67/'Tabel 4F H'!G67*100,"-")) -> 6.451612903 | I67: =IF(OR('Tabel 4F H'!I67<5,'Tabel 4 H'!I67<0.5),"-",IFERROR('Tabel 4 H'!I67/'Tabel 4F H'!I67*100,"-")) -> 14.87603306
A68: Øvrige Mag. | C68: =IF(OR('Tabel 4F H'!C68<5,'Tabel 4 H'!C68<0.5),"-",IFERROR('Tabel 4 H'!C68/'Tabel 4F H'!C68*100,"-")) -> 37.6744186 | D68: =IF(OR('Tabel 4F H'!D68<5,'Tabel 4 H'!D68<0.5),"-",IFERROR('Tabel 4 H'!D68/'Tabel 4F H'!D68*100,"-")) -> 14.13043478 | E68: =IF(OR('Tabel 4F H'!E68<5,'Tabel 4 H'!E68<0.5),"-",IFERROR('Tabel 4 H'!E68/'Tabel 4F H'!E68*100,"-")) -> 7.638888889 | F68: =IF(OR('Tabel 4F H'!F68<5,'Tabel 4 H'!F68<0.5),"-",IFERROR('Tabel 4 H'!F68/'Tabel 4F H'!F68*100,"-")) -> 3.664921466 | G68: =IF(OR('Tabel 4F H'!G68<5,'Tabel 4 H'!G68<0.5),"-",IFERROR('Tabel 4 H'!G68/'Tabel 4F H'!G68*100,"-")) -> 7.936507937 | I68: =IF(OR('Tabel 4F H'!I68<5,'Tabel 4 H'!I68<0.5),"-",IFERROR('Tabel 4 H'!I68/'Tabel 4F H'!I68*100,"-")) -> 14.90803485
A69: Agronom | C69: =IF(OR('Tabel 4F H'!C69<5,'Tabel 4 H'!C69<0.5),"-",IFERROR('Tabel 4 H'!C69/'Tabel 4F H'!C69*100,"-")) -> 13.58024691 | D69: =IF(OR('Tabel 4F H'!D69<5,'Tabel 4 H'!D69<0.5),"-",IFERROR('Tabel 4 H'!D69/'Tabel 4F H'!D69*100,"-")) -> 7.954545455 | E69: =IF(OR('Tabel 4F H'!E69<5,'Tabel 4 H'!E69<0.5),"-",IFERROR('Tabel 4 H'!E69/'Tabel 4F H'!E69*100,"-")) -> 1.886792453 | F69: =IF(OR('Tabel 4F H'!F69<5,'Tabel 4 H'!F69<0.5),"-",IFERROR('Tabel 4 H'!F69/'Tabel 4F H'!F69*100,"-")) -> 3.174603175 | G69: =IF(OR('Tabel 4F H'!G69<5,'Tabel 4 H'!G69<0.5),"-",IFERROR('Tabel 4 H'!G69/'Tabel 4F H'!G69*100,"-")) -> 6.25 | I69: =IF(OR('Tabel 4F H'!I69<5,'Tabel 4 H'!I69<0.5),"-",IFERROR('Tabel 4 H'!I69/'Tabel 4F H'!I69*100,"-")) -> 7.255520505
A70: Landsk. Arkt. | C70: =IF(OR('Tabel 4F H'!C70<5,'Tabel 4 H'!C70<0.5),"-",IFERROR('Tabel 4 H'!C70/'Tabel 4F H'!C70*100,"-")) -> 28.57142857 | D70: =IF(OR('Tabel 4F H'!D70<5,'Tabel 4 H'!D70<0.5),"-",IFERROR('Tabel 4 H'!D70/'Tabel 4F H'!D70*100,"-")) -> 9.166666667 | E70: =IF(OR('Tabel 4F H'!E70<5,'Tabel 4 H'!E70<0.5),"-",IFERROR('Tabel 4 H'!E70/'Tabel 4F H'!E70*100,"-")) -> 9.090909091 | F70: =IF(OR('Tabel 4F H'!F70<5,'Tabel 4 H'!F70<0.5),"-",IFERROR('Tabel 4 H'!F70/'Tabel 4F H'!F70*100,"-")) -> 5.882352941 | G70: =IF(OR('Tabel 4F H'!G70<5,'Tabel 4 H'!G70<0.5),"-",IFERROR('Tabel 4 H'!G70/'Tabel 4F H'!G70*100,"-")) -> - | I70: =IF(OR('Tabel 4F H'!I70<5,'Tabel 4 H'!I70<0.5),"-",IFERROR('Tabel 4 H'!I70/'Tabel 4F H'!I70*100,"-")) -> 11.62790698
A71: Hortonom | C71: =IF(OR('Tabel 4F H'!C71<5,'Tabel 4 H'!C71<0.5),"-",IFERROR('Tabel 4 H'!C71/'Tabel 4F H'!C71*100,"-")) -> - | D71: =IF(OR('Tabel 4F H'!D71<5,'Tabel 4 H'!D71<0.5),"-",IFERROR('Tabel 4 H'!D71/'Tabel 4F H'!D71*100,"-")) -> - | E71: =IF(OR('Tabel 4F H'!E71<5,'Tabel 4 H'!E71<0.5),"-",IFERROR('Tabel 4 H'!E71/'Tabel 4F H'!E71*100,"-")) -> - | F71: =IF(OR('Tabel 4F H'!F71<5,'Tabel 4 H'!F71<0.5),"-",IFERROR('Tabel 4 H'!F71/'Tabel 4F H'!F71*100,"-")) -> - | G71: =IF(OR('Tabel 4F H'!G71<5,'Tabel 4 H'!G71<0.5),"-",IFERROR('Tabel 4 H'!G71/'Tabel 4F H'!G71*100,"-")) -> 11.11111111 | I71: =IF(OR('Tabel 4F H'!I71<5,'Tabel 4 H'!I71<0.5),"-",IFERROR('Tabel 4 H'!I71/'Tabel 4F H'!I71*100,"-")) -> 2.173913043
A72: Forstkand. | C72: =IF(OR('Tabel 4F H'!C72<5,'Tabel 4 H'!C72<0.5),"-",IFERROR('Tabel 4 H'!C72/'Tabel 4F H'!C72*100,"-")) -> 20 | D72: =IF(OR('Tabel 4F H'!D72<5,'Tabel 4 H'!D72<0.5),"-",IFERROR('Tabel 4 H'!D72/'Tabel 4F H'!D72*100,"-")) -> 7.407407407 | E72: =IF(OR('Tabel 4F H'!E72<5,'Tabel 4 H'!E72<0.5),"-",IFERROR('Tabel 4 H'!E72/'Tabel 4F H'!E72*100,"-")) -> - | F72: =IF(OR('Tabel 4F H'!F72<5,'Tabel 4 H'!F72<0.5),"-",IFERROR('Tabel 4 H'!F72/'Tabel 4F H'!F72*100,"-")) -> 9.090909091 | G72: =IF(OR('Tabel 4F H'!G72<5,'Tabel 4 H'!G72<0.5),"-",IFERROR('Tabel 4 H'!G72/'Tabel 4F H'!G72*100,"-")) -> - | I72: =IF(OR('Tabel 4F H'!I72<5,'Tabel 4 H'!I72<0.5),"-",IFERROR('Tabel 4 H'!I72/'Tabel 4F H'!I72*100,"-")) -> 8.510638298
A73: Jordbrugsakad. | C73: =IF(OR('Tabel 4F H'!C73<5,'Tabel 4 H'!C73<0.5),"-",IFERROR('Tabel 4 H'!C73/'Tabel 4F H'!C73*100,"-")) -> 18.88111888 | D73: =IF(OR('Tabel 4F H'!D73<5,'Tabel 4 H'!D73<0.5),"-",IFERROR('Tabel 4 H'!D73/'Tabel 4F H'!D73*100,"-")) -> 8.196721311 | E73: =IF(OR('Tabel 4F H'!E73<5,'Tabel 4 H'!E73<0.5),"-",IFERROR('Tabel 4 H'!E73/'Tabel 4F H'!E73*100,"-")) -> 4.195804196 | F73: =IF(OR('Tabel 4F H'!F73<5,'Tabel 4 H'!F73<0.5),"-",IFERROR('Tabel 4 H'!F73/'Tabel 4F H'!F73*100,"-")) -> 4.47761194 | G73: =IF(OR('Tabel 4F H'!G73<5,'Tabel 4 H'!G73<0.5),"-",IFERROR('Tabel 4 H'!G73/'Tabel 4F H'!G73*100,"-")) -> 5.882352941 | I73: =IF(OR('Tabel 4F H'!I73<5,'Tabel 4 H'!I73<0.5),"-",IFERROR('Tabel 4 H'!I73/'Tabel 4F H'!I73*100,"-")) -> 8.671328671
A74: Mejeriing. | C74: =IF(OR('Tabel 4F H'!C74<5,'Tabel 4 H'!C74<0.5),"-",IFERROR('Tabel 4 H'!C74/'Tabel 4F H'!C74*100,"-")) -> 28.57142857 | D74: =IF(OR('Tabel 4F H'!D74<5,'Tabel 4 H'!D74<0.5),"-",IFERROR('Tabel 4 H'!D74/'Tabel 4F H'!D74*100,"-")) -> 16 | E74: =IF(OR('Tabel 4F H'!E74<5,'Tabel 4 H'!E74<0.5),"-",IFERROR('Tabel 4 H'!E74/'Tabel 4F H'!E74*100,"-")) -> - | F74: =IF(OR('Tabel 4F H'!F74<5,'Tabel 4 H'!F74<0.5),"-",IFERROR('Tabel 4 H'!F74/'Tabel 4F H'!F74*100,"-")) -> - | G74: =IF(OR('Tabel 4F H'!G74<5,'Tabel 4 H'!G74<0.5),"-",IFERROR('Tabel 4 H'!G74/'Tabel 4F H'!G74*100,"-")) -> - | I74: =IF(OR('Tabel 4F H'!I74<5,'Tabel 4 H'!I74<0.5),"-",IFERROR('Tabel 4 H'!I74/'Tabel 4F H'!I74*100,"-")) -> 16.12903226
A75: Levn.m.kand. | C75: =IF(OR('Tabel 4F H'!C75<5,'Tabel 4 H'!C75<0.5),"-",IFERROR('Tabel 4 H'!C75/'Tabel 4F H'!C75*100,"-")) -> 12.76595745 | D75: =IF(OR('Tabel 4F H'!D75<5,'Tabel 4 H'!D75<0.5),"-",IFERROR('Tabel 4 H'!D75/'Tabel 4F H'!D75*100,"-")) -> 2.325581395 | E75: =IF(OR('Tabel 4F H'!E75<5,'Tabel 4 H'!E75<0.5),"-",IFERROR('Tabel 4 H'!E75/'Tabel 4F H'!E75*100,"-")) -> 6.666666667 | F75: =IF(OR('Tabel 4F H'!F75<5,'Tabel 4 H'!F75<0.5),"-",IFERROR('Tabel 4 H'!F75/'Tabel 4F H'!F75*100,"-")) -> - | G75: =IF(OR('Tabel 4F H'!G75<5,'Tabel 4 H'!G75<0.5),"-",IFERROR('Tabel 4 H'!G75/'Tabel 4F H'!G75*100,"-")) -> - | I75: =IF(OR('Tabel 4F H'!I75<5,'Tabel 4 H'!I75<0.5),"-",IFERROR('Tabel 4 H'!I75/'Tabel 4F H'!I75*100,"-")) -> 6.024096386
A76: Dyrlæge | C76: =IF(OR('Tabel 4F H'!C76<5,'Tabel 4 H'!C76<0.5),"-",IFERROR('Tabel 4 H'!C76/'Tabel 4F H'!C76*100,"-")) -> 9.302325581 | D76: =IF(OR('Tabel 4F H'!D76<5,'Tabel 4 H'!D76<0.5),"-",IFERROR('Tabel 4 H'!D76/'Tabel 4F H'!D76*100,"-")) -> 6.611570248 | E76: =IF(OR('Tabel 4F H'!E76<5,'Tabel 4 H'!E76<0.5),"-",IFERROR('Tabel 4 H'!E76/'Tabel 4F H'!E76*100,"-")) -> 1.923076923 | F76: =IF(OR('Tabel 4F H'!F76<5,'Tabel 4 H'!F76<0.5),"-",IFERROR('Tabel 4 H'!F76/'Tabel 4F H'!F76*100,"-")) -> - | G76: =IF(OR('Tabel 4F H'!G76<5,'Tabel 4 H'!G76<0.5),"-",IFERROR('Tabel 4 H'!G76/'Tabel 4F H'!G76*100,"-")) -> - | I76: =IF(OR('Tabel 4F H'!I76<5,'Tabel 4 H'!I76<0.5),"-",IFERROR('Tabel 4 H'!I76/'Tabel 4F H'!I76*100,"-")) -> 5.34591195
A77: Farmaceut | C77: =IF(OR('Tabel 4F H'!C77<5,'Tabel 4 H'!C77<0.5),"-",IFERROR('Tabel 4 H'!C77/'Tabel 4F H'!C77*100,"-")) -> 15.07936508 | D77: =IF(OR('Tabel 4F H'!D77<5,'Tabel 4 H'!D77<0.5),"-",IFERROR('Tabel 4 H'!D77/'Tabel 4F H'!D77*100,"-")) -> 2.830188679 | E77: =IF(OR('Tabel 4F H'!E77<5,'Tabel 4 H'!E77<0.5),"-",IFERROR('Tabel 4 H'!E77/'Tabel 4F H'!E77*100,"-")) -> 1.769911504 | F77: =IF(OR('Tabel 4F H'!F77<5,'Tabel 4 H'!F77<0.5),"-",IFERROR('Tabel 4 H'!F77/'Tabel 4F H'!F77*100,"-")) -> 2.586206897 | G77: =IF(OR('Tabel 4F H'!G77<5,'Tabel 4 H'!G77<0.5),"-",IFERROR('Tabel 4 H'!G77/'Tabel 4F H'!G77*100,"-")) -> - | I77: =IF(OR('Tabel 4F H'!I77<5,'Tabel 4 H'!I77<0.5),"-",IFERROR('Tabel 4 H'!I77/'Tabel 4F H'!I77*100,"-")) -> 6.138306138
A78: Læge | C78: =IF(OR('Tabel 4F H'!C78<5,'Tabel 4 H'!C78<0.5),"-",IFERROR('Tabel 4 H'!C78/'Tabel 4F H'!C78*100,"-")) -> 18.08346213 | D78: =IF(OR('Tabel 4F H'!D78<5,'Tabel 4 H'!D78<0.5),"-",IFERROR('Tabel 4 H'!D78/'Tabel 4F H'!D78*100,"-")) -> 3.59375 | E78: =IF(OR('Tabel 4F H'!E78<5,'Tabel 4 H'!E78<0.5),"-",IFERROR('Tabel 4 H'!E78/'Tabel 4F H'!E78*100,"-")) -> 0.5012531328 | F78: =IF(OR('Tabel 4F H'!F78<5,'Tabel 4 H'!F78<0.5),"-",IFERROR('Tabel 4 H'!F78/'Tabel 4F H'!F78*100,"-")) -> 1.123595506 | G78: =IF(OR('Tabel 4F H'!G78<5,'Tabel 4 H'!G78<0.5),"-",IFERROR('Tabel 4 H'!G78/'Tabel 4F H'!G78*100,"-")) -> - | I78: =IF(OR('Tabel 4F H'!I78<5,'Tabel 4 H'!I78<0.5),"-",IFERROR('Tabel 4 H'!I78/'Tabel 4F H'!I78*100,"-")) -> 6.364329268
A79: Tandlæge | C79: =IF(OR('Tabel 4F H'!C79<5,'Tabel 4 H'!C79<0.5),"-",IFERROR('Tabel 4 H'!C79/'Tabel 4F H'!C79*100,"-")) -> 20.93023256 | D79: =IF(OR('Tabel 4F H'!D79<5,'Tabel 4 H'!D79<0.5),"-",IFERROR('Tabel 4 H'!D79/'Tabel 4F H'!D79*100,"-")) -> 2.380952381 | E79: =IF(OR('Tabel 4F H'!E79<5,'Tabel 4 H'!E79<0.5),"-",IFERROR('Tabel 4 H'!E79/'Tabel 4F H'!E79*100,"-")) -> 3.846153846 | F79: =IF(OR('Tabel 4F H'!F79<5,'Tabel 4 H'!F79<0.5),"-",IFERROR('Tabel 4 H'!F79/'Tabel 4F H'!F79*100,"-")) -> 2.941176471 | G79: =IF(OR('Tabel 4F H'!G79<5,'Tabel 4 H'!G79<0.5),"-",IFERROR('Tabel 4 H'!G79/'Tabel 4F H'!G79*100,"-")) -> - | I79: =IF(OR('Tabel 4F H'!I79<5,'Tabel 4 H'!I79<0.5),"-",IFERROR('Tabel 4 H'!I79/'Tabel 4F H'!I79*100,"-")) -> 7.5
A80: Arkitekt | C80: =IF(OR('Tabel 4F H'!C80<5,'Tabel 4 H'!C80<0.5),"-",IFERROR('Tabel 4 H'!C80/'Tabel 4F H'!C80*100,"-")) -> 36.58536585 | D80: =IF(OR('Tabel 4F H'!D80<5,'Tabel 4 H'!D80<0.5),"-",IFERROR('Tabel 4 H'!D80/'Tabel 4F H'!D80*100,"-")) -> 7.540173053 | E80: =IF(OR('Tabel 4F H'!E80<5,'Tabel 4 H'!E80<0.5),"-",IFERROR('Tabel 4 H'!E80/'Tabel 4F H'!E80*100,"-")) -> 4.011065007 | F80: =IF(OR('Tabel 4F H'!F80<5,'Tabel 4 H'!F80<0.5),"-",IFERROR('Tabel 4 H'!F80/'Tabel 4F H'!F80*100,"-")) -> 3.723404255 | G80: =IF(OR('Tabel 4F H'!G80<5,'Tabel 4 H'!G80<0.5),"-",IFERROR('Tabel 4 H'!G80/'Tabel 4F H'!G80*100,"-")) -> 6.470588235 | I80: =IF(OR('Tabel 4F H'!I80<5,'Tabel 4 H'!I80<0.5),"-",IFERROR('Tabel 4 H'!I80/'Tabel 4F H'!I80*100,"-")) -> 9.302325581
A81: Landinspek. | C81: =IF(OR('Tabel 4F H'!C81<5,'Tabel 4 H'!C81<0.5),"-",IFERROR('Tabel 4 H'!C81/'Tabel 4F H'!C81*100,"-")) -> 20 | D81: =IF(OR('Tabel 4F H'!D81<5,'Tabel 4 H'!D81<0.5),"-",IFERROR('Tabel 4 H'!D81/'Tabel 4F H'!D81*100,"-")) -> 8.333333333 | E81: =IF(OR('Tabel 4F H'!E81<5,'Tabel 4 H'!E81<0.5),"-",IFERROR('Tabel 4 H'!E81/'Tabel 4F H'!E81*100,"-")) -> - | F81: =IF(OR('Tabel 4F H'!F81<5,'Tabel 4 H'!F81<0.5),"-",IFERROR('Tabel 4 H'!F81/'Tabel 4F H'!F81*100,"-")) -> - | G81: =IF(OR('Tabel 4F H'!G81<5,'Tabel 4 H'!G81<0.5),"-",IFERROR('Tabel 4 H'!G81/'Tabel 4F H'!G81*100,"-")) -> - | I81: =IF(OR('Tabel 4F H'!I81<5,'Tabel 4 H'!I81<0.5),"-",IFERROR('Tabel 4 H'!I81/'Tabel 4F H'!I81*100,"-")) -> 8.928571429
A82: Bibliotekar | C82: =IF(OR('Tabel 4F H'!C82<5,'Tabel 4 H'!C82<0.5),"-",IFERROR('Tabel 4 H'!C82/'Tabel 4F H'!C82*100,"-")) -> 14.89361702 | D82: =IF(OR('Tabel 4F H'!D82<5,'Tabel 4 H'!D82<0.5),"-",IFERROR('Tabel 4 H'!D82/'Tabel 4F H'!D82*100,"-")) -> 7 | E82: =IF(OR('Tabel 4F H'!E82<5,'Tabel 4 H'!E82<0.5),"-",IFERROR('Tabel 4 H'!E82/'Tabel 4F H'!E82*100,"-")) -> 6.201550388 | F82: =IF(OR('Tabel 4F H'!F82<5,'Tabel 4 H'!F82<0.5),"-",IFERROR('Tabel 4 H'!F82/'Tabel 4F H'!F82*100,"-")) -> 4 | G82: =IF(OR('Tabel 4F H'!G82<5,'Tabel 4 H'!G82<0.5),"-",IFERROR('Tabel 4 H'!G82/'Tabel 4F H'!G82*100,"-")) -> 2.803738318 | I82: =IF(OR('Tabel 4F H'!I82<5,'Tabel 4 H'!I82<0.5),"-",IFERROR('Tabel 4 H'!I82/'Tabel 4F H'!I82*100,"-")) -> 5.972045743
A83: Musikudd. | C83: =IF(OR('Tabel 4F H'!C83<5,'Tabel 4 H'!C83<0.5),"-",IFERROR('Tabel 4 H'!C83/'Tabel 4F H'!C83*100,"-")) -> 37.5 | D83: =IF(OR('Tabel 4F H'!D83<5,'Tabel 4 H'!D83<0.5),"-",IFERROR('Tabel 4 H'!D83/'Tabel 4F H'!D83*100,"-")) -> 15.78947368 | E83: =IF(OR('Tabel 4F H'!E83<5,'Tabel 4 H'!E83<0.5),"-",IFERROR('Tabel 4 H'!E83/'Tabel 4F H'!E83*100,"-")) -> 7.142857143 | F83: =IF(OR('Tabel 4F H'!F83<5,'Tabel 4 H'!F83<0.5),"-",IFERROR('Tabel 4 H'!F83/'Tabel 4F H'!F83*100,"-")) -> 7.272727273 | G83: =IF(OR('Tabel 4F H'!G83<5,'Tabel 4 H'!G83<0.5),"-",IFERROR('Tabel 4 H'!G83/'Tabel 4F H'!G83*100,"-")) -> - | I83: =IF(OR('Tabel 4F H'!I83<5,'Tabel 4 H'!I83<0.5),"-",IFERROR('Tabel 4 H'!I83/'Tabel 4F H'!I83*100,"-")) -> 8.843537415
A84: Teolog | C84: =IF(OR('Tabel 4F H'!C84<5,'Tabel 4 H'!C84<0.5),"-",IFERROR('Tabel 4 H'!C84/'Tabel 4F H'!C84*100,"-")) -> 36.36363636 | D84: =IF(OR('Tabel 4F H'!D84<5,'Tabel 4 H'!D84<0.5),"-",IFERROR('Tabel 4 H'!D84/'Tabel 4F H'!D84*100,"-")) -> 21.66666667 | E84: =IF(OR('Tabel 4F H'!E84<5,'Tabel 4 H'!E84<0.5),"-",IFERROR('Tabel 4 H'!E84/'Tabel 4F H'!E84*100,"-")) -> 3.658536585 | F84: =IF(OR('Tabel 4F H'!F84<5,'Tabel 4 H'!F84<0.5),"-",IFERROR('Tabel 4 H'!F84/'Tabel 4F H'!F84*100,"-")) -> 6.153846154 | G84: =IF(OR('Tabel 4F H'!G84<5,'Tabel 4 H'!G84<0.5),"-",IFERROR('Tabel 4 H'!G84/'Tabel 4F H'!G84*100,"-")) -> - | I84: =IF(OR('Tabel 4F H'!I84<5,'Tabel 4 H'!I84<0.5),"-",IFERROR('Tabel 4 H'!I84/'Tabel 4F H'!I84*100,"-")) -> 9.448818898
A85: Psykolog | C85: =IF(OR('Tabel 4F H'!C85<5,'Tabel 4 H'!C85<0.5),"-",IFERROR('Tabel 4 H'!C85/'Tabel 4F H'!C85*100,"-")) -> 13.3192389 | D85: =IF(OR('Tabel 4F H'!D85<5,'Tabel 4 H'!D85<0.5),"-",IFERROR('Tabel 4 H'!D85/'Tabel 4F H'!D85*100,"-")) -> 4.861111111 | E85: =IF(OR('Tabel 4F H'!E85<5,'Tabel 4 H'!E85<0.5),"-",IFERROR('Tabel 4 H'!E85/'Tabel 4F H'!E85*100,"-")) -> 2.460850112 | F85: =IF(OR('Tabel 4F H'!F85<5,'Tabel 4 H'!F85<0.5),"-",IFERROR('Tabel 4 H'!F85/'Tabel 4F H'!F85*100,"-")) -> 2.5 | G85: =IF(OR('Tabel 4F H'!G85<5,'Tabel 4 H'!G85<0.5),"-",IFERROR('Tabel 4 H'!G85/'Tabel 4F H'!G85*100,"-")) -> 4.545454545 | I85: =IF(OR('Tabel 4F H'!I85<5,'Tabel 4 H'!I85<0.5),"-",IFERROR('Tabel 4 H'!I85/'Tabel 4F H'!I85*100,"-")) -> 5.95126523
A86: Jurist | C86: =IF(OR('Tabel 4F H'!C86<5,'Tabel 4 H'!C86<0.5),"-",IFERROR('Tabel 4 H'!C86/'Tabel 4F H'!C86*100,"-")) -> 7.03125 | D86: =IF(OR('Tabel 4F H'!D86<5,'Tabel 4 H'!D86<0.5),"-",IFERROR('Tabel 4 H'!D86/'Tabel 4F H'!D86*100,"-")) -> 2.241594022 | E86: =IF(OR('Tabel 4F H'!E86<5,'Tabel 4 H'!E86<0.5),"-",IFERROR('Tabel 4 H'!E86/'Tabel 4F H'!E86*100,"-")) -> 1.211453744 | F86: =IF(OR('Tabel 4F H'!F86<5,'Tabel 4 H'!F86<0.5),"-",IFERROR('Tabel 4 H'!F86/'Tabel 4F H'!F86*100,"-")) -> 1.015228426 | G86: =IF(OR('Tabel 4F H'!G86<5,'Tabel 4 H'!G86<0.5),"-",IFERROR('Tabel 4 H'!G86/'Tabel 4F H'!G86*100,"-")) -> 4.117647059 | I86: =IF(OR('Tabel 4F H'!I86<5,'Tabel 4 H'!I86<0.5),"-",IFERROR('Tabel 4 H'!I86/'Tabel 4F H'!I86*100,"-")) -> 3.293084523
A87: Økonom | C87: =IF(OR('Tabel 4F H'!C87<5,'Tabel 4 H'!C87<0.5),"-",IFERROR('Tabel 4 H'!C87/'Tabel 4F H'!C87*100,"-")) -> 8.072916667 | D87: =IF(OR('Tabel 4F H'!D87<5,'Tabel 4 H'!D87<0.5),"-",IFERROR('Tabel 4 H'!D87/'Tabel 4F H'!D87*100,"-")) -> 1.9 | E87: =IF(OR('Tabel 4F H'!E87<5,'Tabel 4 H'!E87<0.5),"-",IFERROR('Tabel 4 H'!E87/'Tabel 4F H'!E87*100,"-")) -> 2.145922747 | F87: =IF(OR('Tabel 4F H'!F87<5,'Tabel 4 H'!F87<0.5),"-",IFERROR('Tabel 4 H'!F87/'Tabel 4F H'!F87*100,"-")) -> 1.763224181 | G87: =IF(OR('Tabel 4F H'!G87<5,'Tabel 4 H'!G87<0.5),"-",IFERROR('Tabel 4 H'!G87/'Tabel 4F H'!G87*100,"-")) -> 11.70212766 | I87: =IF(OR('Tabel 4F H'!I87<5,'Tabel 4 H'!I87<0.5),"-",IFERROR('Tabel 4 H'!I87/'Tabel 4F H'!I87*100,"-")) -> 4
A88: Samf. Adm. | C88: =IF(OR('Tabel 4F H'!C88<5,'Tabel 4 H'!C88<0.5),"-",IFERROR('Tabel 4 H'!C88/'Tabel 4F H'!C88*100,"-")) -> 15.17472475 | D88: =IF(OR('Tabel 4F H'!D88<5,'Tabel 4 H'!D88<0.5),"-",IFERROR('Tabel 4 H'!D88/'Tabel 4F H'!D88*100,"-")) -> 5.093715546 | E88: =IF(OR('Tabel 4F H'!E88<5,'Tabel 4 H'!E88<0.5),"-",IFERROR('Tabel 4 H'!E88/'Tabel 4F H'!E88*100,"-")) -> 3.752107926 | F88: =IF(OR('Tabel 4F H'!F88<5,'Tabel 4 H'!F88<0.5),"-",IFERROR('Tabel 4 H'!F88/'Tabel 4F H'!F88*100,"-")) -> 4.038461538 | G88: =IF(OR('Tabel 4F H'!G88<5,'Tabel 4 H'!G88<0.5),"-",IFERROR('Tabel 4 H'!G88/'Tabel 4F H'!G88*100,"-")) -> 3.381642512 | I88: =IF(OR('Tabel 4F H'!I88<5,'Tabel 4 H'!I88<0.5),"-",IFERROR('Tabel 4 H'!I88/'Tabel 4F H'!I88*100,"-")) -> 6.697256663
A89: Cand. Merc. | C89: =IF(OR('Tabel 4F H'!C89<5,'Tabel 4 H'!C89<0.5),"-",IFERROR('Tabel 4 H'!C89/'Tabel 4F H'!C89*100,"-")) -> 12.19774315 | D89: =IF(OR('Tabel 4F H'!D89<5,'Tabel 4 H'!D89<0.5),"-",IFERROR('Tabel 4 H'!D89/'Tabel 4F H'!D89*100,"-")) -> 4.064860062 | E89: =IF(OR('Tabel 4F H'!E89<5,'Tabel 4 H'!E89<0.5),"-",IFERROR('Tabel 4 H'!E89/'Tabel 4F H'!E89*100,"-")) -> 4.542278127 | F89: =IF(OR('Tabel 4F H'!F89<5,'Tabel 4 H'!F89<0.5),"-",IFERROR('Tabel 4 H'!F89/'Tabel 4F H'!F89*100,"-")) -> 4.070556309 | G89: =IF(OR('Tabel 4F H'!G89<5,'Tabel 4 H'!G89<0.5),"-",IFERROR('Tabel 4 H'!G89/'Tabel 4F H'!G89*100,"-")) -> 8.737864078 | I89: =IF(OR('Tabel 4F H'!I89<5,'Tabel 4 H'!I89<0.5),"-",IFERROR('Tabel 4 H'!I89/'Tabel 4F H'!I89*100,"-")) -> 7.060505002
A90: HA | C90: =IF(OR('Tabel 4F H'!C90<5,'Tabel 4 H'!C90<0.5),"-",IFERROR('Tabel 4 H'!C90/'Tabel 4F H'!C90*100,"-")) -> 15.34883721 | D90: =IF(OR('Tabel 4F H'!D90<5,'Tabel 4 H'!D90<0.5),"-",IFERROR('Tabel 4 H'!D90/'Tabel 4F H'!D90*100,"-")) -> 5.763688761 | E90: =IF(OR('Tabel 4F H'!E90<5,'Tabel 4 H'!E90<0.5),"-",IFERROR('Tabel 4 H'!E90/'Tabel 4F H'!E90*100,"-")) -> 3.816793893 | F90: =IF(OR('Tabel 4F H'!F90<5,'Tabel 4 H'!F90<0.5),"-",IFERROR('Tabel 4 H'!F90/'Tabel 4F H'!F90*100,"-")) -> 2.89017341 | G90: =IF(OR('Tabel 4F H'!G90<5,'Tabel 4 H'!G90<0.5),"-",IFERROR('Tabel 4 H'!G90/'Tabel 4F H'!G90*100,"-")) -> 8.510638298 | I90: =IF(OR('Tabel 4F H'!I90<5,'Tabel 4 H'!I90<0.5),"-",IFERROR('Tabel 4 H'!I90/'Tabel 4F H'!I90*100,"-")) -> 9.903201787
A91: HD | C91: =IF(OR('Tabel 4F H'!C91<5,'Tabel 4 H'!C91<0.5),"-",IFERROR('Tabel 4 H'!C91/'Tabel 4F H'!C91*100,"-")) -> 11.48325359 | D91: =IF(OR('Tabel 4F H'!D91<5,'Tabel 4 H'!D91<0.5),"-",IFERROR('Tabel 4 H'!D91/'Tabel 4F H'!D91*100,"-")) -> 9.382716049 | E91: =IF(OR('Tabel 4F H'!E91<5,'Tabel 4 H'!E91<0.5),"-",IFERROR('Tabel 4 H'!E91/'Tabel 4F H'!E91*100,"-")) -> 10.22727273 | F91: =IF(OR('Tabel 4F H'!F91<5,'Tabel 4 H'!F91<0.5),"-",IFERROR('Tabel 4 H'!F91/'Tabel 4F H'!F91*100,"-")) -> 6.164383562 | G91: =IF(OR('Tabel 4F H'!G91<5,'Tabel 4 H'!G91<0.5),"-",IFERROR('Tabel 4 H'!G91/'Tabel 4F H'!G91*100,"-")) -> 9.615384615 | I91: =IF(OR('Tabel 4F H'!I91<5,'Tabel 4 H'!I91<0.5),"-",IFERROR('Tabel 4 H'!I91/'Tabel 4F H'!I91*100,"-")) -> 9.828674482
A92: Komm. og Sprog | C92: =IF(OR('Tabel 4F H'!C92<5,'Tabel 4 H'!C92<0.5),"-",IFERROR('Tabel 4 H'!C92/'Tabel 4F H'!C92*100,"-")) -> 15.32846715 | D92: =IF(OR('Tabel 4F H'!D92<5,'Tabel 4 H'!D92<0.5),"-",IFERROR('Tabel 4 H'!D92/'Tabel 4F H'!D92*100,"-")) -> 7.78267254 | E92: =IF(OR('Tabel 4F H'!E92<5,'Tabel 4 H'!E92<0.5),"-",IFERROR('Tabel 4 H'!E92/'Tabel 4F H'!E92*100,"-")) -> 8.71459695 | F92: =IF(OR('Tabel 4F H'!F92<5,'Tabel 4 H'!F92<0.5),"-",IFERROR('Tabel 4 H'!F92/'Tabel 4F H'!F92*100,"-")) -> 7.053941909 | G92: =IF(OR('Tabel 4F H'!G92<5,'Tabel 4 H'!G92<0.5),"-",IFERROR('Tabel 4 H'!G92/'Tabel 4F H'!G92*100,"-")) -> 8.219178082 | I92: =IF(OR('Tabel 4F H'!I92<5,'Tabel 4 H'!I92<0.5),"-",IFERROR('Tabel 4 H'!I92/'Tabel 4F H'!I92*100,"-")) -> 9.597855228
A93: Bygningskonst. | C93: =IF(OR('Tabel 4F H'!C93<5,'Tabel 4 H'!C93<0.5),"-",IFERROR('Tabel 4 H'!C93/'Tabel 4F H'!C93*100,"-")) -> 16.14035088 | D93: =IF(OR('Tabel 4F H'!D93<5,'Tabel 4 H'!D93<0.5),"-",IFERROR('Tabel 4 H'!D93/'Tabel 4F H'!D93*100,"-")) -> 3.4416826 | E93: =IF(OR('Tabel 4F H'!E93<5,'Tabel 4 H'!E93<0.5),"-",IFERROR('Tabel 4 H'!E93/'Tabel 4F H'!E93*100,"-")) -> 3.947368421 | F93: =IF(OR('Tabel 4F H'!F93<5,'Tabel 4 H'!F93<0.5),"-",IFERROR('Tabel 4 H'!F93/'Tabel 4F H'!F93*100,"-")) -> 5.607476636 | G93: =IF(OR('Tabel 4F H'!G93<5,'Tabel 4 H'!G93<0.5),"-",IFERROR('Tabel 4 H'!G93/'Tabel 4F H'!G93*100,"-")) -> - | I93: =IF(OR('Tabel 4F H'!I93<5,'Tabel 4 H'!I93<0.5),"-",IFERROR('Tabel 4 H'!I93/'Tabel 4F H'!I93*100,"-")) -> 6.752136752
A94: Cand. IT. | C94: =IF(OR('Tabel 4F H'!C94<5,'Tabel 4 H'!C94<0.5),"-",IFERROR('Tabel 4 H'!C94/'Tabel 4F H'!C94*100,"-")) -> 21.04347826 | D94: =IF(OR('Tabel 4F H'!D94<5,'Tabel 4 H'!D94<0.5),"-",IFERROR('Tabel 4 H'!D94/'Tabel 4F H'!D94*100,"-")) -> 6.643757159 | E94: =IF(OR('Tabel 4F H'!E94<5,'Tabel 4 H'!E94<0.5),"-",IFERROR('Tabel 4 H'!E94/'Tabel 4F H'!E94*100,"-")) -> 5.93220339 | F94: =IF(OR('Tabel 4F H'!F94<5,'Tabel 4 H'!F94<0.5),"-",IFERROR('Tabel 4 H'!F94/'Tabel 4F H'!F94*100,"-")) -> 4 | G94: =IF(OR('Tabel 4F H'!G94<5,'Tabel 4 H'!G94<0.5),"-",IFERROR('Tabel 4 H'!G94/'Tabel 4F H'!G94*100,"-")) -> - | I94: =IF(OR('Tabel 4F H'!I94<5,'Tabel 4 H'!I94<0.5),"-",IFERROR('Tabel 4 H'!I94/'Tabel 4F H'!I94*100,"-")) -> 10.86605702
A95: Bac. Samf. | C95: =IF(OR('Tabel 4F H'!C95<5,'Tabel 4 H'!C95<0.5),"-",IFERROR('Tabel 4 H'!C95/'Tabel 4F H'!C95*100,"-")) -> 20.88607595 | D95: =IF(OR('Tabel 4F H'!D95<5,'Tabel 4 H'!D95<0.5),"-",IFERROR('Tabel 4 H'!D95/'Tabel 4F H'!D95*100,"-")) -> 7.633587786 | E95: =IF(OR('Tabel 4F H'!E95<5,'Tabel 4 H'!E95<0.5),"-",IFERROR('Tabel 4 H'!E95/'Tabel 4F H'!E95*100,"-")) -> 4.237288136 | F95: =IF(OR('Tabel 4F H'!F95<5,'Tabel 4 H'!F95<0.5),"-",IFERROR('Tabel 4 H'!F95/'Tabel 4F H'!F95*100,"-")) -> 4.705882353 | G95: =IF(OR('Tabel 4F H'!G95<5,'Tabel 4 H'!G95<0.5),"-",IFERROR('Tabel 4 H'!G95/'Tabel 4F H'!G95*100,"-")) -> - | I95: =IF(OR('Tabel 4F H'!I95<5,'Tabel 4 H'!I95<0.5),"-",IFERROR('Tabel 4 H'!I95/'Tabel 4F H'!I95*100,"-")) -> 10.35856574
A96: Bac. Hum. | C96: =IF(OR('Tabel 4F H'!C96<5,'Tabel 4 H'!C96<0.5),"-",IFERROR('Tabel 4 H'!C96/'Tabel 4F H'!C96*100,"-")) -> 18.84222474 | D96: =IF(OR('Tabel 4F H'!D96<5,'Tabel 4 H'!D96<0.5),"-",IFERROR('Tabel 4 H'!D96/'Tabel 4F H'!D96*100,"-")) -> 12.96296296 | E96: =IF(OR('Tabel 4F H'!E96<5,'Tabel 4 H'!E96<0.5),"-",IFERROR('Tabel 4 H'!E96/'Tabel 4F H'!E96*100,"-")) -> 6.730769231 | F96: =IF(OR('Tabel 4F H'!F96<5,'Tabel 4 H'!F96<0.5),"-",IFERROR('Tabel 4 H'!F96/'Tabel 4F H'!F96*100,"-")) -> 5.208333333 | G96: =IF(OR('Tabel 4F H'!G96<5,'Tabel 4 H'!G96<0.5),"-",IFERROR('Tabel 4 H'!G96/'Tabel 4F H'!G96*100,"-")) -> 5.084745763 | I96: =IF(OR('Tabel 4F H'!I96<5,'Tabel 4 H'!I96<0.5),"-",IFERROR('Tabel 4 H'!I96/'Tabel 4F H'!I96*100,"-")) -> 14.12259615
A97: Bac. Nat. | C97: =IF(OR('Tabel 4F H'!C97<5,'Tabel 4 H'!C97<0.5),"-",IFERROR('Tabel 4 H'!C97/'Tabel 4F H'!C97*100,"-")) -> 30.62015504 | D97: =IF(OR('Tabel 4F H'!D97<5,'Tabel 4 H'!D97<0.5),"-",IFERROR('Tabel 4 H'!D97/'Tabel 4F H'!D97*100,"-")) -> 8.695652174 | E97: =IF(OR('Tabel 4F H'!E97<5,'Tabel 4 H'!E97<0.5),"-",IFERROR('Tabel 4 H'!E97/'Tabel 4F H'!E97*100,"-")) -> 7.52688172 | F97: =IF(OR('Tabel 4F H'!F97<5,'Tabel 4 H'!F97<0.5),"-",IFERROR('Tabel 4 H'!F97/'Tabel 4F H'!F97*100,"-")) -> 7.142857143 | G97: =IF(OR('Tabel 4F H'!G97<5,'Tabel 4 H'!G97<0.5),"-",IFERROR('Tabel 4 H'!G97/'Tabel 4F H'!G97*100,"-")) -> 14.28571429 | I97: =IF(OR('Tabel 4F H'!I97<5,'Tabel 4 H'!I97<0.5),"-",IFERROR('Tabel 4 H'!I97/'Tabel 4F H'!I97*100,"-")) -> 19.84047856
A98: Andre | C98: =IF(OR('Tabel 4F H'!C98<5,'Tabel 4 H'!C98<0.5),"-",IFERROR('Tabel 4 H'!C98/'Tabel 4F H'!C98*100,"-")) -> 20.81260365 | D98: =IF(OR('Tabel 4F H'!D98<5,'Tabel 4 H'!D98<0.5),"-",IFERROR('Tabel 4 H'!D98/'Tabel 4F H'!D98*100,"-")) -> 8.925775133 | E98: =IF(OR('Tabel 4F H'!E98<5,'Tabel 4 H'!E98<0.5),"-",IFERROR('Tabel 4 H'!E98/'Tabel 4F H'!E98*100,"-")) -> 5.8283864 | F98: =IF(OR('Tabel 4F H'!F98<5,'Tabel 4 H'!F98<0.5),"-",IFERROR('Tabel 4 H'!F98/'Tabel 4F H'!F98*100,"-")) -> 8.913043478 | G98: =IF(OR('Tabel 4F H'!G98<5,'Tabel 4 H'!G98<0.5),"-",IFERROR('Tabel 4 H'!G98/'Tabel 4F H'!G98*100,"-")) -> 14.20289855 | I98: =IF(OR('Tabel 4F H'!I98<5,'Tabel 4 H'!I98<0.5),"-",IFERROR('Tabel 4 H'!I98/'Tabel 4F H'!I98*100,"-")) -> 10.30996408
A100: Total | C100: =IF(OR('Tabel 4F H'!C100<5,'Tabel 4 H'!C100<0.5),"-",IFERROR('Tabel 4 H'!C100/'Tabel 4F H'!C100*100,"-")) -> 16.84910086 | D100: =IF(OR('Tabel 4F H'!D100<5,'Tabel 4 H'!D100<0.5),"-",IFERROR('Tabel 4 H'!D100/'Tabel 4F H'!D100*100,"-")) -> 6.477046445 | E100: =IF(OR('Tabel 4F H'!E100<5,'Tabel 4 H'!E100<0.5),"-",IFERROR('Tabel 4 H'!E100/'Tabel 4F H'!E100*100,"-")) -> 4.407887799 | F100: =IF(OR('Tabel 4F H'!F100<5,'Tabel 4 H'!F100<0.5),"-",IFERROR('Tabel 4 H'!F100/'Tabel 4F H'!F100*100,"-")) -> 4.371012285 | G100: =IF(OR('Tabel 4F H'!G100<5,'Tabel 4 H'!G100<0.5),"-",IFERROR('Tabel 4 H'!G100/'Tabel 4F H'!G100*100,"-")) -> 6.261453879 | I100: =IF(OR('Tabel 4F H'!I100<5,'Tabel 4 H'!I100<0.5),"-",IFERROR('Tabel 4 H'!I100/'Tabel 4F H'!I100*100,"-")) -> 8.378800108
A102: Ingeniører i alt | C102: =IF(OR('Tabel 4F H'!C102<5,'Tabel 4 H'!C102<0.5),"-",IFERROR('Tabel 4 H'!C102/'Tabel 4F H'!C102*100,"-")) -> 13.02816901 | D102: =IF(OR('Tabel 4F H'!D102<5,'Tabel 4 H'!D102<0.5),"-",IFERROR('Tabel 4 H'!D102/'Tabel 4F H'!D102*100,"-")) -> 3.749267721 | E102: =IF(OR('Tabel 4F H'!E102<5,'Tabel 4 H'!E102<0.5),"-",IFERROR('Tabel 4 H'!E102/'Tabel 4F H'!E102*100,"-")) -> 2.217168846 | F102: =IF(OR('Tabel 4F H'!F102<5,'Tabel 4 H'!F102<0.5),"-",IFERROR('Tabel 4 H'!F102/'Tabel 4F H'!F102*100,"-")) -> 2.604828463 | G102: =IF(OR('Tabel 4F H'!G102<5,'Tabel 4 H'!G102<0.5),"-",IFERROR('Tabel 4 H'!G102/'Tabel 4F H'!G102*100,"-")) -> 3.703703704 | I102: =IF(OR('Tabel 4F H'!I102<5,'Tabel 4 H'!I102<0.5),"-",IFERROR('Tabel 4 H'!I102/'Tabel 4F H'!I102*100,"-")) -> 5.486781368
A103: Magistre i alt | C103: =IF(OR('Tabel 4F H'!C103<5,'Tabel 4 H'!C103<0.5),"-",IFERROR('Tabel 4 H'!C103/'Tabel 4F H'!C103*100,"-")) -> 25.59101655 | D103: =IF(OR('Tabel 4F H'!D103<5,'Tabel 4 H'!D103<0.5),"-",IFERROR('Tabel 4 H'!D103/'Tabel 4F H'!D103*100,"-")) -> 10.4015544 | E103: =IF(OR('Tabel 4F H'!E103<5,'Tabel 4 H'!E103<0.5),"-",IFERROR('Tabel 4 H'!E103/'Tabel 4F H'!E103*100,"-")) -> 5.547282204 | F103: =IF(OR('Tabel 4F H'!F103<5,'Tabel 4 H'!F103<0.5),"-",IFERROR('Tabel 4 H'!F103/'Tabel 4F H'!F103*100,"-")) -> 5.210727969 | G103: =IF(OR('Tabel 4F H'!G103<5,'Tabel 4 H'!G103<0.5),"-",IFERROR('Tabel 4 H'!G103/'Tabel 4F H'!G103*100,"-")) -> 7.081807082 | I103: =IF(OR('Tabel 4F H'!I103<5,'Tabel 4 H'!I103<0.5),"-",IFERROR('Tabel 4 H'!I103/'Tabel 4F H'!I103*100,"-")) -> 10.8565687
A104: DJØF'ere i alt | C104: =IF(OR('Tabel 4F H'!C104<5,'Tabel 4 H'!C104<0.5),"-",IFERROR('Tabel 4 H'!C104/'Tabel 4F H'!C104*100,"-")) -> 12.01787394 | D104: =IF(OR('Tabel 4F H'!D104<5,'Tabel 4 H'!D104<0.5),"-",IFERROR('Tabel 4 H'!D104/'Tabel 4F H'!D104*100,"-")) -> 4.078398666 | E104: =IF(OR('Tabel 4F H'!E104<5,'Tabel 4 H'!E104<0.5),"-",IFERROR('Tabel 4 H'!E104/'Tabel 4F H'!E104*100,"-")) -> 3.391107762 | F104: =IF(OR('Tabel 4F H'!F104<5,'Tabel 4 H'!F104<0.5),"-",IFERROR('Tabel 4 H'!F104/'Tabel 4F H'!F104*100,"-")) -> 3.063308373 | G104: =IF(OR('Tabel 4F H'!G104<5,'Tabel 4 H'!G104<0.5),"-",IFERROR('Tabel 4 H'!G104/'Tabel 4F H'!G104*100,"-")) -> 6.119162641 | I104: =IF(OR('Tabel 4F H'!I104<5,'Tabel 4 H'!I104<0.5),"-",IFERROR('Tabel 4 H'!I104/'Tabel 4F H'!I104*100,"-")) -> 6.195293076
A111: Frederiksberg
C113: Under 30 år | D113: 30 - 39 år | E113: 40 - 49 år | F113: 50 - 59 år | G113: Over 60 år | I113: I alt
A115: Civ. ing. | C115: =IF(OR('Tabel 4F H'!C115<5,'Tabel 4 H'!C115<0.5),"-",IFERROR('Tabel 4 H'!C115/'Tabel 4F H'!C115*100,"-")) -> 8.733624454 | D115: =IF(OR('Tabel 4F H'!D115<5,'Tabel 4 H'!D115<0.5),"-",IFERROR('Tabel 4 H'!D115/'Tabel 4F H'!D115*100,"-")) -> 3.614457831 | E115: =IF(OR('Tabel 4F H'!E115<5,'Tabel 4 H'!E115<0.5),"-",IFERROR('Tabel 4 H'!E115/'Tabel 4F H'!E115*100,"-")) -> 0.4608294931 | F115: =IF(OR('Tabel 4F H'!F115<5,'Tabel 4 H'!F115<0.5),"-",IFERROR('Tabel 4 H'!F115/'Tabel 4F H'!F115*100,"-")) -> 2.659574468 | G115: =IF(OR('Tabel 4F H'!G115<5,'Tabel 4 H'!G115<0.5),"-",IFERROR('Tabel 4 H'!G115/'Tabel 4F H'!G115*100,"-")) -> 4.47761194 | I115: =IF(OR('Tabel 4F H'!I115<5,'Tabel 4 H'!I115<0.5),"-",IFERROR('Tabel 4 H'!I115/'Tabel 4F H'!I115*100,"-")) -> 3.94265233
A116: Diplom ing. | C116: =IF(OR('Tabel 4F H'!C116<5,'Tabel 4 H'!C116<0.5),"-",IFERROR('Tabel 4 H'!C116/'Tabel 4F H'!C116*100,"-")) -> 7.246376812 | D116: =IF(OR('Tabel 4F H'!D116<5,'Tabel 4 H'!D116<0.5),"-",IFERROR('Tabel 4 H'!D116/'Tabel 4F H'!D116*100,"-")) -> 0.8849557522 | E116: =IF(OR('Tabel 4F H'!E116<5,'Tabel 4 H'!E116<0.5),"-",IFERROR('Tabel 4 H'!E116/'Tabel 4F H'!E116*100,"-")) -> 1.739130435 | F116: =IF(OR('Tabel 4F H'!F116<5,'Tabel 4 H'!F116<0.5),"-",IFERROR('Tabel 4 H'!F116/'Tabel 4F H'!F116*100,"-")) -> 2.5 | G116: =IF(OR('Tabel 4F H'!G116<5,'Tabel 4 H'!G116<0.5),"-",IFERROR('Tabel 4 H'!G116/'Tabel 4F H'!G116*100,"-")) -> 2.857142857 | I116: =IF(OR('Tabel 4F H'!I116<5,'Tabel 4 H'!I116<0.5),"-",IFERROR('Tabel 4 H'!I116/'Tabel 4F H'!I116*100,"-")) -> 2.645502646
A117: Cand. Scient. Tek | C117: =IF(OR('Tabel 4F H'!C117<5,'Tabel 4 H'!C117<0.5),"-",IFERROR('Tabel 4 H'!C117/'Tabel 4F H'!C117*100,"-")) -> 13.90134529 | D117: =IF(OR('Tabel 4F H'!D117<5,'Tabel 4 H'!D117<0.5),"-",IFERROR('Tabel 4 H'!D117/'Tabel 4F H'!D117*100,"-")) -> 4.761904762 | E117: =IF(OR('Tabel 4F H'!E117<5,'Tabel 4 H'!E117<0.5),"-",IFERROR('Tabel 4 H'!E117/'Tabel 4F H'!E117*100,"-")) -> 6.976744186 | F117: =IF(OR('Tabel 4F H'!F117<5,'Tabel 4 H'!F117<0.5),"-",IFERROR('Tabel 4 H'!F117/'Tabel 4F H'!F117*100,"-")) -> - | G117: =IF(OR('Tabel 4F H'!G117<5,'Tabel 4 H'!G117<0.5),"-",IFERROR('Tabel 4 H'!G117/'Tabel 4F H'!G117*100,"-")) -> - | I117: =IF(OR('Tabel 4F H'!I117<5,'Tabel 4 H'!I117<0.5),"-",IFERROR('Tabel 4 H'!I117/'Tabel 4F H'!I117*100,"-")) -> 7.487922705
A118: MA. Hum. | C118: =IF(OR('Tabel 4F H'!C118<5,'Tabel 4 H'!C118<0.5),"-",IFERROR('Tabel 4 H'!C118/'Tabel 4F H'!C118*100,"-")) -> 25.2173913 | D118: =IF(OR('Tabel 4F H'!D118<5,'Tabel 4 H'!D118<0.5),"-",IFERROR('Tabel 4 H'!D118/'Tabel 4F H'!D118*100,"-")) -> 8.152173913 | E118: =IF(OR('Tabel 4F H'!E118<5,'Tabel 4 H'!E118<0.5),"-",IFERROR('Tabel 4 H'!E118/'Tabel 4F H'!E118*100,"-")) -> 7.164634146 | F118: =IF(OR('Tabel 4F H'!F118<5,'Tabel 4 H'!F118<0.5),"-",IFERROR('Tabel 4 H'!F118/'Tabel 4F H'!F118*100,"-")) -> 5.172413793 | G118: =IF(OR('Tabel 4F H'!G118<5,'Tabel 4 H'!G118<0.5),"-",IFERROR('Tabel 4 H'!G118/'Tabel 4F H'!G118*100,"-")) -> 6.542056075 | I118: =IF(OR('Tabel 4F H'!I118<5,'Tabel 4 H'!I118<0.5),"-",IFERROR('Tabel 4 H'!I118/'Tabel 4F H'!I118*100,"-")) -> 9.373297003
A119: MA. Nat. | C119: =IF(OR('Tabel 4F H'!C119<5,'Tabel 4 H'!C119<0.5),"-",IFERROR('Tabel 4 H'!C119/'Tabel 4F H'!C119*100,"-")) -> 19.23076923 | D119: =IF(OR('Tabel 4F H'!D119<5,'Tabel 4 H'!D119<0.5),"-",IFERROR('Tabel 4 H'!D119/'Tabel 4F H'!D119*100,"-")) -> 8.695652174 | E119: =IF(OR('Tabel 4F H'!E119<5,'Tabel 4 H'!E119<0.5),"-",IFERROR('Tabel 4 H'!E119/'Tabel 4F H'!E119*100,"-")) -> 3.125 | F119: =IF(OR('Tabel 4F H'!F119<5,'Tabel 4 H'!F119<0.5),"-",IFERROR('Tabel 4 H'!F119/'Tabel 4F H'!F119*100,"-")) -> 3.571428571 | G119: =IF(OR('Tabel 4F H'!G119<5,'Tabel 4 H'!G119<0.5),"-",IFERROR('Tabel 4 H'!G119/'Tabel 4F H'!G119*100,"-")) -> 1.960784314 | I119: =IF(OR('Tabel 4F H'!I119<5,'Tabel 4 H'!I119<0.5),"-",IFERROR('Tabel 4 H'!I119/'Tabel 4F H'!I119*100,"-")) -> 5.858585859
A120: MA. Ph.d. | C120: =IF(OR('Tabel 4F H'!C120<5,'Tabel 4 H'!C120<0.5),"-",IFERROR('Tabel 4 H'!C120/'Tabel 4F H'!C120*100,"-")) -> - | D120: =IF(OR('Tabel 4F H'!D120<5,'Tabel 4 H'!D120<0.5),"-",IFERROR('Tabel 4 H'!D120/'Tabel 4F H'!D120*100,"-")) -> 8.823529412 | E120: =IF(OR('Tabel 4F H'!E120<5,'Tabel 4 H'!E120<0.5),"-",IFERROR('Tabel 4 H'!E120/'Tabel 4F H'!E120*100,"-")) -> 2.222222222 | F120: =IF(OR('Tabel 4F H'!F120<5,'Tabel 4 H'!F120<0.5),"-",IFERROR('Tabel 4 H'!F120/'Tabel 4F H'!F120*100,"-")) -> 7.894736842 | G120: =IF(OR('Tabel 4F H'!G120<5,'Tabel 4 H'!G120<0.5),"-",IFERROR('Tabel 4 H'!G120/'Tabel 4F H'!G120*100,"-")) -> - | I120: =IF(OR('Tabel 4F H'!I120<5,'Tabel 4 H'!I120<0.5),"-",IFERROR('Tabel 4 H'!I120/'Tabel 4F H'!I120*100,"-")) -> 6.349206349
A121: MA. Samf. | C121: =IF(OR('Tabel 4F H'!C121<5,'Tabel 4 H'!C121<0.5),"-",IFERROR('Tabel 4 H'!C121/'Tabel 4F H'!C121*100,"-")) -> 25 | D121: =IF(OR('Tabel 4F H'!D121<5,'Tabel 4 H'!D121<0.5),"-",IFERROR('Tabel 4 H'!D121/'Tabel 4F H'!D121*100,"-")) -> 10 | E121: =IF(OR('Tabel 4F H'!E121<5,'Tabel 4 H'!E121<0.5),"-",IFERROR('Tabel 4 H'!E121/'Tabel 4F H'!E121*100,"-")) -> 5.357142857 | F121: =IF(OR('Tabel 4F H'!F121<5,'Tabel 4 H'!F121<0.5),"-",IFERROR('Tabel 4 H'!F121/'Tabel 4F H'!F121*100,"-")) -> 5.555555556 | G121: =IF(OR('Tabel 4F H'!G121<5,'Tabel 4 H'!G121<0.5),"-",IFERROR('Tabel 4 H'!G121/'Tabel 4F H'!G121*100,"-")) -> - | I121: =IF(OR('Tabel 4F H'!I121<5,'Tabel 4 H'!I121<0.5),"-",IFERROR('Tabel 4 H'!I121/'Tabel 4F H'!I121*100,"-")) -> 12.5748503
A122: Øvrige Mag. | C122: =IF(OR('Tabel 4F H'!C122<5,'Tabel 4 H'!C122<0.5),"-",IFERROR('Tabel 4 H'!C122/'Tabel 4F H'!C122*100,"-")) -> 31.57894737 | D122: =IF(OR('Tabel 4F H'!D122<5,'Tabel 4 H'!D122<0.5),"-",IFERROR('Tabel 4 H'!D122/'Tabel 4F H'!D122*100,"-")) -> 12 | E122: =IF(OR('Tabel 4F H'!E122<5,'Tabel 4 H'!E122<0.5),"-",IFERROR('Tabel 4 H'!E122/'Tabel 4F H'!E122*100,"-")) -> 5.263157895 | F122: =IF(OR('Tabel 4F H'!F122<5,'Tabel 4 H'!F122<0.5),"-",IFERROR('Tabel 4 H'!F122/'Tabel 4F H'!F122*100,"-")) -> 9.677419355 | G122: =IF(OR('Tabel 4F H'!G122<5,'Tabel 4 H'!G122<0.5),"-",IFERROR('Tabel 4 H'!G122/'Tabel 4F H'!G122*100,"-")) -> 8.333333333 | I122: =IF(OR('Tabel 4F H'!I122<5,'Tabel 4 H'!I122<0.5),"-",IFERROR('Tabel 4 H'!I122/'Tabel 4F H'!I122*100,"-")) -> 12
A123: Agronom | C123: =IF(OR('Tabel 4F H'!C123<5,'Tabel 4 H'!C123<0.5),"-",IFERROR('Tabel 4 H'!C123/'Tabel 4F H'!C123*100,"-")) -> 21.42857143 | D123: =IF(OR('Tabel 4F H'!D123<5,'Tabel 4 H'!D123<0.5),"-",IFERROR('Tabel 4 H'!D123/'Tabel 4F H'!D123*100,"-")) -> - | E123: =IF(OR('Tabel 4F H'!E123<5,'Tabel 4 H'!E123<0.5),"-",IFERROR('Tabel 4 H'!E123/'Tabel 4F H'!E123*100,"-")) -> 5.555555556 | F123: =IF(OR('Tabel 4F H'!F123<5,'Tabel 4 H'!F123<0.5),"-",IFERROR('Tabel 4 H'!F123/'Tabel 4F H'!F123*100,"-")) -> - | G123: =IF(OR('Tabel 4F H'!G123<5,'Tabel 4 H'!G123<0.5),"-",IFERROR('Tabel 4 H'!G123/'Tabel 4F H'!G123*100,"-")) -> - | I123: =IF(OR('Tabel 4F H'!I123<5,'Tabel 4 H'!I123<0.5),"-",IFERROR('Tabel 4 H'!I123/'Tabel 4F H'!I123*100,"-")) -> 5.128205128
A124: Landsk. Arkt. | C124: =IF(OR('Tabel 4F H'!C124<5,'Tabel 4 H'!C124<0.5),"-",IFERROR('Tabel 4 H'!C124/'Tabel 4F H'!C124*100,"-")) -> - | D124: =IF(OR('Tabel 4F H'!D124<5,'Tabel 4 H'!D124<0.5),"-",IFERROR('Tabel 4 H'!D124/'Tabel 4F H'!D124*100,"-")) -> 7.692307692 | E124: =IF(OR('Tabel 4F H'!E124<5,'Tabel 4 H'!E124<0.5),"-",IFERROR('Tabel 4 H'!E124/'Tabel 4F H'!E124*100,"-")) -> - | F124: =IF(OR('Tabel 4F H'!F124<5,'Tabel 4 H'!F124<0.5),"-",IFERROR('Tabel 4 H'!F124/'Tabel 4F H'!F124*100,"-")) -> - | G124: =IF(OR('Tabel 4F H'!G124<5,'Tabel 4 H'!G124<0.5),"-",IFERROR('Tabel 4 H'!G124/'Tabel 4F H'!G124*100,"-")) -> - | I124: =IF(OR('Tabel 4F H'!I124<5,'Tabel 4 H'!I124<0.5),"-",IFERROR('Tabel 4 H'!I124/'Tabel 4F H'!I124*100,"-")) -> 6.060606061
A125: Hortonom | C125: =IF(OR('Tabel 4F H'!C125<5,'Tabel 4 H'!C125<0.5),"-",IFERROR('Tabel 4 H'!C125/'Tabel 4F H'!C125*100,"-")) -> - | D125: =IF(OR('Tabel 4F H'!D125<5,'Tabel 4 H'!D125<0.5),"-",IFERROR('Tabel 4 H'!D125/'Tabel 4F H'!D125*100,"-")) -> - | E125: =IF(OR('Tabel 4F H'!E125<5,'Tabel 4 H'!E125<0.5),"-",IFERROR('Tabel 4 H'!E125/'Tabel 4F H'!E125*100,"-")) -> - | F125: =IF(OR('Tabel 4F H'!F125<5,'Tabel 4 H'!F125<0.5),"-",IFERROR('Tabel 4 H'!F125/'Tabel 4F H'!F125*100,"-")) -> - | G125: =IF(OR('Tabel 4F H'!G125<5,'Tabel 4 H'!G125<0.5),"-",IFERROR('Tabel 4 H'!G125/'Tabel 4F H'!G125*100,"-")) -> - | I125: =IF(OR('Tabel 4F H'!I125<5,'Tabel 4 H'!I125<0.5),"-",IFERROR('Tabel 4 H'!I125/'Tabel 4F H'!I125*100,"-")) -> -
A126: Forstkand. | C126: =IF(OR('Tabel 4F H'!C126<5,'Tabel 4 H'!C126<0.5),"-",IFERROR('Tabel 4 H'!C126/'Tabel 4F H'!C126*100,"-")) -> - | D126: =IF(OR('Tabel 4F H'!D126<5,'Tabel 4 H'!D126<0.5),"-",IFERROR('Tabel 4 H'!D126/'Tabel 4F H'!D126*100,"-")) -> - | E126: =IF(OR('Tabel 4F H'!E126<5,'Tabel 4 H'!E126<0.5),"-",IFERROR('Tabel 4 H'!E126/'Tabel 4F H'!E126*100,"-")) -> 16.66666667 | F126: =IF(OR('Tabel 4F H'!F126<5,'Tabel 4 H'!F126<0.5),"-",IFERROR('Tabel 4 H'!F126/'Tabel 4F H'!F126*100,"-")) -> - | G126: =IF(OR('Tabel 4F H'!G126<5,'Tabel 4 H'!G126<0.5),"-",IFERROR('Tabel 4 H'!G126/'Tabel 4F H'!G126*100,"-")) -> - | I126: =IF(OR('Tabel 4F H'!I126<5,'Tabel 4 H'!I126<0.5),"-",IFERROR('Tabel 4 H'!I126/'Tabel 4F H'!I126*100,"-")) -> 7.692307692
A127: Jordbrugsakad. | C127: =IF(OR('Tabel 4F H'!C127<5,'Tabel 4 H'!C127<0.5),"-",IFERROR('Tabel 4 H'!C127/'Tabel 4F H'!C127*100,"-")) -> 21.05263158 | D127: =IF(OR('Tabel 4F H'!D127<5,'Tabel 4 H'!D127<0.5),"-",IFERROR('Tabel 4 H'!D127/'Tabel 4F H'!D127*100,"-")) -> 3.333333333 | E127: =IF(OR('Tabel 4F H'!E127<5,'Tabel 4 H'!E127<0.5),"-",IFERROR('Tabel 4 H'!E127/'Tabel 4F H'!E127*100,"-")) -> 5.555555556 | F127: =IF(OR('Tabel 4F H'!F127<5,'Tabel 4 H'!F127<0.5),"-",IFERROR('Tabel 4 H'!F127/'Tabel 4F H'!F127*100,"-")) -> - | G127: =IF(OR('Tabel 4F H'!G127<5,'Tabel 4 H'!G127<0.5),"-",IFERROR('Tabel 4 H'!G127/'Tabel 4F H'!G127*100,"-")) -> - | I127: =IF(OR('Tabel 4F H'!I127<5,'Tabel 4 H'!I127<0.5),"-",IFERROR('Tabel 4 H'!I127/'Tabel 4F H'!I127*100,"-")) -> 5.303030303
A128: Mejeriing. | C128: =IF(OR('Tabel 4F H'!C128<5,'Tabel 4 H'!C128<0.5),"-",IFERROR('Tabel 4 H'!C128/'Tabel 4F H'!C128*100,"-")) -> - | D128: =IF(OR('Tabel 4F H'!D128<5,'Tabel 4 H'!D128<0.5),"-",IFERROR('Tabel 4 H'!D128/'Tabel 4F H'!D128*100,"-")) -> - | E128: =IF(OR('Tabel 4F H'!E128<5,'Tabel 4 H'!E128<0.5),"-",IFERROR('Tabel 4 H'!E128/'Tabel 4F H'!E128*100,"-")) -> - | F128: =IF(OR('Tabel 4F H'!F128<5,'Tabel 4 H'!F128<0.5),"-",IFERROR('Tabel 4 H'!F128/'Tabel 4F H'!F128*100,"-")) -> - | G128: =IF(OR('Tabel 4F H'!G128<5,'Tabel 4 H'!G128<0.5),"-",IFERROR('Tabel 4 H'!G128/'Tabel 4F H'!G128*100,"-")) -> - | I128: =IF(OR('Tabel 4F H'!I128<5,'Tabel 4 H'!I128<0.5),"-",IFERROR('Tabel 4 H'!I128/'Tabel 4F H'!I128*100,"-")) -> -
A129: Levn.m.kand. | C129: =IF(OR('Tabel 4F H'!C129<5,'Tabel 4 H'!C129<0.5),"-",IFERROR('Tabel 4 H'!C129/'Tabel 4F H'!C129*100,"-")) -> 28.57142857 | D129: =IF(OR('Tabel 4F H'!D129<5,'Tabel 4 H'!D129<0.5),"-",IFERROR('Tabel 4 H'!D129/'Tabel 4F H'!D129*100,"-")) -> 6.666666667 | E129: =IF(OR('Tabel 4F H'!E129<5,'Tabel 4 H'!E129<0.5),"-",IFERROR('Tabel 4 H'!E129/'Tabel 4F H'!E129*100,"-")) -> - | F129: =IF(OR('Tabel 4F H'!F129<5,'Tabel 4 H'!F129<0.5),"-",IFERROR('Tabel 4 H'!F129/'Tabel 4F H'!F129*100,"-")) -> - | G129: =IF(OR('Tabel 4F H'!G129<5,'Tabel 4 H'!G129<0.5),"-",IFERROR('Tabel 4 H'!G129/'Tabel 4F H'!G129*100,"-")) -> - | I129: =IF(OR('Tabel 4F H'!I129<5,'Tabel 4 H'!I129<0.5),"-",IFERROR('Tabel 4 H'!I129/'Tabel 4F H'!I129*100,"-")) -> 11.11111111
A130: Dyrlæge | C130: =IF(OR('Tabel 4F H'!C130<5,'Tabel 4 H'!C130<0.5),"-",IFERROR('Tabel 4 H'!C130/'Tabel 4F H'!C130*100,"-")) -> 9.090909091 | D130: =IF(OR('Tabel 4F H'!D130<5,'Tabel 4 H'!D130<0.5),"-",IFERROR('Tabel 4 H'!D130/'Tabel 4F H'!D130*100,"-")) -> - | E130: =IF(OR('Tabel 4F H'!E130<5,'Tabel 4 H'!E130<0.5),"-",IFERROR('Tabel 4 H'!E130/'Tabel 4F H'!E130*100,"-")) -> - | F130: =IF(OR('Tabel 4F H'!F130<5,'Tabel 4 H'!F130<0.5),"-",IFERROR('Tabel 4 H'!F130/'Tabel 4F H'!F130*100,"-")) -> - | G130: =IF(OR('Tabel 4F H'!G130<5,'Tabel 4 H'!G130<0.5),"-",IFERROR('Tabel 4 H'!G130/'Tabel 4F H'!G130*100,"-")) -> - | I130: =IF(OR('Tabel 4F H'!I130<5,'Tabel 4 H'!I130<0.5),"-",IFERROR('Tabel 4 H'!I130/'Tabel 4F H'!I130*100,"-")) -> 2.631578947
A131: Farmaceut | C131: =IF(OR('Tabel 4F H'!C131<5,'Tabel 4 H'!C131<0.5),"-",IFERROR('Tabel 4 H'!C131/'Tabel 4F H'!C131*100,"-")) -> 13.46153846 | D131: =IF(OR('Tabel 4F H'!D131<5,'Tabel 4 H'!D131<0.5),"-",IFERROR('Tabel 4 H'!D131/'Tabel 4F H'!D131*100,"-")) -> - | E131: =IF(OR('Tabel 4F H'!E131<5,'Tabel 4 H'!E131<0.5),"-",IFERROR('Tabel 4 H'!E131/'Tabel 4F H'!E131*100,"-")) -> - | F131: =IF(OR('Tabel 4F H'!F131<5,'Tabel 4 H'!F131<0.5),"-",IFERROR('Tabel 4 H'!F131/'Tabel 4F H'!F131*100,"-")) -> - | G131: =IF(OR('Tabel 4F H'!G131<5,'Tabel 4 H'!G131<0.5),"-",IFERROR('Tabel 4 H'!G131/'Tabel 4F H'!G131*100,"-")) -> - | I131: =IF(OR('Tabel 4F H'!I131<5,'Tabel 4 H'!I131<0.5),"-",IFERROR('Tabel 4 H'!I131/'Tabel 4F H'!I131*100,"-")) -> 3.111111111
